Workbook

Sheet TIEOSAT
D1: Uudenmaan ELY-keskuksen tieverkon merkittävyysluokitus
D2: PISTEYTYSTEKIJÄT JA PAINOARVOT | N2: PALAUTUS- JA LAJITTELUTYÖKALUT
D3: OSA-ALUEET | J3: Taajama | P3: Tietokannan palauttaminen oletusarvoihin
D4: Säännöllinen henkilöliikenne | G4: Yht. | H4: painotus | J4: tieosasta | K4: 0.5
D5: KVL | F5: 9 | G5: =SUM(F5:F7) -> 15 | H5: =1/3 -> 0.3333333333 | J5: Liikenne | K5: Vähä/loput
D6: Linja-autovuorot | F6: 3 | J6: KVL | K6: 1000
D7: Työmatkat | F7: 3 | J7: KVLRAS | K7: 50 | P7: Lajittele muutosten/ nollauksen jälkeen
D8: Säännöllinen tavaraliikenne | G8: Yht. | H8: painotus | J8: KKVL | K8: 1000 | Q8: SYYSKUU 2023
D9: KVLRAS | F9: 8 | G9: =SUM(F9:F20) -> 25 | H9: 0.3333333333 | J9: Työmatkat
D10: Maito | F10: 2 | J10: Pisteet | L10: Työmatkoja | U10: TILASTOTIEDOT
D11: Jäte | F11: 1 | J11: =F7 -> 3 | K11: =CONCATENATE("≥ ",L11,) -> ≥ 300 | L11: 300
D12: Maa-aines | F12: 1 | J12: =CONCATENATE("0-",J11) -> 0-3 | K12: 1–299 lineaarisesti | N12: SUODATUS- JA HAKUTYÖKALUT | Q12: TIEJAKSO RAPORTTI | U12: Merkittävyysluokka | X12: % max pisteistä | Z12: Tieosista
D13: Turve | F13: 1 | J13: Linja-autovuorot | U13: 1 luokka | X13: =CS27 -> 0.8302842834 | Z13: 0.05
D14: Viljansäilytys ja kasvih. | F14: 2 | J14: Pisteet | L14: Vuoromäärä | P14: KVL tekijät poistetaan käytöstä | U14: 2 luokka | X14: =CS28 -> 0.6778872686 | Z14: 0.2
D15: Eläintilat | F15: 2 | J15: =$F$6 -> 3 | K15: =CONCATENATE("≥ ",L15,) -> ≥ 40 | L15: 40 | U15: 3 luokka | X15: =CS29 -> 0.1924339373 | Z15: 0.5
D16: Elintarvikelaitos | F16: 2 | J16: =CONCATENATE("0-",J15) -> 0-3 | K16: 1–39 lineaariseti | U16: 4 luokka | X16: =CS30 -> 0.01156223302 | Z16: =1-SUM(Z13:Z15) -> 0.25
D17: Tuotantolaitos | F17: 2 | J17: Puun kuljetusreitit | P17: Järjestä tieosat luokan mukaan | Q17: NÄYTÄ VAIN SORATIET
D18: Logistiikka-alue | F18: 1 | J18: Pisteet | L18: Autoa/vrk | U18: Pituus km | W18: Km | X18: Km | Y18: LOPUT | Z18: VÄHÄ
D19: Päivittäistavarakauppa | F19: 2 | J19: =$F$20 -> 1 | K19: =CONCATENATE("≥ ",L19,) -> ≥ 10 | L19: 10 | U19: Luokka | V19: 1 | W19: =SUMIFS(X37:X1748,N37:N1748,"LOPUT",K37:K1748,1)/1000 -> 559.245 | X19: =SUMIFS(X37:X1748,N37:N1748,"VÄHÄ",K37:K1748,1)/1000 -> 0
D20: Puun kuljetusreitit | F20: 1 | J20: 0-2 | K20: 1–9 lineaariseti | P20: Poista käytössä olevat suodatukset | U20: Luokka | V20: 2 | W20: =SUMIFS(X37:X1748,N37:N1748,"LOPUT",K37:K1748,2)/1000 -> 1634.32 | X20: =SUMIFS(X37:X1748,N37:N1748,"VÄHÄ",K37:K1748,2)/1000 -> 106.132
D21: Muut tekijät | G21: Yht. | H21: painotus | J21: Eläintilat (tieosalle kumuloitunut lkm) | U21: Luokka | V21: 3 | W21: =SUMIFS(X37:X1748,N37:N1748,"LOPUT",K37:K1748,3)/1000 -> 868.334 | X21: =SUMIFS(X37:X1748,N37:N1748,"VÄHÄ",K37:K1748,3)/1000 -> 3439.311 | CS21: Luokkien min pist.
D22: Koulu | F22: 1 | G22: =SUM(F22:F30) -> 10 | H22: =1/3 -> 0.3333333333 | J22: Pisteet (0-1 lineaarisesti) | L22: Eläinten lkm | Q22: =HYPERLINK("https://linea.maps.arcgis.com/apps/instant/sidebar/index.html?appid=6a26f2bfa66e4b1b82c25dc079beaf25","ONLINE-KARTTA") -> ONLINE-KARTTA | U22: Luokka | V22: 4 | W22: =SUMIFS(X37:X1748,N37:N1748,"LOPUT",K37:K1748,4)/1000 -> 0 | X22: =SUMIFS(X37:X1748,N37:N1748,"VÄHÄ",K37:K1748,4)/1000 -> 2129.582 | CS22: =MIN(IF(K37:K1748=V19,G37:G1748)) -> 12.86940639
D23: Eriku-reitti | F23: 1 | J23: =$F$15/4 -> 0.5 | K23: Nauta | L23: 300 | P23: Tienumerojärjestys | U23: Yht. | W23: =SUM(W19:W22) -> 3061.899 | X23: =SUM(X19:X22) -> 5675.025 | CS23: =MIN(IF(K37:K1748=V20,G37:G1748)) -> 10.50725266
D24: Varareitti | F24: 1 | J24: =$F$15/4 -> 0.5 | K24: Lammas/vuohi/hevonen | L24: 100 | CS24: =MIN(IF(K37:K1748=V21,G37:G1748)) -> 2.982726027
D25: Taajama | F25: 1 | J25: =$F$15/4 -> 0.5 | K25: Sika | L25: 1000 | U25: Tieosia (kpl) | W25: kpl | X25: osuus | Y25: kpl | Z25: osuus | AA25: KAIKKI | CS25: =MIN(IF(K37:K1748=V22,G37:G1748)) -> 0.1792146119
D26: Asukastiheys | F26: 1 | J26: =$F$15/4 -> 0.5 | K26: Linnut | L26: 30 | P26: Hae tiejakso | U26: Luokka 1 | W26: =COUNTIFS(N37:N1748,"LOPUT",K37:K1748,1) -> 85 | X26: =W26/$W$30 -> 0.1377633712 | Y26: =COUNTIFS(N37:N1748,"VÄHÄ",K37:K1748,1) -> 0 | Z26: =Y26/$Y$30 -> 0 | AA26: =(W26+Y26)/($W$30+$Y$30) -> 0.04988262911 | CS26: Osuusmax | CW26: Koulubufferi (3 km tieverkkoa pitkin)
D27: KKVL | F27: 2 | J27: Tuotantolaitokset (kumuloituneet) | Q27: TIENUMEROA TUPLA-KLIKKAAMALLA SIIRTYMINEN KVL-JAKSOIHIN | U27: Luokka 2 | W27: =COUNTIFS(N37:N1748,"LOPUT",K37:K1748,2) -> 324 | X27: =W27/$W$30 -> 0.5251215559 | Y27: =COUNTIFS(N37:N1748,"VÄHÄ",K37:K1748,2) -> 16 | Z27: =Y27/$Y$30 -> 0.01471941122 | AA27: =(W27+Y27)/($W$30+$Y$30) -> 0.1995305164 | CS27: =CS22/$CM$30 -> 0.8302842834 | CW27: Pisteet | CY27: Tieosasta
D28: Matkailureitti | F28: 1 | J28: Pisteet | L28: Laitosten lkm | U28: Luokka 3 | W28: =COUNTIFS(N37:N1748,"LOPUT",K37:K1748,3) -> 208 | X28: =W28/$W$30 -> 0.3371150729 | Y28: =COUNTIFS(N37:N1748,"VÄHÄ",K37:K1748,3) -> 644 | Z28: =Y28/$Y$30 -> 0.5924563017 | AA28: =(W28+Y28)/($W$30+$Y$30) -> 0.5 | CS28: =CS23/$CM$30 -> 0.6778872686 | CW28: =$F$22 -> 1 | CX28: =CONCATENATE("≥ ",CY28*100," %") -> ≥ 50 % | CY28: 0.5
D29: Matkailukohde | F29: 1 | J29: =F17 -> 2 | K29: =CONCATENATE("≥ ",L29,) -> ≥ 3 | L29: 3 | P29: Suodata KVL:n perusteella | Q29: TIEOSA JAKAUTUU KVL-JAKSOIHIN | U29: Luokka 4 | W29: =COUNTIFS(N37:N1748,"LOPUT",K37:K1748,4) -> 0 | X29: =W29/$W$30 -> 0 | Y29: =COUNTIFS(N37:N1748,"VÄHÄ",K37:K1748,4) -> 427 | Z29: =Y29/$Y$30 -> 0.392824287 | AA29: =(W29+Y29)/($W$30+$Y$30) -> 0.2505868545 | CM29: MAX | CS29: =CS24/$CM$30 -> 0.1924339373 | CW29: =F22/2 -> 0.5 | CX29: =CONCATENATE("1-",CY28*100-1," %") -> 1-49 % | EC29: Luokka muuttunut VÄHÄ/LOPUT
D30: Tien verkollinen asema | F30: 1 | J30: 0-1 | K30: 1–2 lineaariseti | U30: Yht. | W30: =SUM(W26:W29) -> 617 | X30: =SUM(X26:X29) -> 1 | Y30: =SUM(Y26:Y29) -> 1087 | Z30: =SUM(Z26:Z29) -> 1 | CM30: =MAX(CL37:CL1748) -> 15.5 | CS30: =CS25/$CM$30 -> 0.01156223302 | EC30: 4 x VÄHÄ → LOPUT ja 12 x LOPUT → VÄHÄ
A31: 1 | B31: 2 | D31: 1 | E31: 2 | F31: 3 | G31: 4 | K31: 5 | L31: 6 | M31: 7 | N31: 8 | O31: 9 | P31: 10 | U31: 14 | V31: 15 | W31: 16 | X31: 17 | Y31: 18 | Z31: 19 | AA31: 20 | AB31: 21 | AC31: 22 | AD31: 23 | AE31: 24 | AJ31: 28 | AM31: 31 | AR31: 32 | AS31: 33 | AW31: 35 | AX31: 36 | AY31: 37 | AZ31: 38 | BA31: 39 | BB31: 40 | BC31: 41 | BD31: 42 | BE31: 43 | BF31: 44 | BG31: 45 | BH31: 46 | BI31: 47 | BJ31: 48 | BK31: 49 | BQ31: 50 | BR31: 51 | BS31: 52 | BT31: 53 | BU31: 54 | BV31: 55 | BW31: 56 | BX31: 57 | BY31: 58 | BZ31: 59 | CA31: 60 | CB31: 61 | CH31: 67 | CI31: 68 | CJ31: 69 | CK31: 70 | CL31: 10.6 | CM31: 71 | CS31: 72 | CT31: 73
A32: Lajittelu, ID | B32: LUOKKA | C32: Lajittelu | D32: Sija | E32: Herkkyys, sija ennen muutosta | F32: Herkkyys, sijamuutos | G32: Pisteet | H32: Sään. henkliik. pisteet | I32: Sään. tavaraliik. pisteet | J32: Muut tekijät pisteet | K32: Merkittävyys-luokka | L32: Luokan muutos | M32: Google Maps | S32: TIEOSAN OMINAISUUDET | AR32: SÄÄNNÖLLINEN HENKILÖLIIKENNE | AY32: PISTEET YHTEENSÄ (max. 15) | AZ32: PISTEET YHTEENSÄ, PAINOTETTU | BA32: SÄÄNNÖLLINEN TAVARALIIKENNE | BQ32: PISTEET YHTEENSÄ (max. 25) | BR32: PISTEET YHTEENSÄ, PAINOTETTU | BS32: MUUT TEKIJÄT | CI32: PISTEET YHTEENSÄ (max. 10) | CJ32: PISTEET YHTEENSÄ, PAINOTETTU | CK32: PISTEET YHTEENSÄ (max. 50) | CL32: PISTEET YHTEENSÄ, PAINOTETTU | CM32: MERKITTÄVYYS-LUOKKA | EC32: Muutokset 2020-2022
AN33: Kaduksi muutettava % | AO33: Jkpp-väylä % | AR33: Liikennemäärä | AS33: Linja-autoliikenne (matka.fi) | AW33: Työmatkareitti | BA33: Liikennemäärä | BF33: Maatilat | BO33: Puukuljetusreitit | BS33: 3 km koulubufferi | BV33: Erikoiskuljetusreitti | BY33: Varareitti | BZ33: Taajama | CC33: Asukastiheys | CE33: Liikennemäärä | CF33: Matkailureitti | CG33: Matkailukohde | CH33: Tien verkollinen asema | DV33: vertailu | EC33: LUOKKA 2020 | ED33: Sija 2020 | EE33: Sija-muutos | EF33: Luokka 2020 | EG33: Luokanmuutos
A34: Lajittelu, ID | B34: Lajittelu, KVL | N34: LUOKKA | O34: TOIML | P34: Tien nimi | Q34: Kunta | R34: Maakunta | S34: TIE | T34: AOSA | U34: AET | V34: LOSA | W34: LET | X34: PITUUS | Y34: KVL, ka | Z34: KVLRAS | AA34: KKVL | AB34: KVL, ketjutus | AC34: Nopeusrajoitus | AD34: Hoitoluokka | AE34: Päällyste | AF34: PYPLK | AG34: HEVA 18-22 | AH34: kaikki onn. 18-22 | AI34: Huonokuntoinen päällyste | AJ34: KVLYHD | AK34: TEN-T | AL34: PÄÄVÄYLÄ | AM34: HCT | AR34: KVL pisteet | AS34: Vuorot | AT34: Uusi | AU34: Ilman HSL | AV34: Pisteet | AW34: Työmatkat | AX34: Pisteet | BA34: KVLRAS pisteet | BB34: Maito | BC34: Jäte | BD34: Maa-aines | BE34: Turve | BF34: Vilja + kasvih. | BG34: Nauta | BH34: Lammas | BI34: Sika | BJ34: Siipikarja | BK34: Elintarvikelaitos | BL34: Tuotantolaitos | BM34: Logistiikka-alue | BN34: Päivittäistavarakauppa | BO34: Autoa/vrk | BP34: Pisteet | BS34: Pituus | BT34: Prosentti | BU34: Pisteet | BV34: Pituus | BW34: Prosentti | BX34: Pisteet | BY34: Pisteet | BZ34: Pituus | CA34: Prosentti | CB34: Pisteet | CC34: Asukkaat | CD34: Pisteet | CE34: KKVL pisteet | CF34: Pisteet | CG34: Pisteet | CH34: Pisteet | CN34: KVLosuus | CT34: Gmaps linkki | CW34: Maito, reititys lypsytilat | CX34: Maito, Arla | CY34: Maito, Valio | CZ34: Maito yht. | DA34: Jäte | DB34: Maa-aines | DC34: Turve | DD34: Viljan säilytys | DE34: Kasvihuone | DF34: Nauta | DG34: Lammas/Vuohi/Hevonen | DH34: Sika | DI34: Siipikarja | DJ34: Elintarvikelaitos | DL34: Koulubufferi | DM34: Tuotanto | DN34: Logistiikka | DO34: Varareitit | DP34: Taajama | DQ34: jos kkvl > raja | DR34: jos kkvl/kvl > 1,5 kertainen | DS34: kkvl yhteensä | DT34: Matkailukohde reititys | DU34: Matkailureitti | DV34: Matkailukohde | DW34: Tien verkollinen asema | DX34: Kauppa | DY34: Katukohde, osuus | DZ34: jkp-osuus | EA34: logistiikka kerroala | EI34: 2020 tiedot
G35: 15
D36: Sija | E36: Ennen muutosta | F36: Sijamuutos | G36: Pisteet | K36: Luokka | L36: Luokan muutos | M36: ID | N36: Gmaps | O36: LUOKKA | S36: TIE | T36: AOSA | U36: AET | V36: LOSA | W36: LET | X36: PITUUS | Y36: KVL | Z36: KVLRAS | AA36: KKVL | AB36: KVL, ketjutus | AC36: Nopeusrajoitus | AD36: Hoitoluokka | AE36: Päällyste | AF36: Kunta | AG36: HEVA 09-13 | AH36: kaikki onn. | AI36: Asukkaat (500m) | AJ36: Siltanumero | AK36: Kuntoluokka | AM36: Painorajoitus | AR36: KVL pisteet | AS36: Vuorot | AV36: Pisteet | AW36: Työmatkat | AX36: Pisteet | AY36: PISTEET YHTEENSÄ (max. 15) | AZ36: PISTEET YHTEENSÄ, PAINOTETTU | BA36: KVLRAS pisteet | BB36: Maito | BC36: Jäte | BD36: Maa-aines | BE36: Turve | BF36: Maatalousrakennukset | BH36: Lammas | BI36: Sika | BJ36: Siipikarja | BK36: Elintarvikelaitos | BL36: Tuotantolaitos | BM36: Logistiikka-alue | BQ36: PISTEET YHTEENSÄ (max. 15) | BR36: PISTEET YHTEENSÄ, PAINOTETTU | BS36: Pituus | BT36: Prosentti | BU36: KOULU | BV36: Pituus | BW36: Prosentti | BX36: ERIKU | BY36: VARAREITTI | BZ36: Pituus | CA36: Prosentti | CB36: TAAJAMA | CC36: Asukkaat | CD36: KYLÄ | CE36: KKVL pisteet | CF36: Matkailureitti | CG36: Matkailukohde | CH36: Tien verkollinen asema | CI36: PISTEET YHTEENSÄ (max. 15) | CJ36: PISTEET YHTEENSÄ, PAINOTETTU | CK36: PISTEET YHTEENSÄ (max. 45) | CL36: PISTEET YHTEENSÄ, PAINOTETTU | CM36: MERKITSEVYYS-LUOKKA
A37: =CONCATENATE(S37,"_",T37) -> 2_23 | B37: 1 | D37: =RANK(CL37,$CL$37:$CL$1740) -> 1 | E37: 1 | F37: =E37-D37 -> 0 | G37: =CL37 -> 15.5 | H37: =AZ37 -> 5 | I37: =BR37 -> 8.166666667 | J37: =CJ37 -> 2.333333333 | K37: =CM37 -> 1 | L37: =B37-K37 -> 0 | M37: =HYPERLINK(CT37,"Gmaps") -> Gmaps | N37: =IF(Y37>$K$6,"LOPUT","VÄHÄ") -> LOPUT | O37: =IF(S37<40,"Valta",IF(S37<100,"Kanta",IF(S37<1000,"Seutu",IF(S37>999,"Yhdys")))) -> Valta | P37: Porin valtatie, Valtatie 2 | Q37: Forssa, Jokioinen, Tammela | R37: Kanta-Häme | S37: 2 | T37: 23 | U37: 0 | V37: 23 | W37: 14438 | X37: 14438 | Y37: 5943.315972 | Z37: 822.1463499 | AA37: 6937.093365 | AB37: 5479 (10 %), 5684 (17 %), 5893 (20 %), 6133 (53 %) | AC37: 60 (6 %), 80 (57 %), 100 (38 %) | AD37: Is (100 %) | AE37: AB (100 %) | AF37: Y1 (100 %) | AG37: 1 | AH37: 12 | AI37: 0.05714410442 | AJ37: 523.108256 | AK37: Laajin Ternverkko | AL37: 1 | AM37: x | AN37: 0 | AO37: 0.1216037838 | AR37: =+IF(Y37>=$K$6,$F$5,($F$5/($K$6))*Y37) -> 9 | AS37: 68 | AU37: 68 | AV37: =+IF(AS37>=$L$15,$J$15,IF(AS37<($L$15),AS37*($J$15/($L$15)),)) -> 3 | AW37: 2640 | AX37: =+IF(AW37>=$L$11,$J$11,IF(AW37<($L$11),AW37*($J$11/($L$11)),)) -> 3 | AY37: =SUM(AR37,AV37,AX37) -> 15 | AZ37: =+AY37*$H$5 -> 5 | BA37: =+IF(Z37=0,0,IF(Z37>$K$7,$F$9,($F$9/$K$7)*Z37)) -> 8 | BB37: =IF(CZ37>0,$F$10,0) -> 2 | BC37: =IF(DA37>0,$F$11,0) -> 1 | BD37: =IF(DB37>0,$F$12,0) -> 1 | BE37: =IF(DC37>0,$F$13,0) -> 1 | BF37: =IF(DE37>0,$F$14,IF(DD37>0,$F$14/2,0)) -> 2 | BG37: =+IF(DF37>=$L$23,$J$23,IF(DF37<($L$23),DF37*($J$23/($L$23)),)) -> 0.5 | BH37: =+IF(DG37>=$L$24,$J$24,IF(DG37<($L$24),DG37*($J$24/($L$24)),)) -> 0.5 | BI37: =+IF(DH37>=$L$25,$J$25,IF(DH37<($L$25),DH37*($J$25/($L$25)),)) -> 0.5 | BJ37: =+IF(DI37>=$L$26,$J$26,IF(DI37<($L$26),DI37*($J$26/($L$26)),)) -> 0.5 | BK37: =IF(DJ37>0,$F$16,0) -> 2 | BL37: =+IF(DM37>=$L$29,$J$29,IF(DM37<($L$29),DM37*($J$29/($L$29)),)) -> 2 | BM37: =IF(EA37>100000,$F$18,IF(EA37>0,$F$18/2,0)) -> 0.5 | BN37: =IF(DX37>0,$F$19,0) -> 2 | BO37: 11.40273973 | BP37: =+IF(BO37>=$L$19,$J$19,IF(BO37<($L$19),BO37*($J$19/($L$19)),)) -> 1 | BQ37: =SUM(BA37+BB37+BC37+BD37+BE37+BF37+BK37+BG37+BH37+BI37+BJ37+BL37+BM37+BN37+BP37) -> 24.5 | BR37: =+BQ37*$H$9 -> 8.166666667 | BS37: 10106.3623 | BT37: =BS37/X37 -> 0.6999835363 | BU37: =IF(BT37>0,IF(BT37>=$CY$28,$CW$28,IF(BT37<$CY$28,$CW$29,0)),0) -> 1 | BV37: 14461.37741 | BW37: =BV37/X37 -> 1.001619158 | BX37: =IF(BW37,$F$23,0) -> 1 | BY37: =IF(DO37>0,$F$24,0) -> 1 | BZ37: 0 | CA37: =BZ37/X37 -> 0 | CB37: =+IF(CA37>=$K$4,$F$25,0) -> 0 | CC37: 242.0644134 | CD37: =IF(CC37>0,IF(CC37>=100,$F$26,IF(CC37<100,$F$26/2)),0) -> 1 | CE37: =SUM(DS37) -> 1 | CF37: =IF(DU37>0,$F$28,0) -> 0 | CG37: =IF(DT37>0,$F$29,0) -> 1 | CH37: =IF(DW37>0,$F$30,0) -> 1 | CI37: =SUM(BU37,BX37,CD37,BY37,CB37,CE37,CF37,CG37,CH37) -> 7 | CJ37: =+CI37*$H$22 -> 2.333333333 | CK37: =SUM(AY37,BQ37,CI37) -> 46.5 | CL37: =SUM(AZ37,BR37,CJ37) -> 15.5 | CM37: =IF(D37<($Z$13*1704),1,IF(D37<(($Z$14+$Z$13)*1704),2,IF(D37<(($Z$15+$Z$13+$Z$14)*1704),3,4))) -> 1 | CN37: =VLOOKUP(A37,Taul1!$F$6:$G$1718,2,FALSE) -> 4 | CT37: https://www.google.com/maps/@60.78062530,23.66654660,3a,75y,90t/data=!3m3!1e1!3m1!2e0 | CW37: 1 | CX37: 0 | CY37: 1 | CZ37: =SUM(CW37:CY37) -> 2 | DA37: 12 | DB37: 5 | DC37: 6 | DD37: 137 | DE37: 4 | DF37: 1898 | DG37: 841 | DH37: 8468 | DI37: 16944 | DJ37: 6 | DM37: 55 | DN37: 2 | DO37: 14461.37741 | DQ37: =+IF(AA37>$K$8,$F$27/2,0) -> 1 | DR37: =+IF(AA37/Y37>1.5,$F$27/2,0) -> 0 | DS37: =SUM(DQ37:DR37) -> 1 | DT37: 3 | DU37: 0 | DW37: 1 | DX37: 8 | DY37: 0 | DZ37: 0.1216037838 | EA37: 40406 | EC37: =IFERROR(VLOOKUP(A37,$EI$37:$EK$1748,2,FALSE),"--") -> LOPUT | ED37: =IFERROR(VLOOKUP(A37,$EI$37:$EK$1748,3,FALSE),"--") -> 1 | EE37: =IFERROR(ED37-D37,"--") -> 0 | EF37: =IFERROR(VLOOKUP(A37,$EI$37:$EL$1748,4,FALSE),"--") -> 1 | EG37: =IFERROR(EF37-K37,"--") -> 0 | EI37: 2_23 | EJ37: LOPUT | EK37: 1 | EL37: 1 | EN37: 2812 | EO37: 3
A38: =CONCATENATE(S38,"_",T38) -> 140_5 | B38: 1 | D38: =RANK(CL38,$CL$37:$CL$1740) -> 2 | E38: 2 | F38: =E38-D38 -> 0 | G38: =CL38 -> 15.28222222 | H38: =AZ38 -> 5 | I38: =BR38 -> 7.615555556 | J38: =CJ38 -> 2.666666667 | K38: =CM38 -> 1 | L38: =B38-K38 -> 0 | M38: =HYPERLINK(CT38,"Gmaps") -> Gmaps | N38: =IF(Y38>$K$6,"LOPUT","VÄHÄ") -> LOPUT | O38: =IF(S38<40,"Valta",IF(S38<100,"Kanta",IF(S38<1000,"Seutu",IF(S38>999,"Yhdys")))) -> Seutu | P38: Lahdentie, Vanha Lahdentie | Q38: Vantaa, Järvenpää, Kerava, Sipoo, Tuusula | R38: Uusimaa | S38: 140 | T38: 5 | U38: 0 | V38: 5 | W38: 18698 | X38: 18698 | Y38: 7125.193604 | Z38: 417.9259814 | AA38: 7848.227618 | AB38: 7709 (26 %), 4800 (24 %), 7673 (13 %), 8610 (26 %), 6580 (11 %) | AC38: 60 (25 %), 80 (75 %) | AD38: Is (100 %) | AE38: AB (100 %) | AF38: Y2 (100 %) | AG38: 13 | AH38: 34 | AI38: 0.004974134501 | AJ38: 112.9826185 | AN38: 0.3388621507 | AO38: 0.6016625509 | AR38: =+IF(Y38>=$K$6,$F$5,($F$5/($K$6))*Y38) -> 9 | AS38: 1885 | AU38: 32 | AV38: =+IF(AS38>=$L$15,$J$15,IF(AS38<($L$15),AS38*($J$15/($L$15)),)) -> 3 | AW38: 7904 | AX38: =+IF(AW38>=$L$11,$J$11,IF(AW38<($L$11),AW38*($J$11/($L$11)),)) -> 3 | AY38: =SUM(AR38,AV38,AX38) -> 15 | AZ38: =+AY38*$H$5 -> 5 | BA38: =+IF(Z38=0,0,IF(Z38>$K$7,$F$9,($F$9/$K$7)*Z38)) -> 8 | BB38: =IF(CZ38>0,$F$10,0) -> 2 | BC38: =IF(DA38>0,$F$11,0) -> 1 | BD38: =IF(DB38>0,$F$12,0) -> 1 | BE38: =IF(DC38>0,$F$13,0) -> 0 | BF38: =IF(DE38>0,$F$14,IF(DD38>0,$F$14/2,0)) -> 2 | BG38: =+IF(DF38>=$L$23,$J$23,IF(DF38<($L$23),DF38*($J$23/($L$23)),)) -> 0.3466666667 | BH38: =+IF(DG38>=$L$24,$J$24,IF(DG38<($L$24),DG38*($J$24/($L$24)),)) -> 0.5 | BI38: =+IF(DH38>=$L$25,$J$25,IF(DH38<($L$25),DH38*($J$25/($L$25)),)) -> 0 | BJ38: =+IF(DI38>=$L$26,$J$26,IF(DI38<($L$26),DI38*($J$26/($L$26)),)) -> 0 | BK38: =IF(DJ38>0,$F$16,0) -> 2 | BL38: =+IF(DM38>=$L$29,$J$29,IF(DM38<($L$29),DM38*($J$29/($L$29)),)) -> 2 | BM38: =IF(EA38>100000,$F$18,IF(EA38>0,$F$18/2,0)) -> 1 | BN38: =IF(DX38>0,$F$19,0) -> 2 | BO38: 11.60821918 | BP38: =+IF(BO38>=$L$19,$J$19,IF(BO38<($L$19),BO38*($J$19/($L$19)),)) -> 1 | BQ38: =SUM(BA38+BB38+BC38+BD38+BE38+BF38+BK38+BG38+BH38+BI38+BJ38+BL38+BM38+BN38+BP38) -> 22.84666667 | BR38: =+BQ38*$H$9 -> 7.615555556 | BS38: 15711.93918 | BT38: =BS38/X38 -> 0.8403005232 | BU38: =IF(BT38>0,IF(BT38>=$CY$28,$CW$28,IF(BT38<$CY$28,$CW$29,0)),0) -> 1 | BV38: 18264.0186 | BW38: =BV38/X38 -> 0.9767899563 | BX38: =IF(BW38,$F$23,0) -> 1 | BY38: =IF(DO38>0,$F$24,0) -> 1 | BZ38: 454.6357646 | CA38: =BZ38/X38 -> 0.02431467347 | CB38: =+IF(CA38>=$K$4,$F$25,0) -> 0 | CC38: 218.7774093 | CD38: =IF(CC38>0,IF(CC38>=100,$F$26,IF(CC38<100,$F$26/2)),0) -> 1 | CE38: =SUM(DS38) -> 1 | CF38: =IF(DU38>0,$F$28,0) -> 1 | CG38: =IF(DT38>0,$F$29,0) -> 1 | CH38: =IF(DW38>0,$F$30,0) -> 1 | CI38: =SUM(BU38,BX38,CD38,BY38,CB38,CE38,CF38,CG38,CH38) -> 8 | CJ38: =+CI38*$H$22 -> 2.666666667 | CK38: =SUM(AY38,BQ38,CI38) -> 45.84666667 | CL38: =SUM(AZ38,BR38,CJ38) -> 15.28222222 | CM38: =IF(D38<($Z$13*1704),1,IF(D38<(($Z$14+$Z$13)*1704),2,IF(D38<(($Z$15+$Z$13+$Z$14)*1704),3,4))) -> 1 | CN38: =VLOOKUP(A38,Taul1!$F$6:$G$1718,2,FALSE) -> 5 | CT38: https://www.google.com/maps/@60.30515500,25.10474344,3a,75y,90t/data=!3m3!1e1!3m1!2e0 | CW38: 1 | CX38: 0 | CY38: 0 | CZ38: =SUM(CW38:CY38) -> 1 | DA38: 5 | DB38: 5 | DC38: 0 | DD38: 40 | DE38: 12 | DF38: 208 | DG38: 199 | DH38: 0 | DI38: 0 | DJ38: 3 | DM38: 23 | DN38: 6 | DO38: 18685.20353 | DQ38: =+IF(AA38>$K$8,$F$27/2,0) -> 1 | DR38: =+IF(AA38/Y38>1.5,$F$27/2,0) -> 0 | DS38: =SUM(DQ38:DR38) -> 1 | DT38: 2 | DU38: 1 | DW38: 1 | DX38: 7 | DY38: 0.3388621507 | DZ38: 0.6016625509 | EA38: 113746 | EC38: =IFERROR(VLOOKUP(A38,$EI$37:$EK$1748,2,FALSE),"--") -> LOPUT | ED38: =IFERROR(VLOOKUP(A38,$EI$37:$EK$1748,3,FALSE),"--") -> 28 | EE38: =IFERROR(ED38-D38,"--") -> 26 | EF38: =IFERROR(VLOOKUP(A38,$EI$37:$EL$1748,4,FALSE),"--") -> 1 | EG38: =IFERROR(EF38-K38,"--") -> 0 | EI38: 10_15 | EJ38: LOPUT | EK38: 2 | EL38: 1 | EN38: 13568 | EO38: 1
A39: =CONCATENATE(S39,"_",T39) -> 54_11 | B39: 1 | D39: =RANK(CL39,$CL$37:$CL$1740) -> 3 | E39: 3 | F39: =E39-D39 -> 0 | G39: =CL39 -> 15.16666667 | H39: =AZ39 -> 5 | I39: =BR39 -> 8 | J39: =CJ39 -> 2.166666667 | K39: =CM39 -> 1 | L39: =B39-K39 -> 0 | M39: =HYPERLINK(CT39,"Gmaps") -> Gmaps | N39: =IF(Y39>$K$6,"LOPUT","VÄHÄ") -> LOPUT | O39: =IF(S39<40,"Valta",IF(S39<100,"Kanta",IF(S39<1000,"Seutu",IF(S39>999,"Yhdys")))) -> Kanta | P39: Lahdentie, Riihimäentie | Q39: Hausjärvi, Riihimäki | R39: Kanta-Häme | S39: 54 | T39: 11 | U39: 0 | V39: 11 | W39: 10712 | X39: 10712 | Y39: 5443.838966 | Z39: 705.4851568 | AA39: 6169.578977 | AB39: 4892 (3 %), 10713 (6 %), 5096 (28 %), 7683 (6 %), 4842 (57 %) | AC39: 60 (4 %), 70 (16 %), 80 (50 %), 100 (30 %) | AD39: Is (100 %) | AE39: AB (100 %) | AF39: Y1 (100 %) | AG39: 11 | AH39: 29 | AI39: 0.01191327138 | AJ39: 473.2499066 | AM39: x | AN39: 0 | AO39: 0.0675308771 | AR39: =+IF(Y39>=$K$6,$F$5,($F$5/($K$6))*Y39) -> 9 | AS39: 129 | AU39: 129 | AV39: =+IF(AS39>=$L$15,$J$15,IF(AS39<($L$15),AS39*($J$15/($L$15)),)) -> 3 | AW39: 7971 | AX39: =+IF(AW39>=$L$11,$J$11,IF(AW39<($L$11),AW39*($J$11/($L$11)),)) -> 3 | AY39: =SUM(AR39,AV39,AX39) -> 15 | AZ39: =+AY39*$H$5 -> 5 | BA39: =+IF(Z39=0,0,IF(Z39>$K$7,$F$9,($F$9/$K$7)*Z39)) -> 8 | BB39: =IF(CZ39>0,$F$10,0) -> 2 | BC39: =IF(DA39>0,$F$11,0) -> 1 | BD39: =IF(DB39>0,$F$12,0) -> 1 | BE39: =IF(DC39>0,$F$13,0) -> 1 | BF39: =IF(DE39>0,$F$14,IF(DD39>0,$F$14/2,0)) -> 2 | BG39: =+IF(DF39>=$L$23,$J$23,IF(DF39<($L$23),DF39*($J$23/($L$23)),)) -> 0.5 | BH39: =+IF(DG39>=$L$24,$J$24,IF(DG39<($L$24),DG39*($J$24/($L$24)),)) -> 0.5 | BI39: =+IF(DH39>=$L$25,$J$25,IF(DH39<($L$25),DH39*($J$25/($L$25)),)) -> 0 | BJ39: =+IF(DI39>=$L$26,$J$26,IF(DI39<($L$26),DI39*($J$26/($L$26)),)) -> 0.5 | BK39: =IF(DJ39>0,$F$16,0) -> 2 | BL39: =+IF(DM39>=$L$29,$J$29,IF(DM39<($L$29),DM39*($J$29/($L$29)),)) -> 2 | BM39: =IF(EA39>100000,$F$18,IF(EA39>0,$F$18/2,0)) -> 0.5 | BN39: =IF(DX39>0,$F$19,0) -> 2 | BO39: 48.26575342 | BP39: =+IF(BO39>=$L$19,$J$19,IF(BO39<($L$19),BO39*($J$19/($L$19)),)) -> 1 | BQ39: =SUM(BA39+BB39+BC39+BD39+BE39+BF39+BK39+BG39+BH39+BI39+BJ39+BL39+BM39+BN39+BP39) -> 24 | BR39: =+BQ39*$H$9 -> 8 | BS39: 6811.078592 | BT39: =BS39/X39 -> 0.6358363137 | BU39: =IF(BT39>0,IF(BT39>=$CY$28,$CW$28,IF(BT39<$CY$28,$CW$29,0)),0) -> 1 | BV39: 10705.57022 | BW39: =BV39/X39 -> 0.999399759 | BX39: =IF(BW39,$F$23,0) -> 1 | BY39: =IF(DO39>0,$F$24,0) -> 1 | BZ39: 0 | CA39: =BZ39/X39 -> 0 | CB39: =+IF(CA39>=$K$4,$F$25,0) -> 0 | CC39: 78.60810306 | CD39: =IF(CC39>0,IF(CC39>=100,$F$26,IF(CC39<100,$F$26/2)),0) -> 0.5 | CE39: =SUM(DS39) -> 1 | CF39: =IF(DU39>0,$F$28,0) -> 0 | CG39: =IF(DT39>0,$F$29,0) -> 1 | CH39: =IF(DW39>0,$F$30,0) -> 1 | CI39: =SUM(BU39,BX39,CD39,BY39,CB39,CE39,CF39,CG39,CH39) -> 6.5 | CJ39: =+CI39*$H$22 -> 2.166666667 | CK39: =SUM(AY39,BQ39,CI39) -> 45.5 | CL39: =SUM(AZ39,BR39,CJ39) -> 15.16666667 | CM39: =IF(D39<($Z$13*1704),1,IF(D39<(($Z$14+$Z$13)*1704),2,IF(D39<(($Z$15+$Z$13+$Z$14)*1704),3,4))) -> 1 | CN39: =VLOOKUP(A39,Taul1!$F$6:$G$1718,2,FALSE) -> 5 | CT39: https://www.google.com/maps/@60.74965550,24.72474215,3a,75y,90t/data=!3m3!1e1!3m1!2e0 | CW39: 0 | CX39: 0 | CY39: 1 | CZ39: =SUM(CW39:CY39) -> 1 | DA39: 9 | DB39: 9 | DC39: 6 | DD39: 66 | DE39: 15 | DF39: 562 | DG39: 756 | DH39: 0 | DI39: 14132 | DJ39: 1 | DM39: 46 | DN39: 1 | DO39: 10705.57022 | DQ39: =+IF(AA39>$K$8,$F$27/2,0) -> 1 | DR39: =+IF(AA39/Y39>1.5,$F$27/2,0) -> 0 | DS39: =SUM(DQ39:DR39) -> 1 | DT39: 1 | DU39: 0 | DW39: 1 | DX39: 14 | DY39: 0 | DZ39: 0.0675308771 | EA39: 13216 | EC39: =IFERROR(VLOOKUP(A39,$EI$37:$EK$1748,2,FALSE),"--") -> LOPUT | ED39: =IFERROR(VLOOKUP(A39,$EI$37:$EK$1748,3,FALSE),"--") -> 47 | EE39: =IFERROR(ED39-D39,"--") -> 44 | EF39: =IFERROR(VLOOKUP(A39,$EI$37:$EL$1748,4,FALSE),"--") -> 1 | EG39: =IFERROR(EF39-K39,"--") -> 0 | EI39: 10_17 | EJ39: LOPUT | EK39: 4 | EL39: 1 | EN39: 11455 | EO39: 2
A40: =CONCATENATE(S40,"_",T40) -> 25_14 | B40: 1 | D40: =RANK(CL40,$CL$37:$CL$1740) -> 4 | E40: 4 | F40: =E40-D40 -> 0 | G40: =CL40 -> 14.97944444 | H40: =AZ40 -> 5 | I40: =BR40 -> 7.812777778 | J40: =CJ40 -> 2.166666667 | K40: =CM40 -> 1 | L40: =B40-K40 -> 0 | M40: =HYPERLINK(CT40,"Gmaps") -> Gmaps | N40: =IF(Y40>$K$6,"LOPUT","VÄHÄ") -> LOPUT | O40: =IF(S40<40,"Valta",IF(S40<100,"Kanta",IF(S40<1000,"Seutu",IF(S40>999,"Yhdys")))) -> Valta | P40: Hangontie, Lohjantie | Q40: Raasepori | R40: Uusimaa | S40: 25 | T40: 14 | U40: 0 | V40: 14 | W40: 1991 | X40: 1991 | Y40: 8826.239076 | Z40: 1154.98895 | AA40: 11457.44048 | AB40: 9676 (84 %), 4438 (16 %) | AC40: 60 (21 %), 80 (72 %), 100 (7 %) | AD40: Is (99 %) | AE40: AB (99 %) | AF40: Y1 (99 %) | AG40: 2 | AH40: 4 | AI40: 0 | AJ40: 668.2194877 | AK40: Laajin Ternverkko | AL40: 1 | AN40: 0 | AO40: 0 | AR40: =+IF(Y40>=$K$6,$F$5,($F$5/($K$6))*Y40) -> 9 | AS40: 148 | AU40: 148 | AV40: =+IF(AS40>=$L$15,$J$15,IF(AS40<($L$15),AS40*($J$15/($L$15)),)) -> 3 | AW40: 3416 | AX40: =+IF(AW40>=$L$11,$J$11,IF(AW40<($L$11),AW40*($J$11/($L$11)),)) -> 3 | AY40: =SUM(AR40,AV40,AX40) -> 15 | AZ40: =+AY40*$H$5 -> 5 | BA40: =+IF(Z40=0,0,IF(Z40>$K$7,$F$9,($F$9/$K$7)*Z40)) -> 8 | BB40: =IF(CZ40>0,$F$10,0) -> 2 | BC40: =IF(DA40>0,$F$11,0) -> 1 | BD40: =IF(DB40>0,$F$12,0) -> 1 | BE40: =IF(DC40>0,$F$13,0) -> 1 | BF40: =IF(DE40>0,$F$14,IF(DD40>0,$F$14/2,0)) -> 2 | BG40: =+IF(DF40>=$L$23,$J$23,IF(DF40<($L$23),DF40*($J$23/($L$23)),)) -> 0.4383333333 | BH40: =+IF(DG40>=$L$24,$J$24,IF(DG40<($L$24),DG40*($J$24/($L$24)),)) -> 0.5 | BI40: =+IF(DH40>=$L$25,$J$25,IF(DH40<($L$25),DH40*($J$25/($L$25)),)) -> 0 | BJ40: =+IF(DI40>=$L$26,$J$26,IF(DI40<($L$26),DI40*($J$26/($L$26)),)) -> 0 | BK40: =IF(DJ40>0,$F$16,0) -> 2 | BL40: =+IF(DM40>=$L$29,$J$29,IF(DM40<($L$29),DM40*($J$29/($L$29)),)) -> 2 | BM40: =IF(EA40>100000,$F$18,IF(EA40>0,$F$18/2,0)) -> 0.5 | BN40: =IF(DX40>0,$F$19,0) -> 2 | BO40: 13.6109589 | BP40: =+IF(BO40>=$L$19,$J$19,IF(BO40<($L$19),BO40*($J$19/($L$19)),)) -> 1 | BQ40: =SUM(BA40+BB40+BC40+BD40+BE40+BF40+BK40+BG40+BH40+BI40+BJ40+BL40+BM40+BN40+BP40) -> 23.43833333 | BR40: =+BQ40*$H$9 -> 7.812777778 | BS40: 1010.219939 | BT40: =BS40/X40 -> 0.5073932391 | BU40: =IF(BT40>0,IF(BT40>=$CY$28,$CW$28,IF(BT40<$CY$28,$CW$29,0)),0) -> 1 | BV40: 1980.16303 | BW40: =BV40/X40 -> 0.9945570216 | BX40: =IF(BW40,$F$23,0) -> 1 | BY40: =IF(DO40>0,$F$24,0) -> 1 | BZ40: 0 | CA40: =BZ40/X40 -> 0 | CB40: =+IF(CA40>=$K$4,$F$25,0) -> 0 | CC40: 34.60572577 | CD40: =IF(CC40>0,IF(CC40>=100,$F$26,IF(CC40<100,$F$26/2)),0) -> 0.5 | CE40: =SUM(DS40) -> 1 | CF40: =IF(DU40>0,$F$28,0) -> 0 | CG40: =IF(DT40>0,$F$29,0) -> 1 | CH40: =IF(DW40>0,$F$30,0) -> 1 | CI40: =SUM(BU40,BX40,CD40,BY40,CB40,CE40,CF40,CG40,CH40) -> 6.5 | CJ40: =+CI40*$H$22 -> 2.166666667 | CK40: =SUM(AY40,BQ40,CI40) -> 44.93833333 | CL40: =SUM(AZ40,BR40,CJ40) -> 14.97944444 | CM40: =IF(D40<($Z$13*1704),1,IF(D40<(($Z$14+$Z$13)*1704),2,IF(D40<(($Z$15+$Z$13+$Z$14)*1704),3,4))) -> 1 | CN40: =VLOOKUP(A40,Taul1!$F$6:$G$1718,2,FALSE) -> 2 | CT40: https://www.google.com/maps/@60.06760835,23.69263842,3a,75y,90t/data=!3m3!1e1!3m1!2e0 | CW40: 1 | CX40: 1 | CY40: 1 | CZ40: =SUM(CW40:CY40) -> 3 | DA40: 1 | DB40: 4 | DC40: 1 | DD40: 11 | DE40: 2 | DF40: 263 | DG40: 131 | DH40: 0 | DI40: 0 | DJ40: 3 | DM40: 13 | DN40: 0 | DO40: 1980.16303 | DQ40: =+IF(AA40>$K$8,$F$27/2,0) -> 1 | DR40: =+IF(AA40/Y40>1.5,$F$27/2,0) -> 0 | DS40: =SUM(DQ40:DR40) -> 1 | DT40: 3 | DU40: 0 | DW40: 1 | DX40: 4 | DY40: 0 | DZ40: 0 | EA40: 18543 | EC40: =IFERROR(VLOOKUP(A40,$EI$37:$EK$1748,2,FALSE),"--") -> LOPUT | ED40: =IFERROR(VLOOKUP(A40,$EI$37:$EK$1748,3,FALSE),"--") -> 6 | EE40: =IFERROR(ED40-D40,"--") -> 2 | EF40: =IFERROR(VLOOKUP(A40,$EI$37:$EL$1748,4,FALSE),"--") -> 1 | EG40: =IFERROR(EF40-K40,"--") -> 0 | EI40: 25_14 | EJ40: LOPUT | EK40: 6 | EL40: 1 | EN40: 13681 | EO40: 4
A41: =CONCATENATE(S41,"_",T41) -> 10_25 | B41: 1 | D41: =RANK(CL41,$CL$37:$CL$1740) -> 5 | E41: 5 | F41: =E41-D41 -> 0 | G41: =CL41 -> 14.83944444 | H41: =AZ41 -> 5 | I41: =BR41 -> 7.672777778 | J41: =CJ41 -> 2.166666667 | K41: =CM41 -> 1 | L41: =B41-K41 -> 0 | M41: =HYPERLINK(CT41,"Gmaps") -> Gmaps | N41: =IF(Y41>$K$6,"LOPUT","VÄHÄ") -> LOPUT | O41: =IF(S41<40,"Valta",IF(S41<100,"Kanta",IF(S41<1000,"Seutu",IF(S41>999,"Yhdys")))) -> Valta | P41: Turun Valtatie | Q41: Hämeenlinna | R41: Kanta-Häme | S41: 10 | T41: 25 | U41: 0 | V41: 25 | W41: 6298 | X41: 6298 | Y41: 9229.342172 | Z41: 855.8339155 | AA41: 10012.07177 | AB41: 4665 (39 %), 7634 (24 %), 14933 (38 %) | AC41: 50 (3 %), 60 (6 %), 70 (36 %), 80 (55 %) | AD41: Is (62 %), Ise (38 %) | AE41: AB (100 %) | AF41: Y1 (100 %) | AG41: 1 | AH41: 14 | AI41: 0.08173925839 | AJ41: 487.7681804 | AK41: Laajin Ternverkko | AN41: 0 | AO41: 0.6050881757 | AR41: =+IF(Y41>=$K$6,$F$5,($F$5/($K$6))*Y41) -> 9 | AS41: 108 | AU41: 108 | AV41: =+IF(AS41>=$L$15,$J$15,IF(AS41<($L$15),AS41*($J$15/($L$15)),)) -> 3 | AW41: 7827 | AX41: =+IF(AW41>=$L$11,$J$11,IF(AW41<($L$11),AW41*($J$11/($L$11)),)) -> 3 | AY41: =SUM(AR41,AV41,AX41) -> 15 | AZ41: =+AY41*$H$5 -> 5 | BA41: =+IF(Z41=0,0,IF(Z41>$K$7,$F$9,($F$9/$K$7)*Z41)) -> 8 | BB41: =IF(CZ41>0,$F$10,0) -> 2 | BC41: =IF(DA41>0,$F$11,0) -> 1 | BD41: =IF(DB41>0,$F$12,0) -> 1 | BE41: =IF(DC41>0,$F$13,0) -> 1 | BF41: =IF(DE41>0,$F$14,IF(DD41>0,$F$14/2,0)) -> 2 | BG41: =+IF(DF41>=$L$23,$J$23,IF(DF41<($L$23),DF41*($J$23/($L$23)),)) -> 0.01833333333 | BH41: =+IF(DG41>=$L$24,$J$24,IF(DG41<($L$24),DG41*($J$24/($L$24)),)) -> 0 | BI41: =+IF(DH41>=$L$25,$J$25,IF(DH41<($L$25),DH41*($J$25/($L$25)),)) -> 0 | BJ41: =+IF(DI41>=$L$26,$J$26,IF(DI41<($L$26),DI41*($J$26/($L$26)),)) -> 0 | BK41: =IF(DJ41>0,$F$16,0) -> 2 | BL41: =+IF(DM41>=$L$29,$J$29,IF(DM41<($L$29),DM41*($J$29/($L$29)),)) -> 2 | BM41: =IF(EA41>100000,$F$18,IF(EA41>0,$F$18/2,0)) -> 1 | BN41: =IF(DX41>0,$F$19,0) -> 2 | BO41: 13.83835616 | BP41: =+IF(BO41>=$L$19,$J$19,IF(BO41<($L$19),BO41*($J$19/($L$19)),)) -> 1 | BQ41: =SUM(BA41+BB41+BC41+BD41+BE41+BF41+BK41+BG41+BH41+BI41+BJ41+BL41+BM41+BN41+BP41) -> 23.01833333 | BR41: =+BQ41*$H$9 -> 7.672777778 | BS41: 5132.478762 | BT41: =BS41/X41 -> 0.8149378789 | BU41: =IF(BT41>0,IF(BT41>=$CY$28,$CW$28,IF(BT41<$CY$28,$CW$29,0)),0) -> 1 | BV41: 6287.747688 | BW41: =BV41/X41 -> 0.9983721322 | BX41: =IF(BW41,$F$23,0) -> 1 | BY41: =IF(DO41>0,$F$24,0) -> 1 | BZ41: 0 | CA41: =BZ41/X41 -> 0 | CB41: =+IF(CA41>=$K$4,$F$25,0) -> 0 | CC41: 30.02794538 | CD41: =IF(CC41>0,IF(CC41>=100,$F$26,IF(CC41<100,$F$26/2)),0) -> 0.5 | CE41: =SUM(DS41) -> 1 | CF41: =IF(DU41>0,$F$28,0) -> 0 | CG41: =IF(DT41>0,$F$29,0) -> 1 | CH41: =IF(DW41>0,$F$30,0) -> 1 | CI41: =SUM(BU41,BX41,CD41,BY41,CB41,CE41,CF41,CG41,CH41) -> 6.5 | CJ41: =+CI41*$H$22 -> 2.166666667 | CK41: =SUM(AY41,BQ41,CI41) -> 44.51833333 | CL41: =SUM(AZ41,BR41,CJ41) -> 14.83944444 | CM41: =IF(D41<($Z$13*1704),1,IF(D41<(($Z$14+$Z$13)*1704),2,IF(D41<(($Z$15+$Z$13+$Z$14)*1704),3,4))) -> 1 | CN41: =VLOOKUP(A41,Taul1!$F$6:$G$1718,2,FALSE) -> 3 | CT41: https://www.google.com/maps/@60.95395551,24.41038145,3a,75y,90t/data=!3m3!1e1!3m1!2e0 | CW41: 0 | CX41: 1 | CY41: 0 | CZ41: =SUM(CW41:CY41) -> 1 | DA41: 4 | DB41: 6 | DC41: 1 | DD41: 12 | DE41: 5 | DF41: 11 | DG41: 0 | DH41: 0 | DI41: 0 | DJ41: 1 | DM41: 26 | DN41: 8 | DO41: 6287.747688 | DQ41: =+IF(AA41>$K$8,$F$27/2,0) -> 1 | DR41: =+IF(AA41/Y41>1.5,$F$27/2,0) -> 0 | DS41: =SUM(DQ41:DR41) -> 1 | DT41: 3 | DU41: 0 | DW41: 1 | DX41: 4 | DY41: 0 | DZ41: 0.6050881757 | EA41: 170285 | EC41: =IFERROR(VLOOKUP(A41,$EI$37:$EK$1748,2,FALSE),"--") -> LOPUT | ED41: =IFERROR(VLOOKUP(A41,$EI$37:$EK$1748,3,FALSE),"--") -> 3 | EE41: =IFERROR(ED41-D41,"--") -> -2 | EF41: =IFERROR(VLOOKUP(A41,$EI$37:$EL$1748,4,FALSE),"--") -> 1 | EG41: =IFERROR(EF41-K41,"--") -> 0 | EI41: 25_16 | EJ41: LOPUT | EK41: 5 | EL41: 1
A42: =CONCATENATE(S42,"_",T42) -> 51_14 | B42: 1 | D42: =RANK(CL42,$CL$37:$CL$1740) -> 6 | E42: 6 | F42: =E42-D42 -> 0 | G42: =CL42 -> 14.78824201 | H42: =AZ42 -> 5 | I42: =BR42 -> 7.454908676 | J42: =CJ42 -> 2.333333333 | K42: =CM42 -> 1 | L42: =B42-K42 -> 0 | M42: =HYPERLINK(CT42,"Gmaps") -> Gmaps | N42: =IF(Y42>$K$6,"LOPUT","VÄHÄ") -> LOPUT | O42: =IF(S42<40,"Valta",IF(S42<100,"Kanta",IF(S42<1000,"Seutu",IF(S42>999,"Yhdys")))) -> Kanta | P42: Inkoon Rannikkotie, Inkoontie | Q42: Inkoo, Raasepori | R42: Uusimaa | S42: 51 | T42: 14 | U42: 0 | V42: 14 | W42: 11185 | X42: 11185 | Y42: 5513.632097 | Z42: 486.5918641 | AA42: 6784.292356 | AB42: 6727 (28 %), 5039 (72 %) | AC42: 80 (11 %), 100 (88 %) | AD42: Is (100 %) | AE42: AB (100 %) | AF42: Y1 (100 %) | AG42: 3 | AH42: 11 | AI42: 0 | AJ42: 332.7527939 | AN42: 0 | AO42: 0.01122178055 | AR42: =+IF(Y42>=$K$6,$F$5,($F$5/($K$6))*Y42) -> 9 | AS42: 136 | AU42: 136 | AV42: =+IF(AS42>=$L$15,$J$15,IF(AS42<($L$15),AS42*($J$15/($L$15)),)) -> 3 | AW42: 1901 | AX42: =+IF(AW42>=$L$11,$J$11,IF(AW42<($L$11),AW42*($J$11/($L$11)),)) -> 3 | AY42: =SUM(AR42,AV42,AX42) -> 15 | AZ42: =+AY42*$H$5 -> 5 | BA42: =+IF(Z42=0,0,IF(Z42>$K$7,$F$9,($F$9/$K$7)*Z42)) -> 8 | BB42: =IF(CZ42>0,$F$10,0) -> 2 | BC42: =IF(DA42>0,$F$11,0) -> 1 | BD42: =IF(DB42>0,$F$12,0) -> 1 | BE42: =IF(DC42>0,$F$13,0) -> 1 | BF42: =IF(DE42>0,$F$14,IF(DD42>0,$F$14/2,0)) -> 2 | BG42: =+IF(DF42>=$L$23,$J$23,IF(DF42<($L$23),DF42*($J$23/($L$23)),)) -> 0.105 | BH42: =+IF(DG42>=$L$24,$J$24,IF(DG42<($L$24),DG42*($J$24/($L$24)),)) -> 0 | BI42: =+IF(DH42>=$L$25,$J$25,IF(DH42<($L$25),DH42*($J$25/($L$25)),)) -> 0 | BJ42: =+IF(DI42>=$L$26,$J$26,IF(DI42<($L$26),DI42*($J$26/($L$26)),)) -> 0 | BK42: =IF(DJ42>0,$F$16,0) -> 2 | BL42: =+IF(DM42>=$L$29,$J$29,IF(DM42<($L$29),DM42*($J$29/($L$29)),)) -> 2 | BM42: =IF(EA42>100000,$F$18,IF(EA42>0,$F$18/2,0)) -> 0.5 | BN42: =IF(DX42>0,$F$19,0) -> 2 | BO42: 7.597260274 | BP42: =+IF(BO42>=$L$19,$J$19,IF(BO42<($L$19),BO42*($J$19/($L$19)),)) -> 0.7597260274 | BQ42: =SUM(BA42+BB42+BC42+BD42+BE42+BF42+BK42+BG42+BH42+BI42+BJ42+BL42+BM42+BN42+BP42) -> 22.36472603 | BR42: =+BQ42*$H$9 -> 7.454908676 | BS42: 4456.879438 | BT42: =BS42/X42 -> 0.3984693284 | BU42: =IF(BT42>0,IF(BT42>=$CY$28,$CW$28,IF(BT42<$CY$28,$CW$29,0)),0) -> 0.5 | BV42: 11153.54171 | BW42: =BV42/X42 -> 0.9971874574 | BX42: =IF(BW42,$F$23,0) -> 1 | BY42: =IF(DO42>0,$F$24,0) -> 1 | BZ42: 0 | CA42: =BZ42/X42 -> 0 | CB42: =+IF(CA42>=$K$4,$F$25,0) -> 0 | CC42: 22.65802414 | CD42: =IF(CC42>0,IF(CC42>=100,$F$26,IF(CC42<100,$F$26/2)),0) -> 0.5 | CE42: =SUM(DS42) -> 1 | CF42: =IF(DU42>0,$F$28,0) -> 1 | CG42: =IF(DT42>0,$F$29,0) -> 1 | CH42: =IF(DW42>0,$F$30,0) -> 1 | CI42: =SUM(BU42,BX42,CD42,BY42,CB42,CE42,CF42,CG42,CH42) -> 7 | CJ42: =+CI42*$H$22 -> 2.333333333 | CK42: =SUM(AY42,BQ42,CI42) -> 44.36472603 | CL42: =SUM(AZ42,BR42,CJ42) -> 14.78824201 | CM42: =IF(D42<($Z$13*1704),1,IF(D42<(($Z$14+$Z$13)*1704),2,IF(D42<(($Z$15+$Z$13+$Z$14)*1704),3,4))) -> 1 | CN42: =VLOOKUP(A42,Taul1!$F$6:$G$1718,2,FALSE) -> 2 | CT42: https://www.google.com/maps/@60.05527384,24.00268590,3a,75y,90t/data=!3m3!1e1!3m1!2e0 | CW42: 0 | CX42: 1 | CY42: 0 | CZ42: =SUM(CW42:CY42) -> 1 | DA42: 1 | DB42: 3 | DC42: 1 | DD42: 14 | DE42: 5 | DF42: 63 | DG42: 0 | DH42: 0 | DI42: 0 | DJ42: 1 | DM42: 6 | DN42: 0 | DO42: 11153.54171 | DQ42: =+IF(AA42>$K$8,$F$27/2,0) -> 1 | DR42: =+IF(AA42/Y42>1.5,$F$27/2,0) -> 0 | DS42: =SUM(DQ42:DR42) -> 1 | DT42: 2 | DU42: 1 | DW42: 1 | DX42: 3 | DY42: 0 | DZ42: 0.01122178055 | EA42: 18543 | EC42: =IFERROR(VLOOKUP(A42,$EI$37:$EK$1748,2,FALSE),"--") -> LOPUT | ED42: =IFERROR(VLOOKUP(A42,$EI$37:$EK$1748,3,FALSE),"--") -> 27 | EE42: =IFERROR(ED42-D42,"--") -> 21 | EF42: =IFERROR(VLOOKUP(A42,$EI$37:$EL$1748,4,FALSE),"--") -> 1 | EG42: =IFERROR(EF42-K42,"--") -> 0 | EI42: 1125_1 | EJ42: LOPUT | EK42: 17 | EL42: 1 | EN42: 11007 | EO42: 4
A43: =CONCATENATE(S43,"_",T43) -> 54_10 | B43: 1 | D43: =RANK(CL43,$CL$37:$CL$1740) -> 7 | E43: 7 | F43: =E43-D43 -> 0 | G43: =CL43 -> 14.78333333 | H43: =AZ43 -> 4.95 | I43: =BR43 -> 8 | J43: =CJ43 -> 1.833333333 | K43: =CM43 -> 1 | L43: =B43-K43 -> 0 | M43: =HYPERLINK(CT43,"Gmaps") -> Gmaps | N43: =IF(Y43>$K$6,"LOPUT","VÄHÄ") -> LOPUT | O43: =IF(S43<40,"Valta",IF(S43<100,"Kanta",IF(S43<1000,"Seutu",IF(S43>999,"Yhdys")))) -> Kanta | P43: Lahdentie, Lopen kantatie | Q43: Loppi, Riihimäki | R43: Kanta-Häme | S43: 54 | T43: 10 | U43: 0 | V43: 10 | W43: 4557 | X43: 4557 | Y43: 5919.447005 | Z43: 632.4134299 | AA43: 6866.687294 | AB43: 6838 (53 %), 4892 (47 %) | AC43: 70 (22 %), 80 (77 %) | AD43: Is (100 %) | AE43: AB (100 %) | AF43: Y1 (100 %) | AG43: 9 | AH43: 21 | AI43: 0.01598976655 | AJ43: 346.6714944 | AM43: x | AN43: 0 | AO43: 0.01859367478 | AR43: =+IF(Y43>=$K$6,$F$5,($F$5/($K$6))*Y43) -> 9 | AS43: 38 | AU43: 38 | AV43: =+IF(AS43>=$L$15,$J$15,IF(AS43<($L$15),AS43*($J$15/($L$15)),)) -> 2.85 | AW43: 2743 | AX43: =+IF(AW43>=$L$11,$J$11,IF(AW43<($L$11),AW43*($J$11/($L$11)),)) -> 3 | AY43: =SUM(AR43,AV43,AX43) -> 14.85 | AZ43: =+AY43*$H$5 -> 4.95 | BA43: =+IF(Z43=0,0,IF(Z43>$K$7,$F$9,($F$9/$K$7)*Z43)) -> 8 | BB43: =IF(CZ43>0,$F$10,0) -> 2 | BC43: =IF(DA43>0,$F$11,0) -> 1 | BD43: =IF(DB43>0,$F$12,0) -> 1 | BE43: =IF(DC43>0,$F$13,0) -> 1 | BF43: =IF(DE43>0,$F$14,IF(DD43>0,$F$14/2,0)) -> 2 | BG43: =+IF(DF43>=$L$23,$J$23,IF(DF43<($L$23),DF43*($J$23/($L$23)),)) -> 0.5 | BH43: =+IF(DG43>=$L$24,$J$24,IF(DG43<($L$24),DG43*($J$24/($L$24)),)) -> 0.5 | BI43: =+IF(DH43>=$L$25,$J$25,IF(DH43<($L$25),DH43*($J$25/($L$25)),)) -> 0 | BJ43: =+IF(DI43>=$L$26,$J$26,IF(DI43<($L$26),DI43*($J$26/($L$26)),)) -> 0.5 | BK43: =IF(DJ43>0,$F$16,0) -> 2 | BL43: =+IF(DM43>=$L$29,$J$29,IF(DM43<($L$29),DM43*($J$29/($L$29)),)) -> 2 | BM43: =IF(EA43>100000,$F$18,IF(EA43>0,$F$18/2,0)) -> 0.5 | BN43: =IF(DX43>0,$F$19,0) -> 2 | BO43: 37.54246575 | BP43: =+IF(BO43>=$L$19,$J$19,IF(BO43<($L$19),BO43*($J$19/($L$19)),)) -> 1 | BQ43: =SUM(BA43+BB43+BC43+BD43+BE43+BF43+BK43+BG43+BH43+BI43+BJ43+BL43+BM43+BN43+BP43) -> 24 | BR43: =+BQ43*$H$9 -> 8 | BS43: 4396.088412 | BT43: =BS43/X43 -> 0.9646891402 | BU43: =IF(BT43>0,IF(BT43>=$CY$28,$CW$28,IF(BT43<$CY$28,$CW$29,0)),0) -> 1 | BV43: 4543.472513 | BW43: =BV43/X43 -> 0.9970314928 | BX43: =IF(BW43,$F$23,0) -> 1 | BY43: =IF(DO43>0,$F$24,0) -> 1 | BZ43: 0 | CA43: =BZ43/X43 -> 0 | CB43: =+IF(CA43>=$K$4,$F$25,0) -> 0 | CC43: 19.600395 | CD43: =IF(CC43>0,IF(CC43>=100,$F$26,IF(CC43<100,$F$26/2)),0) -> 0.5 | CE43: =SUM(DS43) -> 1 | CF43: =IF(DU43>0,$F$28,0) -> 0 | CG43: =IF(DT43>0,$F$29,0) -> 0 | CH43: =IF(DW43>0,$F$30,0) -> 1 | CI43: =SUM(BU43,BX43,CD43,BY43,CB43,CE43,CF43,CG43,CH43) -> 5.5 | CJ43: =+CI43*$H$22 -> 1.833333333 | CK43: =SUM(AY43,BQ43,CI43) -> 44.35 | CL43: =SUM(AZ43,BR43,CJ43) -> 14.78333333 | CM43: =IF(D43<($Z$13*1704),1,IF(D43<(($Z$14+$Z$13)*1704),2,IF(D43<(($Z$15+$Z$13+$Z$14)*1704),3,4))) -> 1 | CN43: =VLOOKUP(A43,Taul1!$F$6:$G$1718,2,FALSE) -> 2 | CT43: https://www.google.com/maps/@60.74450270,24.64774051,3a,75y,90t/data=!3m3!1e1!3m1!2e0 | CW43: 0 | CX43: 0 | CY43: 1 | CZ43: =SUM(CW43:CY43) -> 1 | DA43: 3 | DB43: 6 | DC43: 2 | DD43: 22 | DE43: 1 | DF43: 431 | DG43: 750 | DH43: 0 | DI43: 14085 | DJ43: 1 | DM43: 19 | DN43: 0 | DO43: 4543.472513 | DQ43: =+IF(AA43>$K$8,$F$27/2,0) -> 1 | DR43: =+IF(AA43/Y43>1.5,$F$27/2,0) -> 0 | DS43: =SUM(DQ43:DR43) -> 1 | DT43: 0 | DU43: 0 | DW43: 1 | DX43: 4 | DY43: 0 | DZ43: 0.01859367478 | EA43: 13216 | EC43: =IFERROR(VLOOKUP(A43,$EI$37:$EK$1748,2,FALSE),"--") -> LOPUT | ED43: =IFERROR(VLOOKUP(A43,$EI$37:$EK$1748,3,FALSE),"--") -> 32 | EE43: =IFERROR(ED43-D43,"--") -> 25 | EF43: =IFERROR(VLOOKUP(A43,$EI$37:$EL$1748,4,FALSE),"--") -> 1 | EG43: =IFERROR(EF43-K43,"--") -> 0 | EI43: 186_12 | EJ43: LOPUT | EK43: 21 | EL43: 1 | EN43: 3222 | EO43: 2
A44: =CONCATENATE(S44,"_",T44) -> 25_16 | B44: 1 | D44: =RANK(CL44,$CL$37:$CL$1740) -> 8 | E44: 8 | F44: =E44-D44 -> 0 | G44: =CL44 -> 14.77214612 | H44: =AZ44 -> 5 | I44: =BR44 -> 7.605479452 | J44: =CJ44 -> 2.166666667 | K44: =CM44 -> 1 | L44: =B44-K44 -> 0 | M44: =HYPERLINK(CT44,"Gmaps") -> Gmaps | N44: =IF(Y44>$K$6,"LOPUT","VÄHÄ") -> LOPUT | O44: =IF(S44<40,"Valta",IF(S44<100,"Kanta",IF(S44<1000,"Seutu",IF(S44>999,"Yhdys")))) -> Valta | P44: Lohjantie | Q44: Inkoo, Raasepori | R44: Uusimaa | S44: 25 | T44: 16 | U44: 0 | V44: 16 | W44: 10601 | X44: 10601 | Y44: 4892.360909 | Z44: 669.8546364 | AA44: 5952.428639 | AB44: 4438 (63 %), 5668 (37 %) | AC44: 80 (93 %), 100 (7 %) | AD44: Is (100 %) | AE44: AB (100 %) | AF44: Y1 (100 %) | AG44: 3 | AH44: 17 | AI44: 0.009004141905 | AJ44: 376.8469956 | AK44: Laajin Ternverkko | AL44: 1 | AN44: 0 | AO44: 0 | AR44: =+IF(Y44>=$K$6,$F$5,($F$5/($K$6))*Y44) -> 9 | AS44: 49 | AU44: 49 | AV44: =+IF(AS44>=$L$15,$J$15,IF(AS44<($L$15),AS44*($J$15/($L$15)),)) -> 3 | AW44: 2217 | AX44: =+IF(AW44>=$L$11,$J$11,IF(AW44<($L$11),AW44*($J$11/($L$11)),)) -> 3 | AY44: =SUM(AR44,AV44,AX44) -> 15 | AZ44: =+AY44*$H$5 -> 5 | BA44: =+IF(Z44=0,0,IF(Z44>$K$7,$F$9,($F$9/$K$7)*Z44)) -> 8 | BB44: =IF(CZ44>0,$F$10,0) -> 2 | BC44: =IF(DA44>0,$F$11,0) -> 0 | BD44: =IF(DB44>0,$F$12,0) -> 1 | BE44: =IF(DC44>0,$F$13,0) -> 1 | BF44: =IF(DE44>0,$F$14,IF(DD44>0,$F$14/2,0)) -> 2 | BG44: =+IF(DF44>=$L$23,$J$23,IF(DF44<($L$23),DF44*($J$23/($L$23)),)) -> 0.5 | BH44: =+IF(DG44>=$L$24,$J$24,IF(DG44<($L$24),DG44*($J$24/($L$24)),)) -> 0.5 | BI44: =+IF(DH44>=$L$25,$J$25,IF(DH44<($L$25),DH44*($J$25/($L$25)),)) -> 0 | BJ44: =+IF(DI44>=$L$26,$J$26,IF(DI44<($L$26),DI44*($J$26/($L$26)),)) -> 0.5 | BK44: =IF(DJ44>0,$F$16,0) -> 2 | BL44: =+IF(DM44>=$L$29,$J$29,IF(DM44<($L$29),DM44*($J$29/($L$29)),)) -> 2 | BM44: =IF(EA44>100000,$F$18,IF(EA44>0,$F$18/2,0)) -> 0.5 | BN44: =IF(DX44>0,$F$19,0) -> 2 | BO44: 8.164383562 | BP44: =+IF(BO44>=$L$19,$J$19,IF(BO44<($L$19),BO44*($J$19/($L$19)),)) -> 0.8164383562 | BQ44: =SUM(BA44+BB44+BC44+BD44+BE44+BF44+BK44+BG44+BH44+BI44+BJ44+BL44+BM44+BN44+BP44) -> 22.81643836 | BR44: =+BQ44*$H$9 -> 7.605479452 | BS44: 5999.170339 | BT44: =BS44/X44 -> 0.5659060785 | BU44: =IF(BT44>0,IF(BT44>=$CY$28,$CW$28,IF(BT44<$CY$28,$CW$29,0)),0) -> 1 | BV44: 10589.16236 | BW44: =BV44/X44 -> 0.9988833467 | BX44: =IF(BW44,$F$23,0) -> 1 | BY44: =IF(DO44>0,$F$24,0) -> 1 | BZ44: 0 | CA44: =BZ44/X44 -> 0 | CB44: =+IF(CA44>=$K$4,$F$25,0) -> 0 | CC44: 43.77134233 | CD44: =IF(CC44>0,IF(CC44>=100,$F$26,IF(CC44<100,$F$26/2)),0) -> 0.5 | CE44: =SUM(DS44) -> 1 | CF44: =IF(DU44>0,$F$28,0) -> 0 | CG44: =IF(DT44>0,$F$29,0) -> 1 | CH44: =IF(DW44>0,$F$30,0) -> 1 | CI44: =SUM(BU44,BX44,CD44,BY44,CB44,CE44,CF44,CG44,CH44) -> 6.5 | CJ44: =+CI44*$H$22 -> 2.166666667 | CK44: =SUM(AY44,BQ44,CI44) -> 44.31643836 | CL44: =SUM(AZ44,BR44,CJ44) -> 14.77214612 | CM44: =IF(D44<($Z$13*1704),1,IF(D44<(($Z$14+$Z$13)*1704),2,IF(D44<(($Z$15+$Z$13+$Z$14)*1704),3,4))) -> 1 | CN44: =VLOOKUP(A44,Taul1!$F$6:$G$1718,2,FALSE) -> 2 | CT44: https://www.google.com/maps/@60.09694644,23.76508369,3a,75y,90t/data=!3m3!1e1!3m1!2e0 | CW44: 1 | CX44: 1 | CY44: 1 | CZ44: =SUM(CW44:CY44) -> 3 | DA44: 0 | DB44: 3 | DC44: 1 | DD44: 48 | DE44: 8 | DF44: 462 | DG44: 525 | DH44: 0 | DI44: 97 | DJ44: 1 | DM44: 6 | DN44: 0 | DO44: 6677.401214 | DQ44: =+IF(AA44>$K$8,$F$27/2,0) -> 1 | DR44: =+IF(AA44/Y44>1.5,$F$27/2,0) -> 0 | DS44: =SUM(DQ44:DR44) -> 1 | DT44: 4 | DU44: 0 | DW44: 1 | DX44: 5 | DY44: 0 | DZ44: 0 | EA44: 22960 | EC44: =IFERROR(VLOOKUP(A44,$EI$37:$EK$1748,2,FALSE),"--") -> LOPUT | ED44: =IFERROR(VLOOKUP(A44,$EI$37:$EK$1748,3,FALSE),"--") -> 5 | EE44: =IFERROR(ED44-D44,"--") -> -3 | EF44: =IFERROR(VLOOKUP(A44,$EI$37:$EL$1748,4,FALSE),"--") -> 1 | EG44: =IFERROR(EF44-K44,"--") -> 0 | EI44: 167_2 | EJ44: LOPUT | EK44: 8 | EL44: 1 | EN44: 11794 | EO44: 2
A45: =CONCATENATE(S45,"_",T45) -> 10_15 | B45: 1 | D45: =RANK(CL45,$CL$37:$CL$1740) -> 9 | E45: 9 | F45: =E45-D45 -> 0 | G45: =CL45 -> 14.75833333 | H45: =AZ45 -> 4.925 | I45: =BR45 -> 8 | J45: =CJ45 -> 1.833333333 | K45: =CM45 -> 1 | L45: =B45-K45 -> 0 | M45: =HYPERLINK(CT45,"Gmaps") -> Gmaps | N45: =IF(Y45>$K$6,"LOPUT","VÄHÄ") -> LOPUT | O45: =IF(S45<40,"Valta",IF(S45<100,"Kanta",IF(S45<1000,"Seutu",IF(S45>999,"Yhdys")))) -> Valta | P45: Turun Valtatie, Valtatie 10 | Q45: Forssa, Jokioinen | R45: Kanta-Häme | S45: 10 | T45: 15 | U45: 0 | V45: 15 | W45: 4643 | X45: 4643 | Y45: 5394.463924 | Z45: 669.1012277 | AA45: 6127.482447 | AB45: 4601 (42 %), 5109 (43 %), 8462 (15 %) | AC45: 60 (39 %), 80 (61 %) | AD45: Is (100 %) | AE45: AB (100 %) | AF45: Y1 (100 %) | AG45: 2 | AH45: 10 | AI45: 0.02679887445 | AJ45: 416.8918802 | AM45: x | AN45: 0 | AO45: 0.55037295 | AR45: =+IF(Y45>=$K$6,$F$5,($F$5/($K$6))*Y45) -> 9 | AS45: 37 | AU45: 37 | AV45: =+IF(AS45>=$L$15,$J$15,IF(AS45<($L$15),AS45*($J$15/($L$15)),)) -> 2.775 | AW45: 1619 | AX45: =+IF(AW45>=$L$11,$J$11,IF(AW45<($L$11),AW45*($J$11/($L$11)),)) -> 3 | AY45: =SUM(AR45,AV45,AX45) -> 14.775 | AZ45: =+AY45*$H$5 -> 4.925 | BA45: =+IF(Z45=0,0,IF(Z45>$K$7,$F$9,($F$9/$K$7)*Z45)) -> 8 | BB45: =IF(CZ45>0,$F$10,0) -> 2 | BC45: =IF(DA45>0,$F$11,0) -> 1 | BD45: =IF(DB45>0,$F$12,0) -> 1 | BE45: =IF(DC45>0,$F$13,0) -> 1 | BF45: =IF(DE45>0,$F$14,IF(DD45>0,$F$14/2,0)) -> 2 | BG45: =+IF(DF45>=$L$23,$J$23,IF(DF45<($L$23),DF45*($J$23/($L$23)),)) -> 0.5 | BH45: =+IF(DG45>=$L$24,$J$24,IF(DG45<($L$24),DG45*($J$24/($L$24)),)) -> 0.5 | BI45: =+IF(DH45>=$L$25,$J$25,IF(DH45<($L$25),DH45*($J$25/($L$25)),)) -> 0.5 | BJ45: =+IF(DI45>=$L$26,$J$26,IF(DI45<($L$26),DI45*($J$26/($L$26)),)) -> 0.5 | BK45: =IF(DJ45>0,$F$16,0) -> 2 | BL45: =+IF(DM45>=$L$29,$J$29,IF(DM45<($L$29),DM45*($J$29/($L$29)),)) -> 2 | BM45: =IF(EA45>100000,$F$18,IF(EA45>0,$F$18/2,0)) -> 0 | BN45: =IF(DX45>0,$F$19,0) -> 2 | BO45: 28.56164384 | BP45: =+IF(BO45>=$L$19,$J$19,IF(BO45<($L$19),BO45*($J$19/($L$19)),)) -> 1 | BQ45: =SUM(BA45+BB45+BC45+BD45+BE45+BF45+BK45+BG45+BH45+BI45+BJ45+BL45+BM45+BN45+BP45) -> 24 | BR45: =+BQ45*$H$9 -> 8 | BS45: 3136.280516 | BT45: =BS45/X45 -> 0.6754857886 | BU45: =IF(BT45>0,IF(BT45>=$CY$28,$CW$28,IF(BT45<$CY$28,$CW$29,0)),0) -> 1 | BV45: 4332.977665 | BW45: =BV45/X45 -> 0.9332280131 | BX45: =IF(BW45,$F$23,0) -> 1 | BY45: =IF(DO45>0,$F$24,0) -> 1 | BZ45: 0 | CA45: =BZ45/X45 -> 0 | CB45: =+IF(CA45>=$K$4,$F$25,0) -> 0 | CC45: 48.56773638 | CD45: =IF(CC45>0,IF(CC45>=100,$F$26,IF(CC45<100,$F$26/2)),0) -> 0.5 | CE45: =SUM(DS45) -> 1 | CF45: =IF(DU45>0,$F$28,0) -> 0 | CG45: =IF(DT45>0,$F$29,0) -> 0 | CH45: =IF(DW45>0,$F$30,0) -> 1 | CI45: =SUM(BU45,BX45,CD45,BY45,CB45,CE45,CF45,CG45,CH45) -> 5.5 | CJ45: =+CI45*$H$22 -> 1.833333333 | CK45: =SUM(AY45,BQ45,CI45) -> 44.275 | CL45: =SUM(AZ45,BR45,CJ45) -> 14.75833333 | CM45: =IF(D45<($Z$13*1704),1,IF(D45<(($Z$14+$Z$13)*1704),2,IF(D45<(($Z$15+$Z$13+$Z$14)*1704),3,4))) -> 1 | CN45: =VLOOKUP(A45,Taul1!$F$6:$G$1718,2,FALSE) -> 3 | CT45: https://www.google.com/maps/@60.80646475,23.52754122,3a,75y,90t/data=!3m3!1e1!3m1!2e0 | CW45: 1 | CX45: 1 | CY45: 1 | CZ45: =SUM(CW45:CY45) -> 3 | DA45: 2 | DB45: 2 | DC45: 3 | DD45: 64 | DE45: 1 | DF45: 1755 | DG45: 754 | DH45: 4762 | DI45: 12184 | DJ45: 5 | DM45: 22 | DN45: 1 | DO45: 4652.909121 | DQ45: =+IF(AA45>$K$8,$F$27/2,0) -> 1 | DR45: =+IF(AA45/Y45>1.5,$F$27/2,0) -> 0 | DS45: =SUM(DQ45:DR45) -> 1 | DT45: 0 | DU45: 0 | DW45: 1 | DX45: 1 | DY45: 0 | DZ45: 0.55037295 | EA45: 0 | EC45: =IFERROR(VLOOKUP(A45,$EI$37:$EK$1748,2,FALSE),"--") -> LOPUT | ED45: =IFERROR(VLOOKUP(A45,$EI$37:$EK$1748,3,FALSE),"--") -> 2 | EE45: =IFERROR(ED45-D45,"--") -> -7 | EF45: =IFERROR(VLOOKUP(A45,$EI$37:$EL$1748,4,FALSE),"--") -> 1 | EG45: =IFERROR(EF45-K45,"--") -> 0 | EI45: 10_25 | EJ45: LOPUT | EK45: 3 | EL45: 1 | EN45: 11044 | EO45: 1
A46: =CONCATENATE(S46,"_",T46) -> 57_1 | B46: 1 | D46: =RANK(CL46,$CL$37:$CL$1740) -> 10 | E46: 10 | F46: =E46-D46 -> 0 | G46: =CL46 -> 14.73456849 | H46: =AZ46 -> 5 | I46: =BR46 -> 7.40123516 | J46: =CJ46 -> 2.333333333 | K46: =CM46 -> 1 | L46: =B46-K46 -> 0 | M46: =HYPERLINK(CT46,"Gmaps") -> Gmaps | N46: =IF(Y46>$K$6,"LOPUT","VÄHÄ") -> LOPUT | O46: =IF(S46<40,"Valta",IF(S46<100,"Kanta",IF(S46<1000,"Seutu",IF(S46>999,"Yhdys")))) -> Kanta | P46: Pälkäneentie, Tiiriöntie | Q46: Hattula, Hämeenlinna | R46: Kanta-Häme | S46: 57 | T46: 1 | U46: 405 | V46: 1 | W46: 6825 | X46: 6420 | Y46: 7807.457321 | Z46: 404.7674455 | AA46: 9127.620717 | AB46: 9029 (19 %), 7540 (76 %), 7222 (5 %) | AC46: 60 (31 %), 80 (68 %) | AD46: Is (100 %) | AE46: AB (100 %) | AF46: Y2 (100 %) | AG46: 7 | AH46: 14 | AI46: 0.02978554408 | AJ46: 126.3629283 | AN46: 0 | AO46: 0.9726452647 | AR46: =+IF(Y46>=$K$6,$F$5,($F$5/($K$6))*Y46) -> 9 | AS46: 170 | AU46: 170 | AV46: =+IF(AS46>=$L$15,$J$15,IF(AS46<($L$15),AS46*($J$15/($L$15)),)) -> 3 | AW46: 4820 | AX46: =+IF(AW46>=$L$11,$J$11,IF(AW46<($L$11),AW46*($J$11/($L$11)),)) -> 3 | AY46: =SUM(AR46,AV46,AX46) -> 15 | AZ46: =+AY46*$H$5 -> 5 | BA46: =+IF(Z46=0,0,IF(Z46>$K$7,$F$9,($F$9/$K$7)*Z46)) -> 8 | BB46: =IF(CZ46>0,$F$10,0) -> 2 | BC46: =IF(DA46>0,$F$11,0) -> 1 | BD46: =IF(DB46>0,$F$12,0) -> 0 | BE46: =IF(DC46>0,$F$13,0) -> 0 | BF46: =IF(DE46>0,$F$14,IF(DD46>0,$F$14/2,0)) -> 2 | BG46: =+IF(DF46>=$L$23,$J$23,IF(DF46<($L$23),DF46*($J$23/($L$23)),)) -> 0.5 | BH46: =+IF(DG46>=$L$24,$J$24,IF(DG46<($L$24),DG46*($J$24/($L$24)),)) -> 0.5 | BI46: =+IF(DH46>=$L$25,$J$25,IF(DH46<($L$25),DH46*($J$25/($L$25)),)) -> 0.2185 | BJ46: =+IF(DI46>=$L$26,$J$26,IF(DI46<($L$26),DI46*($J$26/($L$26)),)) -> 0.5 | BK46: =IF(DJ46>0,$F$16,0) -> 2 | BL46: =+IF(DM46>=$L$29,$J$29,IF(DM46<($L$29),DM46*($J$29/($L$29)),)) -> 2 | BM46: =IF(EA46>100000,$F$18,IF(EA46>0,$F$18/2,0)) -> 0.5 | BN46: =IF(DX46>0,$F$19,0) -> 2 | BO46: 9.852054795 | BP46: =+IF(BO46>=$L$19,$J$19,IF(BO46<($L$19),BO46*($J$19/($L$19)),)) -> 0.9852054795 | BQ46: =SUM(BA46+BB46+BC46+BD46+BE46+BF46+BK46+BG46+BH46+BI46+BJ46+BL46+BM46+BN46+BP46) -> 22.20370548 | BR46: =+BQ46*$H$9 -> 7.40123516 | BS46: 6398.877127 | BT46: =BS46/X46 -> 0.9967098329 | BU46: =IF(BT46>0,IF(BT46>=$CY$28,$CW$28,IF(BT46<$CY$28,$CW$29,0)),0) -> 1 | BV46: 6398.877127 | BW46: =BV46/X46 -> 0.9967098329 | BX46: =IF(BW46,$F$23,0) -> 1 | BY46: =IF(DO46>0,$F$24,0) -> 1 | BZ46: 156.0674735 | CA46: =BZ46/X46 -> 0.02430957531 | CB46: =+IF(CA46>=$K$4,$F$25,0) -> 0 | CC46: 270.9057632 | CD46: =IF(CC46>0,IF(CC46>=100,$F$26,IF(CC46<100,$F$26/2)),0) -> 1 | CE46: =SUM(DS46) -> 1 | CF46: =IF(DU46>0,$F$28,0) -> 0 | CG46: =IF(DT46>0,$F$29,0) -> 1 | CH46: =IF(DW46>0,$F$30,0) -> 1 | CI46: =SUM(BU46,BX46,CD46,BY46,CB46,CE46,CF46,CG46,CH46) -> 7 | CJ46: =+CI46*$H$22 -> 2.333333333 | CK46: =SUM(AY46,BQ46,CI46) -> 44.20370548 | CL46: =SUM(AZ46,BR46,CJ46) -> 14.73456849 | CM46: =IF(D46<($Z$13*1704),1,IF(D46<(($Z$14+$Z$13)*1704),2,IF(D46<(($Z$15+$Z$13+$Z$14)*1704),3,4))) -> 1 | CN46: =VLOOKUP(A46,Taul1!$F$6:$G$1718,2,FALSE) -> 3 | CT46: https://www.google.com/maps/@61.00934665,24.41705951,3a,75y,90t/data=!3m3!1e1!3m1!2e0 | CW46: 0 | CX46: 1 | CY46: 1 | CZ46: =SUM(CW46:CY46) -> 2 | DA46: 3 | DB46: 0 | DC46: 0 | DD46: 29 | DE46: 7 | DF46: 555 | DG46: 176 | DH46: 437 | DI46: 1843 | DJ46: 1 | DM46: 22 | DN46: 0 | DO46: 6398.877127 | DQ46: =+IF(AA46>$K$8,$F$27/2,0) -> 1 | DR46: =+IF(AA46/Y46>1.5,$F$27/2,0) -> 0 | DS46: =SUM(DQ46:DR46) -> 1 | DT46: 4 | DU46: 0 | DW46: 1 | DX46: 1 | DY46: 0 | DZ46: 0.9726452647 | EA46: 16369 | EC46: =IFERROR(VLOOKUP(A46,$EI$37:$EK$1748,2,FALSE),"--") -> LOPUT | ED46: =IFERROR(VLOOKUP(A46,$EI$37:$EK$1748,3,FALSE),"--") -> 24 | EE46: =IFERROR(ED46-D46,"--") -> 14 | EF46: =IFERROR(VLOOKUP(A46,$EI$37:$EL$1748,4,FALSE),"--") -> 1 | EG46: =IFERROR(EF46-K46,"--") -> 0 | EI46: 55_1 | EJ46: LOPUT | EK46: 10 | EL46: 1 | EN46: 11591 | EO46: 2
A47: =CONCATENATE(S47,"_",T47) -> 2_13 | B47: 1 | D47: =RANK(CL47,$CL$37:$CL$1740) -> 11 | E47: 11 | F47: =E47-D47 -> 0 | G47: =CL47 -> 14.57390335 | H47: =AZ47 -> 5 | I47: =BR47 -> 7.573903349 | J47: =CJ47 -> 2 | K47: =CM47 -> 1 | L47: =B47-K47 -> 0 | M47: =HYPERLINK(CT47,"Gmaps") -> Gmaps | N47: =IF(Y47>$K$6,"LOPUT","VÄHÄ") -> LOPUT | O47: =IF(S47<40,"Valta",IF(S47<100,"Kanta",IF(S47<1000,"Seutu",IF(S47>999,"Yhdys")))) -> Valta | P47: Porintie | Q47: Karkkila | R47: Uusimaa | S47: 2 | T47: 13 | U47: 0 | V47: 13 | W47: 5174 | X47: 5174 | Y47: 6364.748357 | Z47: 609.7240046 | AA47: 7887.97874 | AB47: 6908 (65 %), 5367 (35 %) | AC47: 60 (8 %), 80 (76 %), 100 (16 %) | AD47: Is (100 %) | AE47: AB (100 %) | AF47: Y1 (100 %) | AG47: 2 | AH47: 5 | AI47: 0 | AJ47: 327.3664476 | AK47: Laajin Ternverkko | AL47: 1 | AM47: x | AN47: 0 | AO47: 0.6637412538 | AR47: =+IF(Y47>=$K$6,$F$5,($F$5/($K$6))*Y47) -> 9 | AS47: 94 | AU47: 94 | AV47: =+IF(AS47>=$L$15,$J$15,IF(AS47<($L$15),AS47*($J$15/($L$15)),)) -> 3 | AW47: 2697 | AX47: =+IF(AW47>=$L$11,$J$11,IF(AW47<($L$11),AW47*($J$11/($L$11)),)) -> 3 | AY47: =SUM(AR47,AV47,AX47) -> 15 | AZ47: =+AY47*$H$5 -> 5 | BA47: =+IF(Z47=0,0,IF(Z47>$K$7,$F$9,($F$9/$K$7)*Z47)) -> 8 | BB47: =IF(CZ47>0,$F$10,0) -> 2 | BC47: =IF(DA47>0,$F$11,0) -> 1 | BD47: =IF(DB47>0,$F$12,0) -> 1 | BE47: =IF(DC47>0,$F$13,0) -> 1 | BF47: =IF(DE47>0,$F$14,IF(DD47>0,$F$14/2,0)) -> 2 | BG47: =+IF(DF47>=$L$23,$J$23,IF(DF47<($L$23),DF47*($J$23/($L$23)),)) -> 0.1483333333 | BH47: =+IF(DG47>=$L$24,$J$24,IF(DG47<($L$24),DG47*($J$24/($L$24)),)) -> 0.025 | BI47: =+IF(DH47>=$L$25,$J$25,IF(DH47<($L$25),DH47*($J$25/($L$25)),)) -> 0.0555 | BJ47: =+IF(DI47>=$L$26,$J$26,IF(DI47<($L$26),DI47*($J$26/($L$26)),)) -> 0 | BK47: =IF(DJ47>0,$F$16,0) -> 2 | BL47: =+IF(DM47>=$L$29,$J$29,IF(DM47<($L$29),DM47*($J$29/($L$29)),)) -> 2 | BM47: =IF(EA47>100000,$F$18,IF(EA47>0,$F$18/2,0)) -> 0.5 | BN47: =IF(DX47>0,$F$19,0) -> 2 | BO47: 9.928767123 | BP47: =+IF(BO47>=$L$19,$J$19,IF(BO47<($L$19),BO47*($J$19/($L$19)),)) -> 0.9928767123 | BQ47: =SUM(BA47+BB47+BC47+BD47+BE47+BF47+BK47+BG47+BH47+BI47+BJ47+BL47+BM47+BN47+BP47) -> 22.72171005 | BR47: =+BQ47*$H$9 -> 7.573903349 | BS47: 3715.198659 | BT47: =BS47/X47 -> 0.7180515384 | BU47: =IF(BT47>0,IF(BT47>=$CY$28,$CW$28,IF(BT47<$CY$28,$CW$29,0)),0) -> 1 | BV47: 4514.291019 | BW47: =BV47/X47 -> 0.872495365 | BX47: =IF(BW47,$F$23,0) -> 1 | BY47: =IF(DO47>0,$F$24,0) -> 1 | BZ47: 0 | CA47: =BZ47/X47 -> 0 | CB47: =+IF(CA47>=$K$4,$F$25,0) -> 0 | CC47: 324.9188249 | CD47: =IF(CC47>0,IF(CC47>=100,$F$26,IF(CC47<100,$F$26/2)),0) -> 1 | CE47: =SUM(DS47) -> 1 | CF47: =IF(DU47>0,$F$28,0) -> 0 | CG47: =IF(DT47>0,$F$29,0) -> 0 | CH47: =IF(DW47>0,$F$30,0) -> 1 | CI47: =SUM(BU47,BX47,CD47,BY47,CB47,CE47,CF47,CG47,CH47) -> 6 | CJ47: =+CI47*$H$22 -> 2 | CK47: =SUM(AY47,BQ47,CI47) -> 43.72171005 | CL47: =SUM(AZ47,BR47,CJ47) -> 14.57390335 | CM47: =IF(D47<($Z$13*1704),1,IF(D47<(($Z$14+$Z$13)*1704),2,IF(D47<(($Z$15+$Z$13+$Z$14)*1704),3,4))) -> 1 | CN47: =VLOOKUP(A47,Taul1!$F$6:$G$1718,2,FALSE) -> 2 | CT47: https://www.google.com/maps/@60.50754776,24.26456658,3a,75y,90t/data=!3m3!1e1!3m1!2e0 | CW47: 1 | CX47: 0 | CY47: 1 | CZ47: =SUM(CW47:CY47) -> 2 | DA47: 1 | DB47: 2 | DC47: 4 | DD47: 17 | DE47: 4 | DF47: 89 | DG47: 5 | DH47: 111 | DI47: 0 | DJ47: 2 | DM47: 6 | DN47: 0 | DO47: 3058.78019 | DQ47: =+IF(AA47>$K$8,$F$27/2,0) -> 1 | DR47: =+IF(AA47/Y47>1.5,$F$27/2,0) -> 0 | DS47: =SUM(DQ47:DR47) -> 1 | DT47: 0 | DU47: 0 | DW47: 1 | DX47: 3 | DY47: 0 | DZ47: 0.6637412538 | EA47: 10088 | EC47: =IFERROR(VLOOKUP(A47,$EI$37:$EK$1748,2,FALSE),"--") -> LOPUT | ED47: =IFERROR(VLOOKUP(A47,$EI$37:$EK$1748,3,FALSE),"--") -> 16 | EE47: =IFERROR(ED47-D47,"--") -> 5 | EF47: =IFERROR(VLOOKUP(A47,$EI$37:$EL$1748,4,FALSE),"--") -> 1 | EG47: =IFERROR(EF47-K47,"--") -> 0 | EI47: 2_13 | EJ47: LOPUT | EK47: 16 | EL47: 1 | EN47: 15065 | EO47: 2
A48: =CONCATENATE(S48,"_",T48) -> 148_1 | B48: 1 | D48: =RANK(CL48,$CL$37:$CL$1740) -> 12 | E48: 12 | F48: =E48-D48 -> 0 | G48: =CL48 -> 14.52203196 | H48: =AZ48 -> 5 | I48: =BR48 -> 7.18869863 | J48: =CJ48 -> 2.333333333 | K48: =CM48 -> 1 | L48: =B48-K48 -> 0 | M48: =HYPERLINK(CT48,"Gmaps") -> Gmaps | N48: =IF(Y48>$K$6,"LOPUT","VÄHÄ") -> LOPUT | O48: =IF(S48<40,"Valta",IF(S48<100,"Kanta",IF(S48<1000,"Seutu",IF(S48>999,"Yhdys")))) -> Seutu | P48: Keravantie, Kulloontie | Q48: Kerava, Tuusula | R48: Uusimaa | S48: 148 | T48: 1 | U48: 0 | V48: 1 | W48: 5408 | X48: 5408 | Y48: 12431.9216 | Z48: 929.2011834 | AA48: 13078.91494 | AB48: 7358 (44 %), 16426 (56 %) | AC48: 50 (8 %), 60 (92 %) | AD48: Is (100 %) | AE48: AB (100 %) | AF48: Y2 (100 %) | AG48: 5 | AH48: 27 | AI48: 0.09561213434 | AJ48: 459.516642 | AM48: x | AN48: 0.3523471878 | AO48: 0.9975044 | AR48: =+IF(Y48>=$K$6,$F$5,($F$5/($K$6))*Y48) -> 9 | AS48: 500 | AU48: 12 | AV48: =+IF(AS48>=$L$15,$J$15,IF(AS48<($L$15),AS48*($J$15/($L$15)),)) -> 3 | AW48: 14919 | AX48: =+IF(AW48>=$L$11,$J$11,IF(AW48<($L$11),AW48*($J$11/($L$11)),)) -> 3 | AY48: =SUM(AR48,AV48,AX48) -> 15 | AZ48: =+AY48*$H$5 -> 5 | BA48: =+IF(Z48=0,0,IF(Z48>$K$7,$F$9,($F$9/$K$7)*Z48)) -> 8 | BB48: =IF(CZ48>0,$F$10,0) -> 2 | BC48: =IF(DA48>0,$F$11,0) -> 1 | BD48: =IF(DB48>0,$F$12,0) -> 1 | BE48: =IF(DC48>0,$F$13,0) -> 0 | BF48: =IF(DE48>0,$F$14,IF(DD48>0,$F$14/2,0)) -> 2 | BG48: =+IF(DF48>=$L$23,$J$23,IF(DF48<($L$23),DF48*($J$23/($L$23)),)) -> 0.005 | BH48: =+IF(DG48>=$L$24,$J$24,IF(DG48<($L$24),DG48*($J$24/($L$24)),)) -> 0 | BI48: =+IF(DH48>=$L$25,$J$25,IF(DH48<($L$25),DH48*($J$25/($L$25)),)) -> 0 | BJ48: =+IF(DI48>=$L$26,$J$26,IF(DI48<($L$26),DI48*($J$26/($L$26)),)) -> 0 | BK48: =IF(DJ48>0,$F$16,0) -> 2 | BL48: =+IF(DM48>=$L$29,$J$29,IF(DM48<($L$29),DM48*($J$29/($L$29)),)) -> 2 | BM48: =IF(EA48>100000,$F$18,IF(EA48>0,$F$18/2,0)) -> 1 | BN48: =IF(DX48>0,$F$19,0) -> 2 | BO48: 5.610958904 | BP48: =+IF(BO48>=$L$19,$J$19,IF(BO48<($L$19),BO48*($J$19/($L$19)),)) -> 0.5610958904 | BQ48: =SUM(BA48+BB48+BC48+BD48+BE48+BF48+BK48+BG48+BH48+BI48+BJ48+BL48+BM48+BN48+BP48) -> 21.56609589 | BR48: =+BQ48*$H$9 -> 7.18869863 | BS48: 5394.503795 | BT48: =BS48/X48 -> 0.9975044 | BU48: =IF(BT48>0,IF(BT48>=$CY$28,$CW$28,IF(BT48<$CY$28,$CW$29,0)),0) -> 1 | BV48: 5156.976316 | BW48: =BV48/X48 -> 0.9535828987 | BX48: =IF(BW48,$F$23,0) -> 1 | BY48: =IF(DO48>0,$F$24,0) -> 1 | BZ48: 795.5352453 | CA48: =BZ48/X48 -> 0.1471034107 | CB48: =+IF(CA48>=$K$4,$F$25,0) -> 0 | CC48: 889.7744083 | CD48: =IF(CC48>0,IF(CC48>=100,$F$26,IF(CC48<100,$F$26/2)),0) -> 1 | CE48: =SUM(DS48) -> 1 | CF48: =IF(DU48>0,$F$28,0) -> 0 | CG48: =IF(DT48>0,$F$29,0) -> 1 | CH48: =IF(DW48>0,$F$30,0) -> 1 | CI48: =SUM(BU48,BX48,CD48,BY48,CB48,CE48,CF48,CG48,CH48) -> 7 | CJ48: =+CI48*$H$22 -> 2.333333333 | CK48: =SUM(AY48,BQ48,CI48) -> 43.56609589 | CL48: =SUM(AZ48,BR48,CJ48) -> 14.52203196 | CM48: =IF(D48<($Z$13*1704),1,IF(D48<(($Z$14+$Z$13)*1704),2,IF(D48<(($Z$15+$Z$13+$Z$14)*1704),3,4))) -> 1 | CN48: =VLOOKUP(A48,Taul1!$F$6:$G$1718,2,FALSE) -> 2 | CT48: https://www.google.com/maps/@60.40281149,25.03268809,3a,75y,90t/data=!3m3!1e1!3m1!2e0 | CW48: 1 | CX48: 0 | CY48: 1 | CZ48: =SUM(CW48:CY48) -> 2 | DA48: 4 | DB48: 1 | DC48: 0 | DD48: 13 | DE48: 6 | DF48: 3 | DG48: 0 | DH48: 0 | DI48: 0 | DJ48: 8 | DM48: 56 | DN48: 11 | DO48: 5394.503795 | DQ48: =+IF(AA48>$K$8,$F$27/2,0) -> 1 | DR48: =+IF(AA48/Y48>1.5,$F$27/2,0) -> 0 | DS48: =SUM(DQ48:DR48) -> 1 | DT48: 2 | DU48: 0 | DW48: 1 | DX48: 23 | DY48: 0.3523471878 | DZ48: 0.9975044 | EA48: 571932 | EC48: =IFERROR(VLOOKUP(A48,$EI$37:$EK$1748,2,FALSE),"--") -> LOPUT | ED48: =IFERROR(VLOOKUP(A48,$EI$37:$EK$1748,3,FALSE),"--") -> 38 | EE48: =IFERROR(ED48-D48,"--") -> 26 | EF48: =IFERROR(VLOOKUP(A48,$EI$37:$EL$1748,4,FALSE),"--") -> 1 | EG48: =IFERROR(EF48-K48,"--") -> 0 | EI48: 312_1 | EJ48: LOPUT | EK48: 7 | EL48: 1 | EN48: 1121 | EO48: 1
A49: =CONCATENATE(S49,"_",T49) -> 145_4 | B49: 1 | D49: =RANK(CL49,$CL$37:$CL$1740) -> 13 | E49: 13 | F49: =E49-D49 -> 0 | G49: =CL49 -> 14.50925419 | H49: =AZ49 -> 5 | I49: =BR49 -> 7.342587519 | J49: =CJ49 -> 2.166666667 | K49: =CM49 -> 1 | L49: =B49-K49 -> 0 | M49: =HYPERLINK(CT49,"Gmaps") -> Gmaps | N49: =IF(Y49>$K$6,"LOPUT","VÄHÄ") -> LOPUT | O49: =IF(S49<40,"Valta",IF(S49<100,"Kanta",IF(S49<1000,"Seutu",IF(S49>999,"Yhdys")))) -> Seutu | P49: Pohjoisväylä | Q49: Järvenpää, Tuusula | R49: Uusimaa | S49: 145 | T49: 4 | U49: 0 | V49: 4 | W49: 1129 | X49: 1129 | Y49: 10362.03277 | Z49: 431.9884854 | AA49: 10235.98051 | AB49: 15275 (47 %), 6015 (53 %) | AC49: 60 (99 %) | AD49: Ise (99 %) | AE49: AB (99 %) | AF49: Y2 (99 %) | AG49: 2 | AH49: 6 | AI49: 0.2909343201 | AJ49: 147.4357839 | AN49: 0 | AO49: 0.8497425244 | AR49: =+IF(Y49>=$K$6,$F$5,($F$5/($K$6))*Y49) -> 9 | AS49: 77 | AU49: 11 | AV49: =+IF(AS49>=$L$15,$J$15,IF(AS49<($L$15),AS49*($J$15/($L$15)),)) -> 3 | AW49: 12067 | AX49: =+IF(AW49>=$L$11,$J$11,IF(AW49<($L$11),AW49*($J$11/($L$11)),)) -> 3 | AY49: =SUM(AR49,AV49,AX49) -> 15 | AZ49: =+AY49*$H$5 -> 5 | BA49: =+IF(Z49=0,0,IF(Z49>$K$7,$F$9,($F$9/$K$7)*Z49)) -> 8 | BB49: =IF(CZ49>0,$F$10,0) -> 2 | BC49: =IF(DA49>0,$F$11,0) -> 1 | BD49: =IF(DB49>0,$F$12,0) -> 1 | BE49: =IF(DC49>0,$F$13,0) -> 0 | BF49: =IF(DE49>0,$F$14,IF(DD49>0,$F$14/2,0)) -> 2 | BG49: =+IF(DF49>=$L$23,$J$23,IF(DF49<($L$23),DF49*($J$23/($L$23)),)) -> 0.3466666667 | BH49: =+IF(DG49>=$L$24,$J$24,IF(DG49<($L$24),DG49*($J$24/($L$24)),)) -> 0.5 | BI49: =+IF(DH49>=$L$25,$J$25,IF(DH49<($L$25),DH49*($J$25/($L$25)),)) -> 0 | BJ49: =+IF(DI49>=$L$26,$J$26,IF(DI49<($L$26),DI49*($J$26/($L$26)),)) -> 0 | BK49: =IF(DJ49>0,$F$16,0) -> 2 | BL49: =+IF(DM49>=$L$29,$J$29,IF(DM49<($L$29),DM49*($J$29/($L$29)),)) -> 2 | BM49: =IF(EA49>100000,$F$18,IF(EA49>0,$F$18/2,0)) -> 1 | BN49: =IF(DX49>0,$F$19,0) -> 2 | BO49: 1.810958904 | BP49: =+IF(BO49>=$L$19,$J$19,IF(BO49<($L$19),BO49*($J$19/($L$19)),)) -> 0.1810958904 | BQ49: =SUM(BA49+BB49+BC49+BD49+BE49+BF49+BK49+BG49+BH49+BI49+BJ49+BL49+BM49+BN49+BP49) -> 22.02776256 | BR49: =+BQ49*$H$9 -> 7.342587519 | BS49: 1121.146399 | BT49: =BS49/X49 -> 0.9930437542 | BU49: =IF(BT49>0,IF(BT49>=$CY$28,$CW$28,IF(BT49<$CY$28,$CW$29,0)),0) -> 1 | BV49: 664.4059836 | BW49: =BV49/X49 -> 0.5884906852 | BX49: =IF(BW49,$F$23,0) -> 1 | BY49: =IF(DO49>0,$F$24,0) -> 1 | BZ49: 0 | CA49: =BZ49/X49 -> 0 | CB49: =+IF(CA49>=$K$4,$F$25,0) -> 0 | CC49: 15.28432241 | CD49: =IF(CC49>0,IF(CC49>=100,$F$26,IF(CC49<100,$F$26/2)),0) -> 0.5 | CE49: =SUM(DS49) -> 1 | CF49: =IF(DU49>0,$F$28,0) -> 0 | CG49: =IF(DT49>0,$F$29,0) -> 1 | CH49: =IF(DW49>0,$F$30,0) -> 1 | CI49: =SUM(BU49,BX49,CD49,BY49,CB49,CE49,CF49,CG49,CH49) -> 6.5 | CJ49: =+CI49*$H$22 -> 2.166666667 | CK49: =SUM(AY49,BQ49,CI49) -> 43.52776256 | CL49: =SUM(AZ49,BR49,CJ49) -> 14.50925419 | CM49: =IF(D49<($Z$13*1704),1,IF(D49<(($Z$14+$Z$13)*1704),2,IF(D49<(($Z$15+$Z$13+$Z$14)*1704),3,4))) -> 1 | CN49: =VLOOKUP(A49,Taul1!$F$6:$G$1718,2,FALSE) -> 2 | CT49: https://www.google.com/maps/@60.45590045,25.11742637,3a,75y,90t/data=!3m3!1e1!3m1!2e0 | CW49: 1 | CX49: 0 | CY49: 0 | CZ49: =SUM(CW49:CY49) -> 1 | DA49: 4 | DB49: 5 | DC49: 0 | DD49: 28 | DE49: 6 | DF49: 208 | DG49: 198 | DH49: 0 | DI49: 0 | DJ49: 3 | DM49: 18 | DN49: 1 | DO49: 1121.146399 | DQ49: =+IF(AA49>$K$8,$F$27/2,0) -> 1 | DR49: =+IF(AA49/Y49>1.5,$F$27/2,0) -> 0 | DS49: =SUM(DQ49:DR49) -> 1 | DT49: 6 | DU49: 0 | DW49: 1 | DX49: 12 | DY49: 0 | DZ49: 0.8497425244 | EA49: 161390 | EC49: =IFERROR(VLOOKUP(A49,$EI$37:$EK$1748,2,FALSE),"--") -> LOPUT | ED49: =IFERROR(VLOOKUP(A49,$EI$37:$EK$1748,3,FALSE),"--") -> 59 | EE49: =IFERROR(ED49-D49,"--") -> 46 | EF49: =IFERROR(VLOOKUP(A49,$EI$37:$EL$1748,4,FALSE),"--") -> 1 | EG49: =IFERROR(EF49-K49,"--") -> 0 | EI49: 1452_1 | EJ49: LOPUT | EK49: 12 | EL49: 1
A50: =CONCATENATE(S50,"_",T50) -> 25_19 | B50: 1 | D50: =RANK(CL50,$CL$37:$CL$1740) -> 14 | E50: 14 | F50: =E50-D50 -> 0 | G50: =CL50 -> 14.505 | H50: =AZ50 -> 5 | I50: =BR50 -> 7.505 | J50: =CJ50 -> 2 | K50: =CM50 -> 1 | L50: =B50-K50 -> 0 | M50: =HYPERLINK(CT50,"Gmaps") -> Gmaps | N50: =IF(Y50>$K$6,"LOPUT","VÄHÄ") -> LOPUT | O50: =IF(S50<40,"Valta",IF(S50<100,"Kanta",IF(S50<1000,"Seutu",IF(S50>999,"Yhdys")))) -> Valta | P50: Hankoniementie | Q50: Lohja | R50: Uusimaa | S50: 25 | T50: 19 | U50: 0 | V50: 19 | W50: 7311 | X50: 7311 | Y50: 7736.972507 | Z50: 767.77103 | AA50: 9058.718096 | AB50: 5668 (20 %), 8259 (80 %) | AC50: 80 (59 %), 100 (41 %) | AD50: Is (100 %) | AE50: AB (100 %) | AF50: Y1 (100 %) | AG50: 6 | AH50: 19 | AI50: 0.05080579077 | AJ50: 451.0685269 | AK50: Laajin Ternverkko | AL50: 1 | AN50: 0 | AO50: 0 | AR50: =+IF(Y50>=$K$6,$F$5,($F$5/($K$6))*Y50) -> 9 | AS50: 48 | AU50: 48 | AV50: =+IF(AS50>=$L$15,$J$15,IF(AS50<($L$15),AS50*($J$15/($L$15)),)) -> 3 | AW50: 3841 | AX50: =+IF(AW50>=$L$11,$J$11,IF(AW50<($L$11),AW50*($J$11/($L$11)),)) -> 3 | AY50: =SUM(AR50,AV50,AX50) -> 15 | AZ50: =+AY50*$H$5 -> 5 | BA50: =+IF(Z50=0,0,IF(Z50>$K$7,$F$9,($F$9/$K$7)*Z50)) -> 8 | BB50: =IF(CZ50>0,$F$10,0) -> 2 | BC50: =IF(DA50>0,$F$11,0) -> 1 | BD50: =IF(DB50>0,$F$12,0) -> 1 | BE50: =IF(DC50>0,$F$13,0) -> 1 | BF50: =IF(DE50>0,$F$14,IF(DD50>0,$F$14/2,0)) -> 2 | BG50: =+IF(DF50>=$L$23,$J$23,IF(DF50<($L$23),DF50*($J$23/($L$23)),)) -> 0.015 | BH50: =+IF(DG50>=$L$24,$J$24,IF(DG50<($L$24),DG50*($J$24/($L$24)),)) -> 0.5 | BI50: =+IF(DH50>=$L$25,$J$25,IF(DH50<($L$25),DH50*($J$25/($L$25)),)) -> 0 | BJ50: =+IF(DI50>=$L$26,$J$26,IF(DI50<($L$26),DI50*($J$26/($L$26)),)) -> 0 | BK50: =IF(DJ50>0,$F$16,0) -> 2 | BL50: =+IF(DM50>=$L$29,$J$29,IF(DM50<($L$29),DM50*($J$29/($L$29)),)) -> 2 | BM50: =IF(EA50>100000,$F$18,IF(EA50>0,$F$18/2,0)) -> 0 | BN50: =IF(DX50>0,$F$19,0) -> 2 | BO50: 15.21369863 | BP50: =+IF(BO50>=$L$19,$J$19,IF(BO50<($L$19),BO50*($J$19/($L$19)),)) -> 1 | BQ50: =SUM(BA50+BB50+BC50+BD50+BE50+BF50+BK50+BG50+BH50+BI50+BJ50+BL50+BM50+BN50+BP50) -> 22.515 | BR50: =+BQ50*$H$9 -> 7.505 | BS50: 7309.846566 | BT50: =BS50/X50 -> 0.9998422331 | BU50: =IF(BT50>0,IF(BT50>=$CY$28,$CW$28,IF(BT50<$CY$28,$CW$29,0)),0) -> 1 | BV50: 6620.990984 | BW50: =BV50/X50 -> 0.9056204327 | BX50: =IF(BW50,$F$23,0) -> 1 | BY50: =IF(DO50>0,$F$24,0) -> 0 | BZ50: 0 | CA50: =BZ50/X50 -> 0 | CB50: =+IF(CA50>=$K$4,$F$25,0) -> 0 | CC50: 222.7055122 | CD50: =IF(CC50>0,IF(CC50>=100,$F$26,IF(CC50<100,$F$26/2)),0) -> 1 | CE50: =SUM(DS50) -> 1 | CF50: =IF(DU50>0,$F$28,0) -> 0 | CG50: =IF(DT50>0,$F$29,0) -> 1 | CH50: =IF(DW50>0,$F$30,0) -> 1 | CI50: =SUM(BU50,BX50,CD50,BY50,CB50,CE50,CF50,CG50,CH50) -> 6 | CJ50: =+CI50*$H$22 -> 2 | CK50: =SUM(AY50,BQ50,CI50) -> 43.515 | CL50: =SUM(AZ50,BR50,CJ50) -> 14.505 | CM50: =IF(D50<($Z$13*1704),1,IF(D50<(($Z$14+$Z$13)*1704),2,IF(D50<(($Z$15+$Z$13+$Z$14)*1704),3,4))) -> 1 | CN50: =VLOOKUP(A50,Taul1!$F$6:$G$1718,2,FALSE) -> 2 | CT50: https://www.google.com/maps/@60.17193702,23.96744162,3a,75y,90t/data=!3m3!1e1!3m1!2e0 | CW50: 0 | CX50: 1 | CY50: 1 | CZ50: =SUM(CW50:CY50) -> 2 | DA50: 4 | DB50: 3 | DC50: 1 | DD50: 46 | DE50: 4 | DF50: 9 | DG50: 186 | DH50: 0 | DI50: 0 | DJ50: 1 | DM50: 13 | DN50: 0 | DO50: 0 | DQ50: =+IF(AA50>$K$8,$F$27/2,0) -> 1 | DR50: =+IF(AA50/Y50>1.5,$F$27/2,0) -> 0 | DS50: =SUM(DQ50:DR50) -> 1 | DT50: 1 | DU50: 0 | DW50: 1 | DX50: 6 | DY50: 0 | DZ50: 0 | EA50: 0 | EC50: =IFERROR(VLOOKUP(A50,$EI$37:$EK$1748,2,FALSE),"--") -> LOPUT | ED50: =IFERROR(VLOOKUP(A50,$EI$37:$EK$1748,3,FALSE),"--") -> 14 | EE50: =IFERROR(ED50-D50,"--") -> 0 | EF50: =IFERROR(VLOOKUP(A50,$EI$37:$EL$1748,4,FALSE),"--") -> 1 | EG50: =IFERROR(EF50-K50,"--") -> 0 | EI50: 111_2 | EJ50: LOPUT | EK50: 13 | EL50: 1 | EN50: 290 | EO50: 7
A51: =CONCATENATE(S51,"_",T51) -> 292_1 | B51: 1 | D51: =RANK(CL51,$CL$37:$CL$1740) -> 15 | E51: 15 | F51: =E51-D51 -> 0 | G51: =CL51 -> 14.49972603 | H51: =AZ51 -> 5 | I51: =BR51 -> 7.166392694 | J51: =CJ51 -> 2.333333333 | K51: =CM51 -> 1 | L51: =B51-K51 -> 0 | M51: =HYPERLINK(CT51,"Gmaps") -> Gmaps | N51: =IF(Y51>$K$6,"LOPUT","VÄHÄ") -> LOPUT | O51: =IF(S51<40,"Valta",IF(S51<100,"Kanta",IF(S51<1000,"Seutu",IF(S51>999,"Yhdys")))) -> Seutu | P51: Turengintie | Q51: Janakkala | R51: Kanta-Häme | S51: 292 | T51: 1 | U51: 0 | V51: 1 | W51: 6483 | X51: 6483 | Y51: 5319.697054 | Z51: 280.0458121 | AA51: 5604.197748 | AB51: 4847 (48 %), 5330 (40 %), 7081 (13 %) | AC51: 40 (11 %), 50 (26 %), 60 (13 %), 70 (50 %) | AD51: Ic (13 %), Is (87 %) | AE51: AB (100 %) | AF51: Y2 (100 %) | AG51: 2 | AH51: 7 | AI51: 0.0810889082 | AJ51: 106.4326701 | AN51: 0.8670843468 | AO51: 0.4982422366 | AR51: =+IF(Y51>=$K$6,$F$5,($F$5/($K$6))*Y51) -> 9 | AS51: 54 | AU51: 54 | AV51: =+IF(AS51>=$L$15,$J$15,IF(AS51<($L$15),AS51*($J$15/($L$15)),)) -> 3 | AW51: 2906 | AX51: =+IF(AW51>=$L$11,$J$11,IF(AW51<($L$11),AW51*($J$11/($L$11)),)) -> 3 | AY51: =SUM(AR51,AV51,AX51) -> 15 | AZ51: =+AY51*$H$5 -> 5 | BA51: =+IF(Z51=0,0,IF(Z51>$K$7,$F$9,($F$9/$K$7)*Z51)) -> 8 | BB51: =IF(CZ51>0,$F$10,0) -> 2 | BC51: =IF(DA51>0,$F$11,0) -> 1 | BD51: =IF(DB51>0,$F$12,0) -> 1 | BE51: =IF(DC51>0,$F$13,0) -> 0 | BF51: =IF(DE51>0,$F$14,IF(DD51>0,$F$14/2,0)) -> 2 | BG51: =+IF(DF51>=$L$23,$J$23,IF(DF51<($L$23),DF51*($J$23/($L$23)),)) -> 0.5 | BH51: =+IF(DG51>=$L$24,$J$24,IF(DG51<($L$24),DG51*($J$24/($L$24)),)) -> 0.4 | BI51: =+IF(DH51>=$L$25,$J$25,IF(DH51<($L$25),DH51*($J$25/($L$25)),)) -> 0 | BJ51: =+IF(DI51>=$L$26,$J$26,IF(DI51<($L$26),DI51*($J$26/($L$26)),)) -> 0 | BK51: =IF(DJ51>0,$F$16,0) -> 2 | BL51: =+IF(DM51>=$L$29,$J$29,IF(DM51<($L$29),DM51*($J$29/($L$29)),)) -> 2 | BM51: =IF(EA51>100000,$F$18,IF(EA51>0,$F$18/2,0)) -> 0.5 | BN51: =IF(DX51>0,$F$19,0) -> 2 | BO51: 0.9917808219 | BP51: =+IF(BO51>=$L$19,$J$19,IF(BO51<($L$19),BO51*($J$19/($L$19)),)) -> 0.09917808219 | BQ51: =SUM(BA51+BB51+BC51+BD51+BE51+BF51+BK51+BG51+BH51+BI51+BJ51+BL51+BM51+BN51+BP51) -> 21.49917808 | BR51: =+BQ51*$H$9 -> 7.166392694 | BS51: 4688.308162 | BT51: =BS51/X51 -> 0.7231695452 | BU51: =IF(BT51>0,IF(BT51>=$CY$28,$CW$28,IF(BT51<$CY$28,$CW$29,0)),0) -> 1 | BV51: 1944.837525 | BW51: =BV51/X51 -> 0.2999903632 | BX51: =IF(BW51,$F$23,0) -> 1 | BY51: =IF(DO51>0,$F$24,0) -> 1 | BZ51: 1906.095662 | CA51: =BZ51/X51 -> 0.2940144473 | CB51: =+IF(CA51>=$K$4,$F$25,0) -> 0 | CC51: 259.6405985 | CD51: =IF(CC51>0,IF(CC51>=100,$F$26,IF(CC51<100,$F$26/2)),0) -> 1 | CE51: =SUM(DS51) -> 1 | CF51: =IF(DU51>0,$F$28,0) -> 0 | CG51: =IF(DT51>0,$F$29,0) -> 1 | CH51: =IF(DW51>0,$F$30,0) -> 1 | CI51: =SUM(BU51,BX51,CD51,BY51,CB51,CE51,CF51,CG51,CH51) -> 7 | CJ51: =+CI51*$H$22 -> 2.333333333 | CK51: =SUM(AY51,BQ51,CI51) -> 43.49917808 | CL51: =SUM(AZ51,BR51,CJ51) -> 14.49972603 | CM51: =IF(D51<($Z$13*1704),1,IF(D51<(($Z$14+$Z$13)*1704),2,IF(D51<(($Z$15+$Z$13+$Z$14)*1704),3,4))) -> 1 | CN51: =VLOOKUP(A51,Taul1!$F$6:$G$1718,2,FALSE) -> 3 | CT51: https://www.google.com/maps/@60.91208010,24.53909318,3a,75y,90t/data=!3m3!1e1!3m1!2e0 | CW51: 0 | CX51: 1 | CY51: 0 | CZ51: =SUM(CW51:CY51) -> 1 | DA51: 1 | DB51: 9 | DC51: 0 | DD51: 27 | DE51: 1 | DF51: 635 | DG51: 80 | DH51: 0 | DI51: 0 | DJ51: 2 | DM51: 15 | DN51: 1 | DO51: 6469.616306 | DQ51: =+IF(AA51>$K$8,$F$27/2,0) -> 1 | DR51: =+IF(AA51/Y51>1.5,$F$27/2,0) -> 0 | DS51: =SUM(DQ51:DR51) -> 1 | DT51: 3 | DU51: 0 | DW51: 1 | DX51: 4 | DY51: 0.8670843468 | DZ51: 0.4982422366 | EA51: 56161 | EC51: =IFERROR(VLOOKUP(A51,$EI$37:$EK$1748,2,FALSE),"--") -> LOPUT | ED51: =IFERROR(VLOOKUP(A51,$EI$37:$EK$1748,3,FALSE),"--") -> 40 | EE51: =IFERROR(ED51-D51,"--") -> 25 | EF51: =IFERROR(VLOOKUP(A51,$EI$37:$EL$1748,4,FALSE),"--") -> 1 | EG51: =IFERROR(EF51-K51,"--") -> 0 | EI51: 25_24 | EJ51: LOPUT | EK51: 9 | EL51: 1 | EN51: 1792 | EO51: 3
A52: =CONCATENATE(S52,"_",T52) -> 2896_1 | B52: 1 | D52: =RANK(CL52,$CL$37:$CL$1740) -> 16 | E52: 16 | F52: =E52-D52 -> 0 | G52: =CL52 -> 14.31908676 | H52: =AZ52 -> 5 | I52: =BR52 -> 7.152420091 | J52: =CJ52 -> 2.166666667 | K52: =CM52 -> 1 | L52: =B52-K52 -> 0 | M52: =HYPERLINK(CT52,"Gmaps") -> Gmaps | N52: =IF(Y52>$K$6,"LOPUT","VÄHÄ") -> LOPUT | O52: =IF(S52<40,"Valta",IF(S52<100,"Kanta",IF(S52<1000,"Seutu",IF(S52>999,"Yhdys")))) -> Yhdys | P52: Tervakoskentie | Q52: Janakkala | R52: Kanta-Häme | S52: 2896 | T52: 1 | U52: 0 | V52: 1 | W52: 1955 | X52: 1955 | Y52: 3441 | Z52: 226 | AA52: 4198 | AB52: 3441 (100 %) | AC52: 50 (22 %), 60 (16 %), 80 (64 %) | AD52: Ib (101 %) | AE52: AB (101 %) | AF52: Y2 (101 %) | AG52: 0 | AH52: 5 | AI52: 0 | AJ52: 80 | AN52: 0.5943091992 | AO52: 0.7604666067 | AR52: =+IF(Y52>=$K$6,$F$5,($F$5/($K$6))*Y52) -> 9 | AS52: 52 | AU52: 52 | AV52: =+IF(AS52>=$L$15,$J$15,IF(AS52<($L$15),AS52*($J$15/($L$15)),)) -> 3 | AW52: 1899 | AX52: =+IF(AW52>=$L$11,$J$11,IF(AW52<($L$11),AW52*($J$11/($L$11)),)) -> 3 | AY52: =SUM(AR52,AV52,AX52) -> 15 | AZ52: =+AY52*$H$5 -> 5 | BA52: =+IF(Z52=0,0,IF(Z52>$K$7,$F$9,($F$9/$K$7)*Z52)) -> 8 | BB52: =IF(CZ52>0,$F$10,0) -> 2 | BC52: =IF(DA52>0,$F$11,0) -> 1 | BD52: =IF(DB52>0,$F$12,0) -> 1 | BE52: =IF(DC52>0,$F$13,0) -> 1 | BF52: =IF(DE52>0,$F$14,IF(DD52>0,$F$14/2,0)) -> 2 | BG52: =+IF(DF52>=$L$23,$J$23,IF(DF52<($L$23),DF52*($J$23/($L$23)),)) -> 0.5 | BH52: =+IF(DG52>=$L$24,$J$24,IF(DG52<($L$24),DG52*($J$24/($L$24)),)) -> 0.48 | BI52: =+IF(DH52>=$L$25,$J$25,IF(DH52<($L$25),DH52*($J$25/($L$25)),)) -> 0.5 | BJ52: =+IF(DI52>=$L$26,$J$26,IF(DI52<($L$26),DI52*($J$26/($L$26)),)) -> 0 | BK52: =IF(DJ52>0,$F$16,0) -> 0 | BL52: =+IF(DM52>=$L$29,$J$29,IF(DM52<($L$29),DM52*($J$29/($L$29)),)) -> 2 | BM52: =IF(EA52>100000,$F$18,IF(EA52>0,$F$18/2,0)) -> 0 | BN52: =IF(DX52>0,$F$19,0) -> 2 | BO52: 9.77260274 | BP52: =+IF(BO52>=$L$19,$J$19,IF(BO52<($L$19),BO52*($J$19/($L$19)),)) -> 0.977260274 | BQ52: =SUM(BA52+BB52+BC52+BD52+BE52+BF52+BK52+BG52+BH52+BI52+BJ52+BL52+BM52+BN52+BP52) -> 21.45726027 | BR52: =+BQ52*$H$9 -> 7.152420091 | BS52: 1983.865729 | BT52: =BS52/X52 -> 1.014765079 | BU52: =IF(BT52>0,IF(BT52>=$CY$28,$CW$28,IF(BT52<$CY$28,$CW$29,0)),0) -> 1 | BV52: 231.6429203 | BW52: =BV52/X52 -> 0.1184874273 | BX52: =IF(BW52,$F$23,0) -> 1 | BY52: =IF(DO52>0,$F$24,0) -> 1 | BZ52: 0 | CA52: =BZ52/X52 -> 0 | CB52: =+IF(CA52>=$K$4,$F$25,0) -> 0 | CC52: 65.68797954 | CD52: =IF(CC52>0,IF(CC52>=100,$F$26,IF(CC52<100,$F$26/2)),0) -> 0.5 | CE52: =SUM(DS52) -> 1 | CF52: =IF(DU52>0,$F$28,0) -> 0 | CG52: =IF(DT52>0,$F$29,0) -> 1 | CH52: =IF(DW52>0,$F$30,0) -> 1 | CI52: =SUM(BU52,BX52,CD52,BY52,CB52,CE52,CF52,CG52,CH52) -> 6.5 | CJ52: =+CI52*$H$22 -> 2.166666667 | CK52: =SUM(AY52,BQ52,CI52) -> 42.95726027 | CL52: =SUM(AZ52,BR52,CJ52) -> 14.31908676 | CM52: =IF(D52<($Z$13*1704),1,IF(D52<(($Z$14+$Z$13)*1704),2,IF(D52<(($Z$15+$Z$13+$Z$14)*1704),3,4))) -> 1 | CN52: =VLOOKUP(A52,Taul1!$F$6:$G$1718,2,FALSE) -> 1 | CT52: https://www.google.com/maps/@60.81804382,24.63981626,3a,75y,90t/data=!3m3!1e1!3m1!2e0 | CW52: 1 | CX52: 0 | CY52: 0 | CZ52: =SUM(CW52:CY52) -> 1 | DA52: 2 | DB52: 11 | DC52: 3 | DD52: 24 | DE52: 3 | DF52: 556 | DG52: 96 | DH52: 1014 | DI52: 0 | DJ52: 0 | DM52: 27 | DN52: 0 | DO52: 1983.865729 | DQ52: =+IF(AA52>$K$8,$F$27/2,0) -> 1 | DR52: =+IF(AA52/Y52>1.5,$F$27/2,0) -> 0 | DS52: =SUM(DQ52:DR52) -> 1 | DT52: 5 | DU52: 0 | DW52: 1 | DX52: 3 | DY52: 0.5943091992 | DZ52: 0.7604666067 | EA52: 0 | EC52: =IFERROR(VLOOKUP(A52,$EI$37:$EK$1748,2,FALSE),"--") -> LOPUT | ED52: =IFERROR(VLOOKUP(A52,$EI$37:$EK$1748,3,FALSE),"--") -> 39 | EE52: =IFERROR(ED52-D52,"--") -> 23 | EF52: =IFERROR(VLOOKUP(A52,$EI$37:$EL$1748,4,FALSE),"--") -> 1 | EG52: =IFERROR(EF52-K52,"--") -> 0 | EI52: 25_19 | EJ52: LOPUT | EK52: 14 | EL52: 1 | EN52: 11187 | EO52: 1
A53: =CONCATENATE(S53,"_",T53) -> 313_4 | B53: 1 | D53: =RANK(CL53,$CL$37:$CL$1740) -> 17 | E53: 17 | F53: =E53-D53 -> 0 | G53: =CL53 -> 14.18611111 | H53: =AZ53 -> 4.075 | I53: =BR53 -> 7.944444444 | J53: =CJ53 -> 2.166666667 | K53: =CM53 -> 1 | L53: =B53-K53 -> 0 | M53: =HYPERLINK(CT53,"Gmaps") -> Gmaps | N53: =IF(Y53>$K$6,"LOPUT","VÄHÄ") -> LOPUT | O53: =IF(S53<40,"Valta",IF(S53<100,"Kanta",IF(S53<1000,"Seutu",IF(S53>999,"Yhdys")))) -> Seutu | P53: Heinolantie, Urajärventie, Vääksyntie | Q53: Asikkala, Heinola | R53: Päijät-Häme | S53: 313 | T53: 4 | U53: 0 | V53: 4 | W53: 8732 | X53: 8732 | Y53: 1708.238204 | Z53: 150.6944572 | AA53: 2420.097114 | AB53: 1364 (25 %), 1547 (66 %), 3765 (9 %) | AC53: 50 (8 %), 60 (29 %), 80 (64 %) | AD53: Ib (100 %) | AE53: AB (33 %), PAB (67 %) | AF53: Y2 (100 %) | AG53: 2 | AH53: 7 | AI53: 0.1500930734 | AJ53: 70.91067339 | AN53: 0 | AO53: 0.005139921678 | AR53: =+IF(Y53>=$K$6,$F$5,($F$5/($K$6))*Y53) -> 9 | AS53: 3 | AU53: 3 | AV53: =+IF(AS53>=$L$15,$J$15,IF(AS53<($L$15),AS53*($J$15/($L$15)),)) -> 0.225 | AW53: 1128 | AX53: =+IF(AW53>=$L$11,$J$11,IF(AW53<($L$11),AW53*($J$11/($L$11)),)) -> 3 | AY53: =SUM(AR53,AV53,AX53) -> 12.225 | AZ53: =+AY53*$H$5 -> 4.075 | BA53: =+IF(Z53=0,0,IF(Z53>$K$7,$F$9,($F$9/$K$7)*Z53)) -> 8 | BB53: =IF(CZ53>0,$F$10,0) -> 2 | BC53: =IF(DA53>0,$F$11,0) -> 1 | BD53: =IF(DB53>0,$F$12,0) -> 1 | BE53: =IF(DC53>0,$F$13,0) -> 1 | BF53: =IF(DE53>0,$F$14,IF(DD53>0,$F$14/2,0)) -> 2 | BG53: =+IF(DF53>=$L$23,$J$23,IF(DF53<($L$23),DF53*($J$23/($L$23)),)) -> 0.5 | BH53: =+IF(DG53>=$L$24,$J$24,IF(DG53<($L$24),DG53*($J$24/($L$24)),)) -> 0.5 | BI53: =+IF(DH53>=$L$25,$J$25,IF(DH53<($L$25),DH53*($J$25/($L$25)),)) -> 0 | BJ53: =+IF(DI53>=$L$26,$J$26,IF(DI53<($L$26),DI53*($J$26/($L$26)),)) -> 0.3333333333 | BK53: =IF(DJ53>0,$F$16,0) -> 2 | BL53: =+IF(DM53>=$L$29,$J$29,IF(DM53<($L$29),DM53*($J$29/($L$29)),)) -> 2 | BM53: =IF(EA53>100000,$F$18,IF(EA53>0,$F$18/2,0)) -> 0.5 | BN53: =IF(DX53>0,$F$19,0) -> 2 | BO53: 15.43287671 | BP53: =+IF(BO53>=$L$19,$J$19,IF(BO53<($L$19),BO53*($J$19/($L$19)),)) -> 1 | BQ53: =SUM(BA53+BB53+BC53+BD53+BE53+BF53+BK53+BG53+BH53+BI53+BJ53+BL53+BM53+BN53+BP53) -> 23.83333333 | BR53: =+BQ53*$H$9 -> 7.944444444 | BS53: 0 | BT53: =BS53/X53 -> 0 | BU53: =IF(BT53>0,IF(BT53>=$CY$28,$CW$28,IF(BT53<$CY$28,$CW$29,0)),0) -> 0 | BV53: 8378.999415 | BW53: =BV53/X53 -> 0.9595739138 | BX53: =IF(BW53,$F$23,0) -> 1 | BY53: =IF(DO53>0,$F$24,0) -> 1 | BZ53: 0 | CA53: =BZ53/X53 -> 0 | CB53: =+IF(CA53>=$K$4,$F$25,0) -> 0 | CC53: 19.22640861 | CD53: =IF(CC53>0,IF(CC53>=100,$F$26,IF(CC53<100,$F$26/2)),0) -> 0.5 | CE53: =SUM(DS53) -> 1 | CF53: =IF(DU53>0,$F$28,0) -> 1 | CG53: =IF(DT53>0,$F$29,0) -> 1 | CH53: =IF(DW53>0,$F$30,0) -> 1 | CI53: =SUM(BU53,BX53,CD53,BY53,CB53,CE53,CF53,CG53,CH53) -> 6.5 | CJ53: =+CI53*$H$22 -> 2.166666667 | CK53: =SUM(AY53,BQ53,CI53) -> 42.55833333 | CL53: =SUM(AZ53,BR53,CJ53) -> 14.18611111 | CM53: =IF(D53<($Z$13*1704),1,IF(D53<(($Z$14+$Z$13)*1704),2,IF(D53<(($Z$15+$Z$13+$Z$14)*1704),3,4))) -> 1 | CN53: =VLOOKUP(A53,Taul1!$F$6:$G$1718,2,FALSE) -> 3 | CT53: https://www.google.com/maps/@61.13209626,25.78725457,3a,75y,90t/data=!3m3!1e1!3m1!2e0 | CW53: 0 | CX53: 0 | CY53: 1 | CZ53: =SUM(CW53:CY53) -> 1 | DA53: 3 | DB53: 23 | DC53: 1 | DD53: 43 | DE53: 4 | DF53: 830 | DG53: 158 | DH53: 0 | DI53: 20 | DJ53: 3 | DM53: 30 | DN53: 0 | DO53: 8725.102395 | DQ53: =+IF(AA53>$K$8,$F$27/2,0) -> 1 | DR53: =+IF(AA53/Y53>1.5,$F$27/2,0) -> 0 | DS53: =SUM(DQ53:DR53) -> 1 | DT53: 3 | DU53: 1 | DW53: 1 | DX53: 5 | DY53: 0 | DZ53: 0.005139921678 | EA53: 44888 | EC53: =IFERROR(VLOOKUP(A53,$EI$37:$EK$1748,2,FALSE),"--") -> LOPUT | ED53: =IFERROR(VLOOKUP(A53,$EI$37:$EK$1748,3,FALSE),"--") -> 18 | EE53: =IFERROR(ED53-D53,"--") -> 1 | EF53: =IFERROR(VLOOKUP(A53,$EI$37:$EL$1748,4,FALSE),"--") -> 1 | EG53: =IFERROR(EF53-K53,"--") -> 0 | EI53: 54_11 | EJ53: LOPUT | EK53: 47 | EL53: 1 | EN53: 11505 | EO53: 1
A54: =CONCATENATE(S54,"_",T54) -> 133_1 | B54: 1 | D54: =RANK(CL54,$CL$37:$CL$1740) -> 18 | E54: 18 | F54: =E54-D54 -> 0 | G54: =CL54 -> 14.15131659 | H54: =AZ54 -> 5 | I54: =BR54 -> 7.317983257 | J54: =CJ54 -> 1.833333333 | K54: =CM54 -> 1 | L54: =B54-K54 -> 0 | M54: =HYPERLINK(CT54,"Gmaps") -> Gmaps | N54: =IF(Y54>$K$6,"LOPUT","VÄHÄ") -> LOPUT | O54: =IF(S54<40,"Valta",IF(S54<100,"Kanta",IF(S54<1000,"Seutu",IF(S54>999,"Yhdys")))) -> Seutu | P54: Helsingintie, Vihtijärventie | Q54: Karkkila | R54: Uusimaa | S54: 133 | T54: 1 | U54: 0 | V54: 1 | W54: 6490 | X54: 6490 | Y54: 2077 | Z54: 126 | AA54: 2460 | AB54: 2077 (100 %) | AC54: 50 (37 %), 60 (27 %), 80 (37 %) | AD54: Ib (100 %) | AE54: AB (100 %) | AF54: Y2 (100 %) | AG54: 4 | AH54: 5 | AI54: 0.04622496148 | AJ54: 43 | AN54: 0 | AO54: 0.4442425976 | AR54: =+IF(Y54>=$K$6,$F$5,($F$5/($K$6))*Y54) -> 9 | AS54: 83 | AU54: 83 | AV54: =+IF(AS54>=$L$15,$J$15,IF(AS54<($L$15),AS54*($J$15/($L$15)),)) -> 3 | AW54: 2135 | AX54: =+IF(AW54>=$L$11,$J$11,IF(AW54<($L$11),AW54*($J$11/($L$11)),)) -> 3 | AY54: =SUM(AR54,AV54,AX54) -> 15 | AZ54: =+AY54*$H$5 -> 5 | BA54: =+IF(Z54=0,0,IF(Z54>$K$7,$F$9,($F$9/$K$7)*Z54)) -> 8 | BB54: =IF(CZ54>0,$F$10,0) -> 2 | BC54: =IF(DA54>0,$F$11,0) -> 1 | BD54: =IF(DB54>0,$F$12,0) -> 1 | BE54: =IF(DC54>0,$F$13,0) -> 1 | BF54: =IF(DE54>0,$F$14,IF(DD54>0,$F$14/2,0)) -> 2 | BG54: =+IF(DF54>=$L$23,$J$23,IF(DF54<($L$23),DF54*($J$23/($L$23)),)) -> 0.1483333333 | BH54: =+IF(DG54>=$L$24,$J$24,IF(DG54<($L$24),DG54*($J$24/($L$24)),)) -> 0.03 | BI54: =+IF(DH54>=$L$25,$J$25,IF(DH54<($L$25),DH54*($J$25/($L$25)),)) -> 0 | BJ54: =+IF(DI54>=$L$26,$J$26,IF(DI54<($L$26),DI54*($J$26/($L$26)),)) -> 0 | BK54: =IF(DJ54>0,$F$16,0) -> 2 | BL54: =+IF(DM54>=$L$29,$J$29,IF(DM54<($L$29),DM54*($J$29/($L$29)),)) -> 2 | BM54: =IF(EA54>100000,$F$18,IF(EA54>0,$F$18/2,0)) -> 0.5 | BN54: =IF(DX54>0,$F$19,0) -> 2 | BO54: 2.756164384 | BP54: =+IF(BO54>=$L$19,$J$19,IF(BO54<($L$19),BO54*($J$19/($L$19)),)) -> 0.2756164384 | BQ54: =SUM(BA54+BB54+BC54+BD54+BE54+BF54+BK54+BG54+BH54+BI54+BJ54+BL54+BM54+BN54+BP54) -> 21.95394977 | BR54: =+BQ54*$H$9 -> 7.317983257 | BS54: 1811.120619 | BT54: =BS54/X54 -> 0.2790632695 | BU54: =IF(BT54>0,IF(BT54>=$CY$28,$CW$28,IF(BT54<$CY$28,$CW$29,0)),0) -> 0.5 | BV54: 6435.1 | BW54: =BV54/X54 -> 0.9915408321 | BX54: =IF(BW54,$F$23,0) -> 1 | BY54: =IF(DO54>0,$F$24,0) -> 1 | BZ54: 2985.489915 | CA54: =BZ54/X54 -> 0.4600138545 | CB54: =+IF(CA54>=$K$4,$F$25,0) -> 0 | CC54: 208.1639445 | CD54: =IF(CC54>0,IF(CC54>=100,$F$26,IF(CC54<100,$F$26/2)),0) -> 1 | CE54: =SUM(DS54) -> 1 | CF54: =IF(DU54>0,$F$28,0) -> 0 | CG54: =IF(DT54>0,$F$29,0) -> 0 | CH54: =IF(DW54>0,$F$30,0) -> 1 | CI54: =SUM(BU54,BX54,CD54,BY54,CB54,CE54,CF54,CG54,CH54) -> 5.5 | CJ54: =+CI54*$H$22 -> 1.833333333 | CK54: =SUM(AY54,BQ54,CI54) -> 42.45394977 | CL54: =SUM(AZ54,BR54,CJ54) -> 14.15131659 | CM54: =IF(D54<($Z$13*1704),1,IF(D54<(($Z$14+$Z$13)*1704),2,IF(D54<(($Z$15+$Z$13+$Z$14)*1704),3,4))) -> 1 | CN54: =VLOOKUP(A54,Taul1!$F$6:$G$1718,2,FALSE) -> 1 | CT54: https://www.google.com/maps/@60.53336467,24.23563968,3a,75y,90t/data=!3m3!1e1!3m1!2e0 | CW54: 1 | CX54: 0 | CY54: 1 | CZ54: =SUM(CW54:CY54) -> 2 | DA54: 1 | DB54: 4 | DC54: 4 | DD54: 5 | DE54: 3 | DF54: 89 | DG54: 6 | DH54: 0 | DI54: 0 | DJ54: 1 | DM54: 4 | DN54: 0 | DO54: 6520.675658 | DQ54: =+IF(AA54>$K$8,$F$27/2,0) -> 1 | DR54: =+IF(AA54/Y54>1.5,$F$27/2,0) -> 0 | DS54: =SUM(DQ54:DR54) -> 1 | DT54: 0 | DU54: 0 | DW54: 1 | DX54: 2 | DY54: 0 | DZ54: 0.4442425976 | EA54: 10088 | EC54: =IFERROR(VLOOKUP(A54,$EI$37:$EK$1748,2,FALSE),"--") -> LOPUT | ED54: =IFERROR(VLOOKUP(A54,$EI$37:$EK$1748,3,FALSE),"--") -> 20 | EE54: =IFERROR(ED54-D54,"--") -> 2 | EF54: =IFERROR(VLOOKUP(A54,$EI$37:$EL$1748,4,FALSE),"--") -> 1 | EG54: =IFERROR(EF54-K54,"--") -> 0 | EI54: 10_18 | EJ54: LOPUT | EK54: 23 | EL54: 1 | EN54: 11433 | EO54: 1
A55: =CONCATENATE(S55,"_",T55) -> 148_3 | B55: 1 | D55: =RANK(CL55,$CL$37:$CL$1740) -> 19 | E55: 19 | F55: =E55-D55 -> 0 | G55: =CL55 -> 14.14979452 | H55: =AZ55 -> 5 | I55: =BR55 -> 6.983127854 | J55: =CJ55 -> 2.166666667 | K55: =CM55 -> 1 | L55: =B55-K55 -> 0 | M55: =HYPERLINK(CT55,"Gmaps") -> Gmaps | N55: =IF(Y55>$K$6,"LOPUT","VÄHÄ") -> LOPUT | O55: =IF(S55<40,"Valta",IF(S55<100,"Kanta",IF(S55<1000,"Seutu",IF(S55>999,"Yhdys")))) -> Seutu | P55: Keravantie | Q55: Kerava, Sipoo | R55: Uusimaa | S55: 148 | T55: 3 | U55: 0 | V55: 3 | W55: 6891 | X55: 6891 | Y55: 6825.264693 | Z55: 875.5555072 | AA55: 7521.566826 | AB55: 10909 (22 %), 5689 (78 %) | AC55: 60 (54 %), 80 (46 %) | AD55: Is (100 %) | AE55: AB (100 %) | AF55: Y2 (100 %) | AG55: 5 | AH55: 18 | AI55: 0.1448467967 | AJ55: 484.9551589 | AM55: x | AN55: 0 | AO55: 0.2167641691 | AR55: =+IF(Y55>=$K$6,$F$5,($F$5/($K$6))*Y55) -> 9 | AS55: 439 | AU55: 21 | AV55: =+IF(AS55>=$L$15,$J$15,IF(AS55<($L$15),AS55*($J$15/($L$15)),)) -> 3 | AW55: 6187 | AX55: =+IF(AW55>=$L$11,$J$11,IF(AW55<($L$11),AW55*($J$11/($L$11)),)) -> 3 | AY55: =SUM(AR55,AV55,AX55) -> 15 | AZ55: =+AY55*$H$5 -> 5 | BA55: =+IF(Z55=0,0,IF(Z55>$K$7,$F$9,($F$9/$K$7)*Z55)) -> 8 | BB55: =IF(CZ55>0,$F$10,0) -> 2 | BC55: =IF(DA55>0,$F$11,0) -> 1 | BD55: =IF(DB55>0,$F$12,0) -> 0 | BE55: =IF(DC55>0,$F$13,0) -> 0 | BF55: =IF(DE55>0,$F$14,IF(DD55>0,$F$14/2,0)) -> 2 | BG55: =+IF(DF55>=$L$23,$J$23,IF(DF55<($L$23),DF55*($J$23/($L$23)),)) -> 0.345 | BH55: =+IF(DG55>=$L$24,$J$24,IF(DG55<($L$24),DG55*($J$24/($L$24)),)) -> 0.02 | BI55: =+IF(DH55>=$L$25,$J$25,IF(DH55<($L$25),DH55*($J$25/($L$25)),)) -> 0 | BJ55: =+IF(DI55>=$L$26,$J$26,IF(DI55<($L$26),DI55*($J$26/($L$26)),)) -> 0 | BK55: =IF(DJ55>0,$F$16,0) -> 2 | BL55: =+IF(DM55>=$L$29,$J$29,IF(DM55<($L$29),DM55*($J$29/($L$29)),)) -> 2 | BM55: =IF(EA55>100000,$F$18,IF(EA55>0,$F$18/2,0)) -> 1 | BN55: =IF(DX55>0,$F$19,0) -> 2 | BO55: 5.843835616 | BP55: =+IF(BO55>=$L$19,$J$19,IF(BO55<($L$19),BO55*($J$19/($L$19)),)) -> 0.5843835616 | BQ55: =SUM(BA55+BB55+BC55+BD55+BE55+BF55+BK55+BG55+BH55+BI55+BJ55+BL55+BM55+BN55+BP55) -> 20.94938356 | BR55: =+BQ55*$H$9 -> 6.983127854 | BS55: 3663.072866 | BT55: =BS55/X55 -> 0.5315734822 | BU55: =IF(BT55>0,IF(BT55>=$CY$28,$CW$28,IF(BT55<$CY$28,$CW$29,0)),0) -> 1 | BV55: 6655.136493 | BW55: =BV55/X55 -> 0.9657722381 | BX55: =IF(BW55,$F$23,0) -> 1 | BY55: =IF(DO55>0,$F$24,0) -> 1 | BZ55: 0 | CA55: =BZ55/X55 -> 0 | CB55: =+IF(CA55>=$K$4,$F$25,0) -> 0 | CC55: 61.38122188 | CD55: =IF(CC55>0,IF(CC55>=100,$F$26,IF(CC55<100,$F$26/2)),0) -> 0.5 | CE55: =SUM(DS55) -> 1 | CF55: =IF(DU55>0,$F$28,0) -> 0 | CG55: =IF(DT55>0,$F$29,0) -> 1 | CH55: =IF(DW55>0,$F$30,0) -> 1 | CI55: =SUM(BU55,BX55,CD55,BY55,CB55,CE55,CF55,CG55,CH55) -> 6.5 | CJ55: =+CI55*$H$22 -> 2.166666667 | CK55: =SUM(AY55,BQ55,CI55) -> 42.44938356 | CL55: =SUM(AZ55,BR55,CJ55) -> 14.14979452 | CM55: =IF(D55<($Z$13*1704),1,IF(D55<(($Z$14+$Z$13)*1704),2,IF(D55<(($Z$15+$Z$13+$Z$14)*1704),3,4))) -> 1 | CN55: =VLOOKUP(A55,Taul1!$F$6:$G$1718,2,FALSE) -> 2 | CT55: https://www.google.com/maps/@60.38784404,25.11907106,3a,75y,90t/data=!3m3!1e1!3m1!2e0 | CW55: 1 | CX55: 0 | CY55: 1 | CZ55: =SUM(CW55:CY55) -> 2 | DA55: 2 | DB55: 0 | DC55: 0 | DD55: 12 | DE55: 5 | DF55: 207 | DG55: 4 | DH55: 0 | DI55: 0 | DJ55: 1 | DM55: 20 | DN55: 6 | DO55: 6885.487094 | DQ55: =+IF(AA55>$K$8,$F$27/2,0) -> 1 | DR55: =+IF(AA55/Y55>1.5,$F$27/2,0) -> 0 | DS55: =SUM(DQ55:DR55) -> 1 | DT55: 1 | DU55: 0 | DW55: 1 | DX55: 6 | DY55: 0 | DZ55: 0.2167641691 | EA55: 307136 | EC55: =IFERROR(VLOOKUP(A55,$EI$37:$EK$1748,2,FALSE),"--") -> LOPUT | ED55: =IFERROR(VLOOKUP(A55,$EI$37:$EK$1748,3,FALSE),"--") -> 48 | EE55: =IFERROR(ED55-D55,"--") -> 29 | EF55: =IFERROR(VLOOKUP(A55,$EI$37:$EL$1748,4,FALSE),"--") -> 1 | EG55: =IFERROR(EF55-K55,"--") -> 0 | EI55: 12_224 | EJ55: LOPUT | EK55: 19 | EL55: 1 | EN55: 146 | EO55: 2
A56: =CONCATENATE(S56,"_",T56) -> 111_2 | B56: 1 | D56: =RANK(CL56,$CL$37:$CL$1740) -> 20 | E56: 20 | F56: =E56-D56 -> 0 | G56: =CL56 -> 14.08531202 | H56: =AZ56 -> 4.65 | I56: =BR56 -> 6.768645358 | J56: =CJ56 -> 2.666666667 | K56: =CM56 -> 1 | L56: =B56-K56 -> 0 | M56: =HYPERLINK(CT56,"Gmaps") -> Gmaps | N56: =IF(Y56>$K$6,"LOPUT","VÄHÄ") -> LOPUT | O56: =IF(S56<40,"Valta",IF(S56<100,"Kanta",IF(S56<1000,"Seutu",IF(S56>999,"Yhdys")))) -> Seutu | P56: Turuntie | Q56: Raasepori | R56: Uusimaa | S56: 111 | T56: 2 | U56: 0 | V56: 2 | W56: 8477 | X56: 8477 | Y56: 4262.573434 | Z56: 195.3629822 | AA56: 5390.778813 | AB56: 4639 (89 %), 1273 (11 %) | AC56: 50 (2 %), 80 (98 %) | AD56: Is (100 %) | AE56: AB (100 %) | AF56: Y2 (100 %) | AG56: 5 | AH56: 14 | AI56: 0.0935453695 | AJ56: 49.09236758 | AN56: 0 | AO56: 0.4341151335 | AR56: =+IF(Y56>=$K$6,$F$5,($F$5/($K$6))*Y56) -> 9 | AS56: 26 | AU56: 26 | AV56: =+IF(AS56>=$L$15,$J$15,IF(AS56<($L$15),AS56*($J$15/($L$15)),)) -> 1.95 | AW56: 1358 | AX56: =+IF(AW56>=$L$11,$J$11,IF(AW56<($L$11),AW56*($J$11/($L$11)),)) -> 3 | AY56: =SUM(AR56,AV56,AX56) -> 13.95 | AZ56: =+AY56*$H$5 -> 4.65 | BA56: =+IF(Z56=0,0,IF(Z56>$K$7,$F$9,($F$9/$K$7)*Z56)) -> 8 | BB56: =IF(CZ56>0,$F$10,0) -> 2 | BC56: =IF(DA56>0,$F$11,0) -> 0 | BD56: =IF(DB56>0,$F$12,0) -> 1 | BE56: =IF(DC56>0,$F$13,0) -> 0 | BF56: =IF(DE56>0,$F$14,IF(DD56>0,$F$14/2,0)) -> 2 | BG56: =+IF(DF56>=$L$23,$J$23,IF(DF56<($L$23),DF56*($J$23/($L$23)),)) -> 0.3333333333 | BH56: =+IF(DG56>=$L$24,$J$24,IF(DG56<($L$24),DG56*($J$24/($L$24)),)) -> 0.5 | BI56: =+IF(DH56>=$L$25,$J$25,IF(DH56<($L$25),DH56*($J$25/($L$25)),)) -> 0 | BJ56: =+IF(DI56>=$L$26,$J$26,IF(DI56<($L$26),DI56*($J$26/($L$26)),)) -> 0 | BK56: =IF(DJ56>0,$F$16,0) -> 2 | BL56: =+IF(DM56>=$L$29,$J$29,IF(DM56<($L$29),DM56*($J$29/($L$29)),)) -> 2 | BM56: =IF(EA56>100000,$F$18,IF(EA56>0,$F$18/2,0)) -> 0 | BN56: =IF(DX56>0,$F$19,0) -> 2 | BO56: 4.726027397 | BP56: =+IF(BO56>=$L$19,$J$19,IF(BO56<($L$19),BO56*($J$19/($L$19)),)) -> 0.4726027397 | BQ56: =SUM(BA56+BB56+BC56+BD56+BE56+BF56+BK56+BG56+BH56+BI56+BJ56+BL56+BM56+BN56+BP56) -> 20.30593607 | BR56: =+BQ56*$H$9 -> 6.768645358 | BS56: 5977.380987 | BT56: =BS56/X56 -> 0.7051292895 | BU56: =IF(BT56>0,IF(BT56>=$CY$28,$CW$28,IF(BT56<$CY$28,$CW$29,0)),0) -> 1 | BV56: 8468.520115 | BW56: =BV56/X56 -> 0.9989996597 | BX56: =IF(BW56,$F$23,0) -> 1 | BY56: =IF(DO56>0,$F$24,0) -> 1 | BZ56: 0 | CA56: =BZ56/X56 -> 0 | CB56: =+IF(CA56>=$K$4,$F$25,0) -> 0 | CC56: 195.2235461 | CD56: =IF(CC56>0,IF(CC56>=100,$F$26,IF(CC56<100,$F$26/2)),0) -> 1 | CE56: =SUM(DS56) -> 1 | CF56: =IF(DU56>0,$F$28,0) -> 1 | CG56: =IF(DT56>0,$F$29,0) -> 1 | CH56: =IF(DW56>0,$F$30,0) -> 1 | CI56: =SUM(BU56,BX56,CD56,BY56,CB56,CE56,CF56,CG56,CH56) -> 8 | CJ56: =+CI56*$H$22 -> 2.666666667 | CK56: =SUM(AY56,BQ56,CI56) -> 42.25593607 | CL56: =SUM(AZ56,BR56,CJ56) -> 14.08531202 | CM56: =IF(D56<($Z$13*1704),1,IF(D56<(($Z$14+$Z$13)*1704),2,IF(D56<(($Z$15+$Z$13+$Z$14)*1704),3,4))) -> 1 | CN56: =VLOOKUP(A56,Taul1!$F$6:$G$1718,2,FALSE) -> 2 | CT56: https://www.google.com/maps/@60.08187535,23.66174451,3a,75y,90t/data=!3m3!1e1!3m1!2e0 | CW56: 1 | CX56: 1 | CY56: 1 | CZ56: =SUM(CW56:CY56) -> 3 | DA56: 0 | DB56: 1 | DC56: 0 | DD56: 5 | DE56: 1 | DF56: 200 | DG56: 115 | DH56: 0 | DI56: 0 | DJ56: 2 | DM56: 6 | DN56: 0 | DO56: 8468.520115 | DQ56: =+IF(AA56>$K$8,$F$27/2,0) -> 1 | DR56: =+IF(AA56/Y56>1.5,$F$27/2,0) -> 0 | DS56: =SUM(DQ56:DR56) -> 1 | DT56: 3 | DU56: 1 | DW56: 1 | DX56: 3 | DY56: 0 | DZ56: 0.4341151335 | EA56: 0 | EC56: =IFERROR(VLOOKUP(A56,$EI$37:$EK$1748,2,FALSE),"--") -> LOPUT | ED56: =IFERROR(VLOOKUP(A56,$EI$37:$EK$1748,3,FALSE),"--") -> 13 | EE56: =IFERROR(ED56-D56,"--") -> -7 | EF56: =IFERROR(VLOOKUP(A56,$EI$37:$EL$1748,4,FALSE),"--") -> 1 | EG56: =IFERROR(EF56-K56,"--") -> 0 | EI56: 170_11 | EJ56: LOPUT | EK56: 22 | EL56: 1 | EN56: 174 | EO56: 5
A57: =CONCATENATE(S57,"_",T57) -> 1452_1 | B57: 1 | D57: =RANK(CL57,$CL$37:$CL$1740) -> 21 | E57: 21 | F57: =E57-D57 -> 0 | G57: =CL57 -> 14.08312785 | H57: =AZ57 -> 5 | I57: =BR57 -> 6.749794521 | J57: =CJ57 -> 2.333333333 | K57: =CM57 -> 1 | L57: =B57-K57 -> 0 | M57: =HYPERLINK(CT57,"Gmaps") -> Gmaps | N57: =IF(Y57>$K$6,"LOPUT","VÄHÄ") -> LOPUT | O57: =IF(S57<40,"Valta",IF(S57<100,"Kanta",IF(S57<1000,"Seutu",IF(S57>999,"Yhdys")))) -> Yhdys | P57: Kartanoväylä, Vähänummentie | Q57: Järvenpää | R57: Uusimaa | S57: 1452 | T57: 1 | U57: 0 | V57: 1 | W57: 3610 | X57: 3610 | Y57: 8531.304709 | Z57: 546.6038781 | AA57: 8407.396122 | AB57: 7431 (30 %), 9001 (70 %) | AC57: 50 (25 %), 60 (75 %) | AD57: Is (100 %) | AE57: AB (100 %) | AF57: Y2 (100 %) | AG57: 4 | AH57: 18 | AI57: 0.05528749497 | AJ57: 171.5096953 | AN57: 0 | AO57: 0.7734261885 | AR57: =+IF(Y57>=$K$6,$F$5,($F$5/($K$6))*Y57) -> 9 | AS57: 109 | AU57: 88 | AV57: =+IF(AS57>=$L$15,$J$15,IF(AS57<($L$15),AS57*($J$15/($L$15)),)) -> 3 | AW57: 7609 | AX57: =+IF(AW57>=$L$11,$J$11,IF(AW57<($L$11),AW57*($J$11/($L$11)),)) -> 3 | AY57: =SUM(AR57,AV57,AX57) -> 15 | AZ57: =+AY57*$H$5 -> 5 | BA57: =+IF(Z57=0,0,IF(Z57>$K$7,$F$9,($F$9/$K$7)*Z57)) -> 8 | BB57: =IF(CZ57>0,$F$10,0) -> 2 | BC57: =IF(DA57>0,$F$11,0) -> 1 | BD57: =IF(DB57>0,$F$12,0) -> 0 | BE57: =IF(DC57>0,$F$13,0) -> 0 | BF57: =IF(DE57>0,$F$14,IF(DD57>0,$F$14/2,0)) -> 2 | BG57: =+IF(DF57>=$L$23,$J$23,IF(DF57<($L$23),DF57*($J$23/($L$23)),)) -> 0.21 | BH57: =+IF(DG57>=$L$24,$J$24,IF(DG57<($L$24),DG57*($J$24/($L$24)),)) -> 0.475 | BI57: =+IF(DH57>=$L$25,$J$25,IF(DH57<($L$25),DH57*($J$25/($L$25)),)) -> 0 | BJ57: =+IF(DI57>=$L$26,$J$26,IF(DI57<($L$26),DI57*($J$26/($L$26)),)) -> 0 | BK57: =IF(DJ57>0,$F$16,0) -> 2 | BL57: =+IF(DM57>=$L$29,$J$29,IF(DM57<($L$29),DM57*($J$29/($L$29)),)) -> 2 | BM57: =IF(EA57>100000,$F$18,IF(EA57>0,$F$18/2,0)) -> 0.5 | BN57: =IF(DX57>0,$F$19,0) -> 2 | BO57: 0.6438356164 | BP57: =+IF(BO57>=$L$19,$J$19,IF(BO57<($L$19),BO57*($J$19/($L$19)),)) -> 0.06438356164 | BQ57: =SUM(BA57+BB57+BC57+BD57+BE57+BF57+BK57+BG57+BH57+BI57+BJ57+BL57+BM57+BN57+BP57) -> 20.24938356 | BR57: =+BQ57*$H$9 -> 6.749794521 | BS57: 3602.617065 | BT57: =BS57/X57 -> 0.9979548657 | BU57: =IF(BT57>0,IF(BT57>=$CY$28,$CW$28,IF(BT57<$CY$28,$CW$29,0)),0) -> 1 | BV57: 3602.617065 | BW57: =BV57/X57 -> 0.9979548658 | BX57: =IF(BW57,$F$23,0) -> 1 | BY57: =IF(DO57>0,$F$24,0) -> 1 | BZ57: 0 | CA57: =BZ57/X57 -> 0 | CB57: =+IF(CA57>=$K$4,$F$25,0) -> 0 | CC57: 348.899723 | CD57: =IF(CC57>0,IF(CC57>=100,$F$26,IF(CC57<100,$F$26/2)),0) -> 1 | CE57: =SUM(DS57) -> 1 | CF57: =IF(DU57>0,$F$28,0) -> 0 | CG57: =IF(DT57>0,$F$29,0) -> 1 | CH57: =IF(DW57>0,$F$30,0) -> 1 | CI57: =SUM(BU57,BX57,CD57,BY57,CB57,CE57,CF57,CG57,CH57) -> 7 | CJ57: =+CI57*$H$22 -> 2.333333333 | CK57: =SUM(AY57,BQ57,CI57) -> 42.24938356 | CL57: =SUM(AZ57,BR57,CJ57) -> 14.08312785 | CM57: =IF(D57<($Z$13*1704),1,IF(D57<(($Z$14+$Z$13)*1704),2,IF(D57<(($Z$15+$Z$13+$Z$14)*1704),3,4))) -> 1 | CN57: =VLOOKUP(A57,Taul1!$F$6:$G$1718,2,FALSE) -> 2 | CT57: https://www.google.com/maps/@60.49441406,25.15185996,3a,75y,90t/data=!3m3!1e1!3m1!2e0 | CW57: 1 | CX57: 0 | CY57: 0 | CZ57: =SUM(CW57:CY57) -> 1 | DA57: 5 | DB57: 0 | DC57: 0 | DD57: 32 | DE57: 5 | DF57: 126 | DG57: 95 | DH57: 0 | DI57: 0 | DJ57: 3 | DM57: 36 | DN57: 0 | DO57: 3602.617065 | DQ57: =+IF(AA57>$K$8,$F$27/2,0) -> 1 | DR57: =+IF(AA57/Y57>1.5,$F$27/2,0) -> 0 | DS57: =SUM(DQ57:DR57) -> 1 | DT57: 1 | DU57: 0 | DW57: 1 | DX57: 5 | DY57: 0 | DZ57: 0.7734261885 | EA57: 57826 | EC57: =IFERROR(VLOOKUP(A57,$EI$37:$EK$1748,2,FALSE),"--") -> LOPUT | ED57: =IFERROR(VLOOKUP(A57,$EI$37:$EK$1748,3,FALSE),"--") -> 12 | EE57: =IFERROR(ED57-D57,"--") -> -9 | EF57: =IFERROR(VLOOKUP(A57,$EI$37:$EL$1748,4,FALSE),"--") -> 1 | EG57: =IFERROR(EF57-K57,"--") -> 0 | EI57: 1311_1 | EJ57: LOPUT | EK57: 35 | EL57: 1 | EN57: 2831 | EO57: 1
A58: =CONCATENATE(S58,"_",T58) -> 12_224 | B58: 1 | D58: =RANK(CL58,$CL$37:$CL$1740) -> 22 | E58: 22 | F58: =E58-D58 -> 0 | G58: =CL58 -> 14.06666667 | H58: =AZ58 -> 5 | I58: =BR58 -> 6.9 | J58: =CJ58 -> 2.166666667 | K58: =CM58 -> 1 | L58: =B58-K58 -> 0 | M58: =HYPERLINK(CT58,"Gmaps") -> Gmaps | N58: =IF(Y58>$K$6,"LOPUT","VÄHÄ") -> LOPUT | O58: =IF(S58<40,"Valta",IF(S58<100,"Kanta",IF(S58<1000,"Seutu",IF(S58>999,"Yhdys")))) -> Valta | P58: Arolantie, Valtatie 12 | Q58: Lahti, Orimattila | R58: Päijät-Häme | S58: 12 | T58: 224 | U58: 0 | V58: 224 | W58: 26205 | X58: 26205 | Y58: 9093.049036 | Z58: 1099.340775 | AA58: 10569.91967 | AB58: 13646 (1 %), 13646 (27 %), 11952 (10 %), 6558 (27 %), 6542 (35 %) | AC58: 60 (9 %), 80 (29 %), 100 (61 %) | AD58: Is (35 %), Ise (65 %) | AE58: AB (100 %) | AF58: Y1 (100 %) | AG58: 14 | AH58: 58 | AI58: 0.03269160915 | AJ58: 824.5178401 | AK58: Laajin Ternverkko | AL58: 1 | AM58: x | AN58: 0 | AO58: 0.009618251989 | AR58: =+IF(Y58>=$K$6,$F$5,($F$5/($K$6))*Y58) -> 9 | AS58: 123 | AU58: 123 | AV58: =+IF(AS58>=$L$15,$J$15,IF(AS58<($L$15),AS58*($J$15/($L$15)),)) -> 3 | AW58: 9002 | AX58: =+IF(AW58>=$L$11,$J$11,IF(AW58<($L$11),AW58*($J$11/($L$11)),)) -> 3 | AY58: =SUM(AR58,AV58,AX58) -> 15 | AZ58: =+AY58*$H$5 -> 5 | BA58: =+IF(Z58=0,0,IF(Z58>$K$7,$F$9,($F$9/$K$7)*Z58)) -> 8 | BB58: =IF(CZ58>0,$F$10,0) -> 2 | BC58: =IF(DA58>0,$F$11,0) -> 1 | BD58: =IF(DB58>0,$F$12,0) -> 1 | BE58: =IF(DC58>0,$F$13,0) -> 0 | BF58: =IF(DE58>0,$F$14,IF(DD58>0,$F$14/2,0)) -> 2 | BG58: =+IF(DF58>=$L$23,$J$23,IF(DF58<($L$23),DF58*($J$23/($L$23)),)) -> 0.5 | BH58: =+IF(DG58>=$L$24,$J$24,IF(DG58<($L$24),DG58*($J$24/($L$24)),)) -> 0.5 | BI58: =+IF(DH58>=$L$25,$J$25,IF(DH58<($L$25),DH58*($J$25/($L$25)),)) -> 0 | BJ58: =+IF(DI58>=$L$26,$J$26,IF(DI58<($L$26),DI58*($J$26/($L$26)),)) -> 0.2 | BK58: =IF(DJ58>0,$F$16,0) -> 0 | BL58: =+IF(DM58>=$L$29,$J$29,IF(DM58<($L$29),DM58*($J$29/($L$29)),)) -> 2 | BM58: =IF(EA58>100000,$F$18,IF(EA58>0,$F$18/2,0)) -> 0.5 | BN58: =IF(DX58>0,$F$19,0) -> 2 | BO58: 50.89863014 | BP58: =+IF(BO58>=$L$19,$J$19,IF(BO58<($L$19),BO58*($J$19/($L$19)),)) -> 1 | BQ58: =SUM(BA58+BB58+BC58+BD58+BE58+BF58+BK58+BG58+BH58+BI58+BJ58+BL58+BM58+BN58+BP58) -> 20.7 | BR58: =+BQ58*$H$9 -> 6.9 | BS58: 11628.62113 | BT58: =BS58/X58 -> 0.443755815 | BU58: =IF(BT58>0,IF(BT58>=$CY$28,$CW$28,IF(BT58<$CY$28,$CW$29,0)),0) -> 0.5 | BV58: 23858.11058 | BW58: =BV58/X58 -> 0.9104411593 | BX58: =IF(BW58,$F$23,0) -> 1 | BY58: =IF(DO58>0,$F$24,0) -> 1 | BZ58: 0 | CA58: =BZ58/X58 -> 0 | CB58: =+IF(CA58>=$K$4,$F$25,0) -> 0 | CC58: 101.9468422 | CD58: =IF(CC58>0,IF(CC58>=100,$F$26,IF(CC58<100,$F$26/2)),0) -> 1 | CE58: =SUM(DS58) -> 1 | CF58: =IF(DU58>0,$F$28,0) -> 0 | CG58: =IF(DT58>0,$F$29,0) -> 1 | CH58: =IF(DW58>0,$F$30,0) -> 1 | CI58: =SUM(BU58,BX58,CD58,BY58,CB58,CE58,CF58,CG58,CH58) -> 6.5 | CJ58: =+CI58*$H$22 -> 2.166666667 | CK58: =SUM(AY58,BQ58,CI58) -> 42.2 | CL58: =SUM(AZ58,BR58,CJ58) -> 14.06666667 | CM58: =IF(D58<($Z$13*1704),1,IF(D58<(($Z$14+$Z$13)*1704),2,IF(D58<(($Z$15+$Z$13+$Z$14)*1704),3,4))) -> 1 | CN58: =VLOOKUP(A58,Taul1!$F$6:$G$1718,2,FALSE) -> 4 | CT58: https://www.google.com/maps/@60.97150602,25.71205311,3a,75y,90t/data=!3m3!1e1!3m1!2e0 | CW58: 1 | CX58: 1 | CY58: 1 | CZ58: =SUM(CW58:CY58) -> 3 | DA58: 2 | DB58: 19 | DC58: 0 | DD58: 80 | DE58: 3 | DF58: 617 | DG58: 620 | DH58: 0 | DI58: 12 | DJ58: 0 | DM58: 35 | DN58: 0 | DO58: 9635.607007 | DQ58: =+IF(AA58>$K$8,$F$27/2,0) -> 1 | DR58: =+IF(AA58/Y58>1.5,$F$27/2,0) -> 0 | DS58: =SUM(DQ58:DR58) -> 1 | DT58: 2 | DU58: 0 | DW58: 1 | DX58: 5 | DY58: 0 | DZ58: 0.009618251989 | EA58: 10800 | EC58: =IFERROR(VLOOKUP(A58,$EI$37:$EK$1748,2,FALSE),"--") -> LOPUT | ED58: =IFERROR(VLOOKUP(A58,$EI$37:$EK$1748,3,FALSE),"--") -> 19 | EE58: =IFERROR(ED58-D58,"--") -> -3 | EF58: =IFERROR(VLOOKUP(A58,$EI$37:$EL$1748,4,FALSE),"--") -> 1 | EG58: =IFERROR(EF58-K58,"--") -> 0 | EI58: 54_8 | EJ58: LOPUT | EK58: 34 | EL58: 1 | EN58: 13565 | EO58: 1
A59: =CONCATENATE(S59,"_",T59) -> 140_12 | B59: 1 | D59: =RANK(CL59,$CL$37:$CL$1740) -> 23 | E59: 23 | F59: =E59-D59 -> 0 | G59: =CL59 -> 14.03611111 | H59: =AZ59 -> 5 | I59: =BR59 -> 6.702777778 | J59: =CJ59 -> 2.333333333 | K59: =CM59 -> 1 | L59: =B59-K59 -> 0 | M59: =HYPERLINK(CT59,"Gmaps") -> Gmaps | N59: =IF(Y59>$K$6,"LOPUT","VÄHÄ") -> LOPUT | O59: =IF(S59<40,"Valta",IF(S59<100,"Kanta",IF(S59<1000,"Seutu",IF(S59>999,"Yhdys")))) -> Seutu | P59: Lahdentie | Q59: Mäntsälä | R59: Uusimaa | S59: 140 | T59: 12 | U59: 0 | V59: 12 | W59: 1910 | X59: 1910 | Y59: 8328.830366 | Z59: 358.9884817 | AA59: 9086.543979 | AB59: 9583 (76 %), 4295 (24 %) | AC59: 50 (96 %), 60 (4 %) | AD59: Is (99 %) | AE59: AB (99 %) | AF59: Y2 (99 %) | AG59: 2 | AH59: 7 | AI59: 0.3691045796 | AJ59: 80.09005236 | AN59: 0.9945888698 | AO59: 0.9945888698 | AR59: =+IF(Y59>=$K$6,$F$5,($F$5/($K$6))*Y59) -> 9 | AS59: 156 | AU59: 71 | AV59: =+IF(AS59>=$L$15,$J$15,IF(AS59<($L$15),AS59*($J$15/($L$15)),)) -> 3 | AW59: 3701 | AX59: =+IF(AW59>=$L$11,$J$11,IF(AW59<($L$11),AW59*($J$11/($L$11)),)) -> 3 | AY59: =SUM(AR59,AV59,AX59) -> 15 | AZ59: =+AY59*$H$5 -> 5 | BA59: =+IF(Z59=0,0,IF(Z59>$K$7,$F$9,($F$9/$K$7)*Z59)) -> 8 | BB59: =IF(CZ59>0,$F$10,0) -> 2 | BC59: =IF(DA59>0,$F$11,0) -> 0 | BD59: =IF(DB59>0,$F$12,0) -> 1 | BE59: =IF(DC59>0,$F$13,0) -> 0 | BF59: =IF(DE59>0,$F$14,IF(DD59>0,$F$14/2,0)) -> 2 | BG59: =+IF(DF59>=$L$23,$J$23,IF(DF59<($L$23),DF59*($J$23/($L$23)),)) -> 0.08833333333 | BH59: =+IF(DG59>=$L$24,$J$24,IF(DG59<($L$24),DG59*($J$24/($L$24)),)) -> 0.02 | BI59: =+IF(DH59>=$L$25,$J$25,IF(DH59<($L$25),DH59*($J$25/($L$25)),)) -> 0 | BJ59: =+IF(DI59>=$L$26,$J$26,IF(DI59<($L$26),DI59*($J$26/($L$26)),)) -> 0 | BK59: =IF(DJ59>0,$F$16,0) -> 2 | BL59: =+IF(DM59>=$L$29,$J$29,IF(DM59<($L$29),DM59*($J$29/($L$29)),)) -> 2 | BM59: =IF(EA59>100000,$F$18,IF(EA59>0,$F$18/2,0)) -> 0 | BN59: =IF(DX59>0,$F$19,0) -> 2 | BO59: 18.83287671 | BP59: =+IF(BO59>=$L$19,$J$19,IF(BO59<($L$19),BO59*($J$19/($L$19)),)) -> 1 | BQ59: =SUM(BA59+BB59+BC59+BD59+BE59+BF59+BK59+BG59+BH59+BI59+BJ59+BL59+BM59+BN59+BP59) -> 20.10833333 | BR59: =+BQ59*$H$9 -> 6.702777778 | BS59: 1899.664741 | BT59: =BS59/X59 -> 0.9945888698 | BU59: =IF(BT59>0,IF(BT59>=$CY$28,$CW$28,IF(BT59<$CY$28,$CW$29,0)),0) -> 1 | BV59: 1899.664741 | BW59: =BV59/X59 -> 0.9945888698 | BX59: =IF(BW59,$F$23,0) -> 1 | BY59: =IF(DO59>0,$F$24,0) -> 1 | BZ59: 1830.189483 | CA59: =BZ59/X59 -> 0.958214389 | CB59: =+IF(CA59>=$K$4,$F$25,0) -> 1 | CC59: 1450.575916 | CD59: =IF(CC59>0,IF(CC59>=100,$F$26,IF(CC59<100,$F$26/2)),0) -> 1 | CE59: =SUM(DS59) -> 1 | CF59: =IF(DU59>0,$F$28,0) -> 0 | CG59: =IF(DT59>0,$F$29,0) -> 0 | CH59: =IF(DW59>0,$F$30,0) -> 1 | CI59: =SUM(BU59,BX59,CD59,BY59,CB59,CE59,CF59,CG59,CH59) -> 7 | CJ59: =+CI59*$H$22 -> 2.333333333 | CK59: =SUM(AY59,BQ59,CI59) -> 42.10833333 | CL59: =SUM(AZ59,BR59,CJ59) -> 14.03611111 | CM59: =IF(D59<($Z$13*1704),1,IF(D59<(($Z$14+$Z$13)*1704),2,IF(D59<(($Z$15+$Z$13+$Z$14)*1704),3,4))) -> 1 | CN59: =VLOOKUP(A59,Taul1!$F$6:$G$1718,2,FALSE) -> 2 | CT59: https://www.google.com/maps/@60.62509869,25.29501092,3a,75y,90t/data=!3m3!1e1!3m1!2e0 | CW59: 1 | CX59: 0 | CY59: 1 | CZ59: =SUM(CW59:CY59) -> 2 | DA59: 0 | DB59: 1 | DC59: 0 | DD59: 66 | DE59: 1 | DF59: 53 | DG59: 4 | DH59: 0 | DI59: 0 | DJ59: 2 | DM59: 8 | DN59: 0 | DO59: 1899.664741 | DQ59: =+IF(AA59>$K$8,$F$27/2,0) -> 1 | DR59: =+IF(AA59/Y59>1.5,$F$27/2,0) -> 0 | DS59: =SUM(DQ59:DR59) -> 1 | DT59: 0 | DU59: 0 | DW59: 1 | DX59: 4 | DY59: 0.9945888698 | DZ59: 0.9945888698 | EA59: 0 | EC59: =IFERROR(VLOOKUP(A59,$EI$37:$EK$1748,2,FALSE),"--") -> LOPUT | ED59: =IFERROR(VLOOKUP(A59,$EI$37:$EK$1748,3,FALSE),"--") -> 37 | EE59: =IFERROR(ED59-D59,"--") -> 14 | EF59: =IFERROR(VLOOKUP(A59,$EI$37:$EL$1748,4,FALSE),"--") -> 1 | EG59: =IFERROR(EF59-K59,"--") -> 0 | EI59: 51_14 | EJ59: LOPUT | EK59: 27 | EL59: 1 | EN59: 1701 | EO59: 1
A60: =CONCATENATE(S60,"_",T60) -> 3051_1 | B60: 1 | D60: =RANK(CL60,$CL$37:$CL$1740) -> 24 | E60: 24 | F60: =E60-D60 -> 0 | G60: =CL60 -> 14.0302968 | H60: =AZ60 -> 5 | I60: =BR60 -> 6.69696347 | J60: =CJ60 -> 2.333333333 | K60: =CM60 -> 1 | L60: =B60-K60 -> 0 | M60: =HYPERLINK(CT60,"Gmaps") -> Gmaps | N60: =IF(Y60>$K$6,"LOPUT","VÄHÄ") -> LOPUT | O60: =IF(S60<40,"Valta",IF(S60<100,"Kanta",IF(S60<1000,"Seutu",IF(S60>999,"Yhdys")))) -> Yhdys | P60: Hattulantie | Q60: Hattula | R60: Kanta-Häme | S60: 3051 | T60: 1 | U60: 0 | V60: 1 | W60: 3346 | X60: 3346 | Y60: 1496.926181 | Z60: 66.62671847 | AA60: 1719.726539 | AB60: 805 (11 %), 925 (56 %), 2730 (32 %) | AC60: 40 (11 %), 50 (37 %), 60 (51 %) | AD60: I (8 %), Ic (24 %), II (67 %) | AE60: AB (100 %) | AF60: Y2 (100 %) | AG60: 2 | AH60: 3 | AI60: 0 | AJ60: 14.28541542 | AN60: 0.2360441285 | AO60: 0.7345762618 | AR60: =+IF(Y60>=$K$6,$F$5,($F$5/($K$6))*Y60) -> 9 | AS60: 111 | AU60: 111 | AV60: =+IF(AS60>=$L$15,$J$15,IF(AS60<($L$15),AS60*($J$15/($L$15)),)) -> 3 | AW60: 2089 | AX60: =+IF(AW60>=$L$11,$J$11,IF(AW60<($L$11),AW60*($J$11/($L$11)),)) -> 3 | AY60: =SUM(AR60,AV60,AX60) -> 15 | AZ60: =+AY60*$H$5 -> 5 | BA60: =+IF(Z60=0,0,IF(Z60>$K$7,$F$9,($F$9/$K$7)*Z60)) -> 8 | BB60: =IF(CZ60>0,$F$10,0) -> 0 | BC60: =IF(DA60>0,$F$11,0) -> 1 | BD60: =IF(DB60>0,$F$12,0) -> 1 | BE60: =IF(DC60>0,$F$13,0) -> 0 | BF60: =IF(DE60>0,$F$14,IF(DD60>0,$F$14/2,0)) -> 2 | BG60: =+IF(DF60>=$L$23,$J$23,IF(DF60<($L$23),DF60*($J$23/($L$23)),)) -> 0.5 | BH60: =+IF(DG60>=$L$24,$J$24,IF(DG60<($L$24),DG60*($J$24/($L$24)),)) -> 0.035 | BI60: =+IF(DH60>=$L$25,$J$25,IF(DH60<($L$25),DH60*($J$25/($L$25)),)) -> 0.5 | BJ60: =+IF(DI60>=$L$26,$J$26,IF(DI60<($L$26),DI60*($J$26/($L$26)),)) -> 0.5 | BK60: =IF(DJ60>0,$F$16,0) -> 2 | BL60: =+IF(DM60>=$L$29,$J$29,IF(DM60<($L$29),DM60*($J$29/($L$29)),)) -> 2 | BM60: =IF(EA60>100000,$F$18,IF(EA60>0,$F$18/2,0)) -> 0.5 | BN60: =IF(DX60>0,$F$19,0) -> 2 | BO60: 0.5589041096 | BP60: =+IF(BO60>=$L$19,$J$19,IF(BO60<($L$19),BO60*($J$19/($L$19)),)) -> 0.05589041096 | BQ60: =SUM(BA60+BB60+BC60+BD60+BE60+BF60+BK60+BG60+BH60+BI60+BJ60+BL60+BM60+BN60+BP60) -> 20.09089041 | BR60: =+BQ60*$H$9 -> 6.69696347 | BS60: 3340.310201 | BT60: =BS60/X60 -> 0.9982995222 | BU60: =IF(BT60>0,IF(BT60>=$CY$28,$CW$28,IF(BT60<$CY$28,$CW$29,0)),0) -> 1 | BV60: 3340.310201 | BW60: =BV60/X60 -> 0.9982995222 | BX60: =IF(BW60,$F$23,0) -> 1 | BY60: =IF(DO60>0,$F$24,0) -> 1 | BZ60: 1244.58152 | CA60: =BZ60/X60 -> 0.3719610042 | CB60: =+IF(CA60>=$K$4,$F$25,0) -> 0 | CC60: 104.363419 | CD60: =IF(CC60>0,IF(CC60>=100,$F$26,IF(CC60<100,$F$26/2)),0) -> 1 | CE60: =SUM(DS60) -> 1 | CF60: =IF(DU60>0,$F$28,0) -> 0 | CG60: =IF(DT60>0,$F$29,0) -> 1 | CH60: =IF(DW60>0,$F$30,0) -> 1 | CI60: =SUM(BU60,BX60,CD60,BY60,CB60,CE60,CF60,CG60,CH60) -> 7 | CJ60: =+CI60*$H$22 -> 2.333333333 | CK60: =SUM(AY60,BQ60,CI60) -> 42.09089041 | CL60: =SUM(AZ60,BR60,CJ60) -> 14.0302968 | CM60: =IF(D60<($Z$13*1704),1,IF(D60<(($Z$14+$Z$13)*1704),2,IF(D60<(($Z$15+$Z$13+$Z$14)*1704),3,4))) -> 1 | CN60: =VLOOKUP(A60,Taul1!$F$6:$G$1718,2,FALSE) -> 3 | CT60: https://www.google.com/maps/@61.02464766,24.32530769,3a,75y,90t/data=!3m3!1e1!3m1!2e0 | CW60: 0 | CX60: 0 | CY60: 0 | CZ60: =SUM(CW60:CY60) -> 0 | DA60: 2 | DB60: 3 | DC60: 0 | DD60: 48 | DE60: 7 | DF60: 774 | DG60: 7 | DH60: 1684 | DI60: 1843 | DJ60: 2 | DM60: 11 | DN60: 1 | DO60: 3340.310201 | DQ60: =+IF(AA60>$K$8,$F$27/2,0) -> 1 | DR60: =+IF(AA60/Y60>1.5,$F$27/2,0) -> 0 | DS60: =SUM(DQ60:DR60) -> 1 | DT60: 5 | DU60: 0 | DW60: 1 | DX60: 1 | DY60: 0.2360441285 | DZ60: 0.7345762618 | EA60: 34526 | EC60: =IFERROR(VLOOKUP(A60,$EI$37:$EK$1748,2,FALSE),"--") -> LOPUT | ED60: =IFERROR(VLOOKUP(A60,$EI$37:$EK$1748,3,FALSE),"--") -> 53 | EE60: =IFERROR(ED60-D60,"--") -> 29 | EF60: =IFERROR(VLOOKUP(A60,$EI$37:$EL$1748,4,FALSE),"--") -> 1 | EG60: =IFERROR(EF60-K60,"--") -> 0 | EI60: 132_1 | EJ60: LOPUT | EK60: 11 | EL60: 1 | EN60: 14152 | EO60: 4
A61: =CONCATENATE(S61,"_",T61) -> 10_17 | B61: 1 | D61: =RANK(CL61,$CL$37:$CL$1740) -> 25 | E61: 25 | F61: =E61-D61 -> 0 | G61: =CL61 -> 14.00333333 | H61: =AZ61 -> 4.775 | I61: =BR61 -> 7.228333333 | J61: =CJ61 -> 2 | K61: =CM61 -> 1 | L61: =B61-K61 -> 0 | M61: =HYPERLINK(CT61,"Gmaps") -> Gmaps | N61: =IF(Y61>$K$6,"LOPUT","VÄHÄ") -> LOPUT | O61: =IF(S61<40,"Valta",IF(S61<100,"Kanta",IF(S61<1000,"Seutu",IF(S61>999,"Yhdys")))) -> Valta | P61: Valtatie 10 | Q61: Forssa, Tammela | R61: Kanta-Häme | S61: 10 | T61: 17 | U61: 0 | V61: 17 | W61: 6533 | X61: 6533 | Y61: 4661.688198 | Z61: 691.574315 | AA61: 5820.188887 | AB61: 5885 (22 %), 4309 (78 %) | AC61: 60 (12 %), 80 (61 %), 100 (27 %) | AD61: Is (100 %) | AE61: AB (100 %) | AF61: Y1 (100 %) | AG61: 3 | AH61: 8 | AI61: 0.1002004008 | AJ61: 566.6431961 | AM61: x | AN61: 0 | AO61: 0 | AR61: =+IF(Y61>=$K$6,$F$5,($F$5/($K$6))*Y61) -> 9 | AS61: 31 | AU61: 31 | AV61: =+IF(AS61>=$L$15,$J$15,IF(AS61<($L$15),AS61*($J$15/($L$15)),)) -> 2.325 | AW61: 1963 | AX61: =+IF(AW61>=$L$11,$J$11,IF(AW61<($L$11),AW61*($J$11/($L$11)),)) -> 3 | AY61: =SUM(AR61,AV61,AX61) -> 14.325 | AZ61: =+AY61*$H$5 -> 4.775 | BA61: =+IF(Z61=0,0,IF(Z61>$K$7,$F$9,($F$9/$K$7)*Z61)) -> 8 | BB61: =IF(CZ61>0,$F$10,0) -> 2 | BC61: =IF(DA61>0,$F$11,0) -> 1 | BD61: =IF(DB61>0,$F$12,0) -> 1 | BE61: =IF(DC61>0,$F$13,0) -> 1 | BF61: =IF(DE61>0,$F$14,IF(DD61>0,$F$14/2,0)) -> 2 | BG61: =+IF(DF61>=$L$23,$J$23,IF(DF61<($L$23),DF61*($J$23/($L$23)),)) -> 0.5 | BH61: =+IF(DG61>=$L$24,$J$24,IF(DG61<($L$24),DG61*($J$24/($L$24)),)) -> 0.185 | BI61: =+IF(DH61>=$L$25,$J$25,IF(DH61<($L$25),DH61*($J$25/($L$25)),)) -> 0.5 | BJ61: =+IF(DI61>=$L$26,$J$26,IF(DI61<($L$26),DI61*($J$26/($L$26)),)) -> 0.5 | BK61: =IF(DJ61>0,$F$16,0) -> 2 | BL61: =+IF(DM61>=$L$29,$J$29,IF(DM61<($L$29),DM61*($J$29/($L$29)),)) -> 2 | BM61: =IF(EA61>100000,$F$18,IF(EA61>0,$F$18/2,0)) -> 0 | BN61: =IF(DX61>0,$F$19,0) -> 0 | BO61: 28.91780822 | BP61: =+IF(BO61>=$L$19,$J$19,IF(BO61<($L$19),BO61*($J$19/($L$19)),)) -> 1 | BQ61: =SUM(BA61+BB61+BC61+BD61+BE61+BF61+BK61+BG61+BH61+BI61+BJ61+BL61+BM61+BN61+BP61) -> 21.685 | BR61: =+BQ61*$H$9 -> 7.228333333 | BS61: 4166.157621 | BT61: =BS61/X61 -> 0.6377097232 | BU61: =IF(BT61>0,IF(BT61>=$CY$28,$CW$28,IF(BT61<$CY$28,$CW$29,0)),0) -> 1 | BV61: 6525.309618 | BW61: =BV61/X61 -> 0.9988228406 | BX61: =IF(BW61,$F$23,0) -> 1 | BY61: =IF(DO61>0,$F$24,0) -> 1 | BZ61: 0 | CA61: =BZ61/X61 -> 0 | CB61: =+IF(CA61>=$K$4,$F$25,0) -> 0 | CC61: 171.0427063 | CD61: =IF(CC61>0,IF(CC61>=100,$F$26,IF(CC61<100,$F$26/2)),0) -> 1 | CE61: =SUM(DS61) -> 1 | CF61: =IF(DU61>0,$F$28,0) -> 0 | CG61: =IF(DT61>0,$F$29,0) -> 0 | CH61: =IF(DW61>0,$F$30,0) -> 1 | CI61: =SUM(BU61,BX61,CD61,BY61,CB61,CE61,CF61,CG61,CH61) -> 6 | CJ61: =+CI61*$H$22 -> 2 | CK61: =SUM(AY61,BQ61,CI61) -> 42.01 | CL61: =SUM(AZ61,BR61,CJ61) -> 14.00333333 | CM61: =IF(D61<($Z$13*1704),1,IF(D61<(($Z$14+$Z$13)*1704),2,IF(D61<(($Z$15+$Z$13+$Z$14)*1704),3,4))) -> 1 | CN61: =VLOOKUP(A61,Taul1!$F$6:$G$1718,2,FALSE) -> 2 | CT61: https://www.google.com/maps/@60.82571438,23.59731282,3a,75y,90t/data=!3m3!1e1!3m1!2e0 | CW61: 1 | CX61: 1 | CY61: 1 | CZ61: =SUM(CW61:CY61) -> 3 | DA61: 1 | DB61: 2 | DC61: 3 | DD61: 36 | DE61: 1 | DF61: 1311 | DG61: 37 | DH61: 2123 | DI61: 10475 | DJ61: 1 | DM61: 7 | DN61: 0 | DO61: 6525.309618 | DQ61: =+IF(AA61>$K$8,$F$27/2,0) -> 1 | DR61: =+IF(AA61/Y61>1.5,$F$27/2,0) -> 0 | DS61: =SUM(DQ61:DR61) -> 1 | DT61: 0 | DU61: 0 | DW61: 1 | DX61: 0 | DY61: 0 | DZ61: 0 | EA61: 0 | EC61: =IFERROR(VLOOKUP(A61,$EI$37:$EK$1748,2,FALSE),"--") -> LOPUT | ED61: =IFERROR(VLOOKUP(A61,$EI$37:$EK$1748,3,FALSE),"--") -> 4 | EE61: =IFERROR(ED61-D61,"--") -> -21 | EF61: =IFERROR(VLOOKUP(A61,$EI$37:$EL$1748,4,FALSE),"--") -> 1 | EG61: =IFERROR(EF61-K61,"--") -> 0 | EI61: 133_1 | EJ61: LOPUT | EK61: 20 | EL61: 1 | EN61: 11432 | EO61: 1
A62: =CONCATENATE(S62,"_",T62) -> 312_1 | B62: 1 | D62: =RANK(CL62,$CL$37:$CL$1740) -> 26 | E62: 26 | F62: =E62-D62 -> 0 | G62: =CL62 -> 13.9802968 | H62: =AZ62 -> 5 | I62: =BR62 -> 6.313630137 | J62: =CJ62 -> 2.666666667 | K62: =CM62 -> 1 | L62: =B62-K62 -> 0 | M62: =HYPERLINK(CT62,"Gmaps") -> Gmaps | N62: =IF(Y62>$K$6,"LOPUT","VÄHÄ") -> LOPUT | O62: =IF(S62<40,"Valta",IF(S62<100,"Kanta",IF(S62<1000,"Seutu",IF(S62>999,"Yhdys")))) -> Seutu | P62: Kukkastie, Levonkatu, Nastolantie, Villähteentie | Q62: Lahti | R62: Päijät-Häme | S62: 312 | T62: 1 | U62: 0 | V62: 1 | W62: 11406 | X62: 10806 | Y62: 5890.121784 | Z62: 575.2818804 | AA62: 6177.37618 | AB62: 10432 (8 %), 5237 (53 %), 5236 (13 %), 5111 (18 %), 8577 (8 %) | AC62: 40 (4 %), 50 (52 %), 60 (44 %) | AD62: Is (101 %) | AE62: AB (101 %) | AF62: Y2 (101 %) | AG62: 7 | AH62: 20 | AI62: 0.3292379699 | AJ62: 153.2133074 | AN62: 1.00562931 | AO62: 0.9936281332 | AR62: =+IF(Y62>=$K$6,$F$5,($F$5/($K$6))*Y62) -> 9 | AS62: 435 | AU62: 435 | AV62: =+IF(AS62>=$L$15,$J$15,IF(AS62<($L$15),AS62*($J$15/($L$15)),)) -> 3 | AW62: 7210 | AX62: =+IF(AW62>=$L$11,$J$11,IF(AW62<($L$11),AW62*($J$11/($L$11)),)) -> 3 | AY62: =SUM(AR62,AV62,AX62) -> 15 | AZ62: =+AY62*$H$5 -> 5 | BA62: =+IF(Z62=0,0,IF(Z62>$K$7,$F$9,($F$9/$K$7)*Z62)) -> 8 | BB62: =IF(CZ62>0,$F$10,0) -> 2 | BC62: =IF(DA62>0,$F$11,0) -> 1 | BD62: =IF(DB62>0,$F$12,0) -> 1 | BE62: =IF(DC62>0,$F$13,0) -> 0 | BF62: =IF(DE62>0,$F$14,IF(DD62>0,$F$14/2,0)) -> 2 | BG62: =+IF(DF62>=$L$23,$J$23,IF(DF62<($L$23),DF62*($J$23/($L$23)),)) -> 0.16 | BH62: =+IF(DG62>=$L$24,$J$24,IF(DG62<($L$24),DG62*($J$24/($L$24)),)) -> 0.085 | BI62: =+IF(DH62>=$L$25,$J$25,IF(DH62<($L$25),DH62*($J$25/($L$25)),)) -> 0 | BJ62: =+IF(DI62>=$L$26,$J$26,IF(DI62<($L$26),DI62*($J$26/($L$26)),)) -> 0 | BK62: =IF(DJ62>0,$F$16,0) -> 0 | BL62: =+IF(DM62>=$L$29,$J$29,IF(DM62<($L$29),DM62*($J$29/($L$29)),)) -> 2 | BM62: =IF(EA62>100000,$F$18,IF(EA62>0,$F$18/2,0)) -> 0.5 | BN62: =IF(DX62>0,$F$19,0) -> 2 | BO62: 1.95890411 | BP62: =+IF(BO62>=$L$19,$J$19,IF(BO62<($L$19),BO62*($J$19/($L$19)),)) -> 0.195890411 | BQ62: =SUM(BA62+BB62+BC62+BD62+BE62+BF62+BK62+BG62+BH62+BI62+BJ62+BL62+BM62+BN62+BP62) -> 18.94089041 | BR62: =+BQ62*$H$9 -> 6.313630137 | BS62: 10319.38249 | BT62: =BS62/X62 -> 0.9549678411 | BU62: =IF(BT62>0,IF(BT62>=$CY$28,$CW$28,IF(BT62<$CY$28,$CW$29,0)),0) -> 1 | BV62: 8229.965488 | BW62: =BV62/X62 -> 0.7616107244 | BX62: =IF(BW62,$F$23,0) -> 1 | BY62: =IF(DO62>0,$F$24,0) -> 1 | BZ62: 5138.396393 | CA62: =BZ62/X62 -> 0.4755132697 | CB62: =+IF(CA62>=$K$4,$F$25,0) -> 0 | CC62: 236.489913 | CD62: =IF(CC62>0,IF(CC62>=100,$F$26,IF(CC62<100,$F$26/2)),0) -> 1 | CE62: =SUM(DS62) -> 1 | CF62: =IF(DU62>0,$F$28,0) -> 1 | CG62: =IF(DT62>0,$F$29,0) -> 1 | CH62: =IF(DW62>0,$F$30,0) -> 1 | CI62: =SUM(BU62,BX62,CD62,BY62,CB62,CE62,CF62,CG62,CH62) -> 8 | CJ62: =+CI62*$H$22 -> 2.666666667 | CK62: =SUM(AY62,BQ62,CI62) -> 41.94089041 | CL62: =SUM(AZ62,BR62,CJ62) -> 13.9802968 | CM62: =IF(D62<($Z$13*1704),1,IF(D62<(($Z$14+$Z$13)*1704),2,IF(D62<(($Z$15+$Z$13+$Z$14)*1704),3,4))) -> 1 | CN62: =VLOOKUP(A62,Taul1!$F$6:$G$1718,2,FALSE) -> 5 | CT62: https://www.google.com/maps/@60.94749743,25.89445448,3a,75y,90t/data=!3m3!1e1!3m1!2e0 | CW62: 0 | CX62: 0 | CY62: 1 | CZ62: =SUM(CW62:CY62) -> 1 | DA62: 7 | DB62: 3 | DC62: 0 | DD62: 22 | DE62: 2 | DF62: 96 | DG62: 17 | DH62: 0 | DI62: 0 | DJ62: 0 | DM62: 26 | DN62: 1 | DO62: 10866.83032 | DQ62: =+IF(AA62>$K$8,$F$27/2,0) -> 1 | DR62: =+IF(AA62/Y62>1.5,$F$27/2,0) -> 0 | DS62: =SUM(DQ62:DR62) -> 1 | DT62: 2 | DU62: 1 | DW62: 1 | DX62: 3 | DY62: 1.00562931 | DZ62: 0.9936281332 | EA62: 62723 | EC62: =IFERROR(VLOOKUP(A62,$EI$37:$EK$1748,2,FALSE),"--") -> LOPUT | ED62: =IFERROR(VLOOKUP(A62,$EI$37:$EK$1748,3,FALSE),"--") -> 7 | EE62: =IFERROR(ED62-D62,"--") -> -19 | EF62: =IFERROR(VLOOKUP(A62,$EI$37:$EL$1748,4,FALSE),"--") -> 1 | EG62: =IFERROR(EF62-K62,"--") -> 0 | EI62: 2_15 | EJ62: LOPUT | EK62: 15 | EL62: 1
A63: =CONCATENATE(S63,"_",T63) -> 52_1 | B63: 1 | D63: =RANK(CL63,$CL$37:$CL$1740) -> 27 | E63: 27 | F63: =E63-D63 -> 0 | G63: =CL63 -> 13.87445205 | H63: =AZ63 -> 4.375 | I63: =BR63 -> 7.166118721 | J63: =CJ63 -> 2.333333333 | K63: =CM63 -> 1 | L63: =B63-K63 -> 0 | M63: =HYPERLINK(CT63,"Gmaps") -> Gmaps | N63: =IF(Y63>$K$6,"LOPUT","VÄHÄ") -> LOPUT | O63: =IF(S63<40,"Valta",IF(S63<100,"Kanta",IF(S63<1000,"Seutu",IF(S63>999,"Yhdys")))) -> Kanta | P63: Tenholantie | Q63: Raasepori | R63: Uusimaa | S63: 52 | T63: 1 | U63: 0 | V63: 1 | W63: 6240 | X63: 6240 | Y63: 4153 | Z63: 444 | AA63: 5067 | AB63: 4153 (100 %) | AC63: 50 (17 %), 80 (83 %) | AD63: Is (100 %) | AE63: AB (100 %) | AF63: Y1 (100 %) | AG63: 3 | AH63: 10 | AI63: 0.7115384615 | AJ63: 258 | AN63: 0 | AO63: 0.1621971793 | AR63: =+IF(Y63>=$K$6,$F$5,($F$5/($K$6))*Y63) -> 9 | AS63: 15 | AU63: 15 | AV63: =+IF(AS63>=$L$15,$J$15,IF(AS63<($L$15),AS63*($J$15/($L$15)),)) -> 1.125 | AW63: 1045 | AX63: =+IF(AW63>=$L$11,$J$11,IF(AW63<($L$11),AW63*($J$11/($L$11)),)) -> 3 | AY63: =SUM(AR63,AV63,AX63) -> 13.125 | AZ63: =+AY63*$H$5 -> 4.375 | BA63: =+IF(Z63=0,0,IF(Z63>$K$7,$F$9,($F$9/$K$7)*Z63)) -> 8 | BB63: =IF(CZ63>0,$F$10,0) -> 2 | BC63: =IF(DA63>0,$F$11,0) -> 1 | BD63: =IF(DB63>0,$F$12,0) -> 1 | BE63: =IF(DC63>0,$F$13,0) -> 0 | BF63: =IF(DE63>0,$F$14,IF(DD63>0,$F$14/2,0)) -> 2 | BG63: =+IF(DF63>=$L$23,$J$23,IF(DF63<($L$23),DF63*($J$23/($L$23)),)) -> 0.5 | BH63: =+IF(DG63>=$L$24,$J$24,IF(DG63<($L$24),DG63*($J$24/($L$24)),)) -> 0.5 | BI63: =+IF(DH63>=$L$25,$J$25,IF(DH63<($L$25),DH63*($J$25/($L$25)),)) -> 0 | BJ63: =+IF(DI63>=$L$26,$J$26,IF(DI63<($L$26),DI63*($J$26/($L$26)),)) -> 0 | BK63: =IF(DJ63>0,$F$16,0) -> 2 | BL63: =+IF(DM63>=$L$29,$J$29,IF(DM63<($L$29),DM63*($J$29/($L$29)),)) -> 2 | BM63: =IF(EA63>100000,$F$18,IF(EA63>0,$F$18/2,0)) -> 0 | BN63: =IF(DX63>0,$F$19,0) -> 2 | BO63: 4.983561644 | BP63: =+IF(BO63>=$L$19,$J$19,IF(BO63<($L$19),BO63*($J$19/($L$19)),)) -> 0.4983561644 | BQ63: =SUM(BA63+BB63+BC63+BD63+BE63+BF63+BK63+BG63+BH63+BI63+BJ63+BL63+BM63+BN63+BP63) -> 21.49835616 | BR63: =+BQ63*$H$9 -> 7.166118721 | BS63: 3248.065693 | BT63: =BS63/X63 -> 0.5205233483 | BU63: =IF(BT63>0,IF(BT63>=$CY$28,$CW$28,IF(BT63<$CY$28,$CW$29,0)),0) -> 1 | BV63: 6236.046991 | BW63: =BV63/X63 -> 0.9993665049 | BX63: =IF(BW63,$F$23,0) -> 1 | BY63: =IF(DO63>0,$F$24,0) -> 1 | BZ63: 1071.364236 | CA63: =BZ63/X63 -> 0.1716929866 | CB63: =+IF(CA63>=$K$4,$F$25,0) -> 0 | CC63: 129.3589744 | CD63: =IF(CC63>0,IF(CC63>=100,$F$26,IF(CC63<100,$F$26/2)),0) -> 1 | CE63: =SUM(DS63) -> 1 | CF63: =IF(DU63>0,$F$28,0) -> 1 | CG63: =IF(DT63>0,$F$29,0) -> 0 | CH63: =IF(DW63>0,$F$30,0) -> 1 | CI63: =SUM(BU63,BX63,CD63,BY63,CB63,CE63,CF63,CG63,CH63) -> 7 | CJ63: =+CI63*$H$22 -> 2.333333333 | CK63: =SUM(AY63,BQ63,CI63) -> 41.62335616 | CL63: =SUM(AZ63,BR63,CJ63) -> 13.87445205 | CM63: =IF(D63<($Z$13*1704),1,IF(D63<(($Z$14+$Z$13)*1704),2,IF(D63<(($Z$15+$Z$13+$Z$14)*1704),3,4))) -> 1 | CN63: =VLOOKUP(A63,Taul1!$F$6:$G$1718,2,FALSE) -> 1 | CT63: https://www.google.com/maps/@59.98455971,23.41897985,3a,75y,90t/data=!3m3!1e1!3m1!2e0 | CW63: 1 | CX63: 0 | CY63: 1 | CZ63: =SUM(CW63:CY63) -> 2 | DA63: 1 | DB63: 3 | DC63: 0 | DD63: 22 | DE63: 1 | DF63: 411 | DG63: 121 | DH63: 0 | DI63: 0 | DJ63: 1 | DM63: 12 | DN63: 0 | DO63: 6236.046991 | DQ63: =+IF(AA63>$K$8,$F$27/2,0) -> 1 | DR63: =+IF(AA63/Y63>1.5,$F$27/2,0) -> 0 | DS63: =SUM(DQ63:DR63) -> 1 | DT63: 0 | DU63: 1 | DW63: 1 | DX63: 3 | DY63: 0 | DZ63: 0.1621971793 | EA63: 0 | EC63: =IFERROR(VLOOKUP(A63,$EI$37:$EK$1748,2,FALSE),"--") -> LOPUT | ED63: =IFERROR(VLOOKUP(A63,$EI$37:$EK$1748,3,FALSE),"--") -> 67 | EE63: =IFERROR(ED63-D63,"--") -> 40 | EF63: =IFERROR(VLOOKUP(A63,$EI$37:$EL$1748,4,FALSE),"--") -> 1 | EG63: =IFERROR(EF63-K63,"--") -> 0 | EI63: 152_1 | EJ63: LOPUT | EK63: 25 | EL63: 1 | EN63: 11245 | EO63: 2
A64: =CONCATENATE(S64,"_",T64) -> 24_4 | B64: 1 | D64: =RANK(CL64,$CL$37:$CL$1740) -> 28 | E64: 28 | F64: =E64-D64 -> 0 | G64: =CL64 -> 13.84583333 | H64: =AZ64 -> 5 | I64: =BR64 -> 6.179166667 | J64: =CJ64 -> 2.666666667 | K64: =CM64 -> 1 | L64: =B64-K64 -> 0 | M64: =HYPERLINK(CT64,"Gmaps") -> Gmaps | N64: =IF(Y64>$K$6,"LOPUT","VÄHÄ") -> LOPUT | O64: =IF(S64<40,"Valta",IF(S64<100,"Kanta",IF(S64<1000,"Seutu",IF(S64>999,"Yhdys")))) -> Valta | P64: Jyväskyläntie, Lahdentie, Vesikansantie | Q64: Asikkala, Hollola | R64: Päijät-Häme | S64: 24 | T64: 4 | U64: 0 | V64: 4 | W64: 10200 | X64: 10200 | Y64: 6858.727059 | Z64: 296.2376471 | AA64: 8596.745882 | AB64: 7005 (91 %), 5411 (9 %) | AC64: 60 (13 %), 80 (50 %), 100 (37 %) | AD64: Is (100 %) | AE64: AB (100 %) | AF64: Y2 (100 %) | AG64: 5 | AH64: 16 | AI64: 8.250144378e-05 | AJ64: 160.3576471 | AN64: 0 | AO64: 0.3167829133 | AR64: =+IF(Y64>=$K$6,$F$5,($F$5/($K$6))*Y64) -> 9 | AS64: 40 | AU64: 40 | AV64: =+IF(AS64>=$L$15,$J$15,IF(AS64<($L$15),AS64*($J$15/($L$15)),)) -> 3 | AW64: 2282 | AX64: =+IF(AW64>=$L$11,$J$11,IF(AW64<($L$11),AW64*($J$11/($L$11)),)) -> 3 | AY64: =SUM(AR64,AV64,AX64) -> 15 | AZ64: =+AY64*$H$5 -> 5 | BA64: =+IF(Z64=0,0,IF(Z64>$K$7,$F$9,($F$9/$K$7)*Z64)) -> 8 | BB64: =IF(CZ64>0,$F$10,0) -> 0 | BC64: =IF(DA64>0,$F$11,0) -> 0 | BD64: =IF(DB64>0,$F$12,0) -> 1 | BE64: =IF(DC64>0,$F$13,0) -> 0 | BF64: =IF(DE64>0,$F$14,IF(DD64>0,$F$14/2,0)) -> 2 | BG64: =+IF(DF64>=$L$23,$J$23,IF(DF64<($L$23),DF64*($J$23/($L$23)),)) -> 0.05166666667 | BH64: =+IF(DG64>=$L$24,$J$24,IF(DG64<($L$24),DG64*($J$24/($L$24)),)) -> 0.095 | BI64: =+IF(DH64>=$L$25,$J$25,IF(DH64<($L$25),DH64*($J$25/($L$25)),)) -> 0.0075 | BJ64: =+IF(DI64>=$L$26,$J$26,IF(DI64<($L$26),DI64*($J$26/($L$26)),)) -> 0.3833333333 | BK64: =IF(DJ64>0,$F$16,0) -> 2 | BL64: =+IF(DM64>=$L$29,$J$29,IF(DM64<($L$29),DM64*($J$29/($L$29)),)) -> 2 | BM64: =IF(EA64>100000,$F$18,IF(EA64>0,$F$18/2,0)) -> 0 | BN64: =IF(DX64>0,$F$19,0) -> 2 | BO64: 31.09863014 | BP64: =+IF(BO64>=$L$19,$J$19,IF(BO64<($L$19),BO64*($J$19/($L$19)),)) -> 1 | BQ64: =SUM(BA64+BB64+BC64+BD64+BE64+BF64+BK64+BG64+BH64+BI64+BJ64+BL64+BM64+BN64+BP64) -> 18.5375 | BR64: =+BQ64*$H$9 -> 6.179166667 | BS64: 6488.395398 | BT64: =BS64/X64 -> 0.6361171959 | BU64: =IF(BT64>0,IF(BT64>=$CY$28,$CW$28,IF(BT64<$CY$28,$CW$29,0)),0) -> 1 | BV64: 10187.61209 | BW64: =BV64/X64 -> 0.9987854994 | BX64: =IF(BW64,$F$23,0) -> 1 | BY64: =IF(DO64>0,$F$24,0) -> 1 | BZ64: 0 | CA64: =BZ64/X64 -> 0 | CB64: =+IF(CA64>=$K$4,$F$25,0) -> 0 | CC64: 262.8919608 | CD64: =IF(CC64>0,IF(CC64>=100,$F$26,IF(CC64<100,$F$26/2)),0) -> 1 | CE64: =SUM(DS64) -> 1 | CF64: =IF(DU64>0,$F$28,0) -> 1 | CG64: =IF(DT64>0,$F$29,0) -> 1 | CH64: =IF(DW64>0,$F$30,0) -> 1 | CI64: =SUM(BU64,BX64,CD64,BY64,CB64,CE64,CF64,CG64,CH64) -> 8 | CJ64: =+CI64*$H$22 -> 2.666666667 | CK64: =SUM(AY64,BQ64,CI64) -> 41.5375 | CL64: =SUM(AZ64,BR64,CJ64) -> 13.84583333 | CM64: =IF(D64<($Z$13*1704),1,IF(D64<(($Z$14+$Z$13)*1704),2,IF(D64<(($Z$15+$Z$13+$Z$14)*1704),3,4))) -> 1 | CN64: =VLOOKUP(A64,Taul1!$F$6:$G$1718,2,FALSE) -> 2 | CT64: https://www.google.com/maps/@61.10783884,25.64175408,3a,75y,90t/data=!3m3!1e1!3m1!2e0 | CW64: 0 | CX64: 0 | CY64: 0 | CZ64: =SUM(CW64:CY64) -> 0 | DA64: 0 | DB64: 1 | DC64: 0 | DD64: 6 | DE64: 1 | DF64: 31 | DG64: 19 | DH64: 15 | DI64: 23 | DJ64: 1 | DM64: 7 | DN64: 0 | DO64: 10187.61209 | DQ64: =+IF(AA64>$K$8,$F$27/2,0) -> 1 | DR64: =+IF(AA64/Y64>1.5,$F$27/2,0) -> 0 | DS64: =SUM(DQ64:DR64) -> 1 | DT64: 1 | DU64: 1 | DW64: 1 | DX64: 1 | DY64: 0 | DZ64: 0.3167829133 | EA64: 0 | EC64: =IFERROR(VLOOKUP(A64,$EI$37:$EK$1748,2,FALSE),"--") -> LOPUT | ED64: =IFERROR(VLOOKUP(A64,$EI$37:$EK$1748,3,FALSE),"--") -> 31 | EE64: =IFERROR(ED64-D64,"--") -> 3 | EF64: =IFERROR(VLOOKUP(A64,$EI$37:$EL$1748,4,FALSE),"--") -> 1 | EG64: =IFERROR(EF64-K64,"--") -> 0 | EI64: 140_12 | EJ64: LOPUT | EK64: 37 | EL64: 1 | EN64: 11796 | EO64: 1
A65: =CONCATENATE(S65,"_",T65) -> 313_3 | B65: 1 | D65: =RANK(CL65,$CL$37:$CL$1740) -> 29 | E65: 29 | F65: =E65-D65 -> 0 | G65: =CL65 -> 13.84055556 | H65: =AZ65 -> 4.008333333 | I65: =BR65 -> 7.165555556 | J65: =CJ65 -> 2.666666667 | K65: =CM65 -> 1 | L65: =B65-K65 -> 0 | M65: =HYPERLINK(CT65,"Gmaps") -> Gmaps | N65: =IF(Y65>$K$6,"LOPUT","VÄHÄ") -> LOPUT | O65: =IF(S65<40,"Valta",IF(S65<100,"Kanta",IF(S65<1000,"Seutu",IF(S65>999,"Yhdys")))) -> Seutu | P65: Urajärventie | Q65: Asikkala | R65: Päijät-Häme | S65: 313 | T65: 3 | U65: 0 | V65: 3 | W65: 7376 | X65: 7376 | Y65: 1364 | Z65: 114 | AA65: 2439 | AB65: 1364 (100 %) | AC65: 50 (4 %), 60 (12 %), 80 (83 %) | AD65: Ib (99 %) | AE65: AB (99 %) | AF65: Y2 (99 %) | AG65: 2 | AH65: 5 | AI65: 0 | AJ65: 50 | AN65: 0 | AO65: 0.03138266431 | AR65: =+IF(Y65>=$K$6,$F$5,($F$5/($K$6))*Y65) -> 9 | AS65: 3 | AU65: 3 | AV65: =+IF(AS65>=$L$15,$J$15,IF(AS65<($L$15),AS65*($J$15/($L$15)),)) -> 0.225 | AW65: 280 | AX65: =+IF(AW65>=$L$11,$J$11,IF(AW65<($L$11),AW65*($J$11/($L$11)),)) -> 2.8 | AY65: =SUM(AR65,AV65,AX65) -> 12.025 | AZ65: =+AY65*$H$5 -> 4.008333333 | BA65: =+IF(Z65=0,0,IF(Z65>$K$7,$F$9,($F$9/$K$7)*Z65)) -> 8 | BB65: =IF(CZ65>0,$F$10,0) -> 2 | BC65: =IF(DA65>0,$F$11,0) -> 1 | BD65: =IF(DB65>0,$F$12,0) -> 1 | BE65: =IF(DC65>0,$F$13,0) -> 0 | BF65: =IF(DE65>0,$F$14,IF(DD65>0,$F$14/2,0)) -> 2 | BG65: =+IF(DF65>=$L$23,$J$23,IF(DF65<($L$23),DF65*($J$23/($L$23)),)) -> 0.08333333333 | BH65: =+IF(DG65>=$L$24,$J$24,IF(DG65<($L$24),DG65*($J$24/($L$24)),)) -> 0.08 | BI65: =+IF(DH65>=$L$25,$J$25,IF(DH65<($L$25),DH65*($J$25/($L$25)),)) -> 0 | BJ65: =+IF(DI65>=$L$26,$J$26,IF(DI65<($L$26),DI65*($J$26/($L$26)),)) -> 0.3333333333 | BK65: =IF(DJ65>0,$F$16,0) -> 2 | BL65: =+IF(DM65>=$L$29,$J$29,IF(DM65<($L$29),DM65*($J$29/($L$29)),)) -> 2 | BM65: =IF(EA65>100000,$F$18,IF(EA65>0,$F$18/2,0)) -> 0 | BN65: =IF(DX65>0,$F$19,0) -> 2 | BO65: 11.6109589 | BP65: =+IF(BO65>=$L$19,$J$19,IF(BO65<($L$19),BO65*($J$19/($L$19)),)) -> 1 | BQ65: =SUM(BA65+BB65+BC65+BD65+BE65+BF65+BK65+BG65+BH65+BI65+BJ65+BL65+BM65+BN65+BP65) -> 21.49666667 | BR65: =+BQ65*$H$9 -> 7.165555556 | BS65: 2064.778956 | BT65: =BS65/X65 -> 0.279932071 | BU65: =IF(BT65>0,IF(BT65>=$CY$28,$CW$28,IF(BT65<$CY$28,$CW$29,0)),0) -> 0.5 | BV65: 7331.990981 | BW65: =BV65/X65 -> 0.9940334844 | BX65: =IF(BW65,$F$23,0) -> 1 | BY65: =IF(DO65>0,$F$24,0) -> 1 | BZ65: 0 | CA65: =BZ65/X65 -> 0 | CB65: =+IF(CA65>=$K$4,$F$25,0) -> 0 | CC65: 22.72830803 | CD65: =IF(CC65>0,IF(CC65>=100,$F$26,IF(CC65<100,$F$26/2)),0) -> 0.5 | CE65: =SUM(DS65) -> 2 | CF65: =IF(DU65>0,$F$28,0) -> 1 | CG65: =IF(DT65>0,$F$29,0) -> 1 | CH65: =IF(DW65>0,$F$30,0) -> 1 | CI65: =SUM(BU65,BX65,CD65,BY65,CB65,CE65,CF65,CG65,CH65) -> 8 | CJ65: =+CI65*$H$22 -> 2.666666667 | CK65: =SUM(AY65,BQ65,CI65) -> 41.52166667 | CL65: =SUM(AZ65,BR65,CJ65) -> 13.84055556 | CM65: =IF(D65<($Z$13*1704),1,IF(D65<(($Z$14+$Z$13)*1704),2,IF(D65<(($Z$15+$Z$13+$Z$14)*1704),3,4))) -> 1 | CN65: =VLOOKUP(A65,Taul1!$F$6:$G$1718,2,FALSE) -> 1 | CT65: https://www.google.com/maps/@61.14206077,25.66106870,3a,75y,90t/data=!3m3!1e1!3m1!2e0 | CW65: 0 | CX65: 0 | CY65: 1 | CZ65: =SUM(CW65:CY65) -> 1 | DA65: 1 | DB65: 7 | DC65: 0 | DD65: 25 | DE65: 3 | DF65: 50 | DG65: 16 | DH65: 0 | DI65: 20 | DJ65: 3 | DM65: 13 | DN65: 0 | DO65: 7331.990981 | DQ65: =+IF(AA65>$K$8,$F$27/2,0) -> 1 | DR65: =+IF(AA65/Y65>1.5,$F$27/2,0) -> 1 | DS65: =SUM(DQ65:DR65) -> 2 | DT65: 2 | DU65: 1 | DW65: 1 | DX65: 4 | DY65: 0 | DZ65: 0.03138266431 | EA65: 0 | EC65: =IFERROR(VLOOKUP(A65,$EI$37:$EK$1748,2,FALSE),"--") -> LOPUT | ED65: =IFERROR(VLOOKUP(A65,$EI$37:$EK$1748,3,FALSE),"--") -> 134 | EE65: =IFERROR(ED65-D65,"--") -> 105 | EF65: =IFERROR(VLOOKUP(A65,$EI$37:$EL$1748,4,FALSE),"--") -> 2 | EG65: =IFERROR(EF65-K65,"--") -> 1 | EI65: 143_1 | EJ65: LOPUT | EK65: 61 | EL65: 1 | EN65: 1323 | EO65: 1
A66: =CONCATENATE(S66,"_",T66) -> 55_6 | B66: 1 | D66: =RANK(CL66,$CL$37:$CL$1740) -> 30 | E66: 30 | F66: =E66-D66 -> 0 | G66: =CL66 -> 13.825 | H66: =AZ66 -> 4.825 | I66: =BR66 -> 6.666666667 | J66: =CJ66 -> 2.333333333 | K66: =CM66 -> 1 | L66: =B66-K66 -> 0 | M66: =HYPERLINK(CT66,"Gmaps") -> Gmaps | N66: =IF(Y66>$K$6,"LOPUT","VÄHÄ") -> LOPUT | O66: =IF(S66<40,"Valta",IF(S66<100,"Kanta",IF(S66<1000,"Seutu",IF(S66>999,"Yhdys")))) -> Kanta | P66: Porvoontie | Q66: Mäntsälä | R66: Uusimaa | S66: 55 | T66: 6 | U66: 0 | V66: 6 | W66: 929 | X66: 929 | Y66: 7418 | Z66: 720 | AA66: 8304 | AB66: 7418 (100 %) | AC66: 60 (101 %) | AD66: Is (101 %) | AE66: AB (101 %) | AF66: Y1 (101 %) | AG66: 0 | AH66: 5 | AI66: 0.2026708562 | AJ66: 400 | AN66: 0 | AO66: 0.1388253909 | AR66: =+IF(Y66>=$K$6,$F$5,($F$5/($K$6))*Y66) -> 9 | AS66: 33 | AU66: 33 | AV66: =+IF(AS66>=$L$15,$J$15,IF(AS66<($L$15),AS66*($J$15/($L$15)),)) -> 2.475 | AW66: 2481 | AX66: =+IF(AW66>=$L$11,$J$11,IF(AW66<($L$11),AW66*($J$11/($L$11)),)) -> 3 | AY66: =SUM(AR66,AV66,AX66) -> 14.475 | AZ66: =+AY66*$H$5 -> 4.825 | BA66: =+IF(Z66=0,0,IF(Z66>$K$7,$F$9,($F$9/$K$7)*Z66)) -> 8 | BB66: =IF(CZ66>0,$F$10,0) -> 2 | BC66: =IF(DA66>0,$F$11,0) -> 1 | BD66: =IF(DB66>0,$F$12,0) -> 1 | BE66: =IF(DC66>0,$F$13,0) -> 0 | BF66: =IF(DE66>0,$F$14,IF(DD66>0,$F$14/2,0)) -> 2 | BG66: =+IF(DF66>=$L$23,$J$23,IF(DF66<($L$23),DF66*($J$23/($L$23)),)) -> 0.5 | BH66: =+IF(DG66>=$L$24,$J$24,IF(DG66<($L$24),DG66*($J$24/($L$24)),)) -> 0.5 | BI66: =+IF(DH66>=$L$25,$J$25,IF(DH66<($L$25),DH66*($J$25/($L$25)),)) -> 0 | BJ66: =+IF(DI66>=$L$26,$J$26,IF(DI66<($L$26),DI66*($J$26/($L$26)),)) -> 0 | BK66: =IF(DJ66>0,$F$16,0) -> 0 | BL66: =+IF(DM66>=$L$29,$J$29,IF(DM66<($L$29),DM66*($J$29/($L$29)),)) -> 2 | BM66: =IF(EA66>100000,$F$18,IF(EA66>0,$F$18/2,0)) -> 0 | BN66: =IF(DX66>0,$F$19,0) -> 2 | BO66: 17.27123288 | BP66: =+IF(BO66>=$L$19,$J$19,IF(BO66<($L$19),BO66*($J$19/($L$19)),)) -> 1 | BQ66: =SUM(BA66+BB66+BC66+BD66+BE66+BF66+BK66+BG66+BH66+BI66+BJ66+BL66+BM66+BN66+BP66) -> 20 | BR66: =+BQ66*$H$9 -> 6.666666667 | BS66: 937.1006753 | BT66: =BS66/X66 -> 1.00871978 | BU66: =IF(BT66>0,IF(BT66>=$CY$28,$CW$28,IF(BT66<$CY$28,$CW$29,0)),0) -> 1 | BV66: 937.1006753 | BW66: =BV66/X66 -> 1.00871978 | BX66: =IF(BW66,$F$23,0) -> 1 | BY66: =IF(DO66>0,$F$24,0) -> 1 | BZ66: 0 | CA66: =BZ66/X66 -> 0 | CB66: =+IF(CA66>=$K$4,$F$25,0) -> 0 | CC66: 310.8719053 | CD66: =IF(CC66>0,IF(CC66>=100,$F$26,IF(CC66<100,$F$26/2)),0) -> 1 | CE66: =SUM(DS66) -> 1 | CF66: =IF(DU66>0,$F$28,0) -> 0 | CG66: =IF(DT66>0,$F$29,0) -> 1 | CH66: =IF(DW66>0,$F$30,0) -> 1 | CI66: =SUM(BU66,BX66,CD66,BY66,CB66,CE66,CF66,CG66,CH66) -> 7 | CJ66: =+CI66*$H$22 -> 2.333333333 | CK66: =SUM(AY66,BQ66,CI66) -> 41.475 | CL66: =SUM(AZ66,BR66,CJ66) -> 13.825 | CM66: =IF(D66<($Z$13*1704),1,IF(D66<(($Z$14+$Z$13)*1704),2,IF(D66<(($Z$15+$Z$13+$Z$14)*1704),3,4))) -> 1 | CN66: =VLOOKUP(A66,Taul1!$F$6:$G$1718,2,FALSE) -> 1 | CT66: https://www.google.com/maps/@60.62068121,25.30940647,3a,75y,90t/data=!3m3!1e1!3m1!2e0 | CW66: 1 | CX66: 0 | CY66: 1 | CZ66: =SUM(CW66:CY66) -> 2 | DA66: 1 | DB66: 10 | DC66: 0 | DD66: 66 | DE66: 1 | DF66: 1484 | DG66: 150 | DH66: 0 | DI66: 0 | DJ66: 0 | DM66: 13 | DN66: 0 | DO66: 937.1006753 | DQ66: =+IF(AA66>$K$8,$F$27/2,0) -> 1 | DR66: =+IF(AA66/Y66>1.5,$F$27/2,0) -> 0 | DS66: =SUM(DQ66:DR66) -> 1 | DT66: 2 | DU66: 0 | DW66: 1 | DX66: 2 | DY66: 0 | DZ66: 0.1388253909 | EA66: 0 | EC66: =IFERROR(VLOOKUP(A66,$EI$37:$EK$1748,2,FALSE),"--") -> LOPUT | ED66: =IFERROR(VLOOKUP(A66,$EI$37:$EK$1748,3,FALSE),"--") -> 68 | EE66: =IFERROR(ED66-D66,"--") -> 38 | EF66: =IFERROR(VLOOKUP(A66,$EI$37:$EL$1748,4,FALSE),"--") -> 1 | EG66: =IFERROR(EF66-K66,"--") -> 0 | EI66: 1131_1 | EJ66: LOPUT | EK66: 55 | EL66: 1 | EN66: 1311 | EO66: 3
A67: =CONCATENATE(S67,"_",T67) -> 146_1 | B67: 1 | D67: =RANK(CL67,$CL$37:$CL$1740) -> 31 | E67: 31 | F67: =E67-D67 -> 0 | G67: =CL67 -> 13.80249619 | H67: =AZ67 -> 5 | I67: =BR67 -> 6.969162861 | J67: =CJ67 -> 1.833333333 | K67: =CM67 -> 1 | L67: =B67-K67 -> 0 | M67: =HYPERLINK(CT67,"Gmaps") -> Gmaps | N67: =IF(Y67>$K$6,"LOPUT","VÄHÄ") -> LOPUT | O67: =IF(S67<40,"Valta",IF(S67<100,"Kanta",IF(S67<1000,"Seutu",IF(S67>999,"Yhdys")))) -> Seutu | P67: Rajakulmantie, Sipoontie | Q67: Järvenpää, Sipoo | R67: Uusimaa | S67: 146 | T67: 1 | U67: 0 | V67: 1 | W67: 3900 | X67: 3900 | Y67: 4444 | Z67: 297 | AA67: 4813 | AB67: 4444 (100 %) | AC67: 60 (57 %), 80 (43 %) | AD67: Is (100 %) | AE67: AB (100 %) | AF67: Y2 (100 %) | AG67: 3 | AH67: 10 | AI67: 0 | AJ67: 73 | AN67: 0 | AO67: 0.1213089481 | AR67: =+IF(Y67>=$K$6,$F$5,($F$5/($K$6))*Y67) -> 9 | AS67: 177 | AU67: 20 | AV67: =+IF(AS67>=$L$15,$J$15,IF(AS67<($L$15),AS67*($J$15/($L$15)),)) -> 3 | AW67: 1432 | AX67: =+IF(AW67>=$L$11,$J$11,IF(AW67<($L$11),AW67*($J$11/($L$11)),)) -> 3 | AY67: =SUM(AR67,AV67,AX67) -> 15 | AZ67: =+AY67*$H$5 -> 5 | BA67: =+IF(Z67=0,0,IF(Z67>$K$7,$F$9,($F$9/$K$7)*Z67)) -> 8 | BB67: =IF(CZ67>0,$F$10,0) -> 2 | BC67: =IF(DA67>0,$F$11,0) -> 1 | BD67: =IF(DB67>0,$F$12,0) -> 1 | BE67: =IF(DC67>0,$F$13,0) -> 0 | BF67: =IF(DE67>0,$F$14,IF(DD67>0,$F$14/2,0)) -> 2 | BG67: =+IF(DF67>=$L$23,$J$23,IF(DF67<($L$23),DF67*($J$23/($L$23)),)) -> 0.3466666667 | BH67: =+IF(DG67>=$L$24,$J$24,IF(DG67<($L$24),DG67*($J$24/($L$24)),)) -> 0.5 | BI67: =+IF(DH67>=$L$25,$J$25,IF(DH67<($L$25),DH67*($J$25/($L$25)),)) -> 0 | BJ67: =+IF(DI67>=$L$26,$J$26,IF(DI67<($L$26),DI67*($J$26/($L$26)),)) -> 0 | BK67: =IF(DJ67>0,$F$16,0) -> 2 | BL67: =+IF(DM67>=$L$29,$J$29,IF(DM67<($L$29),DM67*($J$29/($L$29)),)) -> 2 | BM67: =IF(EA67>100000,$F$18,IF(EA67>0,$F$18/2,0)) -> 0 | BN67: =IF(DX67>0,$F$19,0) -> 2 | BO67: 0.6082191781 | BP67: =+IF(BO67>=$L$19,$J$19,IF(BO67<($L$19),BO67*($J$19/($L$19)),)) -> 0.06082191781 | BQ67: =SUM(BA67+BB67+BC67+BD67+BE67+BF67+BK67+BG67+BH67+BI67+BJ67+BL67+BM67+BN67+BP67) -> 20.90748858 | BR67: =+BQ67*$H$9 -> 6.969162861 | BS67: 3053.405601 | BT67: =BS67/X67 -> 0.782924513 | BU67: =IF(BT67>0,IF(BT67>=$CY$28,$CW$28,IF(BT67<$CY$28,$CW$29,0)),0) -> 1 | BV67: 3309.097139 | BW67: =BV67/X67 -> 0.848486446 | BX67: =IF(BW67,$F$23,0) -> 1 | BY67: =IF(DO67>0,$F$24,0) -> 1 | BZ67: 0 | CA67: =BZ67/X67 -> 0 | CB67: =+IF(CA67>=$K$4,$F$25,0) -> 0 | CC67: 66.19282051 | CD67: =IF(CC67>0,IF(CC67>=100,$F$26,IF(CC67<100,$F$26/2)),0) -> 0.5 | CE67: =SUM(DS67) -> 1 | CF67: =IF(DU67>0,$F$28,0) -> 0 | CG67: =IF(DT67>0,$F$29,0) -> 0 | CH67: =IF(DW67>0,$F$30,0) -> 1 | CI67: =SUM(BU67,BX67,CD67,BY67,CB67,CE67,CF67,CG67,CH67) -> 5.5 | CJ67: =+CI67*$H$22 -> 1.833333333 | CK67: =SUM(AY67,BQ67,CI67) -> 41.40748858 | CL67: =SUM(AZ67,BR67,CJ67) -> 13.80249619 | CM67: =IF(D67<($Z$13*1704),1,IF(D67<(($Z$14+$Z$13)*1704),2,IF(D67<(($Z$15+$Z$13+$Z$14)*1704),3,4))) -> 1 | CN67: =VLOOKUP(A67,Taul1!$F$6:$G$1718,2,FALSE) -> 1 | CT67: https://www.google.com/maps/@60.47027530,25.14183427,3a,75y,90t/data=!3m3!1e1!3m1!2e0 | CW67: 1 | CX67: 0 | CY67: 0 | CZ67: =SUM(CW67:CY67) -> 1 | DA67: 4 | DB67: 5 | DC67: 0 | DD67: 24 | DE67: 4 | DF67: 208 | DG67: 195 | DH67: 0 | DI67: 0 | DJ67: 1 | DM67: 3 | DN67: 0 | DO67: 3886.094844 | DQ67: =+IF(AA67>$K$8,$F$27/2,0) -> 1 | DR67: =+IF(AA67/Y67>1.5,$F$27/2,0) -> 0 | DS67: =SUM(DQ67:DR67) -> 1 | DT67: 0 | DU67: 0 | DW67: 1 | DX67: 2 | DY67: 0 | DZ67: 0.1213089481 | EA67: 0 | EC67: =IFERROR(VLOOKUP(A67,$EI$37:$EK$1748,2,FALSE),"--") -> LOPUT | ED67: =IFERROR(VLOOKUP(A67,$EI$37:$EK$1748,3,FALSE),"--") -> 213 | EE67: =IFERROR(ED67-D67,"--") -> 182 | EF67: =IFERROR(VLOOKUP(A67,$EI$37:$EL$1748,4,FALSE),"--") -> 2 | EG67: =IFERROR(EF67-K67,"--") -> 1 | EI67: 57_1 | EJ67: LOPUT | EK67: 24 | EL67: 1 | EN67: 14177 | EO67: 1
A68: =CONCATENATE(S68,"_",T68) -> 6_116 | B68: 1 | D68: =RANK(CL68,$CL$37:$CL$1740) -> 32 | E68: 32 | F68: =E68-D68 -> 0 | G68: =CL68 -> 13.75833333 | H68: =AZ68 -> 4.425 | I68: =BR68 -> 7.333333333 | J68: =CJ68 -> 2 | K68: =CM68 -> 1 | L68: =B68-K68 -> 0 | M68: =HYPERLINK(CT68,"Gmaps") -> Gmaps | N68: =IF(Y68>$K$6,"LOPUT","VÄHÄ") -> LOPUT | O68: =IF(S68<40,"Valta",IF(S68<100,"Kanta",IF(S68<1000,"Seutu",IF(S68>999,"Yhdys")))) -> Valta | P68: Valtatie 6 | Q68: Loviisa | R68: Uusimaa | S68: 6 | T68: 116 | U68: 0 | V68: 116 | W68: 10270 | X68: 10270 | Y68: 5467 | Z68: 704 | AA68: 6768 | AB68: 5467 (100 %) | AC68: 80 (21 %), 100 (79 %) | AD68: Is (100 %) | AE68: AB (100 %) | AF68: Y1 (100 %) | AG68: 2 | AH68: 5 | AI68: 0 | AJ68: 582 | AK68: Laajin Ternverkko | AL68: 1 | AN68: 0 | AO68: 0 | AR68: =+IF(Y68>=$K$6,$F$5,($F$5/($K$6))*Y68) -> 9 | AS68: 17 | AU68: 17 | AV68: =+IF(AS68>=$L$15,$J$15,IF(AS68<($L$15),AS68*($J$15/($L$15)),)) -> 1.275 | AW68: 2312 | AX68: =+IF(AW68>=$L$11,$J$11,IF(AW68<($L$11),AW68*($J$11/($L$11)),)) -> 3 | AY68: =SUM(AR68,AV68,AX68) -> 13.275 | AZ68: =+AY68*$H$5 -> 4.425 | BA68: =+IF(Z68=0,0,IF(Z68>$K$7,$F$9,($F$9/$K$7)*Z68)) -> 8 | BB68: =IF(CZ68>0,$F$10,0) -> 2 | BC68: =IF(DA68>0,$F$11,0) -> 1 | BD68: =IF(DB68>0,$F$12,0) -> 1 | BE68: =IF(DC68>0,$F$13,0) -> 0 | BF68: =IF(DE68>0,$F$14,IF(DD68>0,$F$14/2,0)) -> 2 | BG68: =+IF(DF68>=$L$23,$J$23,IF(DF68<($L$23),DF68*($J$23/($L$23)),)) -> 0.5 | BH68: =+IF(DG68>=$L$24,$J$24,IF(DG68<($L$24),DG68*($J$24/($L$24)),)) -> 0.5 | BI68: =+IF(DH68>=$L$25,$J$25,IF(DH68<($L$25),DH68*($J$25/($L$25)),)) -> 0 | BJ68: =+IF(DI68>=$L$26,$J$26,IF(DI68<($L$26),DI68*($J$26/($L$26)),)) -> 0 | BK68: =IF(DJ68>0,$F$16,0) -> 2 | BL68: =+IF(DM68>=$L$29,$J$29,IF(DM68<($L$29),DM68*($J$29/($L$29)),)) -> 2 | BM68: =IF(EA68>100000,$F$18,IF(EA68>0,$F$18/2,0)) -> 0 | BN68: =IF(DX68>0,$F$19,0) -> 2 | BO68: 28.97260274 | BP68: =+IF(BO68>=$L$19,$J$19,IF(BO68<($L$19),BO68*($J$19/($L$19)),)) -> 1 | BQ68: =SUM(BA68+BB68+BC68+BD68+BE68+BF68+BK68+BG68+BH68+BI68+BJ68+BL68+BM68+BN68+BP68) -> 22 | BR68: =+BQ68*$H$9 -> 7.333333333 | BS68: 3304.337423 | BT68: =BS68/X68 -> 0.3217465846 | BU68: =IF(BT68>0,IF(BT68>=$CY$28,$CW$28,IF(BT68<$CY$28,$CW$29,0)),0) -> 0.5 | BV68: 10259.45363 | BW68: =BV68/X68 -> 0.9989730893 | BX68: =IF(BW68,$F$23,0) -> 1 | BY68: =IF(DO68>0,$F$24,0) -> 1 | BZ68: 0 | CA68: =BZ68/X68 -> 0 | CB68: =+IF(CA68>=$K$4,$F$25,0) -> 0 | CC68: 9.589191821 | CD68: =IF(CC68>0,IF(CC68>=100,$F$26,IF(CC68<100,$F$26/2)),0) -> 0.5 | CE68: =SUM(DS68) -> 1 | CF68: =IF(DU68>0,$F$28,0) -> 0 | CG68: =IF(DT68>0,$F$29,0) -> 1 | CH68: =IF(DW68>0,$F$30,0) -> 1 | CI68: =SUM(BU68,BX68,CD68,BY68,CB68,CE68,CF68,CG68,CH68) -> 6 | CJ68: =+CI68*$H$22 -> 2 | CK68: =SUM(AY68,BQ68,CI68) -> 41.275 | CL68: =SUM(AZ68,BR68,CJ68) -> 13.75833333 | CM68: =IF(D68<($Z$13*1704),1,IF(D68<(($Z$14+$Z$13)*1704),2,IF(D68<(($Z$15+$Z$13+$Z$14)*1704),3,4))) -> 1 | CN68: =VLOOKUP(A68,Taul1!$F$6:$G$1718,2,FALSE) -> 1 | CT68: https://www.google.com/maps/@60.49113071,25.95867292,3a,75y,90t/data=!3m3!1e1!3m1!2e0 | CW68: 1 | CX68: 1 | CY68: 0 | CZ68: =SUM(CW68:CY68) -> 2 | DA68: 2 | DB68: 14 | DC68: 0 | DD68: 39 | DE68: 1 | DF68: 752 | DG68: 238 | DH68: 0 | DI68: 0 | DJ68: 1 | DM68: 5 | DN68: 0 | DO68: 10259.45363 | DQ68: =+IF(AA68>$K$8,$F$27/2,0) -> 1 | DR68: =+IF(AA68/Y68>1.5,$F$27/2,0) -> 0 | DS68: =SUM(DQ68:DR68) -> 1 | DT68: 1 | DU68: 0 | DW68: 1 | DX68: 2 | DY68: 0 | DZ68: 0 | EA68: 0 | EC68: =IFERROR(VLOOKUP(A68,$EI$37:$EK$1748,2,FALSE),"--") -> LOPUT | ED68: =IFERROR(VLOOKUP(A68,$EI$37:$EK$1748,3,FALSE),"--") -> 64 | EE68: =IFERROR(ED68-D68,"--") -> 32 | EF68: =IFERROR(VLOOKUP(A68,$EI$37:$EL$1748,4,FALSE),"--") -> 1 | EG68: =IFERROR(EF68-K68,"--") -> 0 | EI68: 148_3 | EJ68: LOPUT | EK68: 48 | EL68: 1 | EN68: 282 | EO68: 6
A69: =CONCATENATE(S69,"_",T69) -> 313_2 | B69: 1 | D69: =RANK(CL69,$CL$37:$CL$1740) -> 33 | E69: 33 | F69: =E69-D69 -> 0 | G69: =CL69 -> 13.75277778 | H69: =AZ69 -> 4.89 | I69: =BR69 -> 6.362777778 | J69: =CJ69 -> 2.5 | K69: =CM69 -> 1 | L69: =B69-K69 -> 0 | M69: =HYPERLINK(CT69,"Gmaps") -> Gmaps | N69: =IF(Y69>$K$6,"LOPUT","VÄHÄ") -> LOPUT | O69: =IF(S69<40,"Valta",IF(S69<100,"Kanta",IF(S69<1000,"Seutu",IF(S69>999,"Yhdys")))) -> Seutu | P69: Anianpellontie | Q69: Asikkala | R69: Päijät-Häme | S69: 313 | T69: 2 | U69: 0 | V69: 2 | W69: 1316 | X69: 1316 | Y69: 2107 | Z69: 188 | AA69: 2949 | AB69: 2107 (100 %) | AC69: 50 (21 %), 60 (11 %), 80 (67 %) | AD69: Ib (100 %) | AE69: AB (100 %) | AF69: Y2 (100 %) | AG69: 0 | AH69: 1 | AI69: 0.8358662614 | AJ69: 90 | AN69: 0 | AO69: 0.1827751537 | AR69: =+IF(Y69>=$K$6,$F$5,($F$5/($K$6))*Y69) -> 9 | AS69: 49 | AU69: 49 | AV69: =+IF(AS69>=$L$15,$J$15,IF(AS69<($L$15),AS69*($J$15/($L$15)),)) -> 3 | AW69: 267 | AX69: =+IF(AW69>=$L$11,$J$11,IF(AW69<($L$11),AW69*($J$11/($L$11)),)) -> 2.67 | AY69: =SUM(AR69,AV69,AX69) -> 14.67 | AZ69: =+AY69*$H$5 -> 4.89 | BA69: =+IF(Z69=0,0,IF(Z69>$K$7,$F$9,($F$9/$K$7)*Z69)) -> 8 | BB69: =IF(CZ69>0,$F$10,0) -> 0 | BC69: =IF(DA69>0,$F$11,0) -> 1 | BD69: =IF(DB69>0,$F$12,0) -> 1 | BE69: =IF(DC69>0,$F$13,0) -> 0 | BF69: =IF(DE69>0,$F$14,IF(DD69>0,$F$14/2,0)) -> 2 | BG69: =+IF(DF69>=$L$23,$J$23,IF(DF69<($L$23),DF69*($J$23/($L$23)),)) -> 0.04333333333 | BH69: =+IF(DG69>=$L$24,$J$24,IF(DG69<($L$24),DG69*($J$24/($L$24)),)) -> 0.045 | BI69: =+IF(DH69>=$L$25,$J$25,IF(DH69<($L$25),DH69*($J$25/($L$25)),)) -> 0 | BJ69: =+IF(DI69>=$L$26,$J$26,IF(DI69<($L$26),DI69*($J$26/($L$26)),)) -> 0 | BK69: =IF(DJ69>0,$F$16,0) -> 2 | BL69: =+IF(DM69>=$L$29,$J$29,IF(DM69<($L$29),DM69*($J$29/($L$29)),)) -> 2 | BM69: =IF(EA69>100000,$F$18,IF(EA69>0,$F$18/2,0)) -> 0 | BN69: =IF(DX69>0,$F$19,0) -> 2 | BO69: 28.9369863 | BP69: =+IF(BO69>=$L$19,$J$19,IF(BO69<($L$19),BO69*($J$19/($L$19)),)) -> 1 | BQ69: =SUM(BA69+BB69+BC69+BD69+BE69+BF69+BK69+BG69+BH69+BI69+BJ69+BL69+BM69+BN69+BP69) -> 19.08833333 | BR69: =+BQ69*$H$9 -> 6.362777778 | BS69: 1312.292464 | BT69: =BS69/X69 -> 0.9971827232 | BU69: =IF(BT69>0,IF(BT69>=$CY$28,$CW$28,IF(BT69<$CY$28,$CW$29,0)),0) -> 1 | BV69: 1312.292464 | BW69: =BV69/X69 -> 0.9971827232 | BX69: =IF(BW69,$F$23,0) -> 1 | BY69: =IF(DO69>0,$F$24,0) -> 1 | BZ69: 0 | CA69: =BZ69/X69 -> 0 | CB69: =+IF(CA69>=$K$4,$F$25,0) -> 0 | CC69: 12.12765957 | CD69: =IF(CC69>0,IF(CC69>=100,$F$26,IF(CC69<100,$F$26/2)),0) -> 0.5 | CE69: =SUM(DS69) -> 1 | CF69: =IF(DU69>0,$F$28,0) -> 1 | CG69: =IF(DT69>0,$F$29,0) -> 1 | CH69: =IF(DW69>0,$F$30,0) -> 1 | CI69: =SUM(BU69,BX69,CD69,BY69,CB69,CE69,CF69,CG69,CH69) -> 7.5 | CJ69: =+CI69*$H$22 -> 2.5 | CK69: =SUM(AY69,BQ69,CI69) -> 41.25833333 | CL69: =SUM(AZ69,BR69,CJ69) -> 13.75277778 | CM69: =IF(D69<($Z$13*1704),1,IF(D69<(($Z$14+$Z$13)*1704),2,IF(D69<(($Z$15+$Z$13+$Z$14)*1704),3,4))) -> 1 | CN69: =VLOOKUP(A69,Taul1!$F$6:$G$1718,2,FALSE) -> 1 | CT69: https://www.google.com/maps/@61.15194355,25.64859360,3a,75y,90t/data=!3m3!1e1!3m1!2e0 | CW69: 0 | CX69: 0 | CY69: 0 | CZ69: =SUM(CW69:CY69) -> 0 | DA69: 1 | DB69: 7 | DC69: 0 | DD69: 16 | DE69: 3 | DF69: 26 | DG69: 9 | DH69: 0 | DI69: 0 | DJ69: 3 | DM69: 10 | DN69: 0 | DO69: 1312.292464 | DQ69: =+IF(AA69>$K$8,$F$27/2,0) -> 1 | DR69: =+IF(AA69/Y69>1.5,$F$27/2,0) -> 0 | DS69: =SUM(DQ69:DR69) -> 1 | DT69: 2 | DU69: 1 | DW69: 1 | DX69: 4 | DY69: 0 | DZ69: 0.1827751537 | EA69: 0 | EC69: =IFERROR(VLOOKUP(A69,$EI$37:$EK$1748,2,FALSE),"--") -> LOPUT | ED69: =IFERROR(VLOOKUP(A69,$EI$37:$EK$1748,3,FALSE),"--") -> 128 | EE69: =IFERROR(ED69-D69,"--") -> 95 | EF69: =IFERROR(VLOOKUP(A69,$EI$37:$EL$1748,4,FALSE),"--") -> 2 | EG69: =IFERROR(EF69-K69,"--") -> 1 | EI69: 53_1 | EJ69: LOPUT | EK69: 73 | EL69: 1 | EN69: 111 | EO69: 2
A70: =CONCATENATE(S70,"_",T70) -> 55_1 | B70: 1 | D70: =RANK(CL70,$CL$37:$CL$1740) -> 34 | E70: 34 | F70: =E70-D70 -> 0 | G70: =CL70 -> 13.74333333 | H70: =AZ70 -> 5 | I70: =BR70 -> 6.743333333 | J70: =CJ70 -> 2 | K70: =CM70 -> 1 | L70: =B70-K70 -> 0 | M70: =HYPERLINK(CT70,"Gmaps") -> Gmaps | N70: =IF(Y70>$K$6,"LOPUT","VÄHÄ") -> LOPUT | O70: =IF(S70<40,"Valta",IF(S70<100,"Kanta",IF(S70<1000,"Seutu",IF(S70>999,"Yhdys")))) -> Kanta | P70: Läntinen Mannerheiminväylä, Mäntsäläntie | Q70: Porvoo | R70: Uusimaa | S70: 55 | T70: 1 | U70: 0 | V70: 1 | W70: 8068 | X70: 8068 | Y70: 8361.871344 | Z70: 523.4433565 | AA70: 9076.845315 | AB70: 15143 (19 %), 6817 (81 %) | AC70: 50 (12 %), 60 (9 %), 80 (79 %) | AD70: Is (81 %), Ise (19 %) | AE70: AB (100 %) | AF70: Y1 (100 %) | AG70: 10 | AH70: 29 | AI70: 0.01782780151 | AJ70: 302.2088498 | AN70: 0 | AO70: 0.2000262122 | AR70: =+IF(Y70>=$K$6,$F$5,($F$5/($K$6))*Y70) -> 9 | AS70: 579 | AU70: 380 | AV70: =+IF(AS70>=$L$15,$J$15,IF(AS70<($L$15),AS70*($J$15/($L$15)),)) -> 3 | AW70: 8510 | AX70: =+IF(AW70>=$L$11,$J$11,IF(AW70<($L$11),AW70*($J$11/($L$11)),)) -> 3 | AY70: =SUM(AR70,AV70,AX70) -> 15 | AZ70: =+AY70*$H$5 -> 5 | BA70: =+IF(Z70=0,0,IF(Z70>$K$7,$F$9,($F$9/$K$7)*Z70)) -> 8 | BB70: =IF(CZ70>0,$F$10,0) -> 2 | BC70: =IF(DA70>0,$F$11,0) -> 1 | BD70: =IF(DB70>0,$F$12,0) -> 1 | BE70: =IF(DC70>0,$F$13,0) -> 0 | BF70: =IF(DE70>0,$F$14,IF(DD70>0,$F$14/2,0)) -> 2 | BG70: =+IF(DF70>=$L$23,$J$23,IF(DF70<($L$23),DF70*($J$23/($L$23)),)) -> 0.455 | BH70: =+IF(DG70>=$L$24,$J$24,IF(DG70<($L$24),DG70*($J$24/($L$24)),)) -> 0.275 | BI70: =+IF(DH70>=$L$25,$J$25,IF(DH70<($L$25),DH70*($J$25/($L$25)),)) -> 0 | BJ70: =+IF(DI70>=$L$26,$J$26,IF(DI70<($L$26),DI70*($J$26/($L$26)),)) -> 0.5 | BK70: =IF(DJ70>0,$F$16,0) -> 0 | BL70: =+IF(DM70>=$L$29,$J$29,IF(DM70<($L$29),DM70*($J$29/($L$29)),)) -> 2 | BM70: =IF(EA70>100000,$F$18,IF(EA70>0,$F$18/2,0)) -> 0 | BN70: =IF(DX70>0,$F$19,0) -> 2 | BO70: 24.60821918 | BP70: =+IF(BO70>=$L$19,$J$19,IF(BO70<($L$19),BO70*($J$19/($L$19)),)) -> 1 | BQ70: =SUM(BA70+BB70+BC70+BD70+BE70+BF70+BK70+BG70+BH70+BI70+BJ70+BL70+BM70+BN70+BP70) -> 20.23 | BR70: =+BQ70*$H$9 -> 6.743333333 | BS70: 1999.925866 | BT70: =BS70/X70 -> 0.2478837216 | BU70: =IF(BT70>0,IF(BT70>=$CY$28,$CW$28,IF(BT70<$CY$28,$CW$29,0)),0) -> 0.5 | BV70: 7781.695974 | BW70: =BV70/X70 -> 0.9645136309 | BX70: =IF(BW70,$F$23,0) -> 1 | BY70: =IF(DO70>0,$F$24,0) -> 1 | BZ70: 662.882205 | CA70: =BZ70/X70 -> 0.08216189948 | CB70: =+IF(CA70>=$K$4,$F$25,0) -> 0 | CC70: 49.37828458 | CD70: =IF(CC70>0,IF(CC70>=100,$F$26,IF(CC70<100,$F$26/2)),0) -> 0.5 | CE70: =SUM(DS70) -> 1 | CF70: =IF(DU70>0,$F$28,0) -> 0 | CG70: =IF(DT70>0,$F$29,0) -> 1 | CH70: =IF(DW70>0,$F$30,0) -> 1 | CI70: =SUM(BU70,BX70,CD70,BY70,CB70,CE70,CF70,CG70,CH70) -> 6 | CJ70: =+CI70*$H$22 -> 2 | CK70: =SUM(AY70,BQ70,CI70) -> 41.23 | CL70: =SUM(AZ70,BR70,CJ70) -> 13.74333333 | CM70: =IF(D70<($Z$13*1704),1,IF(D70<(($Z$14+$Z$13)*1704),2,IF(D70<(($Z$15+$Z$13+$Z$14)*1704),3,4))) -> 1 | CN70: =VLOOKUP(A70,Taul1!$F$6:$G$1718,2,FALSE) -> 2 | CT70: https://www.google.com/maps/@60.39058864,25.63397464,3a,75y,90t/data=!3m3!1e1!3m1!2e0 | CW70: 1 | CX70: 0 | CY70: 1 | CZ70: =SUM(CW70:CY70) -> 2 | DA70: 1 | DB70: 5 | DC70: 0 | DD70: 35 | DE70: 2 | DF70: 273 | DG70: 55 | DH70: 0 | DI70: 80 | DJ70: 0 | DM70: 22 | DN70: 0 | DO70: 8077.300192 | DQ70: =+IF(AA70>$K$8,$F$27/2,0) -> 1 | DR70: =+IF(AA70/Y70>1.5,$F$27/2,0) -> 0 | DS70: =SUM(DQ70:DR70) -> 1 | DT70: 1 | DU70: 0 | DW70: 1 | DX70: 13 | DY70: 0 | DZ70: 0.2000262122 | EA70: 0 | EC70: =IFERROR(VLOOKUP(A70,$EI$37:$EK$1748,2,FALSE),"--") -> LOPUT | ED70: =IFERROR(VLOOKUP(A70,$EI$37:$EK$1748,3,FALSE),"--") -> 10 | EE70: =IFERROR(ED70-D70,"--") -> -24 | EF70: =IFERROR(VLOOKUP(A70,$EI$37:$EL$1748,4,FALSE),"--") -> 1 | EG70: =IFERROR(EF70-K70,"--") -> 0 | EI70: 176_1 | EJ70: LOPUT | EK70: 42 | EL70: 1
A71: =CONCATENATE(S71,"_",T71) -> 54_9 | B71: 1 | D71: =RANK(CL71,$CL$37:$CL$1740) -> 35 | E71: 35 | F71: =E71-D71 -> 0 | G71: =CL71 -> 13.69166667 | H71: =AZ71 -> 4.025 | I71: =BR71 -> 7.833333333 | J71: =CJ71 -> 1.833333333 | K71: =CM71 -> 1 | L71: =B71-K71 -> 0 | M71: =HYPERLINK(CT71,"Gmaps") -> Gmaps | N71: =IF(Y71>$K$6,"LOPUT","VÄHÄ") -> LOPUT | O71: =IF(S71<40,"Valta",IF(S71<100,"Kanta",IF(S71<1000,"Seutu",IF(S71>999,"Yhdys")))) -> Kanta | P71: Lopen kantatie | Q71: Loppi | R71: Kanta-Häme | S71: 54 | T71: 9 | U71: 0 | V71: 9 | W71: 4317 | X71: 4317 | Y71: 6828 | Z71: 718 | AA71: 8338 | AB71: 6828 (100 %) | AC71: 80 (6 %), 100 (93 %) | AD71: Is (100 %) | AE71: AB (100 %) | AF71: Y1 (100 %) | AG71: 2 | AH71: 9 | AI71: 0.02316423442 | AJ71: 396 | AM71: x | AN71: 0 | AO71: 0 | AR71: =+IF(Y71>=$K$6,$F$5,($F$5/($K$6))*Y71) -> 9 | AS71: 1 | AU71: 1 | AV71: =+IF(AS71>=$L$15,$J$15,IF(AS71<($L$15),AS71*($J$15/($L$15)),)) -> 0.075 | AW71: 2113 | AX71: =+IF(AW71>=$L$11,$J$11,IF(AW71<($L$11),AW71*($J$11/($L$11)),)) -> 3 | AY71: =SUM(AR71,AV71,AX71) -> 12.075 | AZ71: =+AY71*$H$5 -> 4.025 | BA71: =+IF(Z71=0,0,IF(Z71>$K$7,$F$9,($F$9/$K$7)*Z71)) -> 8 | BB71: =IF(CZ71>0,$F$10,0) -> 2 | BC71: =IF(DA71>0,$F$11,0) -> 1 | BD71: =IF(DB71>0,$F$12,0) -> 1 | BE71: =IF(DC71>0,$F$13,0) -> 1 | BF71: =IF(DE71>0,$F$14,IF(DD71>0,$F$14/2,0)) -> 2 | BG71: =+IF(DF71>=$L$23,$J$23,IF(DF71<($L$23),DF71*($J$23/($L$23)),)) -> 0.5 | BH71: =+IF(DG71>=$L$24,$J$24,IF(DG71<($L$24),DG71*($J$24/($L$24)),)) -> 0.5 | BI71: =+IF(DH71>=$L$25,$J$25,IF(DH71<($L$25),DH71*($J$25/($L$25)),)) -> 0 | BJ71: =+IF(DI71>=$L$26,$J$26,IF(DI71<($L$26),DI71*($J$26/($L$26)),)) -> 0.5 | BK71: =IF(DJ71>0,$F$16,0) -> 2 | BL71: =+IF(DM71>=$L$29,$J$29,IF(DM71<($L$29),DM71*($J$29/($L$29)),)) -> 2 | BM71: =IF(EA71>100000,$F$18,IF(EA71>0,$F$18/2,0)) -> 0 | BN71: =IF(DX71>0,$F$19,0) -> 2 | BO71: 44.66027397 | BP71: =+IF(BO71>=$L$19,$J$19,IF(BO71<($L$19),BO71*($J$19/($L$19)),)) -> 1 | BQ71: =SUM(BA71+BB71+BC71+BD71+BE71+BF71+BK71+BG71+BH71+BI71+BJ71+BL71+BM71+BN71+BP71) -> 23.5 | BR71: =+BQ71*$H$9 -> 7.833333333 | BS71: 4307.612477 | BT71: =BS71/X71 -> 0.9978254522 | BU71: =IF(BT71>0,IF(BT71>=$CY$28,$CW$28,IF(BT71<$CY$28,$CW$29,0)),0) -> 1 | BV71: 4307.612477 | BW71: =BV71/X71 -> 0.9978254522 | BX71: =IF(BW71,$F$23,0) -> 1 | BY71: =IF(DO71>0,$F$24,0) -> 1 | BZ71: 0 | CA71: =BZ71/X71 -> 0 | CB71: =+IF(CA71>=$K$4,$F$25,0) -> 0 | CC71: 49.68496641 | CD71: =IF(CC71>0,IF(CC71>=100,$F$26,IF(CC71<100,$F$26/2)),0) -> 0.5 | CE71: =SUM(DS71) -> 1 | CF71: =IF(DU71>0,$F$28,0) -> 0 | CG71: =IF(DT71>0,$F$29,0) -> 0 | CH71: =IF(DW71>0,$F$30,0) -> 1 | CI71: =SUM(BU71,BX71,CD71,BY71,CB71,CE71,CF71,CG71,CH71) -> 5.5 | CJ71: =+CI71*$H$22 -> 1.833333333 | CK71: =SUM(AY71,BQ71,CI71) -> 41.075 | CL71: =SUM(AZ71,BR71,CJ71) -> 13.69166667 | CM71: =IF(D71<($Z$13*1704),1,IF(D71<(($Z$14+$Z$13)*1704),2,IF(D71<(($Z$15+$Z$13+$Z$14)*1704),3,4))) -> 1 | CN71: =VLOOKUP(A71,Taul1!$F$6:$G$1718,2,FALSE) -> 1 | CT71: https://www.google.com/maps/@60.73713206,24.57107896,3a,75y,90t/data=!3m3!1e1!3m1!2e0 | CW71: 0 | CX71: 0 | CY71: 1 | CZ71: =SUM(CW71:CY71) -> 1 | DA71: 1 | DB71: 5 | DC71: 2 | DD71: 19 | DE71: 1 | DF71: 429 | DG71: 733 | DH71: 0 | DI71: 14085 | DJ71: 1 | DM71: 16 | DN71: 0 | DO71: 4307.612477 | DQ71: =+IF(AA71>$K$8,$F$27/2,0) -> 1 | DR71: =+IF(AA71/Y71>1.5,$F$27/2,0) -> 0 | DS71: =SUM(DQ71:DR71) -> 1 | DT71: 0 | DU71: 0 | DW71: 1 | DX71: 3 | DY71: 0 | DZ71: 0 | EA71: 0 | EC71: =IFERROR(VLOOKUP(A71,$EI$37:$EK$1748,2,FALSE),"--") -> LOPUT | ED71: =IFERROR(VLOOKUP(A71,$EI$37:$EK$1748,3,FALSE),"--") -> 46 | EE71: =IFERROR(ED71-D71,"--") -> 11 | EF71: =IFERROR(VLOOKUP(A71,$EI$37:$EL$1748,4,FALSE),"--") -> 1 | EG71: =IFERROR(EF71-K71,"--") -> 0 | EI71: 54_9 | EJ71: LOPUT | EK71: 46 | EL71: 1 | EN71: 13903 | EO71: 2
A72: =CONCATENATE(S72,"_",T72) -> 296_2 | B72: 1 | D72: =RANK(CL72,$CL$37:$CL$1740) -> 36 | E72: 36 | F72: =E72-D72 -> 0 | G72: =CL72 -> 13.66923896 | H72: =AZ72 -> 5 | I72: =BR72 -> 6.335905632 | J72: =CJ72 -> 2.333333333 | K72: =CM72 -> 1 | L72: =B72-K72 -> 0 | M72: =HYPERLINK(CT72,"Gmaps") -> Gmaps | N72: =IF(Y72>$K$6,"LOPUT","VÄHÄ") -> LOPUT | O72: =IF(S72<40,"Valta",IF(S72<100,"Kanta",IF(S72<1000,"Seutu",IF(S72>999,"Yhdys")))) -> Seutu | P72: Uusi Orimattilantie | Q72: Lahti | R72: Päijät-Häme | S72: 296 | T72: 2 | U72: 0 | V72: 2 | W72: 1930 | X72: 1930 | Y72: 11582 | Z72: 829 | AA72: 12450 | AB72: 11582 (100 %) | AC72: 60 (101 %) | AD72: Ise (101 %) | AE72: AB (101 %) | AF72: Y2 (101 %) | AG72: 0 | AH72: 11 | AI72: 0.05898043865 | AJ72: 255 | AN72: 0 | AO72: 0.1982589878 | AR72: =+IF(Y72>=$K$6,$F$5,($F$5/($K$6))*Y72) -> 9 | AS72: 88 | AU72: 88 | AV72: =+IF(AS72>=$L$15,$J$15,IF(AS72<($L$15),AS72*($J$15/($L$15)),)) -> 3 | AW72: 4210 | AX72: =+IF(AW72>=$L$11,$J$11,IF(AW72<($L$11),AW72*($J$11/($L$11)),)) -> 3 | AY72: =SUM(AR72,AV72,AX72) -> 15 | AZ72: =+AY72*$H$5 -> 5 | BA72: =+IF(Z72=0,0,IF(Z72>$K$7,$F$9,($F$9/$K$7)*Z72)) -> 8 | BB72: =IF(CZ72>0,$F$10,0) -> 2 | BC72: =IF(DA72>0,$F$11,0) -> 1 | BD72: =IF(DB72>0,$F$12,0) -> 0 | BE72: =IF(DC72>0,$F$13,0) -> 0 | BF72: =IF(DE72>0,$F$14,IF(DD72>0,$F$14/2,0)) -> 1 | BG72: =+IF(DF72>=$L$23,$J$23,IF(DF72<($L$23),DF72*($J$23/($L$23)),)) -> 0.2183333333 | BH72: =+IF(DG72>=$L$24,$J$24,IF(DG72<($L$24),DG72*($J$24/($L$24)),)) -> 0.025 | BI72: =+IF(DH72>=$L$25,$J$25,IF(DH72<($L$25),DH72*($J$25/($L$25)),)) -> 0 | BJ72: =+IF(DI72>=$L$26,$J$26,IF(DI72<($L$26),DI72*($J$26/($L$26)),)) -> 0 | BK72: =IF(DJ72>0,$F$16,0) -> 2 | BL72: =+IF(DM72>=$L$29,$J$29,IF(DM72<($L$29),DM72*($J$29/($L$29)),)) -> 2 | BM72: =IF(EA72>100000,$F$18,IF(EA72>0,$F$18/2,0)) -> 0.5 | BN72: =IF(DX72>0,$F$19,0) -> 2 | BO72: 2.643835616 | BP72: =+IF(BO72>=$L$19,$J$19,IF(BO72<($L$19),BO72*($J$19/($L$19)),)) -> 0.2643835616 | BQ72: =SUM(BA72+BB72+BC72+BD72+BE72+BF72+BK72+BG72+BH72+BI72+BJ72+BL72+BM72+BN72+BP72) -> 19.00771689 | BR72: =+BQ72*$H$9 -> 6.335905632 | BS72: 1944.477046 | BT72: =BS72/X72 -> 1.00750106 | BU72: =IF(BT72>0,IF(BT72>=$CY$28,$CW$28,IF(BT72<$CY$28,$CW$29,0)),0) -> 1 | BV72: 1944.477046 | BW72: =BV72/X72 -> 1.00750106 | BX72: =IF(BW72,$F$23,0) -> 1 | BY72: =IF(DO72>0,$F$24,0) -> 1 | BZ72: 0 | CA72: =BZ72/X72 -> 0 | CB72: =+IF(CA72>=$K$4,$F$25,0) -> 0 | CC72: 158.2953368 | CD72: =IF(CC72>0,IF(CC72>=100,$F$26,IF(CC72<100,$F$26/2)),0) -> 1 | CE72: =SUM(DS72) -> 1 | CF72: =IF(DU72>0,$F$28,0) -> 0 | CG72: =IF(DT72>0,$F$29,0) -> 1 | CH72: =IF(DW72>0,$F$30,0) -> 1 | CI72: =SUM(BU72,BX72,CD72,BY72,CB72,CE72,CF72,CG72,CH72) -> 7 | CJ72: =+CI72*$H$22 -> 2.333333333 | CK72: =SUM(AY72,BQ72,CI72) -> 41.00771689 | CL72: =SUM(AZ72,BR72,CJ72) -> 13.66923896 | CM72: =IF(D72<($Z$13*1704),1,IF(D72<(($Z$14+$Z$13)*1704),2,IF(D72<(($Z$15+$Z$13+$Z$14)*1704),3,4))) -> 1 | CN72: =VLOOKUP(A72,Taul1!$F$6:$G$1718,2,FALSE) -> 1 | CT72: https://www.google.com/maps/@60.94578496,25.60510961,3a,75y,90t/data=!3m3!1e1!3m1!2e0 | CW72: 0 | CX72: 0 | CY72: 1 | CZ72: =SUM(CW72:CY72) -> 1 | DA72: 3 | DB72: 0 | DC72: 0 | DD72: 4 | DE72: 0 | DF72: 131 | DG72: 5 | DH72: 0 | DI72: 0 | DJ72: 3 | DM72: 12 | DN72: 0 | DO72: 1944.477046 | DQ72: =+IF(AA72>$K$8,$F$27/2,0) -> 1 | DR72: =+IF(AA72/Y72>1.5,$F$27/2,0) -> 0 | DS72: =SUM(DQ72:DR72) -> 1 | DT72: 1 | DU72: 0 | DW72: 1 | DX72: 1 | DY72: 0 | DZ72: 0.1982589878 | EA72: 27482 | EC72: =IFERROR(VLOOKUP(A72,$EI$37:$EK$1748,2,FALSE),"--") -> LOPUT | ED72: =IFERROR(VLOOKUP(A72,$EI$37:$EK$1748,3,FALSE),"--") -> 72 | EE72: =IFERROR(ED72-D72,"--") -> 36 | EF72: =IFERROR(VLOOKUP(A72,$EI$37:$EL$1748,4,FALSE),"--") -> 1 | EG72: =IFERROR(EF72-K72,"--") -> 0 | EI72: 2_22 | EJ72: LOPUT | EK72: 41 | EL72: 1 | EN72: 1251 | EO72: 1
A73: =CONCATENATE(S73,"_",T73) -> 51_8 | B73: 1 | D73: =RANK(CL73,$CL$37:$CL$1740) -> 37 | E73: 37 | F73: =E73-D73 -> 0 | G73: =CL73 -> 13.66722222 | H73: =AZ73 -> 5 | I73: =BR73 -> 6.333888889 | J73: =CJ73 -> 2.333333333 | K73: =CM73 -> 1 | L73: =B73-K73 -> 0 | M73: =HYPERLINK(CT73,"Gmaps") -> Gmaps | N73: =IF(Y73>$K$6,"LOPUT","VÄHÄ") -> LOPUT | O73: =IF(S73<40,"Valta",IF(S73<100,"Kanta",IF(S73<1000,"Seutu",IF(S73>999,"Yhdys")))) -> Kanta | P73: Länsiväylä | Q73: Kirkkonummi | R73: Uusimaa | S73: 51 | T73: 8 | U73: 0 | V73: 8 | W73: 5930 | X73: 5930 | Y73: 24886 | Z73: 1243 | AA73: 27418 | AB73: 24886 (100 %) | AC73: 80 (13 %), 100 (87 %) | AD73: Ise (100 %) | AE73: AB (100 %) | AF73: Y1 (100 %) | AG73: 1 | AH73: 6 | AI73: 0.01264755481 | AJ73: 652 | AN73: 0 | AO73: 0 | AR73: =+IF(Y73>=$K$6,$F$5,($F$5/($K$6))*Y73) -> 9 | AS73: 1905 | AU73: 121 | AV73: =+IF(AS73>=$L$15,$J$15,IF(AS73<($L$15),AS73*($J$15/($L$15)),)) -> 3 | AW73: 12194 | AX73: =+IF(AW73>=$L$11,$J$11,IF(AW73<($L$11),AW73*($J$11/($L$11)),)) -> 3 | AY73: =SUM(AR73,AV73,AX73) -> 15 | AZ73: =+AY73*$H$5 -> 5 | BA73: =+IF(Z73=0,0,IF(Z73>$K$7,$F$9,($F$9/$K$7)*Z73)) -> 8 | BB73: =IF(CZ73>0,$F$10,0) -> 2 | BC73: =IF(DA73>0,$F$11,0) -> 0 | BD73: =IF(DB73>0,$F$12,0) -> 1 | BE73: =IF(DC73>0,$F$13,0) -> 0 | BF73: =IF(DE73>0,$F$14,IF(DD73>0,$F$14/2,0)) -> 2 | BG73: =+IF(DF73>=$L$23,$J$23,IF(DF73<($L$23),DF73*($J$23/($L$23)),)) -> 0.2766666667 | BH73: =+IF(DG73>=$L$24,$J$24,IF(DG73<($L$24),DG73*($J$24/($L$24)),)) -> 0.225 | BI73: =+IF(DH73>=$L$25,$J$25,IF(DH73<($L$25),DH73*($J$25/($L$25)),)) -> 0 | BJ73: =+IF(DI73>=$L$26,$J$26,IF(DI73<($L$26),DI73*($J$26/($L$26)),)) -> 0 | BK73: =IF(DJ73>0,$F$16,0) -> 0 | BL73: =+IF(DM73>=$L$29,$J$29,IF(DM73<($L$29),DM73*($J$29/($L$29)),)) -> 2 | BM73: =IF(EA73>100000,$F$18,IF(EA73>0,$F$18/2,0)) -> 0.5 | BN73: =IF(DX73>0,$F$19,0) -> 2 | BO73: 11.96712329 | BP73: =+IF(BO73>=$L$19,$J$19,IF(BO73<($L$19),BO73*($J$19/($L$19)),)) -> 1 | BQ73: =SUM(BA73+BB73+BC73+BD73+BE73+BF73+BK73+BG73+BH73+BI73+BJ73+BL73+BM73+BN73+BP73) -> 19.00166667 | BR73: =+BQ73*$H$9 -> 6.333888889 | BS73: 5139.902676 | BT73: =BS73/X73 -> 0.8667626772 | BU73: =IF(BT73>0,IF(BT73>=$CY$28,$CW$28,IF(BT73<$CY$28,$CW$29,0)),0) -> 1 | BV73: 4326.246969 | BW73: =BV73/X73 -> 0.7295526086 | BX73: =IF(BW73,$F$23,0) -> 1 | BY73: =IF(DO73>0,$F$24,0) -> 1 | BZ73: 0 | CA73: =BZ73/X73 -> 0 | CB73: =+IF(CA73>=$K$4,$F$25,0) -> 0 | CC73: 286.762226 | CD73: =IF(CC73>0,IF(CC73>=100,$F$26,IF(CC73<100,$F$26/2)),0) -> 1 | CE73: =SUM(DS73) -> 1 | CF73: =IF(DU73>0,$F$28,0) -> 0 | CG73: =IF(DT73>0,$F$29,0) -> 1 | CH73: =IF(DW73>0,$F$30,0) -> 1 | CI73: =SUM(BU73,BX73,CD73,BY73,CB73,CE73,CF73,CG73,CH73) -> 7 | CJ73: =+CI73*$H$22 -> 2.333333333 | CK73: =SUM(AY73,BQ73,CI73) -> 41.00166667 | CL73: =SUM(AZ73,BR73,CJ73) -> 13.66722222 | CM73: =IF(D73<($Z$13*1704),1,IF(D73<(($Z$14+$Z$13)*1704),2,IF(D73<(($Z$15+$Z$13+$Z$14)*1704),3,4))) -> 1 | CN73: =VLOOKUP(A73,Taul1!$F$6:$G$1718,2,FALSE) -> 1 | CT73: https://www.google.com/maps/@60.13786742,24.53492703,3a,75y,90t/data=!3m3!1e1!3m1!2e0 | CW73: 0 | CX73: 1 | CY73: 0 | CZ73: =SUM(CW73:CY73) -> 1 | DA73: 0 | DB73: 3 | DC73: 0 | DD73: 16 | DE73: 3 | DF73: 166 | DG73: 45 | DH73: 0 | DI73: 0 | DJ73: 0 | DM73: 20 | DN73: 0 | DO73: 1443.895938 | DQ73: =+IF(AA73>$K$8,$F$27/2,0) -> 1 | DR73: =+IF(AA73/Y73>1.5,$F$27/2,0) -> 0 | DS73: =SUM(DQ73:DR73) -> 1 | DT73: 6 | DU73: 0 | DW73: 1 | DX73: 9 | DY73: 0 | DZ73: 0 | EA73: 10680 | EC73: =IFERROR(VLOOKUP(A73,$EI$37:$EK$1748,2,FALSE),"--") -> LOPUT | ED73: =IFERROR(VLOOKUP(A73,$EI$37:$EK$1748,3,FALSE),"--") -> 82 | EE73: =IFERROR(ED73-D73,"--") -> 45 | EF73: =IFERROR(VLOOKUP(A73,$EI$37:$EL$1748,4,FALSE),"--") -> 1 | EG73: =IFERROR(EF73-K73,"--") -> 0 | EI73: 148_1 | EJ73: LOPUT | EK73: 38 | EL73: 1 | EN73: 46 | EO73: 12
A74: =CONCATENATE(S74,"_",T74) -> 140_30 | B74: 1 | D74: =RANK(CL74,$CL$37:$CL$1740) -> 38 | E74: 38 | F74: =E74-D74 -> 0 | G74: =CL74 -> 13.66666667 | H74: =AZ74 -> 5 | I74: =BR74 -> 6.333333333 | J74: =CJ74 -> 2.333333333 | K74: =CM74 -> 1 | L74: =B74-K74 -> 0 | M74: =HYPERLINK(CT74,"Gmaps") -> Gmaps | N74: =IF(Y74>$K$6,"LOPUT","VÄHÄ") -> LOPUT | O74: =IF(S74<40,"Valta",IF(S74<100,"Kanta",IF(S74<1000,"Seutu",IF(S74>999,"Yhdys")))) -> Seutu | P74: Lahdentie, Myllyojantie, Siltakatu | Q74: Heinola | R74: Päijät-Häme | S74: 140 | T74: 30 | U74: 0 | V74: 30 | W74: 4366 | X74: 4366 | Y74: 3710 | Z74: 179 | AA74: 4103 | AB74: 3710 (100 %) | AC74: 60 (20 %), 70 (80 %) | AD74: Ib (100 %) | AE74: AB (100 %) | AF74: Y2 (100 %) | AG74: 1 | AH74: 7 | AI74: 0.01480484522 | AJ74: 57 | AN74: 0 | AO74: 0.8868482756 | AR74: =+IF(Y74>=$K$6,$F$5,($F$5/($K$6))*Y74) -> 9 | AS74: 151 | AU74: 151 | AV74: =+IF(AS74>=$L$15,$J$15,IF(AS74<($L$15),AS74*($J$15/($L$15)),)) -> 3 | AW74: 2001 | AX74: =+IF(AW74>=$L$11,$J$11,IF(AW74<($L$11),AW74*($J$11/($L$11)),)) -> 3 | AY74: =SUM(AR74,AV74,AX74) -> 15 | AZ74: =+AY74*$H$5 -> 5 | BA74: =+IF(Z74=0,0,IF(Z74>$K$7,$F$9,($F$9/$K$7)*Z74)) -> 8 | BB74: =IF(CZ74>0,$F$10,0) -> 2 | BC74: =IF(DA74>0,$F$11,0) -> 1 | BD74: =IF(DB74>0,$F$12,0) -> 1 | BE74: =IF(DC74>0,$F$13,0) -> 0 | BF74: =IF(DE74>0,$F$14,IF(DD74>0,$F$14/2,0)) -> 2 | BG74: =+IF(DF74>=$L$23,$J$23,IF(DF74<($L$23),DF74*($J$23/($L$23)),)) -> 0 | BH74: =+IF(DG74>=$L$24,$J$24,IF(DG74<($L$24),DG74*($J$24/($L$24)),)) -> 0 | BI74: =+IF(DH74>=$L$25,$J$25,IF(DH74<($L$25),DH74*($J$25/($L$25)),)) -> 0 | BJ74: =+IF(DI74>=$L$26,$J$26,IF(DI74<($L$26),DI74*($J$26/($L$26)),)) -> 0 | BK74: =IF(DJ74>0,$F$16,0) -> 0 | BL74: =+IF(DM74>=$L$29,$J$29,IF(DM74<($L$29),DM74*($J$29/($L$29)),)) -> 2 | BM74: =IF(EA74>100000,$F$18,IF(EA74>0,$F$18/2,0)) -> 0 | BN74: =IF(DX74>0,$F$19,0) -> 2 | BO74: 17.05205479 | BP74: =+IF(BO74>=$L$19,$J$19,IF(BO74<($L$19),BO74*($J$19/($L$19)),)) -> 1 | BQ74: =SUM(BA74+BB74+BC74+BD74+BE74+BF74+BK74+BG74+BH74+BI74+BJ74+BL74+BM74+BN74+BP74) -> 19 | BR74: =+BQ74*$H$9 -> 6.333333333 | BS74: 4365.937924 | BT74: =BS74/X74 -> 0.999985782 | BU74: =IF(BT74>0,IF(BT74>=$CY$28,$CW$28,IF(BT74<$CY$28,$CW$29,0)),0) -> 1 | BV74: 4365.937924 | BW74: =BV74/X74 -> 0.999985782 | BX74: =IF(BW74,$F$23,0) -> 1 | BY74: =IF(DO74>0,$F$24,0) -> 1 | BZ74: 860.588516 | CA74: =BZ74/X74 -> 0.1971114329 | CB74: =+IF(CA74>=$K$4,$F$25,0) -> 0 | CC74: 262.1438388 | CD74: =IF(CC74>0,IF(CC74>=100,$F$26,IF(CC74<100,$F$26/2)),0) -> 1 | CE74: =SUM(DS74) -> 1 | CF74: =IF(DU74>0,$F$28,0) -> 0 | CG74: =IF(DT74>0,$F$29,0) -> 1 | CH74: =IF(DW74>0,$F$30,0) -> 1 | CI74: =SUM(BU74,BX74,CD74,BY74,CB74,CE74,CF74,CG74,CH74) -> 7 | CJ74: =+CI74*$H$22 -> 2.333333333 | CK74: =SUM(AY74,BQ74,CI74) -> 41 | CL74: =SUM(AZ74,BR74,CJ74) -> 13.66666667 | CM74: =IF(D74<($Z$13*1704),1,IF(D74<(($Z$14+$Z$13)*1704),2,IF(D74<(($Z$15+$Z$13+$Z$14)*1704),3,4))) -> 1 | CN74: =VLOOKUP(A74,Taul1!$F$6:$G$1718,2,FALSE) -> 1 | CT74: https://www.google.com/maps/@61.15556596,25.98388638,3a,75y,90t/data=!3m3!1e1!3m1!2e0 | CW74: 0 | CX74: 0 | CY74: 1 | CZ74: =SUM(CW74:CY74) -> 1 | DA74: 1 | DB74: 3 | DC74: 0 | DD74: 1 | DE74: 2 | DF74: 0 | DG74: 0 | DH74: 0 | DI74: 0 | DJ74: 0 | DM74: 4 | DN74: 0 | DO74: 4365.937924 | DQ74: =+IF(AA74>$K$8,$F$27/2,0) -> 1 | DR74: =+IF(AA74/Y74>1.5,$F$27/2,0) -> 0 | DS74: =SUM(DQ74:DR74) -> 1 | DT74: 1 | DU74: 0 | DW74: 1 | DX74: 1 | DY74: 0 | DZ74: 0.8868482756 | EA74: 0 | EC74: =IFERROR(VLOOKUP(A74,$EI$37:$EK$1748,2,FALSE),"--") -> LOPUT | ED74: =IFERROR(VLOOKUP(A74,$EI$37:$EK$1748,3,FALSE),"--") -> 116 | EE74: =IFERROR(ED74-D74,"--") -> 78 | EF74: =IFERROR(VLOOKUP(A74,$EI$37:$EL$1748,4,FALSE),"--") -> 2 | EG74: =IFERROR(EF74-K74,"--") -> 1 | EI74: 12_222 | EJ74: LOPUT | EK74: 90 | EL74: 2 | EN74: 11935 | EO74: 1
A75: =CONCATENATE(S75,"_",T75) -> 1311_1 | B75: 1 | D75: =RANK(CL75,$CL$37:$CL$1740) -> 39 | E75: 39 | F75: =E75-D75 -> 0 | G75: =CL75 -> 13.65392694 | H75: =AZ75 -> 5 | I75: =BR75 -> 6.320593607 | J75: =CJ75 -> 2.333333333 | K75: =CM75 -> 1 | L75: =B75-K75 -> 0 | M75: =HYPERLINK(CT75,"Gmaps") -> Gmaps | N75: =IF(Y75>$K$6,"LOPUT","VÄHÄ") -> LOPUT | O75: =IF(S75<40,"Valta",IF(S75<100,"Kanta",IF(S75<1000,"Seutu",IF(S75>999,"Yhdys")))) -> Yhdys | P75: Helsingintie, Siippoontie | Q75: Nurmijärvi | R75: Uusimaa | S75: 1311 | T75: 1 | U75: 0 | V75: 1 | W75: 2647 | X75: 2647 | Y75: 9345.566679 | Z75: 458.0732905 | AA75: 9552.346808 | AB75: 9357 (93 %), 9201 (7 %) | AC75: 50 (43 %), 70 (60 %) | AD75: Is (103 %) | AE75: AB (103 %) | AF75: Y2 (103 %) | AG75: 8 | AH75: 10 | AI75: 0.1226542377 | AJ75: 106 | AN75: 0.8506167132 | AO75: 1.027054245 | AR75: =+IF(Y75>=$K$6,$F$5,($F$5/($K$6))*Y75) -> 9 | AS75: 235 | AU75: 145 | AV75: =+IF(AS75>=$L$15,$J$15,IF(AS75<($L$15),AS75*($J$15/($L$15)),)) -> 3 | AW75: 6053 | AX75: =+IF(AW75>=$L$11,$J$11,IF(AW75<($L$11),AW75*($J$11/($L$11)),)) -> 3 | AY75: =SUM(AR75,AV75,AX75) -> 15 | AZ75: =+AY75*$H$5 -> 5 | BA75: =+IF(Z75=0,0,IF(Z75>$K$7,$F$9,($F$9/$K$7)*Z75)) -> 8 | BB75: =IF(CZ75>0,$F$10,0) -> 0 | BC75: =IF(DA75>0,$F$11,0) -> 1 | BD75: =IF(DB75>0,$F$12,0) -> 1 | BE75: =IF(DC75>0,$F$13,0) -> 0 | BF75: =IF(DE75>0,$F$14,IF(DD75>0,$F$14/2,0)) -> 2 | BG75: =+IF(DF75>=$L$23,$J$23,IF(DF75<($L$23),DF75*($J$23/($L$23)),)) -> 0.04 | BH75: =+IF(DG75>=$L$24,$J$24,IF(DG75<($L$24),DG75*($J$24/($L$24)),)) -> 0.15 | BI75: =+IF(DH75>=$L$25,$J$25,IF(DH75<($L$25),DH75*($J$25/($L$25)),)) -> 0 | BJ75: =+IF(DI75>=$L$26,$J$26,IF(DI75<($L$26),DI75*($J$26/($L$26)),)) -> 0 | BK75: =IF(DJ75>0,$F$16,0) -> 2 | BL75: =+IF(DM75>=$L$29,$J$29,IF(DM75<($L$29),DM75*($J$29/($L$29)),)) -> 2 | BM75: =IF(EA75>100000,$F$18,IF(EA75>0,$F$18/2,0)) -> 0.5 | BN75: =IF(DX75>0,$F$19,0) -> 2 | BO75: 2.717808219 | BP75: =+IF(BO75>=$L$19,$J$19,IF(BO75<($L$19),BO75*($J$19/($L$19)),)) -> 0.2717808219 | BQ75: =SUM(BA75+BB75+BC75+BD75+BE75+BF75+BK75+BG75+BH75+BI75+BJ75+BL75+BM75+BN75+BP75) -> 18.96178082 | BR75: =+BQ75*$H$9 -> 6.320593607 | BS75: 2718.612586 | BT75: =BS75/X75 -> 1.027054245 | BU75: =IF(BT75>0,IF(BT75>=$CY$28,$CW$28,IF(BT75<$CY$28,$CW$29,0)),0) -> 1 | BV75: 1607.22375 | BW75: =BV75/X75 -> 0.6071869097 | BX75: =IF(BW75,$F$23,0) -> 1 | BY75: =IF(DO75>0,$F$24,0) -> 1 | BZ75: 1135.905618 | CA75: =BZ75/X75 -> 0.4291294362 | CB75: =+IF(CA75>=$K$4,$F$25,0) -> 0 | CC75: 722.1684926 | CD75: =IF(CC75>0,IF(CC75>=100,$F$26,IF(CC75<100,$F$26/2)),0) -> 1 | CE75: =SUM(DS75) -> 1 | CF75: =IF(DU75>0,$F$28,0) -> 0 | CG75: =IF(DT75>0,$F$29,0) -> 1 | CH75: =IF(DW75>0,$F$30,0) -> 1 | CI75: =SUM(BU75,BX75,CD75,BY75,CB75,CE75,CF75,CG75,CH75) -> 7 | CJ75: =+CI75*$H$22 -> 2.333333333 | CK75: =SUM(AY75,BQ75,CI75) -> 40.96178082 | CL75: =SUM(AZ75,BR75,CJ75) -> 13.65392694 | CM75: =IF(D75<($Z$13*1704),1,IF(D75<(($Z$14+$Z$13)*1704),2,IF(D75<(($Z$15+$Z$13+$Z$14)*1704),3,4))) -> 1 | CN75: =VLOOKUP(A75,Taul1!$F$6:$G$1718,2,FALSE) -> 1 | CT75: https://www.google.com/maps/@60.45582215,24.84961446,3a,75y,90t/data=!3m3!1e1!3m1!2e0 | CW75: 0 | CX75: 0 | CY75: 0 | CZ75: =SUM(CW75:CY75) -> 0 | DA75: 3 | DB75: 1 | DC75: 0 | DD75: 14 | DE75: 1 | DF75: 24 | DG75: 30 | DH75: 0 | DI75: 0 | DJ75: 2 | DM75: 18 | DN75: 1 | DO75: 2718.612586 | DQ75: =+IF(AA75>$K$8,$F$27/2,0) -> 1 | DR75: =+IF(AA75/Y75>1.5,$F$27/2,0) -> 0 | DS75: =SUM(DQ75:DR75) -> 1 | DT75: 1 | DU75: 0 | DW75: 1 | DX75: 5 | DY75: 0.8506167132 | DZ75: 1.027054245 | EA75: 72966 | EC75: =IFERROR(VLOOKUP(A75,$EI$37:$EK$1748,2,FALSE),"--") -> LOPUT | ED75: =IFERROR(VLOOKUP(A75,$EI$37:$EK$1748,3,FALSE),"--") -> 35 | EE75: =IFERROR(ED75-D75,"--") -> -4 | EF75: =IFERROR(VLOOKUP(A75,$EI$37:$EL$1748,4,FALSE),"--") -> 1 | EG75: =IFERROR(EF75-K75,"--") -> 0 | EI75: 10_14 | EJ75: LOPUT | EK75: 44 | EL75: 1 | EN75: 1762 | EO75: 1
A76: =CONCATENATE(S76,"_",T76) -> 12_214 | B76: 1 | D76: =RANK(CL76,$CL$37:$CL$1740) -> 40 | E76: 40 | F76: =E76-D76 -> 0 | G76: =CL76 -> 13.63833333 | H76: =AZ76 -> 5 | I76: =BR76 -> 6.471666667 | J76: =CJ76 -> 2.166666667 | K76: =CM76 -> 1 | L76: =B76-K76 -> 0 | M76: =HYPERLINK(CT76,"Gmaps") -> Gmaps | N76: =IF(Y76>$K$6,"LOPUT","VÄHÄ") -> LOPUT | O76: =IF(S76<40,"Valta",IF(S76<100,"Kanta",IF(S76<1000,"Seutu",IF(S76>999,"Yhdys")))) -> Valta | P76: Tampereen valtatie | Q76: Hämeenlinna | R76: Kanta-Häme | S76: 12 | T76: 214 | U76: 0 | V76: 214 | W76: 4941 | X76: 4941 | Y76: 4301 | Z76: 347 | AA76: 5527 | AB76: 4301 (100 %) | AC76: 80 (100 %) | AD76: Is (100 %) | AE76: AB (100 %) | AF76: Y1 (100 %) | AG76: 0 | AH76: 2 | AI76: 0 | AJ76: 282 | AL76: 2 | AM76: x | AN76: 0 | AO76: 0.2959986932 | AR76: =+IF(Y76>=$K$6,$F$5,($F$5/($K$6))*Y76) -> 9 | AS76: 172 | AU76: 172 | AV76: =+IF(AS76>=$L$15,$J$15,IF(AS76<($L$15),AS76*($J$15/($L$15)),)) -> 3 | AW76: 606 | AX76: =+IF(AW76>=$L$11,$J$11,IF(AW76<($L$11),AW76*($J$11/($L$11)),)) -> 3 | AY76: =SUM(AR76,AV76,AX76) -> 15 | AZ76: =+AY76*$H$5 -> 5 | BA76: =+IF(Z76=0,0,IF(Z76>$K$7,$F$9,($F$9/$K$7)*Z76)) -> 8 | BB76: =IF(CZ76>0,$F$10,0) -> 2 | BC76: =IF(DA76>0,$F$11,0) -> 0 | BD76: =IF(DB76>0,$F$12,0) -> 1 | BE76: =IF(DC76>0,$F$13,0) -> 0 | BF76: =IF(DE76>0,$F$14,IF(DD76>0,$F$14/2,0)) -> 1 | BG76: =+IF(DF76>=$L$23,$J$23,IF(DF76<($L$23),DF76*($J$23/($L$23)),)) -> 0.415 | BH76: =+IF(DG76>=$L$24,$J$24,IF(DG76<($L$24),DG76*($J$24/($L$24)),)) -> 0 | BI76: =+IF(DH76>=$L$25,$J$25,IF(DH76<($L$25),DH76*($J$25/($L$25)),)) -> 0 | BJ76: =+IF(DI76>=$L$26,$J$26,IF(DI76<($L$26),DI76*($J$26/($L$26)),)) -> 0 | BK76: =IF(DJ76>0,$F$16,0) -> 2 | BL76: =+IF(DM76>=$L$29,$J$29,IF(DM76<($L$29),DM76*($J$29/($L$29)),)) -> 2 | BM76: =IF(EA76>100000,$F$18,IF(EA76>0,$F$18/2,0)) -> 0 | BN76: =IF(DX76>0,$F$19,0) -> 2 | BO76: 24.65205479 | BP76: =+IF(BO76>=$L$19,$J$19,IF(BO76<($L$19),BO76*($J$19/($L$19)),)) -> 1 | BQ76: =SUM(BA76+BB76+BC76+BD76+BE76+BF76+BK76+BG76+BH76+BI76+BJ76+BL76+BM76+BN76+BP76) -> 19.415 | BR76: =+BQ76*$H$9 -> 6.471666667 | BS76: 4672.2278 | BT76: =BS76/X76 -> 0.9456036834 | BU76: =IF(BT76>0,IF(BT76>=$CY$28,$CW$28,IF(BT76<$CY$28,$CW$29,0)),0) -> 1 | BV76: 4572.150933 | BW76: =BV76/X76 -> 0.9253493085 | BX76: =IF(BW76,$F$23,0) -> 1 | BY76: =IF(DO76>0,$F$24,0) -> 1 | BZ76: 0 | CA76: =BZ76/X76 -> 0 | CB76: =+IF(CA76>=$K$4,$F$25,0) -> 0 | CC76: 86.73770492 | CD76: =IF(CC76>0,IF(CC76>=100,$F$26,IF(CC76<100,$F$26/2)),0) -> 0.5 | CE76: =SUM(DS76) -> 1 | CF76: =IF(DU76>0,$F$28,0) -> 0 | CG76: =IF(DT76>0,$F$29,0) -> 1 | CH76: =IF(DW76>0,$F$30,0) -> 1 | CI76: =SUM(BU76,BX76,CD76,BY76,CB76,CE76,CF76,CG76,CH76) -> 6.5 | CJ76: =+CI76*$H$22 -> 2.166666667 | CK76: =SUM(AY76,BQ76,CI76) -> 40.915 | CL76: =SUM(AZ76,BR76,CJ76) -> 13.63833333 | CM76: =IF(D76<($Z$13*1704),1,IF(D76<(($Z$14+$Z$13)*1704),2,IF(D76<(($Z$15+$Z$13+$Z$14)*1704),3,4))) -> 1 | CN76: =VLOOKUP(A76,Taul1!$F$6:$G$1718,2,FALSE) -> 1 | CT76: https://www.google.com/maps/@61.13871442,24.79943550,3a,75y,90t/data=!3m3!1e1!3m1!2e0 | CW76: 1 | CX76: 1 | CY76: 0 | CZ76: =SUM(CW76:CY76) -> 2 | DA76: 0 | DB76: 7 | DC76: 0 | DD76: 14 | DE76: 0 | DF76: 249 | DG76: 0 | DH76: 0 | DI76: 0 | DJ76: 1 | DM76: 7 | DN76: 0 | DO76: 4951.384223 | DQ76: =+IF(AA76>$K$8,$F$27/2,0) -> 1 | DR76: =+IF(AA76/Y76>1.5,$F$27/2,0) -> 0 | DS76: =SUM(DQ76:DR76) -> 1 | DT76: 10 | DU76: 0 | DW76: 1 | DX76: 4 | DY76: 0 | DZ76: 0.2959986932 | EA76: 0 | EC76: =IFERROR(VLOOKUP(A76,$EI$37:$EK$1748,2,FALSE),"--") -> LOPUT | ED76: =IFERROR(VLOOKUP(A76,$EI$37:$EK$1748,3,FALSE),"--") -> 96 | EE76: =IFERROR(ED76-D76,"--") -> 56 | EF76: =IFERROR(VLOOKUP(A76,$EI$37:$EL$1748,4,FALSE),"--") -> 2 | EG76: =IFERROR(EF76-K76,"--") -> 1 | EI76: 170_20 | EJ76: LOPUT | EK76: 52 | EL76: 1 | EN76: 11507 | EO76: 1
A77: =CONCATENATE(S77,"_",T77) -> 167_2 | B77: 1 | D77: =RANK(CL77,$CL$37:$CL$1740) -> 41 | E77: 41 | F77: =E77-D77 -> 0 | G77: =CL77 -> 13.63722222 | H77: =AZ77 -> 5 | I77: =BR77 -> 6.803888889 | J77: =CJ77 -> 1.833333333 | K77: =CM77 -> 1 | L77: =B77-K77 -> 0 | M77: =HYPERLINK(CT77,"Gmaps") -> Gmaps | N77: =IF(Y77>$K$6,"LOPUT","VÄHÄ") -> LOPUT | O77: =IF(S77<40,"Valta",IF(S77<100,"Kanta",IF(S77<1000,"Seutu",IF(S77>999,"Yhdys")))) -> Seutu | P77: Lahdentie, Uusi Orimattilantie | Q77: Lahti, Orimattila | R77: Päijät-Häme | S77: 167 | T77: 2 | U77: 464 | V77: 2 | W77: 6590 | X77: 6126 | Y77: 10442.09651 | Z77: 721.5802731 | AA77: 11692.69287 | AB77: 12635 (8 %), 10276 (100 %) | AC77: 60 (16 %), 70 (9 %), 80 (75 %) | AD77: Is (100 %) | AE77: AB (100 %) | AF77: Y2 (100 %) | AG77: 6 | AH77: 18 | AI77: 0.108698513 | AJ77: 345 | AN77: 0 | AO77: 0.143061662 | AR77: =+IF(Y77>=$K$6,$F$5,($F$5/($K$6))*Y77) -> 9 | AS77: 200 | AU77: 200 | AV77: =+IF(AS77>=$L$15,$J$15,IF(AS77<($L$15),AS77*($J$15/($L$15)),)) -> 3 | AW77: 3450 | AX77: =+IF(AW77>=$L$11,$J$11,IF(AW77<($L$11),AW77*($J$11/($L$11)),)) -> 3 | AY77: =SUM(AR77,AV77,AX77) -> 15 | AZ77: =+AY77*$H$5 -> 5 | BA77: =+IF(Z77=0,0,IF(Z77>$K$7,$F$9,($F$9/$K$7)*Z77)) -> 8 | BB77: =IF(CZ77>0,$F$10,0) -> 2 | BC77: =IF(DA77>0,$F$11,0) -> 0 | BD77: =IF(DB77>0,$F$12,0) -> 1 | BE77: =IF(DC77>0,$F$13,0) -> 0 | BF77: =IF(DE77>0,$F$14,IF(DD77>0,$F$14/2,0)) -> 1 | BG77: =+IF(DF77>=$L$23,$J$23,IF(DF77<($L$23),DF77*($J$23/($L$23)),)) -> 0.1116666667 | BH77: =+IF(DG77>=$L$24,$J$24,IF(DG77<($L$24),DG77*($J$24/($L$24)),)) -> 0.3 | BI77: =+IF(DH77>=$L$25,$J$25,IF(DH77<($L$25),DH77*($J$25/($L$25)),)) -> 0 | BJ77: =+IF(DI77>=$L$26,$J$26,IF(DI77<($L$26),DI77*($J$26/($L$26)),)) -> 0 | BK77: =IF(DJ77>0,$F$16,0) -> 2 | BL77: =+IF(DM77>=$L$29,$J$29,IF(DM77<($L$29),DM77*($J$29/($L$29)),)) -> 2 | BM77: =IF(EA77>100000,$F$18,IF(EA77>0,$F$18/2,0)) -> 1 | BN77: =IF(DX77>0,$F$19,0) -> 2 | BO77: 10.35616438 | BP77: =+IF(BO77>=$L$19,$J$19,IF(BO77<($L$19),BO77*($J$19/($L$19)),)) -> 1 | BQ77: =SUM(BA77+BB77+BC77+BD77+BE77+BF77+BK77+BG77+BH77+BI77+BJ77+BL77+BM77+BN77+BP77) -> 20.41166667 | BR77: =+BQ77*$H$9 -> 6.803888889 | BS77: 4913.850835 | BT77: =BS77/X77 -> 0.8021304008 | BU77: =IF(BT77>0,IF(BT77>=$CY$28,$CW$28,IF(BT77<$CY$28,$CW$29,0)),0) -> 1 | BV77: 6025.379007 | BW77: =BV77/X77 -> 0.9835747645 | BX77: =IF(BW77,$F$23,0) -> 1 | BY77: =IF(DO77>0,$F$24,0) -> 1 | BZ77: 0 | CA77: =BZ77/X77 -> 0 | CB77: =+IF(CA77>=$K$4,$F$25,0) -> 0 | CC77: 44.90695397 | CD77: =IF(CC77>0,IF(CC77>=100,$F$26,IF(CC77<100,$F$26/2)),0) -> 0.5 | CE77: =SUM(DS77) -> 1 | CF77: =IF(DU77>0,$F$28,0) -> 0 | CG77: =IF(DT77>0,$F$29,0) -> 0 | CH77: =IF(DW77>0,$F$30,0) -> 1 | CI77: =SUM(BU77,BX77,CD77,BY77,CB77,CE77,CF77,CG77,CH77) -> 5.5 | CJ77: =+CI77*$H$22 -> 1.833333333 | CK77: =SUM(AY77,BQ77,CI77) -> 40.91166667 | CL77: =SUM(AZ77,BR77,CJ77) -> 13.63722222 | CM77: =IF(D77<($Z$13*1704),1,IF(D77<(($Z$14+$Z$13)*1704),2,IF(D77<(($Z$15+$Z$13+$Z$14)*1704),3,4))) -> 1 | CN77: =VLOOKUP(A77,Taul1!$F$6:$G$1718,2,FALSE) -> 1 | CT77: https://www.google.com/maps/@60.93203707,25.63409109,3a,75y,90t/data=!3m3!1e1!3m1!2e0 | CW77: 1 | CX77: 0 | CY77: 1 | CZ77: =SUM(CW77:CY77) -> 2 | DA77: 0 | DB77: 1 | DC77: 0 | DD77: 24 | DE77: 0 | DF77: 67 | DG77: 60 | DH77: 0 | DI77: 0 | DJ77: 1 | DM77: 10 | DN77: 1 | DO77: 6116.464586 | DQ77: =+IF(AA77>$K$8,$F$27/2,0) -> 1 | DR77: =+IF(AA77/Y77>1.5,$F$27/2,0) -> 0 | DS77: =SUM(DQ77:DR77) -> 1 | DT77: 0 | DU77: 0 | DW77: 1 | DX77: 1 | DY77: 0 | DZ77: 0.143061662 | EA77: 101172 | EC77: =IFERROR(VLOOKUP(A77,$EI$37:$EK$1748,2,FALSE),"--") -> LOPUT | ED77: =IFERROR(VLOOKUP(A77,$EI$37:$EK$1748,3,FALSE),"--") -> 8 | EE77: =IFERROR(ED77-D77,"--") -> -33 | EF77: =IFERROR(VLOOKUP(A77,$EI$37:$EL$1748,4,FALSE),"--") -> 1 | EG77: =IFERROR(EF77-K77,"--") -> 0 | EI77: 313_4 | EJ77: LOPUT | EK77: 18 | EL77: 1 | EN77: 13961 | EO77: 1
A78: =CONCATENATE(S78,"_",T78) -> 170_19 | B78: 1 | D78: =RANK(CL78,$CL$37:$CL$1740) -> 42 | E78: 42 | F78: =E78-D78 -> 0 | G78: =CL78 -> 13.62757991 | H78: =AZ78 -> 5 | I78: =BR78 -> 5.960913242 | J78: =CJ78 -> 2.666666667 | K78: =CM78 -> 1 | L78: =B78-K78 -> 0 | M78: =HYPERLINK(CT78,"Gmaps") -> Gmaps | N78: =IF(Y78>$K$6,"LOPUT","VÄHÄ") -> LOPUT | O78: =IF(S78<40,"Valta",IF(S78<100,"Kanta",IF(S78<1000,"Seutu",IF(S78>999,"Yhdys")))) -> Seutu | P78: Helsingintie, Mannerheiminkatu | Q78: Loviisa | R78: Uusimaa | S78: 170 | T78: 19 | U78: 0 | V78: 19 | W78: 4012 | X78: 2080 | Y78: 5092.025 | Z78: 286.76875 | AA78: 5566.575 | AB78: 7130 (46 %), 3382 (54 %) | AC78: 50 (73 %), 60 (26 %) | AD78: Is (98 %) | AE78: AB (98 %) | AF78: Y2 (98 %) | AG78: 0 | AH78: 2 | AI78: 0 | AJ78: 94.7 | AN78: 0 | AO78: 0.9826338571 | AR78: =+IF(Y78>=$K$6,$F$5,($F$5/($K$6))*Y78) -> 9 | AS78: 119 | AU78: 119 | AV78: =+IF(AS78>=$L$15,$J$15,IF(AS78<($L$15),AS78*($J$15/($L$15)),)) -> 3 | AW78: 2353 | AX78: =+IF(AW78>=$L$11,$J$11,IF(AW78<($L$11),AW78*($J$11/($L$11)),)) -> 3 | AY78: =SUM(AR78,AV78,AX78) -> 15 | AZ78: =+AY78*$H$5 -> 5 | BA78: =+IF(Z78=0,0,IF(Z78>$K$7,$F$9,($F$9/$K$7)*Z78)) -> 8 | BB78: =IF(CZ78>0,$F$10,0) -> 0 | BC78: =IF(DA78>0,$F$11,0) -> 1 | BD78: =IF(DB78>0,$F$12,0) -> 0 | BE78: =IF(DC78>0,$F$13,0) -> 0 | BF78: =IF(DE78>0,$F$14,IF(DD78>0,$F$14/2,0)) -> 2 | BG78: =+IF(DF78>=$L$23,$J$23,IF(DF78<($L$23),DF78*($J$23/($L$23)),)) -> 0 | BH78: =+IF(DG78>=$L$24,$J$24,IF(DG78<($L$24),DG78*($J$24/($L$24)),)) -> 0 | BI78: =+IF(DH78>=$L$25,$J$25,IF(DH78<($L$25),DH78*($J$25/($L$25)),)) -> 0 | BJ78: =+IF(DI78>=$L$26,$J$26,IF(DI78<($L$26),DI78*($J$26/($L$26)),)) -> 0 | BK78: =IF(DJ78>0,$F$16,0) -> 2 | BL78: =+IF(DM78>=$L$29,$J$29,IF(DM78<($L$29),DM78*($J$29/($L$29)),)) -> 2 | BM78: =IF(EA78>100000,$F$18,IF(EA78>0,$F$18/2,0)) -> 0.5 | BN78: =IF(DX78>0,$F$19,0) -> 2 | BO78: 3.82739726 | BP78: =+IF(BO78>=$L$19,$J$19,IF(BO78<($L$19),BO78*($J$19/($L$19)),)) -> 0.382739726 | BQ78: =SUM(BA78+BB78+BC78+BD78+BE78+BF78+BK78+BG78+BH78+BI78+BJ78+BL78+BM78+BN78+BP78) -> 17.88273973 | BR78: =+BQ78*$H$9 -> 5.960913242 | BS78: 2043.878423 | BT78: =BS78/X78 -> 0.9826338571 | BU78: =IF(BT78>0,IF(BT78>=$CY$28,$CW$28,IF(BT78<$CY$28,$CW$29,0)),0) -> 1 | BV78: 2043.878423 | BW78: =BV78/X78 -> 0.9826338571 | BX78: =IF(BW78,$F$23,0) -> 1 | BY78: =IF(DO78>0,$F$24,0) -> 1 | BZ78: 572.9070597 | CA78: =BZ78/X78 -> 0.2754360864 | CB78: =+IF(CA78>=$K$4,$F$25,0) -> 0 | CC78: 456.4903846 | CD78: =IF(CC78>0,IF(CC78>=100,$F$26,IF(CC78<100,$F$26/2)),0) -> 1 | CE78: =SUM(DS78) -> 1 | CF78: =IF(DU78>0,$F$28,0) -> 1 | CG78: =IF(DT78>0,$F$29,0) -> 1 | CH78: =IF(DW78>0,$F$30,0) -> 1 | CI78: =SUM(BU78,BX78,CD78,BY78,CB78,CE78,CF78,CG78,CH78) -> 8 | CJ78: =+CI78*$H$22 -> 2.666666667 | CK78: =SUM(AY78,BQ78,CI78) -> 40.88273973 | CL78: =SUM(AZ78,BR78,CJ78) -> 13.62757991 | CM78: =IF(D78<($Z$13*1704),1,IF(D78<(($Z$14+$Z$13)*1704),2,IF(D78<(($Z$15+$Z$13+$Z$14)*1704),3,4))) -> 1 | CN78: =VLOOKUP(A78,Taul1!$F$6:$G$1718,2,FALSE) -> 2 | CT78: https://www.google.com/maps/@60.45817290,26.19446269,3a,75y,90t/data=!3m3!1e1!3m1!2e0 | CW78: 0 | CX78: 0 | CY78: 0 | CZ78: =SUM(CW78:CY78) -> 0 | DA78: 2 | DB78: 0 | DC78: 0 | DD78: 7 | DE78: 2 | DF78: 0 | DG78: 0 | DH78: 0 | DI78: 0 | DJ78: 1 | DM78: 6 | DN78: 0 | DO78: 2043.878423 | DQ78: =+IF(AA78>$K$8,$F$27/2,0) -> 1 | DR78: =+IF(AA78/Y78>1.5,$F$27/2,0) -> 0 | DS78: =SUM(DQ78:DR78) -> 1 | DT78: 2 | DU78: 1 | DW78: 1 | DX78: 5 | DY78: 0 | DZ78: 0.9826338571 | EA78: 37753 | EC78: =IFERROR(VLOOKUP(A78,$EI$37:$EK$1748,2,FALSE),"--") -> LOPUT | ED78: =IFERROR(VLOOKUP(A78,$EI$37:$EK$1748,3,FALSE),"--") -> 30 | EE78: =IFERROR(ED78-D78,"--") -> -12 | EF78: =IFERROR(VLOOKUP(A78,$EI$37:$EL$1748,4,FALSE),"--") -> 1 | EG78: =IFERROR(EF78-K78,"--") -> 0 | EI78: 54_18 | EJ78: LOPUT | EK78: 93 | EL78: 2 | EN78: 1471 | EO78: 3
A79: =CONCATENATE(S79,"_",T79) -> 57_2 | B79: 1 | D79: =RANK(CL79,$CL$37:$CL$1740) -> 43 | E79: 43 | F79: =E79-D79 -> 0 | G79: =CL79 -> 13.5845 | H79: =AZ79 -> 5 | I79: =BR79 -> 6.417833333 | J79: =CJ79 -> 2.166666667 | K79: =CM79 -> 1 | L79: =B79-K79 -> 0 | M79: =HYPERLINK(CT79,"Gmaps") -> Gmaps | N79: =IF(Y79>$K$6,"LOPUT","VÄHÄ") -> LOPUT | O79: =IF(S79<40,"Valta",IF(S79<100,"Kanta",IF(S79<1000,"Seutu",IF(S79>999,"Yhdys")))) -> Kanta | P79: Pälkäneentie | Q79: Hattula | R79: Kanta-Häme | S79: 57 | T79: 2 | U79: 0 | V79: 2 | W79: 6073 | X79: 6073 | Y79: 4321.097645 | Z79: 259.453812 | AA79: 5344.21505 | AB79: 7222 (19 %), 3642 (81 %) | AC79: 60 (19 %), 80 (42 %), 100 (39 %) | AD79: Is (100 %) | AE79: AB (100 %) | AF79: Y2 (100 %) | AG79: 3 | AH79: 6 | AI79: 0.006761418518 | AJ79: 98.31137823 | AN79: 0 | AO79: 0.07745824965 | AR79: =+IF(Y79>=$K$6,$F$5,($F$5/($K$6))*Y79) -> 9 | AS79: 55 | AU79: 55 | AV79: =+IF(AS79>=$L$15,$J$15,IF(AS79<($L$15),AS79*($J$15/($L$15)),)) -> 3 | AW79: 1688 | AX79: =+IF(AW79>=$L$11,$J$11,IF(AW79<($L$11),AW79*($J$11/($L$11)),)) -> 3 | AY79: =SUM(AR79,AV79,AX79) -> 15 | AZ79: =+AY79*$H$5 -> 5 | BA79: =+IF(Z79=0,0,IF(Z79>$K$7,$F$9,($F$9/$K$7)*Z79)) -> 8 | BB79: =IF(CZ79>0,$F$10,0) -> 2 | BC79: =IF(DA79>0,$F$11,0) -> 1 | BD79: =IF(DB79>0,$F$12,0) -> 0 | BE79: =IF(DC79>0,$F$13,0) -> 0 | BF79: =IF(DE79>0,$F$14,IF(DD79>0,$F$14/2,0)) -> 2 | BG79: =+IF(DF79>=$L$23,$J$23,IF(DF79<($L$23),DF79*($J$23/($L$23)),)) -> 0.5 | BH79: =+IF(DG79>=$L$24,$J$24,IF(DG79<($L$24),DG79*($J$24/($L$24)),)) -> 0.035 | BI79: =+IF(DH79>=$L$25,$J$25,IF(DH79<($L$25),DH79*($J$25/($L$25)),)) -> 0.2185 | BJ79: =+IF(DI79>=$L$26,$J$26,IF(DI79<($L$26),DI79*($J$26/($L$26)),)) -> 0.5 | BK79: =IF(DJ79>0,$F$16,0) -> 2 | BL79: =+IF(DM79>=$L$29,$J$29,IF(DM79<($L$29),DM79*($J$29/($L$29)),)) -> 2 | BM79: =IF(EA79>100000,$F$18,IF(EA79>0,$F$18/2,0)) -> 0 | BN79: =IF(DX79>0,$F$19,0) -> 0 | BO79: 10.47671233 | BP79: =+IF(BO79>=$L$19,$J$19,IF(BO79<($L$19),BO79*($J$19/($L$19)),)) -> 1 | BQ79: =SUM(BA79+BB79+BC79+BD79+BE79+BF79+BK79+BG79+BH79+BI79+BJ79+BL79+BM79+BN79+BP79) -> 19.2535 | BR79: =+BQ79*$H$9 -> 6.417833333 | BS79: 1240.471741 | BT79: =BS79/X79 -> 0.2042601253 | BU79: =IF(BT79>0,IF(BT79>=$CY$28,$CW$28,IF(BT79<$CY$28,$CW$29,0)),0) -> 0.5 | BV79: 6059.719517 | BW79: =BV79/X79 -> 0.9978131923 | BX79: =IF(BW79,$F$23,0) -> 1 | BY79: =IF(DO79>0,$F$24,0) -> 1 | BZ79: 0 | CA79: =BZ79/X79 -> 0 | CB79: =+IF(CA79>=$K$4,$F$25,0) -> 0 | CC79: 112.0204182 | CD79: =IF(CC79>0,IF(CC79>=100,$F$26,IF(CC79<100,$F$26/2)),0) -> 1 | CE79: =SUM(DS79) -> 1 | CF79: =IF(DU79>0,$F$28,0) -> 0 | CG79: =IF(DT79>0,$F$29,0) -> 1 | CH79: =IF(DW79>0,$F$30,0) -> 1 | CI79: =SUM(BU79,BX79,CD79,BY79,CB79,CE79,CF79,CG79,CH79) -> 6.5 | CJ79: =+CI79*$H$22 -> 2.166666667 | CK79: =SUM(AY79,BQ79,CI79) -> 40.7535 | CL79: =SUM(AZ79,BR79,CJ79) -> 13.5845 | CM79: =IF(D79<($Z$13*1704),1,IF(D79<(($Z$14+$Z$13)*1704),2,IF(D79<(($Z$15+$Z$13+$Z$14)*1704),3,4))) -> 1 | CN79: =VLOOKUP(A79,Taul1!$F$6:$G$1718,2,FALSE) -> 2 | CT79: https://www.google.com/maps/@61.06289200,24.39229030,3a,75y,90t/data=!3m3!1e1!3m1!2e0 | CW79: 0 | CX79: 1 | CY79: 1 | CZ79: =SUM(CW79:CY79) -> 2 | DA79: 1 | DB79: 0 | DC79: 0 | DD79: 23 | DE79: 7 | DF79: 488 | DG79: 7 | DH79: 437 | DI79: 1843 | DJ79: 1 | DM79: 5 | DN79: 0 | DO79: 6059.719517 | DQ79: =+IF(AA79>$K$8,$F$27/2,0) -> 1 | DR79: =+IF(AA79/Y79>1.5,$F$27/2,0) -> 0 | DS79: =SUM(DQ79:DR79) -> 1 | DT79: 2 | DU79: 0 | DW79: 1 | DX79: 0 | DY79: 0 | DZ79: 0.07745824965 | EA79: 0 | EC79: =IFERROR(VLOOKUP(A79,$EI$37:$EK$1748,2,FALSE),"--") -> LOPUT | ED79: =IFERROR(VLOOKUP(A79,$EI$37:$EK$1748,3,FALSE),"--") -> 57 | EE79: =IFERROR(ED79-D79,"--") -> 14 | EF79: =IFERROR(VLOOKUP(A79,$EI$37:$EL$1748,4,FALSE),"--") -> 1 | EG79: =IFERROR(EF79-K79,"--") -> 0 | EI79: 54_10 | EJ79: LOPUT | EK79: 32 | EL79: 1 | EN79: 139 | EO79: 2
A80: =CONCATENATE(S80,"_",T80) -> 6_120 | B80: 1 | D80: =RANK(CL80,$CL$37:$CL$1740) -> 44 | E80: 44 | F80: =E80-D80 -> 0 | G80: =CL80 -> 13.57833333 | H80: =AZ80 -> 4.975 | I80: =BR80 -> 6.436666667 | J80: =CJ80 -> 2.166666667 | K80: =CM80 -> 1 | L80: =B80-K80 -> 0 | M80: =HYPERLINK(CT80,"Gmaps") -> Gmaps | N80: =IF(Y80>$K$6,"LOPUT","VÄHÄ") -> LOPUT | O80: =IF(S80<40,"Valta",IF(S80<100,"Kanta",IF(S80<1000,"Seutu",IF(S80>999,"Yhdys")))) -> Valta | P80: Helsingintie | Q80: Lapinjärvi | R80: Uusimaa | S80: 6 | T80: 120 | U80: 0 | V80: 120 | W80: 9320 | X80: 9320 | Y80: 5855 | Z80: 836 | AA80: 7248 | AB80: 5855 (100 %) | AC80: 80 (32 %), 100 (68 %) | AD80: Is (100 %) | AE80: AB (100 %) | AF80: Y1 (100 %) | AG80: 2 | AH80: 9 | AI80: 0.008497620666 | AJ80: 569 | AK80: Laajin Ternverkko | AL80: 1 | AN80: 0 | AO80: 0.2051418253 | AR80: =+IF(Y80>=$K$6,$F$5,($F$5/($K$6))*Y80) -> 9 | AS80: 39 | AU80: 39 | AV80: =+IF(AS80>=$L$15,$J$15,IF(AS80<($L$15),AS80*($J$15/($L$15)),)) -> 2.925 | AW80: 1605 | AX80: =+IF(AW80>=$L$11,$J$11,IF(AW80<($L$11),AW80*($J$11/($L$11)),)) -> 3 | AY80: =SUM(AR80,AV80,AX80) -> 14.925 | AZ80: =+AY80*$H$5 -> 4.975 | BA80: =+IF(Z80=0,0,IF(Z80>$K$7,$F$9,($F$9/$K$7)*Z80)) -> 8 | BB80: =IF(CZ80>0,$F$10,0) -> 2 | BC80: =IF(DA80>0,$F$11,0) -> 0 | BD80: =IF(DB80>0,$F$12,0) -> 1 | BE80: =IF(DC80>0,$F$13,0) -> 1 | BF80: =IF(DE80>0,$F$14,IF(DD80>0,$F$14/2,0)) -> 1 | BG80: =+IF(DF80>=$L$23,$J$23,IF(DF80<($L$23),DF80*($J$23/($L$23)),)) -> 0.5 | BH80: =+IF(DG80>=$L$24,$J$24,IF(DG80<($L$24),DG80*($J$24/($L$24)),)) -> 0.31 | BI80: =+IF(DH80>=$L$25,$J$25,IF(DH80<($L$25),DH80*($J$25/($L$25)),)) -> 0.5 | BJ80: =+IF(DI80>=$L$26,$J$26,IF(DI80<($L$26),DI80*($J$26/($L$26)),)) -> 0 | BK80: =IF(DJ80>0,$F$16,0) -> 0 | BL80: =+IF(DM80>=$L$29,$J$29,IF(DM80<($L$29),DM80*($J$29/($L$29)),)) -> 2 | BM80: =IF(EA80>100000,$F$18,IF(EA80>0,$F$18/2,0)) -> 0 | BN80: =IF(DX80>0,$F$19,0) -> 2 | BO80: 30.20821918 | BP80: =+IF(BO80>=$L$19,$J$19,IF(BO80<($L$19),BO80*($J$19/($L$19)),)) -> 1 | BQ80: =SUM(BA80+BB80+BC80+BD80+BE80+BF80+BK80+BG80+BH80+BI80+BJ80+BL80+BM80+BN80+BP80) -> 19.31 | BR80: =+BQ80*$H$9 -> 6.436666667 | BS80: 5783.357915 | BT80: =BS80/X80 -> 0.6205319651 | BU80: =IF(BT80>0,IF(BT80>=$CY$28,$CW$28,IF(BT80<$CY$28,$CW$29,0)),0) -> 1 | BV80: 8705.305199 | BW80: =BV80/X80 -> 0.9340456222 | BX80: =IF(BW80,$F$23,0) -> 1 | BY80: =IF(DO80>0,$F$24,0) -> 1 | BZ80: 0 | CA80: =BZ80/X80 -> 0 | CB80: =+IF(CA80>=$K$4,$F$25,0) -> 0 | CC80: 65.23819742 | CD80: =IF(CC80>0,IF(CC80>=100,$F$26,IF(CC80<100,$F$26/2)),0) -> 0.5 | CE80: =SUM(DS80) -> 1 | CF80: =IF(DU80>0,$F$28,0) -> 0 | CG80: =IF(DT80>0,$F$29,0) -> 1 | CH80: =IF(DW80>0,$F$30,0) -> 1 | CI80: =SUM(BU80,BX80,CD80,BY80,CB80,CE80,CF80,CG80,CH80) -> 6.5 | CJ80: =+CI80*$H$22 -> 2.166666667 | CK80: =SUM(AY80,BQ80,CI80) -> 40.735 | CL80: =SUM(AZ80,BR80,CJ80) -> 13.57833333 | CM80: =IF(D80<($Z$13*1704),1,IF(D80<(($Z$14+$Z$13)*1704),2,IF(D80<(($Z$15+$Z$13+$Z$14)*1704),3,4))) -> 1 | CN80: =VLOOKUP(A80,Taul1!$F$6:$G$1718,2,FALSE) -> 1 | CT80: https://www.google.com/maps/@60.61431160,26.15278966,3a,75y,90t/data=!3m3!1e1!3m1!2e0 | CW80: 1 | CX80: 1 | CY80: 1 | CZ80: =SUM(CW80:CY80) -> 3 | DA80: 0 | DB80: 2 | DC80: 1 | DD80: 38 | DE80: 0 | DF80: 660 | DG80: 62 | DH80: 1583 | DI80: 0 | DJ80: 0 | DM80: 7 | DN80: 0 | DO80: 9319.828387 | DQ80: =+IF(AA80>$K$8,$F$27/2,0) -> 1 | DR80: =+IF(AA80/Y80>1.5,$F$27/2,0) -> 0 | DS80: =SUM(DQ80:DR80) -> 1 | DT80: 1 | DU80: 0 | DW80: 1 | DX80: 1 | DY80: 0 | DZ80: 0.2051418253 | EA80: 0 | EC80: =IFERROR(VLOOKUP(A80,$EI$37:$EK$1748,2,FALSE),"--") -> LOPUT | ED80: =IFERROR(VLOOKUP(A80,$EI$37:$EK$1748,3,FALSE),"--") -> 51 | EE80: =IFERROR(ED80-D80,"--") -> 7 | EF80: =IFERROR(VLOOKUP(A80,$EI$37:$EL$1748,4,FALSE),"--") -> 1 | EG80: =IFERROR(EF80-K80,"--") -> 0 | EI80: 170_19 | EJ80: LOPUT | EK80: 30 | EL80: 1 | EN80: 11229 | EO80: 1
A81: =CONCATENATE(S81,"_",T81) -> 54_8 | B81: 1 | D81: =RANK(CL81,$CL$37:$CL$1740) -> 45 | E81: 45 | F81: =E81-D81 -> 0 | G81: =CL81 -> 13.575 | H81: =AZ81 -> 4.575 | I81: =BR81 -> 7.166666667 | J81: =CJ81 -> 1.833333333 | K81: =CM81 -> 1 | L81: =B81-K81 -> 0 | M81: =HYPERLINK(CT81,"Gmaps") -> Gmaps | N81: =IF(Y81>$K$6,"LOPUT","VÄHÄ") -> LOPUT | O81: =IF(S81<40,"Valta",IF(S81<100,"Kanta",IF(S81<1000,"Seutu",IF(S81>999,"Yhdys")))) -> Kanta | P81: Lopen kantatie | Q81: Loppi | R81: Kanta-Häme | S81: 54 | T81: 8 | U81: 0 | V81: 8 | W81: 5714 | X81: 5714 | Y81: 6828 | Z81: 718 | AA81: 8338 | AB81: 6828 (100 %) | AC81: 100 (100 %) | AD81: Is (100 %) | AE81: AB (100 %) | AF81: Y1 (100 %) | AG81: 4 | AH81: 5 | AI81: 0.190598233 | AJ81: 396 | AM81: x | AN81: 0 | AO81: 0 | AR81: =+IF(Y81>=$K$6,$F$5,($F$5/($K$6))*Y81) -> 9 | AS81: 23 | AU81: 23 | AV81: =+IF(AS81>=$L$15,$J$15,IF(AS81<($L$15),AS81*($J$15/($L$15)),)) -> 1.725 | AW81: 1726 | AX81: =+IF(AW81>=$L$11,$J$11,IF(AW81<($L$11),AW81*($J$11/($L$11)),)) -> 3 | AY81: =SUM(AR81,AV81,AX81) -> 13.725 | AZ81: =+AY81*$H$5 -> 4.575 | BA81: =+IF(Z81=0,0,IF(Z81>$K$7,$F$9,($F$9/$K$7)*Z81)) -> 8 | BB81: =IF(CZ81>0,$F$10,0) -> 2 | BC81: =IF(DA81>0,$F$11,0) -> 1 | BD81: =IF(DB81>0,$F$12,0) -> 1 | BE81: =IF(DC81>0,$F$13,0) -> 1 | BF81: =IF(DE81>0,$F$14,IF(DD81>0,$F$14/2,0)) -> 2 | BG81: =+IF(DF81>=$L$23,$J$23,IF(DF81<($L$23),DF81*($J$23/($L$23)),)) -> 0.5 | BH81: =+IF(DG81>=$L$24,$J$24,IF(DG81<($L$24),DG81*($J$24/($L$24)),)) -> 0.5 | BI81: =+IF(DH81>=$L$25,$J$25,IF(DH81<($L$25),DH81*($J$25/($L$25)),)) -> 0 | BJ81: =+IF(DI81>=$L$26,$J$26,IF(DI81<($L$26),DI81*($J$26/($L$26)),)) -> 0.5 | BK81: =IF(DJ81>0,$F$16,0) -> 0 | BL81: =+IF(DM81>=$L$29,$J$29,IF(DM81<($L$29),DM81*($J$29/($L$29)),)) -> 2 | BM81: =IF(EA81>100000,$F$18,IF(EA81>0,$F$18/2,0)) -> 0 | BN81: =IF(DX81>0,$F$19,0) -> 2 | BO81: 45.36712329 | BP81: =+IF(BO81>=$L$19,$J$19,IF(BO81<($L$19),BO81*($J$19/($L$19)),)) -> 1 | BQ81: =SUM(BA81+BB81+BC81+BD81+BE81+BF81+BK81+BG81+BH81+BI81+BJ81+BL81+BM81+BN81+BP81) -> 21.5 | BR81: =+BQ81*$H$9 -> 7.166666667 | BS81: 4655.643247 | BT81: =BS81/X81 -> 0.8147783072 | BU81: =IF(BT81>0,IF(BT81>=$CY$28,$CW$28,IF(BT81<$CY$28,$CW$29,0)),0) -> 1 | BV81: 5713.551933 | BW81: =BV81/X81 -> 0.9999215843 | BX81: =IF(BW81,$F$23,0) -> 1 | BY81: =IF(DO81>0,$F$24,0) -> 1 | BZ81: 0 | CA81: =BZ81/X81 -> 0 | CB81: =+IF(CA81>=$K$4,$F$25,0) -> 0 | CC81: 14.65330767 | CD81: =IF(CC81>0,IF(CC81>=100,$F$26,IF(CC81<100,$F$26/2)),0) -> 0.5 | CE81: =SUM(DS81) -> 1 | CF81: =IF(DU81>0,$F$28,0) -> 0 | CG81: =IF(DT81>0,$F$29,0) -> 0 | CH81: =IF(DW81>0,$F$30,0) -> 1 | CI81: =SUM(BU81,BX81,CD81,BY81,CB81,CE81,CF81,CG81,CH81) -> 5.5 | CJ81: =+CI81*$H$22 -> 1.833333333 | CK81: =SUM(AY81,BQ81,CI81) -> 40.725 | CL81: =SUM(AZ81,BR81,CJ81) -> 13.575 | CM81: =IF(D81<($Z$13*1704),1,IF(D81<(($Z$14+$Z$13)*1704),2,IF(D81<(($Z$15+$Z$13+$Z$14)*1704),3,4))) -> 1 | CN81: =VLOOKUP(A81,Taul1!$F$6:$G$1718,2,FALSE) -> 1 | CT81: https://www.google.com/maps/@60.71407369,24.47943165,3a,75y,90t/data=!3m3!1e1!3m1!2e0 | CW81: 0 | CX81: 0 | CY81: 1 | CZ81: =SUM(CW81:CY81) -> 1 | DA81: 1 | DB81: 5 | DC81: 2 | DD81: 16 | DE81: 1 | DF81: 400 | DG81: 714 | DH81: 0 | DI81: 14055 | DJ81: 0 | DM81: 9 | DN81: 0 | DO81: 5713.551933 | DQ81: =+IF(AA81>$K$8,$F$27/2,0) -> 1 | DR81: =+IF(AA81/Y81>1.5,$F$27/2,0) -> 0 | DS81: =SUM(DQ81:DR81) -> 1 | DT81: 0 | DU81: 0 | DW81: 1 | DX81: 1 | DY81: 0 | DZ81: 0 | EA81: 0 | EC81: =IFERROR(VLOOKUP(A81,$EI$37:$EK$1748,2,FALSE),"--") -> LOPUT | ED81: =IFERROR(VLOOKUP(A81,$EI$37:$EK$1748,3,FALSE),"--") -> 34 | EE81: =IFERROR(ED81-D81,"--") -> -11 | EF81: =IFERROR(VLOOKUP(A81,$EI$37:$EL$1748,4,FALSE),"--") -> 1 | EG81: =IFERROR(EF81-K81,"--") -> 0 | EI81: 10_24 | EJ81: LOPUT | EK81: 33 | EL81: 1 | EN81: 167 | EO81: 1
A82: =CONCATENATE(S82,"_",T82) -> 52_2 | B82: 1 | D82: =RANK(CL82,$CL$37:$CL$1740) -> 46 | E82: 46 | F82: =E82-D82 -> 0 | G82: =CL82 -> 13.55874429 | H82: =AZ82 -> 4.375 | I82: =BR82 -> 7.183744292 | J82: =CJ82 -> 2 | K82: =CM82 -> 1 | L82: =B82-K82 -> 0 | M82: =HYPERLINK(CT82,"Gmaps") -> Gmaps | N82: =IF(Y82>$K$6,"LOPUT","VÄHÄ") -> LOPUT | O82: =IF(S82<40,"Valta",IF(S82<100,"Kanta",IF(S82<1000,"Seutu",IF(S82>999,"Yhdys")))) -> Kanta | P82: Tenholantie | Q82: Raasepori | R82: Uusimaa | S82: 52 | T82: 2 | U82: 0 | V82: 2 | W82: 5486 | X82: 5486 | Y82: 3428 | Z82: 413 | AA82: 4606 | AB82: 3428 (100 %) | AC82: 80 (100 %) | AD82: Is (100 %) | AE82: AB (100 %) | AF82: Y1 (100 %) | AG82: 3 | AH82: 10 | AI82: 0.5456785777 | AJ82: 264 | AN82: 0 | AO82: 0 | AR82: =+IF(Y82>=$K$6,$F$5,($F$5/($K$6))*Y82) -> 9 | AS82: 15 | AU82: 15 | AV82: =+IF(AS82>=$L$15,$J$15,IF(AS82<($L$15),AS82*($J$15/($L$15)),)) -> 1.125 | AW82: 841 | AX82: =+IF(AW82>=$L$11,$J$11,IF(AW82<($L$11),AW82*($J$11/($L$11)),)) -> 3 | AY82: =SUM(AR82,AV82,AX82) -> 13.125 | AZ82: =+AY82*$H$5 -> 4.375 | BA82: =+IF(Z82=0,0,IF(Z82>$K$7,$F$9,($F$9/$K$7)*Z82)) -> 8 | BB82: =IF(CZ82>0,$F$10,0) -> 2 | BC82: =IF(DA82>0,$F$11,0) -> 1 | BD82: =IF(DB82>0,$F$12,0) -> 1 | BE82: =IF(DC82>0,$F$13,0) -> 0 | BF82: =IF(DE82>0,$F$14,IF(DD82>0,$F$14/2,0)) -> 2 | BG82: =+IF(DF82>=$L$23,$J$23,IF(DF82<($L$23),DF82*($J$23/($L$23)),)) -> 0.5 | BH82: =+IF(DG82>=$L$24,$J$24,IF(DG82<($L$24),DG82*($J$24/($L$24)),)) -> 0.5 | BI82: =+IF(DH82>=$L$25,$J$25,IF(DH82<($L$25),DH82*($J$25/($L$25)),)) -> 0 | BJ82: =+IF(DI82>=$L$26,$J$26,IF(DI82<($L$26),DI82*($J$26/($L$26)),)) -> 0 | BK82: =IF(DJ82>0,$F$16,0) -> 2 | BL82: =+IF(DM82>=$L$29,$J$29,IF(DM82<($L$29),DM82*($J$29/($L$29)),)) -> 2 | BM82: =IF(EA82>100000,$F$18,IF(EA82>0,$F$18/2,0)) -> 0 | BN82: =IF(DX82>0,$F$19,0) -> 2 | BO82: 5.512328767 | BP82: =+IF(BO82>=$L$19,$J$19,IF(BO82<($L$19),BO82*($J$19/($L$19)),)) -> 0.5512328767 | BQ82: =SUM(BA82+BB82+BC82+BD82+BE82+BF82+BK82+BG82+BH82+BI82+BJ82+BL82+BM82+BN82+BP82) -> 21.55123288 | BR82: =+BQ82*$H$9 -> 7.183744292 | BS82: 2641.233506 | BT82: =BS82/X82 -> 0.4814497824 | BU82: =IF(BT82>0,IF(BT82>=$CY$28,$CW$28,IF(BT82<$CY$28,$CW$29,0)),0) -> 0.5 | BV82: 5486.528385 | BW82: =BV82/X82 -> 1.000096315 | BX82: =IF(BW82,$F$23,0) -> 1 | BY82: =IF(DO82>0,$F$24,0) -> 1 | BZ82: 0 | CA82: =BZ82/X82 -> 0 | CB82: =+IF(CA82>=$K$4,$F$25,0) -> 0 | CC82: 46.95224207 | CD82: =IF(CC82>0,IF(CC82>=100,$F$26,IF(CC82<100,$F$26/2)),0) -> 0.5 | CE82: =SUM(DS82) -> 1 | CF82: =IF(DU82>0,$F$28,0) -> 1 | CG82: =IF(DT82>0,$F$29,0) -> 0 | CH82: =IF(DW82>0,$F$30,0) -> 1 | CI82: =SUM(BU82,BX82,CD82,BY82,CB82,CE82,CF82,CG82,CH82) -> 6 | CJ82: =+CI82*$H$22 -> 2 | CK82: =SUM(AY82,BQ82,CI82) -> 40.67623288 | CL82: =SUM(AZ82,BR82,CJ82) -> 13.55874429 | CM82: =IF(D82<($Z$13*1704),1,IF(D82<(($Z$14+$Z$13)*1704),2,IF(D82<(($Z$15+$Z$13+$Z$14)*1704),3,4))) -> 1 | CN82: =VLOOKUP(A82,Taul1!$F$6:$G$1718,2,FALSE) -> 1 | CT82: https://www.google.com/maps/@60.03231074,23.36830577,3a,75y,90t/data=!3m3!1e1!3m1!2e0 | CW82: 1 | CX82: 0 | CY82: 1 | CZ82: =SUM(CW82:CY82) -> 2 | DA82: 1 | DB82: 3 | DC82: 0 | DD82: 20 | DE82: 1 | DF82: 411 | DG82: 121 | DH82: 0 | DI82: 0 | DJ82: 1 | DM82: 8 | DN82: 0 | DO82: 5486.528385 | DQ82: =+IF(AA82>$K$8,$F$27/2,0) -> 1 | DR82: =+IF(AA82/Y82>1.5,$F$27/2,0) -> 0 | DS82: =SUM(DQ82:DR82) -> 1 | DT82: 0 | DU82: 1 | DW82: 1 | DX82: 3 | DY82: 0 | DZ82: 0 | EA82: 0 | EC82: =IFERROR(VLOOKUP(A82,$EI$37:$EK$1748,2,FALSE),"--") -> LOPUT | ED82: =IFERROR(VLOOKUP(A82,$EI$37:$EK$1748,3,FALSE),"--") -> 101 | EE82: =IFERROR(ED82-D82,"--") -> 55 | EF82: =IFERROR(VLOOKUP(A82,$EI$37:$EL$1748,4,FALSE),"--") -> 2 | EG82: =IFERROR(EF82-K82,"--") -> 1 | EI82: 12_218 | EJ82: LOPUT | EK82: 45 | EL82: 1 | EN82: 1605 | EO82: 1
A83: =CONCATENATE(S83,"_",T83) -> 25_22 | B83: 1 | D83: =RANK(CL83,$CL$37:$CL$1740) -> 47 | E83: 47 | F83: =E83-D83 -> 0 | G83: =CL83 -> 13.52944444 | H83: =AZ83 -> 5 | I83: =BR83 -> 6.529444444 | J83: =CJ83 -> 2 | K83: =CM83 -> 1 | L83: =B83-K83 -> 0 | M83: =HYPERLINK(CT83,"Gmaps") -> Gmaps | N83: =IF(Y83>$K$6,"LOPUT","VÄHÄ") -> LOPUT | O83: =IF(S83<40,"Valta",IF(S83<100,"Kanta",IF(S83<1000,"Seutu",IF(S83>999,"Yhdys")))) -> Valta | P83: Kehätie | Q83: Vihti, Lohja | R83: Uusimaa | S83: 25 | T83: 22 | U83: 0 | V83: 22 | W83: 1806 | X83: 1806 | Y83: 11278.01107 | Z83: 1296.409745 | AA83: 12865.34551 | AB83: 11336 (88 %), 10842 (12 %) | AC83: 50 (22 %), 60 (69 %), 80 (5 %) | AD83: Ise (96 %) | AE83: AB (96 %) | AF83: Y1 (96 %) | AG83: 1 | AH83: 4 | AI83: 0.2601908066 | AJ83: 749.7009967 | AK83: Laajin Ternverkko | AL83: 1 | AN83: 0 | AO83: 0.8460756781 | AR83: =+IF(Y83>=$K$6,$F$5,($F$5/($K$6))*Y83) -> 9 | AS83: 127 | AU83: 127 | AV83: =+IF(AS83>=$L$15,$J$15,IF(AS83<($L$15),AS83*($J$15/($L$15)),)) -> 3 | AW83: 2705 | AX83: =+IF(AW83>=$L$11,$J$11,IF(AW83<($L$11),AW83*($J$11/($L$11)),)) -> 3 | AY83: =SUM(AR83,AV83,AX83) -> 15 | AZ83: =+AY83*$H$5 -> 5 | BA83: =+IF(Z83=0,0,IF(Z83>$K$7,$F$9,($F$9/$K$7)*Z83)) -> 8 | BB83: =IF(CZ83>0,$F$10,0) -> 2 | BC83: =IF(DA83>0,$F$11,0) -> 1 | BD83: =IF(DB83>0,$F$12,0) -> 1 | BE83: =IF(DC83>0,$F$13,0) -> 0 | BF83: =IF(DE83>0,$F$14,IF(DD83>0,$F$14/2,0)) -> 2 | BG83: =+IF(DF83>=$L$23,$J$23,IF(DF83<($L$23),DF83*($J$23/($L$23)),)) -> 0.4383333333 | BH83: =+IF(DG83>=$L$24,$J$24,IF(DG83<($L$24),DG83*($J$24/($L$24)),)) -> 0.15 | BI83: =+IF(DH83>=$L$25,$J$25,IF(DH83<($L$25),DH83*($J$25/($L$25)),)) -> 0 | BJ83: =+IF(DI83>=$L$26,$J$26,IF(DI83<($L$26),DI83*($J$26/($L$26)),)) -> 0 | BK83: =IF(DJ83>0,$F$16,0) -> 0 | BL83: =+IF(DM83>=$L$29,$J$29,IF(DM83<($L$29),DM83*($J$29/($L$29)),)) -> 2 | BM83: =IF(EA83>100000,$F$18,IF(EA83>0,$F$18/2,0)) -> 0 | BN83: =IF(DX83>0,$F$19,0) -> 2 | BO83: 22.83835616 | BP83: =+IF(BO83>=$L$19,$J$19,IF(BO83<($L$19),BO83*($J$19/($L$19)),)) -> 1 | BQ83: =SUM(BA83+BB83+BC83+BD83+BE83+BF83+BK83+BG83+BH83+BI83+BJ83+BL83+BM83+BN83+BP83) -> 19.58833333 | BR83: =+BQ83*$H$9 -> 6.529444444 | BS83: 820.3416562 | BT83: =BS83/X83 -> 0.4542312603 | BU83: =IF(BT83>0,IF(BT83>=$CY$28,$CW$28,IF(BT83<$CY$28,$CW$29,0)),0) -> 0.5 | BV83: 1741.73339 | BW83: =BV83/X83 -> 0.9644149448 | BX83: =IF(BW83,$F$23,0) -> 1 | BY83: =IF(DO83>0,$F$24,0) -> 1 | BZ83: 0 | CA83: =BZ83/X83 -> 0 | CB83: =+IF(CA83>=$K$4,$F$25,0) -> 0 | CC83: 40.75083056 | CD83: =IF(CC83>0,IF(CC83>=100,$F$26,IF(CC83<100,$F$26/2)),0) -> 0.5 | CE83: =SUM(DS83) -> 1 | CF83: =IF(DU83>0,$F$28,0) -> 0 | CG83: =IF(DT83>0,$F$29,0) -> 1 | CH83: =IF(DW83>0,$F$30,0) -> 1 | CI83: =SUM(BU83,BX83,CD83,BY83,CB83,CE83,CF83,CG83,CH83) -> 6 | CJ83: =+CI83*$H$22 -> 2 | CK83: =SUM(AY83,BQ83,CI83) -> 40.58833333 | CL83: =SUM(AZ83,BR83,CJ83) -> 13.52944444 | CM83: =IF(D83<($Z$13*1704),1,IF(D83<(($Z$14+$Z$13)*1704),2,IF(D83<(($Z$15+$Z$13+$Z$14)*1704),3,4))) -> 1 | CN83: =VLOOKUP(A83,Taul1!$F$6:$G$1718,2,FALSE) -> 2 | CT83: https://www.google.com/maps/@60.30095255,24.21625359,3a,75y,90t/data=!3m3!1e1!3m1!2e0 | CW83: 0 | CX83: 1 | CY83: 1 | CZ83: =SUM(CW83:CY83) -> 2 | DA83: 1 | DB83: 2 | DC83: 0 | DD83: 21 | DE83: 1 | DF83: 263 | DG83: 30 | DH83: 0 | DI83: 0 | DJ83: 0 | DM83: 11 | DN83: 0 | DO83: 1741.73339 | DQ83: =+IF(AA83>$K$8,$F$27/2,0) -> 1 | DR83: =+IF(AA83/Y83>1.5,$F$27/2,0) -> 0 | DS83: =SUM(DQ83:DR83) -> 1 | DT83: 1 | DU83: 0 | DW83: 1 | DX83: 2 | DY83: 0 | DZ83: 0.8460756781 | EA83: 0 | EC83: =IFERROR(VLOOKUP(A83,$EI$37:$EK$1748,2,FALSE),"--") -> LOPUT | ED83: =IFERROR(VLOOKUP(A83,$EI$37:$EK$1748,3,FALSE),"--") -> 104 | EE83: =IFERROR(ED83-D83,"--") -> 57 | EF83: =IFERROR(VLOOKUP(A83,$EI$37:$EL$1748,4,FALSE),"--") -> 2 | EG83: =IFERROR(EF83-K83,"--") -> 1 | EI83: 10_19 | EJ83: LOPUT | EK83: 60 | EL83: 1 | EN83: 13530 | EO83: 1
A84: =CONCATENATE(S84,"_",T84) -> 2853_1 | B84: 1 | D84: =RANK(CL84,$CL$37:$CL$1740) -> 48 | E84: 48 | F84: =E84-D84 -> 0 | G84: =CL84 -> 13.52630137 | H84: =AZ84 -> 5 | I84: =BR84 -> 6.192968037 | J84: =CJ84 -> 2.333333333 | K84: =CM84 -> 1 | L84: =B84-K84 -> 0 | M84: =HYPERLINK(CT84,"Gmaps") -> Gmaps | N84: =IF(Y84>$K$6,"LOPUT","VÄHÄ") -> LOPUT | O84: =IF(S84<40,"Valta",IF(S84<100,"Kanta",IF(S84<1000,"Seutu",IF(S84>999,"Yhdys")))) -> Yhdys | P84: Heinuntie | Q84: Hämeenlinna | R84: Kanta-Häme | S84: 2853 | T84: 1 | U84: 0 | V84: 1 | W84: 597 | X84: 597 | Y84: 3114 | Z84: 338 | AA84: 3799 | AB84: 3114 (100 %) | AC84: 50 (101 %) | AD84: I (101 %) | AE84: AB (101 %) | AF84: Y2 (101 %) | AG84: 0 | AH84: 0 | AI84: 0.06381578947 | AJ84: 127 | AN84: 0 | AO84: 1.008335944 | AR84: =+IF(Y84>=$K$6,$F$5,($F$5/($K$6))*Y84) -> 9 | AS84: 59 | AU84: 59 | AV84: =+IF(AS84>=$L$15,$J$15,IF(AS84<($L$15),AS84*($J$15/($L$15)),)) -> 3 | AW84: 867 | AX84: =+IF(AW84>=$L$11,$J$11,IF(AW84<($L$11),AW84*($J$11/($L$11)),)) -> 3 | AY84: =SUM(AR84,AV84,AX84) -> 15 | AZ84: =+AY84*$H$5 -> 5 | BA84: =+IF(Z84=0,0,IF(Z84>$K$7,$F$9,($F$9/$K$7)*Z84)) -> 8 | BB84: =IF(CZ84>0,$F$10,0) -> 2 | BC84: =IF(DA84>0,$F$11,0) -> 1 | BD84: =IF(DB84>0,$F$12,0) -> 1 | BE84: =IF(DC84>0,$F$13,0) -> 0 | BF84: =IF(DE84>0,$F$14,IF(DD84>0,$F$14/2,0)) -> 1 | BG84: =+IF(DF84>=$L$23,$J$23,IF(DF84<($L$23),DF84*($J$23/($L$23)),)) -> 0.5 | BH84: =+IF(DG84>=$L$24,$J$24,IF(DG84<($L$24),DG84*($J$24/($L$24)),)) -> 0.5 | BI84: =+IF(DH84>=$L$25,$J$25,IF(DH84<($L$25),DH84*($J$25/($L$25)),)) -> 0 | BJ84: =+IF(DI84>=$L$26,$J$26,IF(DI84<($L$26),DI84*($J$26/($L$26)),)) -> 0 | BK84: =IF(DJ84>0,$F$16,0) -> 0 | BL84: =+IF(DM84>=$L$29,$J$29,IF(DM84<($L$29),DM84*($J$29/($L$29)),)) -> 2 | BM84: =IF(EA84>100000,$F$18,IF(EA84>0,$F$18/2,0)) -> 0.5 | BN84: =IF(DX84>0,$F$19,0) -> 2 | BO84: 0.7890410959 | BP84: =+IF(BO84>=$L$19,$J$19,IF(BO84<($L$19),BO84*($J$19/($L$19)),)) -> 0.07890410959 | BQ84: =SUM(BA84+BB84+BC84+BD84+BE84+BF84+BK84+BG84+BH84+BI84+BJ84+BL84+BM84+BN84+BP84) -> 18.57890411 | BR84: =+BQ84*$H$9 -> 6.192968037 | BS84: 601.9765585 | BT84: =BS84/X84 -> 1.008335944 | BU84: =IF(BT84>0,IF(BT84>=$CY$28,$CW$28,IF(BT84<$CY$28,$CW$29,0)),0) -> 1 | BV84: 0 | BW84: =BV84/X84 -> 0 | BX84: =IF(BW84,$F$23,0) -> 0 | BY84: =IF(DO84>0,$F$24,0) -> 1 | BZ84: 601.9765585 | CA84: =BZ84/X84 -> 1.008335944 | CB84: =+IF(CA84>=$K$4,$F$25,0) -> 1 | CC84: 102.7973199 | CD84: =IF(CC84>0,IF(CC84>=100,$F$26,IF(CC84<100,$F$26/2)),0) -> 1 | CE84: =SUM(DS84) -> 1 | CF84: =IF(DU84>0,$F$28,0) -> 0 | CG84: =IF(DT84>0,$F$29,0) -> 1 | CH84: =IF(DW84>0,$F$30,0) -> 1 | CI84: =SUM(BU84,BX84,CD84,BY84,CB84,CE84,CF84,CG84,CH84) -> 7 | CJ84: =+CI84*$H$22 -> 2.333333333 | CK84: =SUM(AY84,BQ84,CI84) -> 40.57890411 | CL84: =SUM(AZ84,BR84,CJ84) -> 13.52630137 | CM84: =IF(D84<($Z$13*1704),1,IF(D84<(($Z$14+$Z$13)*1704),2,IF(D84<(($Z$15+$Z$13+$Z$14)*1704),3,4))) -> 1 | CN84: =VLOOKUP(A84,Taul1!$F$6:$G$1718,2,FALSE) -> 1 | CT84: https://www.google.com/maps/@61.09909705,24.16850319,3a,75y,90t/data=!3m3!1e1!3m1!2e0 | CW84: 0 | CX84: 1 | CY84: 0 | CZ84: =SUM(CW84:CY84) -> 1 | DA84: 1 | DB84: 1 | DC84: 0 | DD84: 19 | DE84: 0 | DF84: 628 | DG84: 182 | DH84: 0 | DI84: 0 | DJ84: 0 | DM84: 10 | DN84: 0 | DO84: 601.9765585 | DQ84: =+IF(AA84>$K$8,$F$27/2,0) -> 1 | DR84: =+IF(AA84/Y84>1.5,$F$27/2,0) -> 0 | DS84: =SUM(DQ84:DR84) -> 1 | DT84: 1 | DU84: 0 | DW84: 1 | DX84: 1 | DY84: 0 | DZ84: 1.008335944 | EA84: 12570 | EC84: =IFERROR(VLOOKUP(A84,$EI$37:$EK$1748,2,FALSE),"--") -> LOPUT | ED84: =IFERROR(VLOOKUP(A84,$EI$37:$EK$1748,3,FALSE),"--") -> 265 | EE84: =IFERROR(ED84-D84,"--") -> 217 | EF84: =IFERROR(VLOOKUP(A84,$EI$37:$EL$1748,4,FALSE),"--") -> 2 | EG84: =IFERROR(EF84-K84,"--") -> 1 | EI84: 170_10 | EJ84: LOPUT | EK84: 29 | EL84: 1
A85: =CONCATENATE(S85,"_",T85) -> 176_1 | B85: 1 | D85: =RANK(CL85,$CL$37:$CL$1740) -> 49 | E85: 49 | F85: =E85-D85 -> 0 | G85: =CL85 -> 13.51900304 | H85: =AZ85 -> 5 | I85: =BR85 -> 6.352336377 | J85: =CJ85 -> 2.166666667 | K85: =CM85 -> 1 | L85: =B85-K85 -> 0 | M85: =HYPERLINK(CT85,"Gmaps") -> Gmaps | N85: =IF(Y85>$K$6,"LOPUT","VÄHÄ") -> LOPUT | O85: =IF(S85<40,"Valta",IF(S85<100,"Kanta",IF(S85<1000,"Seutu",IF(S85>999,"Yhdys")))) -> Seutu | P85: Lapinjärventie | Q85: Loviisa | R85: Uusimaa | S85: 176 | T85: 1 | U85: 0 | V85: 1 | W85: 6557 | X85: 6557 | Y85: 2016 | Z85: 101 | AA85: 2217 | AB85: 2016 (100 %) | AC85: 50 (59 %), 60 (10 %), 70 (30 %) | AD85: I (8 %), Ib (38 %), Is (54 %) | AE85: AB (100 %) | AF85: Y2 (100 %) | AG85: 1 | AH85: 3 | AI85: 0.01525087693 | AJ85: 45 | AN85: 0 | AO85: 0.1015682983 | AR85: =+IF(Y85>=$K$6,$F$5,($F$5/($K$6))*Y85) -> 9 | AS85: 46 | AU85: 46 | AV85: =+IF(AS85>=$L$15,$J$15,IF(AS85<($L$15),AS85*($J$15/($L$15)),)) -> 3 | AW85: 1776 | AX85: =+IF(AW85>=$L$11,$J$11,IF(AW85<($L$11),AW85*($J$11/($L$11)),)) -> 3 | AY85: =SUM(AR85,AV85,AX85) -> 15 | AZ85: =+AY85*$H$5 -> 5 | BA85: =+IF(Z85=0,0,IF(Z85>$K$7,$F$9,($F$9/$K$7)*Z85)) -> 8 | BB85: =IF(CZ85>0,$F$10,0) -> 0 | BC85: =IF(DA85>0,$F$11,0) -> 1 | BD85: =IF(DB85>0,$F$12,0) -> 1 | BE85: =IF(DC85>0,$F$13,0) -> 0 | BF85: =IF(DE85>0,$F$14,IF(DD85>0,$F$14/2,0)) -> 2 | BG85: =+IF(DF85>=$L$23,$J$23,IF(DF85<($L$23),DF85*($J$23/($L$23)),)) -> 0.05166666667 | BH85: =+IF(DG85>=$L$24,$J$24,IF(DG85<($L$24),DG85*($J$24/($L$24)),)) -> 0.07 | BI85: =+IF(DH85>=$L$25,$J$25,IF(DH85<($L$25),DH85*($J$25/($L$25)),)) -> 0 | BJ85: =+IF(DI85>=$L$26,$J$26,IF(DI85<($L$26),DI85*($J$26/($L$26)),)) -> 0 | BK85: =IF(DJ85>0,$F$16,0) -> 2 | BL85: =+IF(DM85>=$L$29,$J$29,IF(DM85<($L$29),DM85*($J$29/($L$29)),)) -> 2 | BM85: =IF(EA85>100000,$F$18,IF(EA85>0,$F$18/2,0)) -> 0.5 | BN85: =IF(DX85>0,$F$19,0) -> 2 | BO85: 4.353424658 | BP85: =+IF(BO85>=$L$19,$J$19,IF(BO85<($L$19),BO85*($J$19/($L$19)),)) -> 0.4353424658 | BQ85: =SUM(BA85+BB85+BC85+BD85+BE85+BF85+BK85+BG85+BH85+BI85+BJ85+BL85+BM85+BN85+BP85) -> 19.05700913 | BR85: =+BQ85*$H$9 -> 6.352336377 | BS85: 6362.894175 | BT85: =BS85/X85 -> 0.9703971596 | BU85: =IF(BT85>0,IF(BT85>=$CY$28,$CW$28,IF(BT85<$CY$28,$CW$29,0)),0) -> 1 | BV85: 6546.409181 | BW85: =BV85/X85 -> 0.9983848072 | BX85: =IF(BW85,$F$23,0) -> 1 | BY85: =IF(DO85>0,$F$24,0) -> 1 | BZ85: 0 | CA85: =BZ85/X85 -> 0 | CB85: =+IF(CA85>=$K$4,$F$25,0) -> 0 | CC85: 51.38523715 | CD85: =IF(CC85>0,IF(CC85>=100,$F$26,IF(CC85<100,$F$26/2)),0) -> 0.5 | CE85: =SUM(DS85) -> 1 | CF85: =IF(DU85>0,$F$28,0) -> 0 | CG85: =IF(DT85>0,$F$29,0) -> 1 | CH85: =IF(DW85>0,$F$30,0) -> 1 | CI85: =SUM(BU85,BX85,CD85,BY85,CB85,CE85,CF85,CG85,CH85) -> 6.5 | CJ85: =+CI85*$H$22 -> 2.166666667 | CK85: =SUM(AY85,BQ85,CI85) -> 40.55700913 | CL85: =SUM(AZ85,BR85,CJ85) -> 13.51900304 | CM85: =IF(D85<($Z$13*1704),1,IF(D85<(($Z$14+$Z$13)*1704),2,IF(D85<(($Z$15+$Z$13+$Z$14)*1704),3,4))) -> 1 | CN85: =VLOOKUP(A85,Taul1!$F$6:$G$1718,2,FALSE) -> 1 | CT85: https://www.google.com/maps/@60.45846426,26.19412486,3a,75y,90t/data=!3m3!1e1!3m1!2e0 | CW85: 0 | CX85: 0 | CY85: 0 | CZ85: =SUM(CW85:CY85) -> 0 | DA85: 2 | DB85: 5 | DC85: 0 | DD85: 12 | DE85: 2 | DF85: 31 | DG85: 14 | DH85: 0 | DI85: 0 | DJ85: 1 | DM85: 16 | DN85: 0 | DO85: 6546.409181 | DQ85: =+IF(AA85>$K$8,$F$27/2,0) -> 1 | DR85: =+IF(AA85/Y85>1.5,$F$27/2,0) -> 0 | DS85: =SUM(DQ85:DR85) -> 1 | DT85: 3 | DU85: 0 | DW85: 1 | DX85: 6 | DY85: 0 | DZ85: 0.1015682983 | EA85: 37753 | EC85: =IFERROR(VLOOKUP(A85,$EI$37:$EK$1748,2,FALSE),"--") -> LOPUT | ED85: =IFERROR(VLOOKUP(A85,$EI$37:$EK$1748,3,FALSE),"--") -> 42 | EE85: =IFERROR(ED85-D85,"--") -> -7 | EF85: =IFERROR(VLOOKUP(A85,$EI$37:$EL$1748,4,FALSE),"--") -> 1 | EG85: =IFERROR(EF85-K85,"--") -> 0 | EI85: 55_5 | EJ85: LOPUT | EK85: 99 | EL85: 2 | EN85: 11116 | EO85: 1
A86: =CONCATENATE(S86,"_",T86) -> 313_1 | B86: 1 | D86: =RANK(CL86,$CL$37:$CL$1740) -> 50 | E86: 50 | F86: =E86-D86 -> 0 | G86: =CL86 -> 13.51166667 | H86: =AZ86 -> 5 | I86: =BR86 -> 6.345 | J86: =CJ86 -> 2.166666667 | K86: =CM86 -> 1 | L86: =B86-K86 -> 0 | M86: =HYPERLINK(CT86,"Gmaps") -> Gmaps | N86: =IF(Y86>$K$6,"LOPUT","VÄHÄ") -> LOPUT | O86: =IF(S86<40,"Valta",IF(S86<100,"Kanta",IF(S86<1000,"Seutu",IF(S86>999,"Yhdys")))) -> Seutu | P86: Anianpellontie, Rantakulmantie | Q86: Asikkala | R86: Päijät-Häme | S86: 313 | T86: 1 | U86: 0 | V86: 1 | W86: 6362 | X86: 6071 | Y86: 2347.126338 | Z86: 137.0920771 | AA86: 3474.563499 | AB86: 3464 (4 %), 3311 (3 %), 2991 (44 %), 1622 (49 %) | AC86: 40 (7 %), 50 (44 %), 60 (11 %), 80 (38 %) | AD86: Ib (49 %), Ic (51 %) | AE86: AB (100 %) | AF86: Y2 (100 %) | AG86: 2 | AH86: 3 | AI86: 0.06901663647 | AJ86: 40.64091583 | AN86: 0.02683670501 | AO86: 0.3860029613 | AR86: =+IF(Y86>=$K$6,$F$5,($F$5/($K$6))*Y86) -> 9 | AS86: 85 | AU86: 85 | AV86: =+IF(AS86>=$L$15,$J$15,IF(AS86<($L$15),AS86*($J$15/($L$15)),)) -> 3 | AW86: 1369 | AX86: =+IF(AW86>=$L$11,$J$11,IF(AW86<($L$11),AW86*($J$11/($L$11)),)) -> 3 | AY86: =SUM(AR86,AV86,AX86) -> 15 | AZ86: =+AY86*$H$5 -> 5 | BA86: =+IF(Z86=0,0,IF(Z86>$K$7,$F$9,($F$9/$K$7)*Z86)) -> 8 | BB86: =IF(CZ86>0,$F$10,0) -> 0 | BC86: =IF(DA86>0,$F$11,0) -> 1 | BD86: =IF(DB86>0,$F$12,0) -> 1 | BE86: =IF(DC86>0,$F$13,0) -> 0 | BF86: =IF(DE86>0,$F$14,IF(DD86>0,$F$14/2,0)) -> 2 | BG86: =+IF(DF86>=$L$23,$J$23,IF(DF86<($L$23),DF86*($J$23/($L$23)),)) -> 0 | BH86: =+IF(DG86>=$L$24,$J$24,IF(DG86<($L$24),DG86*($J$24/($L$24)),)) -> 0.035 | BI86: =+IF(DH86>=$L$25,$J$25,IF(DH86<($L$25),DH86*($J$25/($L$25)),)) -> 0 | BJ86: =+IF(DI86>=$L$26,$J$26,IF(DI86<($L$26),DI86*($J$26/($L$26)),)) -> 0 | BK86: =IF(DJ86>0,$F$16,0) -> 2 | BL86: =+IF(DM86>=$L$29,$J$29,IF(DM86<($L$29),DM86*($J$29/($L$29)),)) -> 2 | BM86: =IF(EA86>100000,$F$18,IF(EA86>0,$F$18/2,0)) -> 0 | BN86: =IF(DX86>0,$F$19,0) -> 2 | BO86: 28.57534247 | BP86: =+IF(BO86>=$L$19,$J$19,IF(BO86<($L$19),BO86*($J$19/($L$19)),)) -> 1 | BQ86: =SUM(BA86+BB86+BC86+BD86+BE86+BF86+BK86+BG86+BH86+BI86+BJ86+BL86+BM86+BN86+BP86) -> 19.035 | BR86: =+BQ86*$H$9 -> 6.345 | BS86: 1855.756359 | BT86: =BS86/X86 -> 0.3056755656 | BU86: =IF(BT86>0,IF(BT86>=$CY$28,$CW$28,IF(BT86<$CY$28,$CW$29,0)),0) -> 0.5 | BV86: 5907.746358 | BW86: =BV86/X86 -> 0.9731092667 | BX86: =IF(BW86,$F$23,0) -> 1 | BY86: =IF(DO86>0,$F$24,0) -> 0 | BZ86: 2511.345244 | CA86: =BZ86/X86 -> 0.4136625341 | CB86: =+IF(CA86>=$K$4,$F$25,0) -> 0 | CC86: 369.0265195 | CD86: =IF(CC86>0,IF(CC86>=100,$F$26,IF(CC86<100,$F$26/2)),0) -> 1 | CE86: =SUM(DS86) -> 1 | CF86: =IF(DU86>0,$F$28,0) -> 1 | CG86: =IF(DT86>0,$F$29,0) -> 1 | CH86: =IF(DW86>0,$F$30,0) -> 1 | CI86: =SUM(BU86,BX86,CD86,BY86,CB86,CE86,CF86,CG86,CH86) -> 6.5 | CJ86: =+CI86*$H$22 -> 2.166666667 | CK86: =SUM(AY86,BQ86,CI86) -> 40.535 | CL86: =SUM(AZ86,BR86,CJ86) -> 13.51166667 | CM86: =IF(D86<($Z$13*1704),1,IF(D86<(($Z$14+$Z$13)*1704),2,IF(D86<(($Z$15+$Z$13+$Z$14)*1704),3,4))) -> 1 | CN86: =VLOOKUP(A86,Taul1!$F$6:$G$1718,2,FALSE) -> 4 | CT86: https://www.google.com/maps/@61.16983270,25.54669600,3a,75y,90t/data=!3m3!1e1!3m1!2e0 | CW86: 0 | CX86: 0 | CY86: 0 | CZ86: =SUM(CW86:CY86) -> 0 | DA86: 1 | DB86: 5 | DC86: 0 | DD86: 14 | DE86: 3 | DF86: 0 | DG86: 7 | DH86: 0 | DI86: 0 | DJ86: 3 | DM86: 7 | DN86: 0 | DO86: 0 | DQ86: =+IF(AA86>$K$8,$F$27/2,0) -> 1 | DR86: =+IF(AA86/Y86>1.5,$F$27/2,0) -> 0 | DS86: =SUM(DQ86:DR86) -> 1 | DT86: 2 | DU86: 1 | DW86: 1 | DX86: 3 | DY86: 0.02683670501 | DZ86: 0.3860029613 | EA86: 0 | EC86: =IFERROR(VLOOKUP(A86,$EI$37:$EK$1748,2,FALSE),"--") -> LOPUT | ED86: =IFERROR(VLOOKUP(A86,$EI$37:$EK$1748,3,FALSE),"--") -> 95 | EE86: =IFERROR(ED86-D86,"--") -> 45 | EF86: =IFERROR(VLOOKUP(A86,$EI$37:$EL$1748,4,FALSE),"--") -> 2 | EG86: =IFERROR(EF86-K86,"--") -> 1 | EI86: 51_9 | EJ86: LOPUT | EK86: 105 | EL86: 2 | EN86: 1223 | EO86: 2
A87: =CONCATENATE(S87,"_",T87) -> 10_23 | B87: 1 | D87: =RANK(CL87,$CL$37:$CL$1740) -> 51 | E87: 51 | F87: =E87-D87 -> 0 | G87: =CL87 -> 13.50444444 | H87: =AZ87 -> 5 | I87: =BR87 -> 6.171111111 | J87: =CJ87 -> 2.333333333 | K87: =CM87 -> 1 | L87: =B87-K87 -> 0 | M87: =HYPERLINK(CT87,"Gmaps") -> Gmaps | N87: =IF(Y87>$K$6,"LOPUT","VÄHÄ") -> LOPUT | O87: =IF(S87<40,"Valta",IF(S87<100,"Kanta",IF(S87<1000,"Seutu",IF(S87>999,"Yhdys")))) -> Valta | P87: Turun Valtatie | Q87: Hämeenlinna | R87: Kanta-Häme | S87: 10 | T87: 23 | U87: 0 | V87: 23 | W87: 7452 | X87: 7452 | Y87: 3455 | Z87: 425 | AA87: 4117 | AB87: 3455 (100 %) | AC87: 80 (36 %), 100 (64 %) | AD87: Is (100 %) | AE87: AB (100 %) | AF87: Y1 (100 %) | AG87: 0 | AH87: 0 | AI87: 0.01302592158 | AJ87: 285 | AN87: 0 | AO87: 0.004555741385 | AR87: =+IF(Y87>=$K$6,$F$5,($F$5/($K$6))*Y87) -> 9 | AS87: 116 | AU87: 116 | AV87: =+IF(AS87>=$L$15,$J$15,IF(AS87<($L$15),AS87*($J$15/($L$15)),)) -> 3 | AW87: 1184 | AX87: =+IF(AW87>=$L$11,$J$11,IF(AW87<($L$11),AW87*($J$11/($L$11)),)) -> 3 | AY87: =SUM(AR87,AV87,AX87) -> 15 | AZ87: =+AY87*$H$5 -> 5 | BA87: =+IF(Z87=0,0,IF(Z87>$K$7,$F$9,($F$9/$K$7)*Z87)) -> 8 | BB87: =IF(CZ87>0,$F$10,0) -> 2 | BC87: =IF(DA87>0,$F$11,0) -> 0 | BD87: =IF(DB87>0,$F$12,0) -> 1 | BE87: =IF(DC87>0,$F$13,0) -> 0 | BF87: =IF(DE87>0,$F$14,IF(DD87>0,$F$14/2,0)) -> 2 | BG87: =+IF(DF87>=$L$23,$J$23,IF(DF87<($L$23),DF87*($J$23/($L$23)),)) -> 0.01333333333 | BH87: =+IF(DG87>=$L$24,$J$24,IF(DG87<($L$24),DG87*($J$24/($L$24)),)) -> 0 | BI87: =+IF(DH87>=$L$25,$J$25,IF(DH87<($L$25),DH87*($J$25/($L$25)),)) -> 0 | BJ87: =+IF(DI87>=$L$26,$J$26,IF(DI87<($L$26),DI87*($J$26/($L$26)),)) -> 0 | BK87: =IF(DJ87>0,$F$16,0) -> 2 | BL87: =+IF(DM87>=$L$29,$J$29,IF(DM87<($L$29),DM87*($J$29/($L$29)),)) -> 2 | BM87: =IF(EA87>100000,$F$18,IF(EA87>0,$F$18/2,0)) -> 0.5 | BN87: =IF(DX87>0,$F$19,0) -> 0 | BO87: 13.76712329 | BP87: =+IF(BO87>=$L$19,$J$19,IF(BO87<($L$19),BO87*($J$19/($L$19)),)) -> 1 | BQ87: =SUM(BA87+BB87+BC87+BD87+BE87+BF87+BK87+BG87+BH87+BI87+BJ87+BL87+BM87+BN87+BP87) -> 18.51333333 | BR87: =+BQ87*$H$9 -> 6.171111111 | BS87: 2378.148915 | BT87: =BS87/X87 -> 0.3191289473 | BU87: =IF(BT87>0,IF(BT87>=$CY$28,$CW$28,IF(BT87<$CY$28,$CW$29,0)),0) -> 0.5 | BV87: 7451.554233 | BW87: =BV87/X87 -> 0.9999401815 | BX87: =IF(BW87,$F$23,0) -> 1 | BY87: =IF(DO87>0,$F$24,0) -> 1 | BZ87: 0 | CA87: =BZ87/X87 -> 0 | CB87: =+IF(CA87>=$K$4,$F$25,0) -> 0 | CC87: 54.45786366 | CD87: =IF(CC87>0,IF(CC87>=100,$F$26,IF(CC87<100,$F$26/2)),0) -> 0.5 | CE87: =SUM(DS87) -> 1 | CF87: =IF(DU87>0,$F$28,0) -> 1 | CG87: =IF(DT87>0,$F$29,0) -> 1 | CH87: =IF(DW87>0,$F$30,0) -> 1 | CI87: =SUM(BU87,BX87,CD87,BY87,CB87,CE87,CF87,CG87,CH87) -> 7 | CJ87: =+CI87*$H$22 -> 2.333333333 | CK87: =SUM(AY87,BQ87,CI87) -> 40.51333333 | CL87: =SUM(AZ87,BR87,CJ87) -> 13.50444444 | CM87: =IF(D87<($Z$13*1704),1,IF(D87<(($Z$14+$Z$13)*1704),2,IF(D87<(($Z$15+$Z$13+$Z$14)*1704),3,4))) -> 1 | CN87: =VLOOKUP(A87,Taul1!$F$6:$G$1718,2,FALSE) -> 1 | CT87: https://www.google.com/maps/@60.86106325,24.18174243,3a,75y,90t/data=!3m3!1e1!3m1!2e0 | CW87: 0 | CX87: 1 | CY87: 0 | CZ87: =SUM(CW87:CY87) -> 1 | DA87: 0 | DB87: 2 | DC87: 0 | DD87: 8 | DE87: 2 | DF87: 8 | DG87: 0 | DH87: 0 | DI87: 0 | DJ87: 1 | DM87: 5 | DN87: 0 | DO87: 7451.554233 | DQ87: =+IF(AA87>$K$8,$F$27/2,0) -> 1 | DR87: =+IF(AA87/Y87>1.5,$F$27/2,0) -> 0 | DS87: =SUM(DQ87:DR87) -> 1 | DT87: 1 | DU87: 1 | DW87: 1 | DX87: 0 | DY87: 0 | DZ87: 0.004555741385 | EA87: 11602 | EC87: =IFERROR(VLOOKUP(A87,$EI$37:$EK$1748,2,FALSE),"--") -> LOPUT | ED87: =IFERROR(VLOOKUP(A87,$EI$37:$EK$1748,3,FALSE),"--") -> 71 | EE87: =IFERROR(ED87-D87,"--") -> 20 | EF87: =IFERROR(VLOOKUP(A87,$EI$37:$EL$1748,4,FALSE),"--") -> 1 | EG87: =IFERROR(EF87-K87,"--") -> 0 | EI87: 25_23 | EJ87: LOPUT | EK87: 84 | EL87: 1 | EN87: 14027 | EO87: 1
A88: =CONCATENATE(S88,"_",T88) -> 10_24 | B88: 1 | D88: =RANK(CL88,$CL$37:$CL$1740) -> 52 | E88: 52 | F88: =E88-D88 -> 0 | G88: =CL88 -> 13.50444444 | H88: =AZ88 -> 5 | I88: =BR88 -> 6.504444444 | J88: =CJ88 -> 2 | K88: =CM88 -> 1 | L88: =B88-K88 -> 0 | M88: =HYPERLINK(CT88,"Gmaps") -> Gmaps | N88: =IF(Y88>$K$6,"LOPUT","VÄHÄ") -> LOPUT | O88: =IF(S88<40,"Valta",IF(S88<100,"Kanta",IF(S88<1000,"Seutu",IF(S88>999,"Yhdys")))) -> Valta | P88: Turun Valtatie | Q88: Hämeenlinna | R88: Kanta-Häme | S88: 10 | T88: 24 | U88: 0 | V88: 24 | W88: 8756 | X88: 8756 | Y88: 5035 | Z88: 512 | AA88: 6023 | AB88: 5035 (100 %) | AC88: 80 (60 %), 100 (40 %) | AD88: Is (100 %) | AE88: AB (100 %) | AF88: Y1 (100 %) | AG88: 0 | AH88: 0 | AI88: 0 | AJ88: 312 | AN88: 0 | AO88: 0 | AR88: =+IF(Y88>=$K$6,$F$5,($F$5/($K$6))*Y88) -> 9 | AS88: 149 | AU88: 149 | AV88: =+IF(AS88>=$L$15,$J$15,IF(AS88<($L$15),AS88*($J$15/($L$15)),)) -> 3 | AW88: 1480 | AX88: =+IF(AW88>=$L$11,$J$11,IF(AW88<($L$11),AW88*($J$11/($L$11)),)) -> 3 | AY88: =SUM(AR88,AV88,AX88) -> 15 | AZ88: =+AY88*$H$5 -> 5 | BA88: =+IF(Z88=0,0,IF(Z88>$K$7,$F$9,($F$9/$K$7)*Z88)) -> 8 | BB88: =IF(CZ88>0,$F$10,0) -> 2 | BC88: =IF(DA88>0,$F$11,0) -> 0 | BD88: =IF(DB88>0,$F$12,0) -> 1 | BE88: =IF(DC88>0,$F$13,0) -> 1 | BF88: =IF(DE88>0,$F$14,IF(DD88>0,$F$14/2,0)) -> 2 | BG88: =+IF(DF88>=$L$23,$J$23,IF(DF88<($L$23),DF88*($J$23/($L$23)),)) -> 0.01333333333 | BH88: =+IF(DG88>=$L$24,$J$24,IF(DG88<($L$24),DG88*($J$24/($L$24)),)) -> 0 | BI88: =+IF(DH88>=$L$25,$J$25,IF(DH88<($L$25),DH88*($J$25/($L$25)),)) -> 0 | BJ88: =+IF(DI88>=$L$26,$J$26,IF(DI88<($L$26),DI88*($J$26/($L$26)),)) -> 0 | BK88: =IF(DJ88>0,$F$16,0) -> 2 | BL88: =+IF(DM88>=$L$29,$J$29,IF(DM88<($L$29),DM88*($J$29/($L$29)),)) -> 2 | BM88: =IF(EA88>100000,$F$18,IF(EA88>0,$F$18/2,0)) -> 0.5 | BN88: =IF(DX88>0,$F$19,0) -> 0 | BO88: 13.26849315 | BP88: =+IF(BO88>=$L$19,$J$19,IF(BO88<($L$19),BO88*($J$19/($L$19)),)) -> 1 | BQ88: =SUM(BA88+BB88+BC88+BD88+BE88+BF88+BK88+BG88+BH88+BI88+BJ88+BL88+BM88+BN88+BP88) -> 19.51333333 | BR88: =+BQ88*$H$9 -> 6.504444444 | BS88: 2081.951434 | BT88: =BS88/X88 -> 0.2377742616 | BU88: =IF(BT88>0,IF(BT88>=$CY$28,$CW$28,IF(BT88<$CY$28,$CW$29,0)),0) -> 0.5 | BV88: 8751.142929 | BW88: =BV88/X88 -> 0.9994452866 | BX88: =IF(BW88,$F$23,0) -> 1 | BY88: =IF(DO88>0,$F$24,0) -> 1 | BZ88: 0 | CA88: =BZ88/X88 -> 0 | CB88: =+IF(CA88>=$K$4,$F$25,0) -> 0 | CC88: 9.022384651 | CD88: =IF(CC88>0,IF(CC88>=100,$F$26,IF(CC88<100,$F$26/2)),0) -> 0.5 | CE88: =SUM(DS88) -> 1 | CF88: =IF(DU88>0,$F$28,0) -> 0 | CG88: =IF(DT88>0,$F$29,0) -> 1 | CH88: =IF(DW88>0,$F$30,0) -> 1 | CI88: =SUM(BU88,BX88,CD88,BY88,CB88,CE88,CF88,CG88,CH88) -> 6 | CJ88: =+CI88*$H$22 -> 2 | CK88: =SUM(AY88,BQ88,CI88) -> 40.51333333 | CL88: =SUM(AZ88,BR88,CJ88) -> 13.50444444 | CM88: =IF(D88<($Z$13*1704),1,IF(D88<(($Z$14+$Z$13)*1704),2,IF(D88<(($Z$15+$Z$13+$Z$14)*1704),3,4))) -> 1 | CN88: =VLOOKUP(A88,Taul1!$F$6:$G$1718,2,FALSE) -> 1 | CT88: https://www.google.com/maps/@60.90170109,24.29067607,3a,75y,90t/data=!3m3!1e1!3m1!2e0 | CW88: 0 | CX88: 1 | CY88: 0 | CZ88: =SUM(CW88:CY88) -> 1 | DA88: 0 | DB88: 6 | DC88: 1 | DD88: 9 | DE88: 3 | DF88: 8 | DG88: 0 | DH88: 0 | DI88: 0 | DJ88: 1 | DM88: 7 | DN88: 0 | DO88: 8751.142901 | DQ88: =+IF(AA88>$K$8,$F$27/2,0) -> 1 | DR88: =+IF(AA88/Y88>1.5,$F$27/2,0) -> 0 | DS88: =SUM(DQ88:DR88) -> 1 | DT88: 1 | DU88: 0 | DW88: 1 | DX88: 0 | DY88: 0 | DZ88: 0 | EA88: 11602 | EC88: =IFERROR(VLOOKUP(A88,$EI$37:$EK$1748,2,FALSE),"--") -> LOPUT | ED88: =IFERROR(VLOOKUP(A88,$EI$37:$EK$1748,3,FALSE),"--") -> 33 | EE88: =IFERROR(ED88-D88,"--") -> -19 | EF88: =IFERROR(VLOOKUP(A88,$EI$37:$EL$1748,4,FALSE),"--") -> 1 | EG88: =IFERROR(EF88-K88,"--") -> 0 | EI88: 1224_4 | EJ88: LOPUT | EK88: 84 | EL88: 1 | EN88: 11087 | EO88: 2
A89: =CONCATENATE(S89,"_",T89) -> 363_1 | B89: 1 | D89: =RANK(CL89,$CL$37:$CL$1740) -> 53 | E89: 53 | F89: =E89-D89 -> 0 | G89: =CL89 -> 13.5 | H89: =AZ89 -> 5 | I89: =BR89 -> 6.666666667 | J89: =CJ89 -> 1.833333333 | K89: =CM89 -> 1 | L89: =B89-K89 -> 0 | M89: =HYPERLINK(CT89,"Gmaps") -> Gmaps | N89: =IF(Y89>$K$6,"LOPUT","VÄHÄ") -> LOPUT | O89: =IF(S89<40,"Valta",IF(S89<100,"Kanta",IF(S89<1000,"Seutu",IF(S89>999,"Yhdys")))) -> Seutu | P89: Vuolenkoskentie | Q89: Heinola | R89: Päijät-Häme | S89: 363 | T89: 1 | U89: 0 | V89: 1 | W89: 3090 | X89: 3090 | Y89: 2907.509709 | Z89: 234.6165049 | AA89: 3452.898058 | AB89: 3218 (38 %), 2717 (62 %) | AC89: 60 (100 %) | AD89: Ib (100 %) | AE89: AB (100 %) | AF89: Y2 (100 %) | AG89: 0 | AH89: 2 | AI89: 0.05813953488 | AJ89: 97.96925566 | AN89: 0 | AO89: 0.9868705415 | AR89: =+IF(Y89>=$K$6,$F$5,($F$5/($K$6))*Y89) -> 9 | AS89: 98 | AU89: 98 | AV89: =+IF(AS89>=$L$15,$J$15,IF(AS89<($L$15),AS89*($J$15/($L$15)),)) -> 3 | AW89: 574 | AX89: =+IF(AW89>=$L$11,$J$11,IF(AW89<($L$11),AW89*($J$11/($L$11)),)) -> 3 | AY89: =SUM(AR89,AV89,AX89) -> 15 | AZ89: =+AY89*$H$5 -> 5 | BA89: =+IF(Z89=0,0,IF(Z89>$K$7,$F$9,($F$9/$K$7)*Z89)) -> 8 | BB89: =IF(CZ89>0,$F$10,0) -> 2 | BC89: =IF(DA89>0,$F$11,0) -> 0 | BD89: =IF(DB89>0,$F$12,0) -> 1 | BE89: =IF(DC89>0,$F$13,0) -> 1 | BF89: =IF(DE89>0,$F$14,IF(DD89>0,$F$14/2,0)) -> 2 | BG89: =+IF(DF89>=$L$23,$J$23,IF(DF89<($L$23),DF89*($J$23/($L$23)),)) -> 0.5 | BH89: =+IF(DG89>=$L$24,$J$24,IF(DG89<($L$24),DG89*($J$24/($L$24)),)) -> 0.5 | BI89: =+IF(DH89>=$L$25,$J$25,IF(DH89<($L$25),DH89*($J$25/($L$25)),)) -> 0 | BJ89: =+IF(DI89>=$L$26,$J$26,IF(DI89<($L$26),DI89*($J$26/($L$26)),)) -> 0 | BK89: =IF(DJ89>0,$F$16,0) -> 0 | BL89: =+IF(DM89>=$L$29,$J$29,IF(DM89<($L$29),DM89*($J$29/($L$29)),)) -> 2 | BM89: =IF(EA89>100000,$F$18,IF(EA89>0,$F$18/2,0)) -> 0 | BN89: =IF(DX89>0,$F$19,0) -> 2 | BO89: 31.24383562 | BP89: =+IF(BO89>=$L$19,$J$19,IF(BO89<($L$19),BO89*($J$19/($L$19)),)) -> 1 | BQ89: =SUM(BA89+BB89+BC89+BD89+BE89+BF89+BK89+BG89+BH89+BI89+BJ89+BL89+BM89+BN89+BP89) -> 20 | BR89: =+BQ89*$H$9 -> 6.666666667 | BS89: 0 | BT89: =BS89/X89 -> 0 | BU89: =IF(BT89>0,IF(BT89>=$CY$28,$CW$28,IF(BT89<$CY$28,$CW$29,0)),0) -> 0 | BV89: 3083.190822 | BW89: =BV89/X89 -> 0.9977963826 | BX89: =IF(BW89,$F$23,0) -> 1 | BY89: =IF(DO89>0,$F$24,0) -> 1 | BZ89: 0 | CA89: =BZ89/X89 -> 0 | CB89: =+IF(CA89>=$K$4,$F$25,0) -> 0 | CC89: 30.78964401 | CD89: =IF(CC89>0,IF(CC89>=100,$F$26,IF(CC89<100,$F$26/2)),0) -> 0.5 | CE89: =SUM(DS89) -> 1 | CF89: =IF(DU89>0,$F$28,0) -> 0 | CG89: =IF(DT89>0,$F$29,0) -> 1 | CH89: =IF(DW89>0,$F$30,0) -> 1 | CI89: =SUM(BU89,BX89,CD89,BY89,CB89,CE89,CF89,CG89,CH89) -> 5.5 | CJ89: =+CI89*$H$22 -> 1.833333333 | CK89: =SUM(AY89,BQ89,CI89) -> 40.5 | CL89: =SUM(AZ89,BR89,CJ89) -> 13.5 | CM89: =IF(D89<($Z$13*1704),1,IF(D89<(($Z$14+$Z$13)*1704),2,IF(D89<(($Z$15+$Z$13+$Z$14)*1704),3,4))) -> 1 | CN89: =VLOOKUP(A89,Taul1!$F$6:$G$1718,2,FALSE) -> 2 | CT89: https://www.google.com/maps/@61.10816176,25.93520524,3a,75y,90t/data=!3m3!1e1!3m1!2e0 | CW89: 0 | CX89: 0 | CY89: 1 | CZ89: =SUM(CW89:CY89) -> 1 | DA89: 0 | DB89: 5 | DC89: 1 | DD89: 14 | DE89: 1 | DF89: 553 | DG89: 110 | DH89: 0 | DI89: 0 | DJ89: 0 | DM89: 13 | DN89: 0 | DO89: 3083.190822 | DQ89: =+IF(AA89>$K$8,$F$27/2,0) -> 1 | DR89: =+IF(AA89/Y89>1.5,$F$27/2,0) -> 0 | DS89: =SUM(DQ89:DR89) -> 1 | DT89: 1 | DU89: 0 | DW89: 1 | DX89: 1 | DY89: 0 | DZ89: 0.9868705415 | EA89: 0 | EC89: =IFERROR(VLOOKUP(A89,$EI$37:$EK$1748,2,FALSE),"--") -> LOPUT | ED89: =IFERROR(VLOOKUP(A89,$EI$37:$EK$1748,3,FALSE),"--") -> 88 | EE89: =IFERROR(ED89-D89,"--") -> 35 | EF89: =IFERROR(VLOOKUP(A89,$EI$37:$EL$1748,4,FALSE),"--") -> 2 | EG89: =IFERROR(EF89-K89,"--") -> 1 | EI89: 25_28 | EJ89: LOPUT | EK89: 66 | EL89: 1 | EN89: 13832 | EO89: 1
A90: =CONCATENATE(S90,"_",T90) -> 55_3 | B90: 1 | D90: =RANK(CL90,$CL$37:$CL$1740) -> 54 | E90: 54 | F90: =E90-D90 -> 0 | G90: =CL90 -> 13.5 | H90: =AZ90 -> 5 | I90: =BR90 -> 6.333333333 | J90: =CJ90 -> 2.166666667 | K90: =CM90 -> 1 | L90: =B90-K90 -> 0 | M90: =HYPERLINK(CT90,"Gmaps") -> Gmaps | N90: =IF(Y90>$K$6,"LOPUT","VÄHÄ") -> LOPUT | O90: =IF(S90<40,"Valta",IF(S90<100,"Kanta",IF(S90<1000,"Seutu",IF(S90>999,"Yhdys")))) -> Kanta | P90: Mäntsäläntie, Porvoontie | Q90: Askola, Mäntsälä | R90: Uusimaa | S90: 55 | T90: 3 | U90: 0 | V90: 3 | W90: 15082 | X90: 15082 | Y90: 3686.125182 | Z90: 481.6078106 | AA90: 3988.007824 | AB90: 3444 (84 %), 4992 (16 %) | AC90: 60 (1 %), 80 (19 %), 100 (80 %) | AD90: Is (100 %) | AE90: AB (100 %) | AF90: Y1 (100 %) | AG90: 6 | AH90: 15 | AI90: 0.09063910668 | AJ90: 296.4077045 | AN90: 0 | AO90: 0.004138121832 | AR90: =+IF(Y90>=$K$6,$F$5,($F$5/($K$6))*Y90) -> 9 | AS90: 46 | AU90: 46 | AV90: =+IF(AS90>=$L$15,$J$15,IF(AS90<($L$15),AS90*($J$15/($L$15)),)) -> 3 | AW90: 1754 | AX90: =+IF(AW90>=$L$11,$J$11,IF(AW90<($L$11),AW90*($J$11/($L$11)),)) -> 3 | AY90: =SUM(AR90,AV90,AX90) -> 15 | AZ90: =+AY90*$H$5 -> 5 | BA90: =+IF(Z90=0,0,IF(Z90>$K$7,$F$9,($F$9/$K$7)*Z90)) -> 8 | BB90: =IF(CZ90>0,$F$10,0) -> 2 | BC90: =IF(DA90>0,$F$11,0) -> 1 | BD90: =IF(DB90>0,$F$12,0) -> 1 | BE90: =IF(DC90>0,$F$13,0) -> 0 | BF90: =IF(DE90>0,$F$14,IF(DD90>0,$F$14/2,0)) -> 1 | BG90: =+IF(DF90>=$L$23,$J$23,IF(DF90<($L$23),DF90*($J$23/($L$23)),)) -> 0.5 | BH90: =+IF(DG90>=$L$24,$J$24,IF(DG90<($L$24),DG90*($J$24/($L$24)),)) -> 0.5 | BI90: =+IF(DH90>=$L$25,$J$25,IF(DH90<($L$25),DH90*($J$25/($L$25)),)) -> 0 | BJ90: =+IF(DI90>=$L$26,$J$26,IF(DI90<($L$26),DI90*($J$26/($L$26)),)) -> 0 | BK90: =IF(DJ90>0,$F$16,0) -> 0 | BL90: =+IF(DM90>=$L$29,$J$29,IF(DM90<($L$29),DM90*($J$29/($L$29)),)) -> 2 | BM90: =IF(EA90>100000,$F$18,IF(EA90>0,$F$18/2,0)) -> 0 | BN90: =IF(DX90>0,$F$19,0) -> 2 | BO90: 16.00547945 | BP90: =+IF(BO90>=$L$19,$J$19,IF(BO90<($L$19),BO90*($J$19/($L$19)),)) -> 1 | BQ90: =SUM(BA90+BB90+BC90+BD90+BE90+BF90+BK90+BG90+BH90+BI90+BJ90+BL90+BM90+BN90+BP90) -> 19 | BR90: =+BQ90*$H$9 -> 6.333333333 | BS90: 7875.997473 | BT90: =BS90/X90 -> 0.5222117407 | BU90: =IF(BT90>0,IF(BT90>=$CY$28,$CW$28,IF(BT90<$CY$28,$CW$29,0)),0) -> 1 | BV90: 15079.14513 | BW90: =BV90/X90 -> 0.9998107099 | BX90: =IF(BW90,$F$23,0) -> 1 | BY90: =IF(DO90>0,$F$24,0) -> 1 | BZ90: 0 | CA90: =BZ90/X90 -> 0 | CB90: =+IF(CA90>=$K$4,$F$25,0) -> 0 | CC90: 47.88131548 | CD90: =IF(CC90>0,IF(CC90>=100,$F$26,IF(CC90<100,$F$26/2)),0) -> 0.5 | CE90: =SUM(DS90) -> 1 | CF90: =IF(DU90>0,$F$28,0) -> 0 | CG90: =IF(DT90>0,$F$29,0) -> 1 | CH90: =IF(DW90>0,$F$30,0) -> 1 | CI90: =SUM(BU90,BX90,CD90,BY90,CB90,CE90,CF90,CG90,CH90) -> 6.5 | CJ90: =+CI90*$H$22 -> 2.166666667 | CK90: =SUM(AY90,BQ90,CI90) -> 40.5 | CL90: =SUM(AZ90,BR90,CJ90) -> 13.5 | CM90: =IF(D90<($Z$13*1704),1,IF(D90<(($Z$14+$Z$13)*1704),2,IF(D90<(($Z$15+$Z$13+$Z$14)*1704),3,4))) -> 1 | CN90: =VLOOKUP(A90,Taul1!$F$6:$G$1718,2,FALSE) -> 2 | CT90: https://www.google.com/maps/@60.49662658,25.55352297,3a,75y,90t/data=!3m3!1e1!3m1!2e0 | CW90: 1 | CX90: 1 | CY90: 1 | CZ90: =SUM(CW90:CY90) -> 3 | DA90: 1 | DB90: 4 | DC90: 0 | DD90: 45 | DE90: 0 | DF90: 819 | DG90: 144 | DH90: 0 | DI90: 0 | DJ90: 0 | DM90: 10 | DN90: 0 | DO90: 15079.14513 | DQ90: =+IF(AA90>$K$8,$F$27/2,0) -> 1 | DR90: =+IF(AA90/Y90>1.5,$F$27/2,0) -> 0 | DS90: =SUM(DQ90:DR90) -> 1 | DT90: 1 | DU90: 0 | DW90: 1 | DX90: 2 | DY90: 0 | DZ90: 0.004138121832 | EA90: 0 | EC90: =IFERROR(VLOOKUP(A90,$EI$37:$EK$1748,2,FALSE),"--") -> LOPUT | ED90: =IFERROR(VLOOKUP(A90,$EI$37:$EK$1748,3,FALSE),"--") -> 110 | EE90: =IFERROR(ED90-D90,"--") -> 56 | EF90: =IFERROR(VLOOKUP(A90,$EI$37:$EL$1748,4,FALSE),"--") -> 2 | EG90: =IFERROR(EF90-K90,"--") -> 1 | EI90: 145_4 | EJ90: LOPUT | EK90: 59 | EL90: 1 | EN90: 2956 | EO90: 1
A91: =CONCATENATE(S91,"_",T91) -> 53_1 | B91: 1 | D91: =RANK(CL91,$CL$37:$CL$1740) -> 55 | E91: 55 | F91: =E91-D91 -> 0 | G91: =CL91 -> 13.42100457 | H91: =AZ91 -> 4.886666667 | I91: =BR91 -> 6.701004566 | J91: =CJ91 -> 1.833333333 | K91: =CM91 -> 1 | L91: =B91-K91 -> 0 | M91: =HYPERLINK(CT91,"Gmaps") -> Gmaps | N91: =IF(Y91>$K$6,"LOPUT","VÄHÄ") -> LOPUT | O91: =IF(S91<40,"Valta",IF(S91<100,"Kanta",IF(S91<1000,"Seutu",IF(S91>999,"Yhdys")))) -> Kanta | P91: Padasjoentie, Tuuloksentie | Q91: Hämeenlinna | R91: Kanta-Häme | S91: 53 | T91: 1 | U91: 0 | V91: 1 | W91: 410 | X91: 410 | Y91: 4678 | Z91: 384 | AA91: 5869 | AB91: 4678 (100 %) | AC91: 50 (36 %), 60 (65 %) | AD91: Ib (102 %) | AE91: AB (102 %) | AF91: Y2 (102 %) | AG91: 0 | AH91: 0 | AI91: 0.512195122 | AJ91: 159 | AK91: Laajin Ternverkko | AM91: x | AN91: 0 | AO91: 1.017153608 | AR91: =+IF(Y91>=$K$6,$F$5,($F$5/($K$6))*Y91) -> 9 | AS91: 76 | AU91: 76 | AV91: =+IF(AS91>=$L$15,$J$15,IF(AS91<($L$15),AS91*($J$15/($L$15)),)) -> 3 | AW91: 266 | AX91: =+IF(AW91>=$L$11,$J$11,IF(AW91<($L$11),AW91*($J$11/($L$11)),)) -> 2.66 | AY91: =SUM(AR91,AV91,AX91) -> 14.66 | AZ91: =+AY91*$H$5 -> 4.886666667 | BA91: =+IF(Z91=0,0,IF(Z91>$K$7,$F$9,($F$9/$K$7)*Z91)) -> 8 | BB91: =IF(CZ91>0,$F$10,0) -> 2 | BC91: =IF(DA91>0,$F$11,0) -> 0 | BD91: =IF(DB91>0,$F$12,0) -> 1 | BE91: =IF(DC91>0,$F$13,0) -> 0 | BF91: =IF(DE91>0,$F$14,IF(DD91>0,$F$14/2,0)) -> 1 | BG91: =+IF(DF91>=$L$23,$J$23,IF(DF91<($L$23),DF91*($J$23/($L$23)),)) -> 0.44 | BH91: =+IF(DG91>=$L$24,$J$24,IF(DG91<($L$24),DG91*($J$24/($L$24)),)) -> 0.26 | BI91: =+IF(DH91>=$L$25,$J$25,IF(DH91<($L$25),DH91*($J$25/($L$25)),)) -> 0.5 | BJ91: =+IF(DI91>=$L$26,$J$26,IF(DI91<($L$26),DI91*($J$26/($L$26)),)) -> 0 | BK91: =IF(DJ91>0,$F$16,0) -> 2 | BL91: =+IF(DM91>=$L$29,$J$29,IF(DM91<($L$29),DM91*($J$29/($L$29)),)) -> 2 | BM91: =IF(EA91>100000,$F$18,IF(EA91>0,$F$18/2,0)) -> 0 | BN91: =IF(DX91>0,$F$19,0) -> 2 | BO91: 9.030136986 | BP91: =+IF(BO91>=$L$19,$J$19,IF(BO91<($L$19),BO91*($J$19/($L$19)),)) -> 0.9030136986 | BQ91: =SUM(BA91+BB91+BC91+BD91+BE91+BF91+BK91+BG91+BH91+BI91+BJ91+BL91+BM91+BN91+BP91) -> 20.1030137 | BR91: =+BQ91*$H$9 -> 6.701004566 | BS91: 0 | BT91: =BS91/X91 -> 0 | BU91: =IF(BT91>0,IF(BT91>=$CY$28,$CW$28,IF(BT91<$CY$28,$CW$29,0)),0) -> 0 | BV91: 417.0329794 | BW91: =BV91/X91 -> 1.017153608 | BX91: =IF(BW91,$F$23,0) -> 1 | BY91: =IF(DO91>0,$F$24,0) -> 1 | BZ91: 0 | CA91: =BZ91/X91 -> 0 | CB91: =+IF(CA91>=$K$4,$F$25,0) -> 0 | CC91: 12.14634146 | CD91: =IF(CC91>0,IF(CC91>=100,$F$26,IF(CC91<100,$F$26/2)),0) -> 0.5 | CE91: =SUM(DS91) -> 1 | CF91: =IF(DU91>0,$F$28,0) -> 0 | CG91: =IF(DT91>0,$F$29,0) -> 1 | CH91: =IF(DW91>0,$F$30,0) -> 1 | CI91: =SUM(BU91,BX91,CD91,BY91,CB91,CE91,CF91,CG91,CH91) -> 5.5 | CJ91: =+CI91*$H$22 -> 1.833333333 | CK91: =SUM(AY91,BQ91,CI91) -> 40.2630137 | CL91: =SUM(AZ91,BR91,CJ91) -> 13.42100457 | CM91: =IF(D91<($Z$13*1704),1,IF(D91<(($Z$14+$Z$13)*1704),2,IF(D91<(($Z$15+$Z$13+$Z$14)*1704),3,4))) -> 1 | CN91: =VLOOKUP(A91,Taul1!$F$6:$G$1718,2,FALSE) -> 1 | CT91: https://www.google.com/maps/@61.10505219,24.85800811,3a,75y,90t/data=!3m3!1e1!3m1!2e0 | CW91: 1 | CX91: 0 | CY91: 1 | CZ91: =SUM(CW91:CY91) -> 2 | DA91: 0 | DB91: 7 | DC91: 0 | DD91: 14 | DE91: 0 | DF91: 264 | DG91: 52 | DH91: 1103 | DI91: 0 | DJ91: 1 | DM91: 9 | DN91: 0 | DO91: 417.0329794 | DQ91: =+IF(AA91>$K$8,$F$27/2,0) -> 1 | DR91: =+IF(AA91/Y91>1.5,$F$27/2,0) -> 0 | DS91: =SUM(DQ91:DR91) -> 1 | DT91: 10 | DU91: 0 | DW91: 1 | DX91: 4 | DY91: 0 | DZ91: 1.017153608 | EA91: 0 | EC91: =IFERROR(VLOOKUP(A91,$EI$37:$EK$1748,2,FALSE),"--") -> LOPUT | ED91: =IFERROR(VLOOKUP(A91,$EI$37:$EK$1748,3,FALSE),"--") -> 73 | EE91: =IFERROR(ED91-D91,"--") -> 18 | EF91: =IFERROR(VLOOKUP(A91,$EI$37:$EL$1748,4,FALSE),"--") -> 1 | EG91: =IFERROR(EF91-K91,"--") -> 0 | EI91: 12_216 | EJ91: LOPUT | EK91: 70 | EL91: 1 | EN91: 148 | EO91: 4
A92: =CONCATENATE(S92,"_",T92) -> 1130_2 | B92: 1 | D92: =RANK(CL92,$CL$37:$CL$1740) -> 56 | E92: 56 | F92: =E92-D92 -> 0 | G92: =CL92 -> 13.39538813 | H92: =AZ92 -> 5 | I92: =BR92 -> 5.895388128 | J92: =CJ92 -> 2.5 | K92: =CM92 -> 1 | L92: =B92-K92 -> 0 | M92: =HYPERLINK(CT92,"Gmaps") -> Gmaps | N92: =IF(Y92>$K$6,"LOPUT","VÄHÄ") -> LOPUT | O92: =IF(S92<40,"Valta",IF(S92<100,"Kanta",IF(S92<1000,"Seutu",IF(S92>999,"Yhdys")))) -> Yhdys | P92: Kauklahdenväylä, Lapinkyläntie | Q92: Espoo, Kirkkonummi | R92: Uusimaa | S92: 1130 | T92: 2 | U92: 0 | V92: 2 | W92: 9311 | X92: 9311 | Y92: 5078.357212 | Z92: 228.0912899 | AA92: 5222.528085 | AB92: 11560 (13 %), 4124 (87 %) | AC92: 50 (42 %), 60 (29 %), 70 (10 %), 80 (19 %) | AD92: Is (100 %) | AE92: AB (100 %) | AF92: Y2 (100 %) | AG92: 3 | AH92: 16 | AI92: 0.1396198045 | AJ92: 47.76479433 | AN92: 0.02654857834 | AO92: 0.1767163547 | AR92: =+IF(Y92>=$K$6,$F$5,($F$5/($K$6))*Y92) -> 9 | AS92: 2492 | AU92: 0 | AV92: =+IF(AS92>=$L$15,$J$15,IF(AS92<($L$15),AS92*($J$15/($L$15)),)) -> 3 | AW92: 4648 | AX92: =+IF(AW92>=$L$11,$J$11,IF(AW92<($L$11),AW92*($J$11/($L$11)),)) -> 3 | AY92: =SUM(AR92,AV92,AX92) -> 15 | AZ92: =+AY92*$H$5 -> 5 | BA92: =+IF(Z92=0,0,IF(Z92>$K$7,$F$9,($F$9/$K$7)*Z92)) -> 8 | BB92: =IF(CZ92>0,$F$10,0) -> 0 | BC92: =IF(DA92>0,$F$11,0) -> 1 | BD92: =IF(DB92>0,$F$12,0) -> 0 | BE92: =IF(DC92>0,$F$13,0) -> 0 | BF92: =IF(DE92>0,$F$14,IF(DD92>0,$F$14/2,0)) -> 2 | BG92: =+IF(DF92>=$L$23,$J$23,IF(DF92<($L$23),DF92*($J$23/($L$23)),)) -> 0.01 | BH92: =+IF(DG92>=$L$24,$J$24,IF(DG92<($L$24),DG92*($J$24/($L$24)),)) -> 0 | BI92: =+IF(DH92>=$L$25,$J$25,IF(DH92<($L$25),DH92*($J$25/($L$25)),)) -> 0 | BJ92: =+IF(DI92>=$L$26,$J$26,IF(DI92<($L$26),DI92*($J$26/($L$26)),)) -> 0 | BK92: =IF(DJ92>0,$F$16,0) -> 2 | BL92: =+IF(DM92>=$L$29,$J$29,IF(DM92<($L$29),DM92*($J$29/($L$29)),)) -> 2 | BM92: =IF(EA92>100000,$F$18,IF(EA92>0,$F$18/2,0)) -> 0.5 | BN92: =IF(DX92>0,$F$19,0) -> 2 | BO92: 1.761643836 | BP92: =+IF(BO92>=$L$19,$J$19,IF(BO92<($L$19),BO92*($J$19/($L$19)),)) -> 0.1761643836 | BQ92: =SUM(BA92+BB92+BC92+BD92+BE92+BF92+BK92+BG92+BH92+BI92+BJ92+BL92+BM92+BN92+BP92) -> 17.68616438 | BR92: =+BQ92*$H$9 -> 5.895388128 | BS92: 3122.578653 | BT92: =BS92/X92 -> 0.3353644778 | BU92: =IF(BT92>0,IF(BT92>=$CY$28,$CW$28,IF(BT92<$CY$28,$CW$29,0)),0) -> 0.5 | BV92: 8553.551745 | BW92: =BV92/X92 -> 0.9186501713 | BX92: =IF(BW92,$F$23,0) -> 1 | BY92: =IF(DO92>0,$F$24,0) -> 1 | BZ92: 0 | CA92: =BZ92/X92 -> 0 | CB92: =+IF(CA92>=$K$4,$F$25,0) -> 0 | CC92: 245.7744603 | CD92: =IF(CC92>0,IF(CC92>=100,$F$26,IF(CC92<100,$F$26/2)),0) -> 1 | CE92: =SUM(DS92) -> 1 | CF92: =IF(DU92>0,$F$28,0) -> 1 | CG92: =IF(DT92>0,$F$29,0) -> 1 | CH92: =IF(DW92>0,$F$30,0) -> 1 | CI92: =SUM(BU92,BX92,CD92,BY92,CB92,CE92,CF92,CG92,CH92) -> 7.5 | CJ92: =+CI92*$H$22 -> 2.5 | CK92: =SUM(AY92,BQ92,CI92) -> 40.18616438 | CL92: =SUM(AZ92,BR92,CJ92) -> 13.39538813 | CM92: =IF(D92<($Z$13*1704),1,IF(D92<(($Z$14+$Z$13)*1704),2,IF(D92<(($Z$15+$Z$13+$Z$14)*1704),3,4))) -> 1 | CN92: =VLOOKUP(A92,Taul1!$F$6:$G$1718,2,FALSE) -> 2 | CT92: https://www.google.com/maps/@60.18449881,24.59705220,3a,75y,90t/data=!3m3!1e1!3m1!2e0 | CW92: 0 | CX92: 0 | CY92: 0 | CZ92: =SUM(CW92:CY92) -> 0 | DA92: 1 | DB92: 0 | DC92: 0 | DD92: 27 | DE92: 17 | DF92: 6 | DG92: 0 | DH92: 0 | DI92: 0 | DJ92: 1 | DM92: 13 | DN92: 1 | DO92: 1481.086301 | DQ92: =+IF(AA92>$K$8,$F$27/2,0) -> 1 | DR92: =+IF(AA92/Y92>1.5,$F$27/2,0) -> 0 | DS92: =SUM(DQ92:DR92) -> 1 | DT92: 1 | DU92: 1 | DW92: 1 | DX92: 7 | DY92: 0.02654857834 | DZ92: 0.1767163547 | EA92: 43242 | EC92: =IFERROR(VLOOKUP(A92,$EI$37:$EK$1748,2,FALSE),"--") -> LOPUT | ED92: =IFERROR(VLOOKUP(A92,$EI$37:$EK$1748,3,FALSE),"--") -> 201 | EE92: =IFERROR(ED92-D92,"--") -> 145 | EF92: =IFERROR(VLOOKUP(A92,$EI$37:$EL$1748,4,FALSE),"--") -> 2 | EG92: =IFERROR(EF92-K92,"--") -> 1 | EI92: 170_6 | EJ92: LOPUT | EK92: 63 | EL92: 1 | EN92: 15046 | EO92: 1
A93: =CONCATENATE(S93,"_",T93) -> 25_20 | B93: 1 | D93: =RANK(CL93,$CL$37:$CL$1740) -> 57 | E93: 57 | F93: =E93-D93 -> 0 | G93: =CL93 -> 13.37677778 | H93: =AZ93 -> 4.475 | I93: =BR93 -> 6.901777778 | J93: =CJ93 -> 2 | K93: =CM93 -> 1 | L93: =B93-K93 -> 0 | M93: =HYPERLINK(CT93,"Gmaps") -> Gmaps | N93: =IF(Y93>$K$6,"LOPUT","VÄHÄ") -> LOPUT | O93: =IF(S93<40,"Valta",IF(S93<100,"Kanta",IF(S93<1000,"Seutu",IF(S93>999,"Yhdys")))) -> Valta | P93: Lohjanharjuntie | Q93: Lohja | R93: Uusimaa | S93: 25 | T93: 20 | U93: 0 | V93: 20 | W93: 7496 | X93: 7496 | Y93: 15529.63127 | Z93: 1059.107257 | AA93: 16808.69264 | AB93: 13713 (77 %), 21459 (23 %) | AC93: 50 (2 %), 60 (15 %), 80 (83 %) | AD93: Is (45 %), Ise (54 %) | AE93: AB (100 %) | AF93: Y1 (100 %) | AG93: 3 | AH93: 8 | AI93: 0.07022076092 | AJ93: 538.677428 | AK93: Laajin Ternverkko | AL93: 1 | AN93: 0 | AO93: 0.6274541324 | AR93: =+IF(Y93>=$K$6,$F$5,($F$5/($K$6))*Y93) -> 9 | AS93: 19 | AU93: 19 | AV93: =+IF(AS93>=$L$15,$J$15,IF(AS93<($L$15),AS93*($J$15/($L$15)),)) -> 1.425 | AW93: 10987 | AX93: =+IF(AW93>=$L$11,$J$11,IF(AW93<($L$11),AW93*($J$11/($L$11)),)) -> 3 | AY93: =SUM(AR93,AV93,AX93) -> 13.425 | AZ93: =+AY93*$H$5 -> 4.475 | BA93: =+IF(Z93=0,0,IF(Z93>$K$7,$F$9,($F$9/$K$7)*Z93)) -> 8 | BB93: =IF(CZ93>0,$F$10,0) -> 2 | BC93: =IF(DA93>0,$F$11,0) -> 1 | BD93: =IF(DB93>0,$F$12,0) -> 1 | BE93: =IF(DC93>0,$F$13,0) -> 0 | BF93: =IF(DE93>0,$F$14,IF(DD93>0,$F$14/2,0)) -> 2 | BG93: =+IF(DF93>=$L$23,$J$23,IF(DF93<($L$23),DF93*($J$23/($L$23)),)) -> 0.2383333333 | BH93: =+IF(DG93>=$L$24,$J$24,IF(DG93<($L$24),DG93*($J$24/($L$24)),)) -> 0.5 | BI93: =+IF(DH93>=$L$25,$J$25,IF(DH93<($L$25),DH93*($J$25/($L$25)),)) -> 0.467 | BJ93: =+IF(DI93>=$L$26,$J$26,IF(DI93<($L$26),DI93*($J$26/($L$26)),)) -> 0 | BK93: =IF(DJ93>0,$F$16,0) -> 0 | BL93: =+IF(DM93>=$L$29,$J$29,IF(DM93<($L$29),DM93*($J$29/($L$29)),)) -> 2 | BM93: =IF(EA93>100000,$F$18,IF(EA93>0,$F$18/2,0)) -> 0.5 | BN93: =IF(DX93>0,$F$19,0) -> 2 | BO93: 27.24657534 | BP93: =+IF(BO93>=$L$19,$J$19,IF(BO93<($L$19),BO93*($J$19/($L$19)),)) -> 1 | BQ93: =SUM(BA93+BB93+BC93+BD93+BE93+BF93+BK93+BG93+BH93+BI93+BJ93+BL93+BM93+BN93+BP93) -> 20.70533333 | BR93: =+BQ93*$H$9 -> 6.901777778 | BS93: 7463.93396 | BT93: =BS93/X93 -> 0.9957222465 | BU93: =IF(BT93>0,IF(BT93>=$CY$28,$CW$28,IF(BT93<$CY$28,$CW$29,0)),0) -> 1 | BV93: 6806.452956 | BW93: =BV93/X93 -> 0.9080113336 | BX93: =IF(BW93,$F$23,0) -> 1 | BY93: =IF(DO93>0,$F$24,0) -> 0 | BZ93: 0 | CA93: =BZ93/X93 -> 0 | CB93: =+IF(CA93>=$K$4,$F$25,0) -> 0 | CC93: 699.5851121 | CD93: =IF(CC93>0,IF(CC93>=100,$F$26,IF(CC93<100,$F$26/2)),0) -> 1 | CE93: =SUM(DS93) -> 1 | CF93: =IF(DU93>0,$F$28,0) -> 0 | CG93: =IF(DT93>0,$F$29,0) -> 1 | CH93: =IF(DW93>0,$F$30,0) -> 1 | CI93: =SUM(BU93,BX93,CD93,BY93,CB93,CE93,CF93,CG93,CH93) -> 6 | CJ93: =+CI93*$H$22 -> 2 | CK93: =SUM(AY93,BQ93,CI93) -> 40.13033333 | CL93: =SUM(AZ93,BR93,CJ93) -> 13.37677778 | CM93: =IF(D93<($Z$13*1704),1,IF(D93<(($Z$14+$Z$13)*1704),2,IF(D93<(($Z$15+$Z$13+$Z$14)*1704),3,4))) -> 1 | CN93: =VLOOKUP(A93,Taul1!$F$6:$G$1718,2,FALSE) -> 2 | CT93: https://www.google.com/maps/@60.22309231,24.02856779,3a,75y,90t/data=!3m3!1e1!3m1!2e0 | CW93: 0 | CX93: 1 | CY93: 1 | CZ93: =SUM(CW93:CY93) -> 2 | DA93: 7 | DB93: 3 | DC93: 0 | DD93: 16 | DE93: 1 | DF93: 143 | DG93: 219 | DH93: 934 | DI93: 0 | DJ93: 0 | DM93: 27 | DN93: 0 | DO93: 0 | DQ93: =+IF(AA93>$K$8,$F$27/2,0) -> 1 | DR93: =+IF(AA93/Y93>1.5,$F$27/2,0) -> 0 | DS93: =SUM(DQ93:DR93) -> 1 | DT93: 2 | DU93: 0 | DW93: 1 | DX93: 6 | DY93: 0 | DZ93: 0.6274541324 | EA93: 27518 | EC93: =IFERROR(VLOOKUP(A93,$EI$37:$EK$1748,2,FALSE),"--") -> LOPUT | ED93: =IFERROR(VLOOKUP(A93,$EI$37:$EK$1748,3,FALSE),"--") -> 110 | EE93: =IFERROR(ED93-D93,"--") -> 53 | EF93: =IFERROR(VLOOKUP(A93,$EI$37:$EL$1748,4,FALSE),"--") -> 2 | EG93: =IFERROR(EF93-K93,"--") -> 1 | EI93: 25_22 | EJ93: LOPUT | EK93: 104 | EL93: 2 | EN93: 140 | EO93: 30
A94: =CONCATENATE(S94,"_",T94) -> 152_1 | B94: 1 | D94: =RANK(CL94,$CL$37:$CL$1740) -> 58 | E94: 58 | F94: =E94-D94 -> 0 | G94: =CL94 -> 13.37105023 | H94: =AZ94 -> 5 | I94: =BR94 -> 6.037716895 | J94: =CJ94 -> 2.333333333 | K94: =CM94 -> 1 | L94: =B94-K94 -> 0 | M94: =HYPERLINK(CT94,"Gmaps") -> Gmaps | N94: =IF(Y94>$K$6,"LOPUT","VÄHÄ") -> LOPUT | O94: =IF(S94<40,"Valta",IF(S94<100,"Kanta",IF(S94<1000,"Seutu",IF(S94>999,"Yhdys")))) -> Seutu | P94: Kulomäentie, Sipoontie | Q94: Vantaa, Tuusula | R94: Uusimaa | S94: 152 | T94: 1 | U94: 0 | V94: 1 | W94: 7468 | X94: 7468 | Y94: 12469.38591 | Z94: 931.9611676 | AA94: 12253.8586 | AB94: 12667 (86 %), 11298 (14 %) | AC94: 50 (32 %), 60 (68 %) | AD94: Ise (100 %) | AE94: AB (100 %) | AF94: Y2 (100 %) | AG94: 27 | AH94: 53 | AI94: 0.1950189954 | AJ94: 206.1529191 | AM94: x | AN94: 0 | AO94: 0.999682932 | AR94: =+IF(Y94>=$K$6,$F$5,($F$5/($K$6))*Y94) -> 9 | AS94: 6294 | AU94: 4 | AV94: =+IF(AS94>=$L$15,$J$15,IF(AS94<($L$15),AS94*($J$15/($L$15)),)) -> 3 | AW94: 18644 | AX94: =+IF(AW94>=$L$11,$J$11,IF(AW94<($L$11),AW94*($J$11/($L$11)),)) -> 3 | AY94: =SUM(AR94,AV94,AX94) -> 15 | AZ94: =+AY94*$H$5 -> 5 | BA94: =+IF(Z94=0,0,IF(Z94>$K$7,$F$9,($F$9/$K$7)*Z94)) -> 8 | BB94: =IF(CZ94>0,$F$10,0) -> 0 | BC94: =IF(DA94>0,$F$11,0) -> 1 | BD94: =IF(DB94>0,$F$12,0) -> 0 | BE94: =IF(DC94>0,$F$13,0) -> 0 | BF94: =IF(DE94>0,$F$14,IF(DD94>0,$F$14/2,0)) -> 2 | BG94: =+IF(DF94>=$L$23,$J$23,IF(DF94<($L$23),DF94*($J$23/($L$23)),)) -> 0 | BH94: =+IF(DG94>=$L$24,$J$24,IF(DG94<($L$24),DG94*($J$24/($L$24)),)) -> 0 | BI94: =+IF(DH94>=$L$25,$J$25,IF(DH94<($L$25),DH94*($J$25/($L$25)),)) -> 0 | BJ94: =+IF(DI94>=$L$26,$J$26,IF(DI94<($L$26),DI94*($J$26/($L$26)),)) -> 0 | BK94: =IF(DJ94>0,$F$16,0) -> 2 | BL94: =+IF(DM94>=$L$29,$J$29,IF(DM94<($L$29),DM94*($J$29/($L$29)),)) -> 2 | BM94: =IF(EA94>100000,$F$18,IF(EA94>0,$F$18/2,0)) -> 1 | BN94: =IF(DX94>0,$F$19,0) -> 2 | BO94: 1.131506849 | BP94: =+IF(BO94>=$L$19,$J$19,IF(BO94<($L$19),BO94*($J$19/($L$19)),)) -> 0.1131506849 | BQ94: =SUM(BA94+BB94+BC94+BD94+BE94+BF94+BK94+BG94+BH94+BI94+BJ94+BL94+BM94+BN94+BP94) -> 18.11315068 | BR94: =+BQ94*$H$9 -> 6.037716895 | BS94: 7423.715183 | BT94: =BS94/X94 -> 0.9940700567 | BU94: =IF(BT94>0,IF(BT94>=$CY$28,$CW$28,IF(BT94<$CY$28,$CW$29,0)),0) -> 1 | BV94: 6981.612639 | BW94: =BV94/X94 -> 0.9348704658 | BX94: =IF(BW94,$F$23,0) -> 1 | BY94: =IF(DO94>0,$F$24,0) -> 1 | BZ94: 1807.52924 | CA94: =BZ94/X94 -> 0.2420365881 | CB94: =+IF(CA94>=$K$4,$F$25,0) -> 0 | CC94: 1545.640064 | CD94: =IF(CC94>0,IF(CC94>=100,$F$26,IF(CC94<100,$F$26/2)),0) -> 1 | CE94: =SUM(DS94) -> 1 | CF94: =IF(DU94>0,$F$28,0) -> 0 | CG94: =IF(DT94>0,$F$29,0) -> 1 | CH94: =IF(DW94>0,$F$30,0) -> 1 | CI94: =SUM(BU94,BX94,CD94,BY94,CB94,CE94,CF94,CG94,CH94) -> 7 | CJ94: =+CI94*$H$22 -> 2.333333333 | CK94: =SUM(AY94,BQ94,CI94) -> 40.11315068 | CL94: =SUM(AZ94,BR94,CJ94) -> 13.37105023 | CM94: =IF(D94<($Z$13*1704),1,IF(D94<(($Z$14+$Z$13)*1704),2,IF(D94<(($Z$15+$Z$13+$Z$14)*1704),3,4))) -> 1 | CN94: =VLOOKUP(A94,Taul1!$F$6:$G$1718,2,FALSE) -> 2 | CT94: https://www.google.com/maps/@60.34035693,24.99816855,3a,75y,90t/data=!3m3!1e1!3m1!2e0 | CW94: 0 | CX94: 0 | CY94: 0 | CZ94: =SUM(CW94:CY94) -> 0 | DA94: 3 | DB94: 0 | DC94: 0 | DD94: 4 | DE94: 3 | DF94: 0 | DG94: 0 | DH94: 0 | DI94: 0 | DJ94: 3 | DM94: 46 | DN94: 4 | DO94: 7465.632136 | DQ94: =+IF(AA94>$K$8,$F$27/2,0) -> 1 | DR94: =+IF(AA94/Y94>1.5,$F$27/2,0) -> 0 | DS94: =SUM(DQ94:DR94) -> 1 | DT94: 3 | DU94: 0 | DW94: 1 | DX94: 9 | DY94: 0 | DZ94: 0.999682932 | EA94: 160640 | EC94: =IFERROR(VLOOKUP(A94,$EI$37:$EK$1748,2,FALSE),"--") -> LOPUT | ED94: =IFERROR(VLOOKUP(A94,$EI$37:$EK$1748,3,FALSE),"--") -> 25 | EE94: =IFERROR(ED94-D94,"--") -> -33 | EF94: =IFERROR(VLOOKUP(A94,$EI$37:$EL$1748,4,FALSE),"--") -> 1 | EG94: =IFERROR(EF94-K94,"--") -> 0 | EI94: 12_220 | EJ94: LOPUT | EK94: 91 | EL94: 2 | EN94: 14097 | EO94: 1
A95: =CONCATENATE(S95,"_",T95) -> 170_21 | B95: 1 | D95: =RANK(CL95,$CL$37:$CL$1740) -> 59 | E95: 59 | F95: =E95-D95 -> 0 | G95: =CL95 -> 13.36866058 | H95: =AZ95 -> 4.7 | I95: =BR95 -> 6.335327245 | J95: =CJ95 -> 2.333333333 | K95: =CM95 -> 1 | L95: =B95-K95 -> 0 | M95: =HYPERLINK(CT95,"Gmaps") -> Gmaps | N95: =IF(Y95>$K$6,"LOPUT","VÄHÄ") -> LOPUT | O95: =IF(S95<40,"Valta",IF(S95<100,"Kanta",IF(S95<1000,"Seutu",IF(S95>999,"Yhdys")))) -> Seutu | P95: Pietarintie | Q95: Loviisa | R95: Uusimaa, Kymenlaakso | S95: 170 | T95: 21 | U95: 0 | V95: 21 | W95: 7786 | X95: 7786 | Y95: 1241.654508 | Z95: 63.94888261 | AA95: 1468.473928 | AB95: 1283 (76 %), 1273 (18 %), 662 (6 %) | AC95: 50 (17 %), 60 (19 %), 80 (62 %) | AD95: Ib (73 %), Is (25 %) | AE95: AB (98 %) | AF95: Y2 (98 %) | AG95: 1 | AH95: 2 | AI95: 0 | AJ95: 17.38299512 | AN95: 0 | AO95: 0.3909918202 | AR95: =+IF(Y95>=$K$6,$F$5,($F$5/($K$6))*Y95) -> 9 | AS95: 28 | AU95: 28 | AV95: =+IF(AS95>=$L$15,$J$15,IF(AS95<($L$15),AS95*($J$15/($L$15)),)) -> 2.1 | AW95: 337 | AX95: =+IF(AW95>=$L$11,$J$11,IF(AW95<($L$11),AW95*($J$11/($L$11)),)) -> 3 | AY95: =SUM(AR95,AV95,AX95) -> 14.1 | AZ95: =+AY95*$H$5 -> 4.7 | BA95: =+IF(Z95=0,0,IF(Z95>$K$7,$F$9,($F$9/$K$7)*Z95)) -> 8 | BB95: =IF(CZ95>0,$F$10,0) -> 0 | BC95: =IF(DA95>0,$F$11,0) -> 1 | BD95: =IF(DB95>0,$F$12,0) -> 1 | BE95: =IF(DC95>0,$F$13,0) -> 1 | BF95: =IF(DE95>0,$F$14,IF(DD95>0,$F$14/2,0)) -> 2 | BG95: =+IF(DF95>=$L$23,$J$23,IF(DF95<($L$23),DF95*($J$23/($L$23)),)) -> 0.04333333333 | BH95: =+IF(DG95>=$L$24,$J$24,IF(DG95<($L$24),DG95*($J$24/($L$24)),)) -> 0.5 | BI95: =+IF(DH95>=$L$25,$J$25,IF(DH95<($L$25),DH95*($J$25/($L$25)),)) -> 0 | BJ95: =+IF(DI95>=$L$26,$J$26,IF(DI95<($L$26),DI95*($J$26/($L$26)),)) -> 0 | BK95: =IF(DJ95>0,$F$16,0) -> 2 | BL95: =+IF(DM95>=$L$29,$J$29,IF(DM95<($L$29),DM95*($J$29/($L$29)),)) -> 1.333333333 | BM95: =IF(EA95>100000,$F$18,IF(EA95>0,$F$18/2,0)) -> 0 | BN95: =IF(DX95>0,$F$19,0) -> 2 | BO95: 1.293150685 | BP95: =+IF(BO95>=$L$19,$J$19,IF(BO95<($L$19),BO95*($J$19/($L$19)),)) -> 0.1293150685 | BQ95: =SUM(BA95+BB95+BC95+BD95+BE95+BF95+BK95+BG95+BH95+BI95+BJ95+BL95+BM95+BN95+BP95) -> 19.00598174 | BR95: =+BQ95*$H$9 -> 6.335327245 | BS95: 2582.288907 | BT95: =BS95/X95 -> 0.3316579639 | BU95: =IF(BT95>0,IF(BT95>=$CY$28,$CW$28,IF(BT95<$CY$28,$CW$29,0)),0) -> 0.5 | BV95: 7652.090796 | BW95: =BV95/X95 -> 0.9828012838 | BX95: =IF(BW95,$F$23,0) -> 1 | BY95: =IF(DO95>0,$F$24,0) -> 1 | BZ95: 0 | CA95: =BZ95/X95 -> 0 | CB95: =+IF(CA95>=$K$4,$F$25,0) -> 0 | CC95: 19.7622656 | CD95: =IF(CC95>0,IF(CC95>=100,$F$26,IF(CC95<100,$F$26/2)),0) -> 0.5 | CE95: =SUM(DS95) -> 1 | CF95: =IF(DU95>0,$F$28,0) -> 1 | CG95: =IF(DT95>0,$F$29,0) -> 1 | CH95: =IF(DW95>0,$F$30,0) -> 1 | CI95: =SUM(BU95,BX95,CD95,BY95,CB95,CE95,CF95,CG95,CH95) -> 7 | CJ95: =+CI95*$H$22 -> 2.333333333 | CK95: =SUM(AY95,BQ95,CI95) -> 40.10598174 | CL95: =SUM(AZ95,BR95,CJ95) -> 13.36866058 | CM95: =IF(D95<($Z$13*1704),1,IF(D95<(($Z$14+$Z$13)*1704),2,IF(D95<(($Z$15+$Z$13+$Z$14)*1704),3,4))) -> 1 | CN95: =VLOOKUP(A95,Taul1!$F$6:$G$1718,2,FALSE) -> 3 | CT95: https://www.google.com/maps/@60.47709895,26.32029182,3a,75y,90t/data=!3m3!1e1!3m1!2e0 | CW95: 0 | CX95: 0 | CY95: 0 | CZ95: =SUM(CW95:CY95) -> 0 | DA95: 1 | DB95: 2 | DC95: 2 | DD95: 6 | DE95: 1 | DF95: 26 | DG95: 1619 | DH95: 0 | DI95: 0 | DJ95: 1 | DM95: 2 | DN95: 0 | DO95: 7652.090796 | DQ95: =+IF(AA95>$K$8,$F$27/2,0) -> 1 | DR95: =+IF(AA95/Y95>1.5,$F$27/2,0) -> 0 | DS95: =SUM(DQ95:DR95) -> 1 | DT95: 1 | DU95: 1 | DW95: 1 | DX95: 3 | DY95: 0 | DZ95: 0.3909918202 | EA95: 0 | EC95: =IFERROR(VLOOKUP(A95,$EI$37:$EK$1748,2,FALSE),"--") -> LOPUT | ED95: =IFERROR(VLOOKUP(A95,$EI$37:$EK$1748,3,FALSE),"--") -> 231 | EE95: =IFERROR(ED95-D95,"--") -> 172 | EF95: =IFERROR(VLOOKUP(A95,$EI$37:$EL$1748,4,FALSE),"--") -> 2 | EG95: =IFERROR(EF95-K95,"--") -> 1 | EI95: 57_2 | EJ95: LOPUT | EK95: 57 | EL95: 1 | EN95: 1635 | EO95: 8
A96: =CONCATENATE(S96,"_",T96) -> 25_33 | B96: 1 | D96: =RANK(CL96,$CL$37:$CL$1740) -> 60 | E96: 60 | F96: =E96-D96 -> 0 | G96: =CL96 -> 13.335 | H96: =AZ96 -> 4.8 | I96: =BR96 -> 6.701666667 | J96: =CJ96 -> 1.833333333 | K96: =CM96 -> 1 | L96: =B96-K96 -> 0 | M96: =HYPERLINK(CT96,"Gmaps") -> Gmaps | N96: =IF(Y96>$K$6,"LOPUT","VÄHÄ") -> LOPUT | O96: =IF(S96<40,"Valta",IF(S96<100,"Kanta",IF(S96<1000,"Seutu",IF(S96>999,"Yhdys")))) -> Valta | P96: Hangonväylä, Porvoonväylä | Q96: Hyvinkää | R96: Uusimaa | S96: 25 | T96: 33 | U96: 0 | V96: 33 | W96: 7777 | X96: 7777 | Y96: 8216 | Z96: 763 | AA96: 9020 | AB96: 8216 (100 %) | AC96: 80 (48 %), 100 (51 %) | AD96: Is (100 %) | AE96: AB (100 %) | AF96: Y1 (100 %) | AG96: 14 | AH96: 26 | AI96: 0 | AJ96: 621 | AK96: Laajin Ternverkko | AL96: 1 | AM96: x | AN96: 0 | AO96: 0 | AR96: =+IF(Y96>=$K$6,$F$5,($F$5/($K$6))*Y96) -> 9 | AS96: 32 | AU96: 32 | AV96: =+IF(AS96>=$L$15,$J$15,IF(AS96<($L$15),AS96*($J$15/($L$15)),)) -> 2.4 | AW96: 4805 | AX96: =+IF(AW96>=$L$11,$J$11,IF(AW96<($L$11),AW96*($J$11/($L$11)),)) -> 3 | AY96: =SUM(AR96,AV96,AX96) -> 14.4 | AZ96: =+AY96*$H$5 -> 4.8 | BA96: =+IF(Z96=0,0,IF(Z96>$K$7,$F$9,($F$9/$K$7)*Z96)) -> 8 | BB96: =IF(CZ96>0,$F$10,0) -> 2 | BC96: =IF(DA96>0,$F$11,0) -> 1 | BD96: =IF(DB96>0,$F$12,0) -> 0 | BE96: =IF(DC96>0,$F$13,0) -> 0 | BF96: =IF(DE96>0,$F$14,IF(DD96>0,$F$14/2,0)) -> 2 | BG96: =+IF(DF96>=$L$23,$J$23,IF(DF96<($L$23),DF96*($J$23/($L$23)),)) -> 0.085 | BH96: =+IF(DG96>=$L$24,$J$24,IF(DG96<($L$24),DG96*($J$24/($L$24)),)) -> 0.02 | BI96: =+IF(DH96>=$L$25,$J$25,IF(DH96<($L$25),DH96*($J$25/($L$25)),)) -> 0 | BJ96: =+IF(DI96>=$L$26,$J$26,IF(DI96<($L$26),DI96*($J$26/($L$26)),)) -> 0 | BK96: =IF(DJ96>0,$F$16,0) -> 2 | BL96: =+IF(DM96>=$L$29,$J$29,IF(DM96<($L$29),DM96*($J$29/($L$29)),)) -> 2 | BM96: =IF(EA96>100000,$F$18,IF(EA96>0,$F$18/2,0)) -> 0 | BN96: =IF(DX96>0,$F$19,0) -> 2 | BO96: 25.73972603 | BP96: =+IF(BO96>=$L$19,$J$19,IF(BO96<($L$19),BO96*($J$19/($L$19)),)) -> 1 | BQ96: =SUM(BA96+BB96+BC96+BD96+BE96+BF96+BK96+BG96+BH96+BI96+BJ96+BL96+BM96+BN96+BP96) -> 20.105 | BR96: =+BQ96*$H$9 -> 6.701666667 | BS96: 4241.105534 | BT96: =BS96/X96 -> 0.5453395312 | BU96: =IF(BT96>0,IF(BT96>=$CY$28,$CW$28,IF(BT96<$CY$28,$CW$29,0)),0) -> 1 | BV96: 7491.533503 | BW96: =BV96/X96 -> 0.963293494 | BX96: =IF(BW96,$F$23,0) -> 1 | BY96: =IF(DO96>0,$F$24,0) -> 1 | BZ96: 0 | CA96: =BZ96/X96 -> 0 | CB96: =+IF(CA96>=$K$4,$F$25,0) -> 0 | CC96: 28.18027517 | CD96: =IF(CC96>0,IF(CC96>=100,$F$26,IF(CC96<100,$F$26/2)),0) -> 0.5 | CE96: =SUM(DS96) -> 1 | CF96: =IF(DU96>0,$F$28,0) -> 0 | CG96: =IF(DT96>0,$F$29,0) -> 0 | CH96: =IF(DW96>0,$F$30,0) -> 1 | CI96: =SUM(BU96,BX96,CD96,BY96,CB96,CE96,CF96,CG96,CH96) -> 5.5 | CJ96: =+CI96*$H$22 -> 1.833333333 | CK96: =SUM(AY96,BQ96,CI96) -> 40.005 | CL96: =SUM(AZ96,BR96,CJ96) -> 13.335 | CM96: =IF(D96<($Z$13*1704),1,IF(D96<(($Z$14+$Z$13)*1704),2,IF(D96<(($Z$15+$Z$13+$Z$14)*1704),3,4))) -> 1 | CN96: =VLOOKUP(A96,Taul1!$F$6:$G$1718,2,FALSE) -> 1 | CT96: https://www.google.com/maps/@60.60421901,24.86742881,3a,75y,90t/data=!3m3!1e1!3m1!2e0 | CW96: 1 | CX96: 1 | CY96: 0 | CZ96: =SUM(CW96:CY96) -> 2 | DA96: 1 | DB96: 0 | DC96: 0 | DD96: 22 | DE96: 1 | DF96: 51 | DG96: 4 | DH96: 0 | DI96: 0 | DJ96: 4 | DM96: 36 | DN96: 1 | DO96: 3426.0484 | DQ96: =+IF(AA96>$K$8,$F$27/2,0) -> 1 | DR96: =+IF(AA96/Y96>1.5,$F$27/2,0) -> 0 | DS96: =SUM(DQ96:DR96) -> 1 | DT96: 0 | DU96: 0 | DW96: 1 | DX96: 7 | DY96: 0 | DZ96: 0 | EA96: 0 | EC96: =IFERROR(VLOOKUP(A96,$EI$37:$EK$1748,2,FALSE),"--") -> LOPUT | ED96: =IFERROR(VLOOKUP(A96,$EI$37:$EK$1748,3,FALSE),"--") -> 259 | EE96: =IFERROR(ED96-D96,"--") -> 199 | EF96: =IFERROR(VLOOKUP(A96,$EI$37:$EL$1748,4,FALSE),"--") -> 2 | EG96: =IFERROR(EF96-K96,"--") -> 1 | EI96: 1452_2 | EJ96: LOPUT | EK96: 86 | EL96: 2
A97: =CONCATENATE(S97,"_",T97) -> 24_2 | B97: 1 | D97: =RANK(CL97,$CL$37:$CL$1740) -> 61 | E97: 61 | F97: =E97-D97 -> 0 | G97: =CL97 -> 13.26027778 | H97: =AZ97 -> 5 | I97: =BR97 -> 5.926944444 | J97: =CJ97 -> 2.333333333 | K97: =CM97 -> 1 | L97: =B97-K97 -> 0 | M97: =HYPERLINK(CT97,"Gmaps") -> Gmaps | N97: =IF(Y97>$K$6,"LOPUT","VÄHÄ") -> LOPUT | O97: =IF(S97<40,"Valta",IF(S97<100,"Kanta",IF(S97<1000,"Seutu",IF(S97>999,"Yhdys")))) -> Valta | P97: Vesikansantie, Vääksyntie | Q97: Hollola, Lahti | R97: Päijät-Häme | S97: 24 | T97: 2 | U97: 0 | V97: 2 | W97: 5897 | X97: 5897 | Y97: 14136 | Z97: 554 | AA97: 18308 | AB97: 14136 (100 %) | AC97: 60 (62 %), 70 (18 %), 80 (20 %) | AD97: Is (100 %) | AE97: AB (100 %) | AF97: Y2 (100 %) | AG97: 10 | AH97: 24 | AI97: 0.432347794 | AJ97: 193 | AN97: 0 | AO97: 0.8242583463 | AR97: =+IF(Y97>=$K$6,$F$5,($F$5/($K$6))*Y97) -> 9 | AS97: 99 | AU97: 99 | AV97: =+IF(AS97>=$L$15,$J$15,IF(AS97<($L$15),AS97*($J$15/($L$15)),)) -> 3 | AW97: 4379 | AX97: =+IF(AW97>=$L$11,$J$11,IF(AW97<($L$11),AW97*($J$11/($L$11)),)) -> 3 | AY97: =SUM(AR97,AV97,AX97) -> 15 | AZ97: =+AY97*$H$5 -> 5 | BA97: =+IF(Z97=0,0,IF(Z97>$K$7,$F$9,($F$9/$K$7)*Z97)) -> 8 | BB97: =IF(CZ97>0,$F$10,0) -> 2 | BC97: =IF(DA97>0,$F$11,0) -> 0 | BD97: =IF(DB97>0,$F$12,0) -> 0 | BE97: =IF(DC97>0,$F$13,0) -> 0 | BF97: =IF(DE97>0,$F$14,IF(DD97>0,$F$14/2,0)) -> 2 | BG97: =+IF(DF97>=$L$23,$J$23,IF(DF97<($L$23),DF97*($J$23/($L$23)),)) -> 0.1683333333 | BH97: =+IF(DG97>=$L$24,$J$24,IF(DG97<($L$24),DG97*($J$24/($L$24)),)) -> 0.155 | BI97: =+IF(DH97>=$L$25,$J$25,IF(DH97<($L$25),DH97*($J$25/($L$25)),)) -> 0.0075 | BJ97: =+IF(DI97>=$L$26,$J$26,IF(DI97<($L$26),DI97*($J$26/($L$26)),)) -> 0.45 | BK97: =IF(DJ97>0,$F$16,0) -> 0 | BL97: =+IF(DM97>=$L$29,$J$29,IF(DM97<($L$29),DM97*($J$29/($L$29)),)) -> 2 | BM97: =IF(EA97>100000,$F$18,IF(EA97>0,$F$18/2,0)) -> 0 | BN97: =IF(DX97>0,$F$19,0) -> 2 | BO97: 22.76986301 | BP97: =+IF(BO97>=$L$19,$J$19,IF(BO97<($L$19),BO97*($J$19/($L$19)),)) -> 1 | BQ97: =SUM(BA97+BB97+BC97+BD97+BE97+BF97+BK97+BG97+BH97+BI97+BJ97+BL97+BM97+BN97+BP97) -> 17.78083333 | BR97: =+BQ97*$H$9 -> 5.926944444 | BS97: 5882.980687 | BT97: =BS97/X97 -> 0.9976226364 | BU97: =IF(BT97>0,IF(BT97>=$CY$28,$CW$28,IF(BT97<$CY$28,$CW$29,0)),0) -> 1 | BV97: 5882.980687 | BW97: =BV97/X97 -> 0.9976226364 | BX97: =IF(BW97,$F$23,0) -> 1 | BY97: =IF(DO97>0,$F$24,0) -> 1 | BZ97: 0 | CA97: =BZ97/X97 -> 0 | CB97: =+IF(CA97>=$K$4,$F$25,0) -> 0 | CC97: 526.678311 | CD97: =IF(CC97>0,IF(CC97>=100,$F$26,IF(CC97<100,$F$26/2)),0) -> 1 | CE97: =SUM(DS97) -> 1 | CF97: =IF(DU97>0,$F$28,0) -> 1 | CG97: =IF(DT97>0,$F$29,0) -> 0 | CH97: =IF(DW97>0,$F$30,0) -> 1 | CI97: =SUM(BU97,BX97,CD97,BY97,CB97,CE97,CF97,CG97,CH97) -> 7 | CJ97: =+CI97*$H$22 -> 2.333333333 | CK97: =SUM(AY97,BQ97,CI97) -> 39.78083333 | CL97: =SUM(AZ97,BR97,CJ97) -> 13.26027778 | CM97: =IF(D97<($Z$13*1704),1,IF(D97<(($Z$14+$Z$13)*1704),2,IF(D97<(($Z$15+$Z$13+$Z$14)*1704),3,4))) -> 1 | CN97: =VLOOKUP(A97,Taul1!$F$6:$G$1718,2,FALSE) -> 1 | CT97: https://www.google.com/maps/@61.00936502,25.68292724,3a,75y,90t/data=!3m3!1e1!3m1!2e0 | CW97: 1 | CX97: 0 | CY97: 0 | CZ97: =SUM(CW97:CY97) -> 1 | DA97: 0 | DB97: 0 | DC97: 0 | DD97: 7 | DE97: 1 | DF97: 101 | DG97: 31 | DH97: 15 | DI97: 27 | DJ97: 0 | DM97: 13 | DN97: 0 | DO97: 5882.980687 | DQ97: =+IF(AA97>$K$8,$F$27/2,0) -> 1 | DR97: =+IF(AA97/Y97>1.5,$F$27/2,0) -> 0 | DS97: =SUM(DQ97:DR97) -> 1 | DT97: 0 | DU97: 1 | DW97: 1 | DX97: 2 | DY97: 0 | DZ97: 0.8242583463 | EA97: 0 | EC97: =IFERROR(VLOOKUP(A97,$EI$37:$EK$1748,2,FALSE),"--") -> LOPUT | ED97: =IFERROR(VLOOKUP(A97,$EI$37:$EK$1748,3,FALSE),"--") -> 170 | EE97: =IFERROR(ED97-D97,"--") -> 109 | EF97: =IFERROR(VLOOKUP(A97,$EI$37:$EL$1748,4,FALSE),"--") -> 2 | EG97: =IFERROR(EF97-K97,"--") -> 1 | EI97: 24_4 | EJ97: LOPUT | EK97: 31 | EL97: 1 | EN97: 1873 | EO97: 3
A98: =CONCATENATE(S98,"_",T98) -> 140_4 | B98: 1 | D98: =RANK(CL98,$CL$37:$CL$1740) -> 62 | E98: 62 | F98: =E98-D98 -> 0 | G98: =CL98 -> 13.25497717 | H98: =AZ98 -> 5 | I98: =BR98 -> 5.921643836 | J98: =CJ98 -> 2.333333333 | K98: =CM98 -> 1 | L98: =B98-K98 -> 0 | M98: =HYPERLINK(CT98,"Gmaps") -> Gmaps | N98: =IF(Y98>$K$6,"LOPUT","VÄHÄ") -> LOPUT | O98: =IF(S98<40,"Valta",IF(S98<100,"Kanta",IF(S98<1000,"Seutu",IF(S98>999,"Yhdys")))) -> Seutu | P98: Lahdentie | Q98: Vantaa | R98: Uusimaa | S98: 140 | T98: 4 | U98: 0 | V98: 4 | W98: 3895 | X98: 3895 | Y98: 8720 | Z98: 578 | AA98: 8491 | AB98: 8720 (100 %) | AC98: 50 (15 %), 60 (85 %) | AD98: Is (100 %) | AE98: AB (100 %) | AF98: Y2 (100 %) | AG98: 6 | AH98: 7 | AI98: 0.04338153504 | AJ98: 101 | AN98: 0.8374664679 | AO98: 0.9951333532 | AR98: =+IF(Y98>=$K$6,$F$5,($F$5/($K$6))*Y98) -> 9 | AS98: 2380 | AU98: 0 | AV98: =+IF(AS98>=$L$15,$J$15,IF(AS98<($L$15),AS98*($J$15/($L$15)),)) -> 3 | AW98: 4759 | AX98: =+IF(AW98>=$L$11,$J$11,IF(AW98<($L$11),AW98*($J$11/($L$11)),)) -> 3 | AY98: =SUM(AR98,AV98,AX98) -> 15 | AZ98: =+AY98*$H$5 -> 5 | BA98: =+IF(Z98=0,0,IF(Z98>$K$7,$F$9,($F$9/$K$7)*Z98)) -> 8 | BB98: =IF(CZ98>0,$F$10,0) -> 0 | BC98: =IF(DA98>0,$F$11,0) -> 0 | BD98: =IF(DB98>0,$F$12,0) -> 0 | BE98: =IF(DC98>0,$F$13,0) -> 0 | BF98: =IF(DE98>0,$F$14,IF(DD98>0,$F$14/2,0)) -> 2 | BG98: =+IF(DF98>=$L$23,$J$23,IF(DF98<($L$23),DF98*($J$23/($L$23)),)) -> 0.155 | BH98: =+IF(DG98>=$L$24,$J$24,IF(DG98<($L$24),DG98*($J$24/($L$24)),)) -> 0.485 | BI98: =+IF(DH98>=$L$25,$J$25,IF(DH98<($L$25),DH98*($J$25/($L$25)),)) -> 0 | BJ98: =+IF(DI98>=$L$26,$J$26,IF(DI98<($L$26),DI98*($J$26/($L$26)),)) -> 0 | BK98: =IF(DJ98>0,$F$16,0) -> 2 | BL98: =+IF(DM98>=$L$29,$J$29,IF(DM98<($L$29),DM98*($J$29/($L$29)),)) -> 2 | BM98: =IF(EA98>100000,$F$18,IF(EA98>0,$F$18/2,0)) -> 0.5 | BN98: =IF(DX98>0,$F$19,0) -> 2 | BO98: 6.249315068 | BP98: =+IF(BO98>=$L$19,$J$19,IF(BO98<($L$19),BO98*($J$19/($L$19)),)) -> 0.6249315068 | BQ98: =SUM(BA98+BB98+BC98+BD98+BE98+BF98+BK98+BG98+BH98+BI98+BJ98+BL98+BM98+BN98+BP98) -> 17.76493151 | BR98: =+BQ98*$H$9 -> 5.921643836 | BS98: 3876.044411 | BT98: =BS98/X98 -> 0.9951333532 | BU98: =IF(BT98>0,IF(BT98>=$CY$28,$CW$28,IF(BT98<$CY$28,$CW$29,0)),0) -> 1 | BV98: 829.1387893 | BW98: =BV98/X98 -> 0.2128726032 | BX98: =IF(BW98,$F$23,0) -> 1 | BY98: =IF(DO98>0,$F$24,0) -> 1 | BZ98: 0 | CA98: =BZ98/X98 -> 0 | CB98: =+IF(CA98>=$K$4,$F$25,0) -> 0 | CC98: 1593.247754 | CD98: =IF(CC98>0,IF(CC98>=100,$F$26,IF(CC98<100,$F$26/2)),0) -> 1 | CE98: =SUM(DS98) -> 1 | CF98: =IF(DU98>0,$F$28,0) -> 1 | CG98: =IF(DT98>0,$F$29,0) -> 0 | CH98: =IF(DW98>0,$F$30,0) -> 1 | CI98: =SUM(BU98,BX98,CD98,BY98,CB98,CE98,CF98,CG98,CH98) -> 7 | CJ98: =+CI98*$H$22 -> 2.333333333 | CK98: =SUM(AY98,BQ98,CI98) -> 39.76493151 | CL98: =SUM(AZ98,BR98,CJ98) -> 13.25497717 | CM98: =IF(D98<($Z$13*1704),1,IF(D98<(($Z$14+$Z$13)*1704),2,IF(D98<(($Z$15+$Z$13+$Z$14)*1704),3,4))) -> 1 | CN98: =VLOOKUP(A98,Taul1!$F$6:$G$1718,2,FALSE) -> 1 | CT98: https://www.google.com/maps/@60.27213346,25.09198101,3a,75y,90t/data=!3m3!1e1!3m1!2e0 | CW98: 0 | CX98: 0 | CY98: 0 | CZ98: =SUM(CW98:CY98) -> 0 | DA98: 0 | DB98: 0 | DC98: 0 | DD98: 0 | DE98: 1 | DF98: 93 | DG98: 97 | DH98: 0 | DI98: 0 | DJ98: 3 | DM98: 12 | DN98: 2 | DO98: 3876.044411 | DQ98: =+IF(AA98>$K$8,$F$27/2,0) -> 1 | DR98: =+IF(AA98/Y98>1.5,$F$27/2,0) -> 0 | DS98: =SUM(DQ98:DR98) -> 1 | DT98: 0 | DU98: 1 | DW98: 1 | DX98: 3 | DY98: 0.8374664679 | DZ98: 0.9951333532 | EA98: 13074 | EC98: =IFERROR(VLOOKUP(A98,$EI$37:$EK$1748,2,FALSE),"--") -> LOPUT | ED98: =IFERROR(VLOOKUP(A98,$EI$37:$EK$1748,3,FALSE),"--") -> 144 | EE98: =IFERROR(ED98-D98,"--") -> 82 | EF98: =IFERROR(VLOOKUP(A98,$EI$37:$EL$1748,4,FALSE),"--") -> 2 | EG98: =IFERROR(EF98-K98,"--") -> 1 | EI98: 132_5 | EJ98: LOPUT | EK98: 56 | EL98: 1 | EN98: 13548 | EO98: 1
A99: =CONCATENATE(S99,"_",T99) -> 54_19 | B99: 1 | D99: =RANK(CL99,$CL$37:$CL$1740) -> 63 | E99: 63 | F99: =E99-D99 -> 0 | G99: =CL99 -> 13.25 | H99: =AZ99 -> 4.725 | I99: =BR99 -> 6.858333333 | J99: =CJ99 -> 1.666666667 | K99: =CM99 -> 1 | L99: =B99-K99 -> 0 | M99: =HYPERLINK(CT99,"Gmaps") -> Gmaps | N99: =IF(Y99>$K$6,"LOPUT","VÄHÄ") -> LOPUT | O99: =IF(S99<40,"Valta",IF(S99<100,"Kanta",IF(S99<1000,"Seutu",IF(S99>999,"Yhdys")))) -> Kanta | P99: Riihimäentie | Q99: Hollola | R99: Päijät-Häme | S99: 54 | T99: 19 | U99: 0 | V99: 19 | W99: 4992 | X99: 4992 | Y99: 4714 | Z99: 537 | AA99: 5185 | AB99: 4714 (100 %) | AC99: 60 (20 %), 80 (20 %), 100 (60 %) | AD99: Is (100 %) | AE99: AB (100 %) | AF99: Y1 (100 %) | AG99: 0 | AH99: 4 | AI99: 0 | AJ99: 371 | AM99: x | AN99: 0 | AO99: 0.1759727013 | AR99: =+IF(Y99>=$K$6,$F$5,($F$5/($K$6))*Y99) -> 9 | AS99: 29 | AU99: 29 | AV99: =+IF(AS99>=$L$15,$J$15,IF(AS99<($L$15),AS99*($J$15/($L$15)),)) -> 2.175 | AW99: 1479 | AX99: =+IF(AW99>=$L$11,$J$11,IF(AW99<($L$11),AW99*($J$11/($L$11)),)) -> 3 | AY99: =SUM(AR99,AV99,AX99) -> 14.175 | AZ99: =+AY99*$H$5 -> 4.725 | BA99: =+IF(Z99=0,0,IF(Z99>$K$7,$F$9,($F$9/$K$7)*Z99)) -> 8 | BB99: =IF(CZ99>0,$F$10,0) -> 2 | BC99: =IF(DA99>0,$F$11,0) -> 1 | BD99: =IF(DB99>0,$F$12,0) -> 1 | BE99: =IF(DC99>0,$F$13,0) -> 1 | BF99: =IF(DE99>0,$F$14,IF(DD99>0,$F$14/2,0)) -> 2 | BG99: =+IF(DF99>=$L$23,$J$23,IF(DF99<($L$23),DF99*($J$23/($L$23)),)) -> 0.5 | BH99: =+IF(DG99>=$L$24,$J$24,IF(DG99<($L$24),DG99*($J$24/($L$24)),)) -> 0.075 | BI99: =+IF(DH99>=$L$25,$J$25,IF(DH99<($L$25),DH99*($J$25/($L$25)),)) -> 0 | BJ99: =+IF(DI99>=$L$26,$J$26,IF(DI99<($L$26),DI99*($J$26/($L$26)),)) -> 0 | BK99: =IF(DJ99>0,$F$16,0) -> 2 | BL99: =+IF(DM99>=$L$29,$J$29,IF(DM99<($L$29),DM99*($J$29/($L$29)),)) -> 2 | BM99: =IF(EA99>100000,$F$18,IF(EA99>0,$F$18/2,0)) -> 0 | BN99: =IF(DX99>0,$F$19,0) -> 0 | BO99: 43.84657534 | BP99: =+IF(BO99>=$L$19,$J$19,IF(BO99<($L$19),BO99*($J$19/($L$19)),)) -> 1 | BQ99: =SUM(BA99+BB99+BC99+BD99+BE99+BF99+BK99+BG99+BH99+BI99+BJ99+BL99+BM99+BN99+BP99) -> 20.575 | BR99: =+BQ99*$H$9 -> 6.858333333 | BS99: 1193.873012 | BT99: =BS99/X99 -> 0.2391572541 | BU99: =IF(BT99>0,IF(BT99>=$CY$28,$CW$28,IF(BT99<$CY$28,$CW$29,0)),0) -> 0.5 | BV99: 4991.455516 | BW99: =BV99/X99 -> 0.9998909287 | BX99: =IF(BW99,$F$23,0) -> 1 | BY99: =IF(DO99>0,$F$24,0) -> 1 | BZ99: 0 | CA99: =BZ99/X99 -> 0 | CB99: =+IF(CA99>=$K$4,$F$25,0) -> 0 | CC99: 10.54767628 | CD99: =IF(CC99>0,IF(CC99>=100,$F$26,IF(CC99<100,$F$26/2)),0) -> 0.5 | CE99: =SUM(DS99) -> 1 | CF99: =IF(DU99>0,$F$28,0) -> 0 | CG99: =IF(DT99>0,$F$29,0) -> 0 | CH99: =IF(DW99>0,$F$30,0) -> 1 | CI99: =SUM(BU99,BX99,CD99,BY99,CB99,CE99,CF99,CG99,CH99) -> 5 | CJ99: =+CI99*$H$22 -> 1.666666667 | CK99: =SUM(AY99,BQ99,CI99) -> 39.75 | CL99: =SUM(AZ99,BR99,CJ99) -> 13.25 | CM99: =IF(D99<($Z$13*1704),1,IF(D99<(($Z$14+$Z$13)*1704),2,IF(D99<(($Z$15+$Z$13+$Z$14)*1704),3,4))) -> 1 | CN99: =VLOOKUP(A99,Taul1!$F$6:$G$1718,2,FALSE) -> 1 | CT99: https://www.google.com/maps/@60.94943300,25.42331021,3a,75y,90t/data=!3m3!1e1!3m1!2e0 | CW99: 1 | CX99: 0 | CY99: 1 | CZ99: =SUM(CW99:CY99) -> 2 | DA99: 4 | DB99: 4 | DC99: 1 | DD99: 24 | DE99: 3 | DF99: 396 | DG99: 15 | DH99: 0 | DI99: 0 | DJ99: 1 | DM99: 8 | DN99: 0 | DO99: 4991.455516 | DQ99: =+IF(AA99>$K$8,$F$27/2,0) -> 1 | DR99: =+IF(AA99/Y99>1.5,$F$27/2,0) -> 0 | DS99: =SUM(DQ99:DR99) -> 1 | DT99: 0 | DU99: 0 | DW99: 1 | DX99: 0 | DY99: 0 | DZ99: 0.1759727013 | EA99: 0 | EC99: =IFERROR(VLOOKUP(A99,$EI$37:$EK$1748,2,FALSE),"--") -> LOPUT | ED99: =IFERROR(VLOOKUP(A99,$EI$37:$EK$1748,3,FALSE),"--") -> 74 | EE99: =IFERROR(ED99-D99,"--") -> 11 | EF99: =IFERROR(VLOOKUP(A99,$EI$37:$EL$1748,4,FALSE),"--") -> 1 | EG99: =IFERROR(EF99-K99,"--") -> 0 | EI99: 6_120 | EJ99: LOPUT | EK99: 51 | EL99: 1 | EN99: 11707 | EO99: 1
A100: =CONCATENATE(S100,"_",T100) -> 25_24 | B100: 1 | D100: =RANK(CL100,$CL$37:$CL$1740) -> 64 | E100: 64 | F100: =E100-D100 -> 0 | G100: =CL100 -> 13.22588889 | H100: =AZ100 -> 4.725 | I100: =BR100 -> 6.167555556 | J100: =CJ100 -> 2.333333333 | K100: =CM100 -> 1 | L100: =B100-K100 -> 0 | M100: =HYPERLINK(CT100,"Gmaps") -> Gmaps | N100: =IF(Y100>$K$6,"LOPUT","VÄHÄ") -> LOPUT | O100: =IF(S100<40,"Valta",IF(S100<100,"Kanta",IF(S100<1000,"Seutu",IF(S100>999,"Yhdys")))) -> Valta | P100: Kehätie | Q100: Vihti | R100: Uusimaa | S100: 25 | T100: 24 | U100: 0 | V100: 24 | W100: 5425 | X100: 5425 | Y100: 7807.823963 | Z100: 851.5050691 | AA100: 9814.063594 | AB100: 10837 (12 %), 7381 (88 %) | AC100: 60 (20 %), 80 (80 %) | AD100: Ise (100 %) | AE100: AB (100 %) | AF100: Y1 (100 %) | AG100: 6 | AH100: 14 | AI100: 0.0176366843 | AJ100: 484.8921659 | AK100: Laajin Ternverkko | AL100: 1 | AN100: 0 | AO100: 0.01131000852 | AR100: =+IF(Y100>=$K$6,$F$5,($F$5/($K$6))*Y100) -> 9 | AS100: 29 | AU100: 29 | AV100: =+IF(AS100>=$L$15,$J$15,IF(AS100<($L$15),AS100*($J$15/($L$15)),)) -> 2.175 | AW100: 4754 | AX100: =+IF(AW100>=$L$11,$J$11,IF(AW100<($L$11),AW100*($J$11/($L$11)),)) -> 3 | AY100: =SUM(AR100,AV100,AX100) -> 14.175 | AZ100: =+AY100*$H$5 -> 4.725 | BA100: =+IF(Z100=0,0,IF(Z100>$K$7,$F$9,($F$9/$K$7)*Z100)) -> 8 | BB100: =IF(CZ100>0,$F$10,0) -> 2 | BC100: =IF(DA100>0,$F$11,0) -> 1 | BD100: =IF(DB100>0,$F$12,0) -> 0 | BE100: =IF(DC100>0,$F$13,0) -> 0 | BF100: =IF(DE100>0,$F$14,IF(DD100>0,$F$14/2,0)) -> 2 | BG100: =+IF(DF100>=$L$23,$J$23,IF(DF100<($L$23),DF100*($J$23/($L$23)),)) -> 0.001666666667 | BH100: =+IF(DG100>=$L$24,$J$24,IF(DG100<($L$24),DG100*($J$24/($L$24)),)) -> 0.5 | BI100: =+IF(DH100>=$L$25,$J$25,IF(DH100<($L$25),DH100*($J$25/($L$25)),)) -> 0.001 | BJ100: =+IF(DI100>=$L$26,$J$26,IF(DI100<($L$26),DI100*($J$26/($L$26)),)) -> 0 | BK100: =IF(DJ100>0,$F$16,0) -> 0 | BL100: =+IF(DM100>=$L$29,$J$29,IF(DM100<($L$29),DM100*($J$29/($L$29)),)) -> 2 | BM100: =IF(EA100>100000,$F$18,IF(EA100>0,$F$18/2,0)) -> 0 | BN100: =IF(DX100>0,$F$19,0) -> 2 | BO100: 23.48219178 | BP100: =+IF(BO100>=$L$19,$J$19,IF(BO100<($L$19),BO100*($J$19/($L$19)),)) -> 1 | BQ100: =SUM(BA100+BB100+BC100+BD100+BE100+BF100+BK100+BG100+BH100+BI100+BJ100+BL100+BM100+BN100+BP100) -> 18.50266667 | BR100: =+BQ100*$H$9 -> 6.167555556 | BS100: 4543.363702 | BT100: =BS100/X100 -> 0.8374863966 | BU100: =IF(BT100>0,IF(BT100>=$CY$28,$CW$28,IF(BT100<$CY$28,$CW$29,0)),0) -> 1 | BV100: 5437.066626 | BW100: =BV100/X100 -> 1.002224263 | BX100: =IF(BW100,$F$23,0) -> 1 | BY100: =IF(DO100>0,$F$24,0) -> 1 | BZ100: 0 | CA100: =BZ100/X100 -> 0 | CB100: =+IF(CA100>=$K$4,$F$25,0) -> 0 | CC100: 405.9760369 | CD100: =IF(CC100>0,IF(CC100>=100,$F$26,IF(CC100<100,$F$26/2)),0) -> 1 | CE100: =SUM(DS100) -> 1 | CF100: =IF(DU100>0,$F$28,0) -> 0 | CG100: =IF(DT100>0,$F$29,0) -> 1 | CH100: =IF(DW100>0,$F$30,0) -> 1 | CI100: =SUM(BU100,BX100,CD100,BY100,CB100,CE100,CF100,CG100,CH100) -> 7 | CJ100: =+CI100*$H$22 -> 2.333333333 | CK100: =SUM(AY100,BQ100,CI100) -> 39.67766667 | CL100: =SUM(AZ100,BR100,CJ100) -> 13.22588889 | CM100: =IF(D100<($Z$13*1704),1,IF(D100<(($Z$14+$Z$13)*1704),2,IF(D100<(($Z$15+$Z$13+$Z$14)*1704),3,4))) -> 1 | CN100: =VLOOKUP(A100,Taul1!$F$6:$G$1718,2,FALSE) -> 2 | CT100: https://www.google.com/maps/@60.34808340,24.31895432,3a,75y,90t/data=!3m3!1e1!3m1!2e0 | CW100: 0 | CX100: 1 | CY100: 1 | CZ100: =SUM(CW100:CY100) -> 2 | DA100: 1 | DB100: 0 | DC100: 0 | DD100: 3 | DE100: 2 | DF100: 1 | DG100: 407 | DH100: 2 | DI100: 0 | DJ100: 0 | DM100: 3 | DN100: 0 | DO100: 5437.066626 | DQ100: =+IF(AA100>$K$8,$F$27/2,0) -> 1 | DR100: =+IF(AA100/Y100>1.5,$F$27/2,0) -> 0 | DS100: =SUM(DQ100:DR100) -> 1 | DT100: 1 | DU100: 0 | DW100: 1 | DX100: 1 | DY100: 0 | DZ100: 0.01131000852 | EA100: 0 | EC100: =IFERROR(VLOOKUP(A100,$EI$37:$EK$1748,2,FALSE),"--") -> LOPUT | ED100: =IFERROR(VLOOKUP(A100,$EI$37:$EK$1748,3,FALSE),"--") -> 9 | EE100: =IFERROR(ED100-D100,"--") -> -55 | EF100: =IFERROR(VLOOKUP(A100,$EI$37:$EL$1748,4,FALSE),"--") -> 1 | EG100: =IFERROR(EF100-K100,"--") -> 0 | EI100: 2_27 | EJ100: LOPUT | EK100: 58 | EL100: 1 | EN100: 174 | EO100: 1
A101: =CONCATENATE(S101,"_",T101) -> 1375_1 | B101: 1 | D101: =RANK(CL101,$CL$37:$CL$1740) -> 65 | E101: 65 | F101: =E101-D101 -> 0 | G101: =CL101 -> 13.21680365 | H101: =AZ101 -> 5 | I101: =BR101 -> 5.550136986 | J101: =CJ101 -> 2.666666667 | K101: =CM101 -> 1 | L101: =B101-K101 -> 0 | M101: =HYPERLINK(CT101,"Gmaps") -> Gmaps | N101: =IF(Y101>$K$6,"LOPUT","VÄHÄ") -> LOPUT | O101: =IF(S101<40,"Valta",IF(S101<100,"Kanta",IF(S101<1000,"Seutu",IF(S101>999,"Yhdys")))) -> Yhdys | P101: Koivukylänväylä | Q101: Vantaa | R101: Uusimaa | S101: 1375 | T101: 1 | U101: 0 | V101: 1 | W101: 2235 | X101: 2235 | Y101: 11777 | Z101: 436 | AA101: 12803 | AB101: 11777 (100 %) | AC101: 50 (2 %), 60 (97 %) | AD101: Ise (100 %) | AE101: AB (100 %) | AF101: Y2 (100 %) | AG101: 8 | AH101: 20 | AI101: 0.1227955585 | AJ101: 123 | AN101: 0.380521939 | AO101: 0.1611461749 | AR101: =+IF(Y101>=$K$6,$F$5,($F$5/($K$6))*Y101) -> 9 | AS101: 3597 | AU101: 0 | AV101: =+IF(AS101>=$L$15,$J$15,IF(AS101<($L$15),AS101*($J$15/($L$15)),)) -> 3 | AW101: 9473 | AX101: =+IF(AW101>=$L$11,$J$11,IF(AW101<($L$11),AW101*($J$11/($L$11)),)) -> 3 | AY101: =SUM(AR101,AV101,AX101) -> 15 | AZ101: =+AY101*$H$5 -> 5 | BA101: =+IF(Z101=0,0,IF(Z101>$K$7,$F$9,($F$9/$K$7)*Z101)) -> 8 | BB101: =IF(CZ101>0,$F$10,0) -> 0 | BC101: =IF(DA101>0,$F$11,0) -> 0 | BD101: =IF(DB101>0,$F$12,0) -> 0 | BE101: =IF(DC101>0,$F$13,0) -> 0 | BF101: =IF(DE101>0,$F$14,IF(DD101>0,$F$14/2,0)) -> 1 | BG101: =+IF(DF101>=$L$23,$J$23,IF(DF101<($L$23),DF101*($J$23/($L$23)),)) -> 0.155 | BH101: =+IF(DG101>=$L$24,$J$24,IF(DG101<($L$24),DG101*($J$24/($L$24)),)) -> 0.485 | BI101: =+IF(DH101>=$L$25,$J$25,IF(DH101<($L$25),DH101*($J$25/($L$25)),)) -> 0 | BJ101: =+IF(DI101>=$L$26,$J$26,IF(DI101<($L$26),DI101*($J$26/($L$26)),)) -> 0 | BK101: =IF(DJ101>0,$F$16,0) -> 2 | BL101: =+IF(DM101>=$L$29,$J$29,IF(DM101<($L$29),DM101*($J$29/($L$29)),)) -> 2 | BM101: =IF(EA101>100000,$F$18,IF(EA101>0,$F$18/2,0)) -> 1 | BN101: =IF(DX101>0,$F$19,0) -> 2 | BO101: 0.104109589 | BP101: =+IF(BO101>=$L$19,$J$19,IF(BO101<($L$19),BO101*($J$19/($L$19)),)) -> 0.0104109589 | BQ101: =SUM(BA101+BB101+BC101+BD101+BE101+BF101+BK101+BG101+BH101+BI101+BJ101+BL101+BM101+BN101+BP101) -> 16.65041096 | BR101: =+BQ101*$H$9 -> 5.550136986 | BS101: 2227.903322 | BT101: =BS101/X101 -> 0.9968247524 | BU101: =IF(BT101>0,IF(BT101>=$CY$28,$CW$28,IF(BT101<$CY$28,$CW$29,0)),0) -> 1 | BV101: 2026.664963 | BW101: =BV101/X101 -> 0.9067852182 | BX101: =IF(BW101,$F$23,0) -> 1 | BY101: =IF(DO101>0,$F$24,0) -> 1 | BZ101: 51.59328035 | CA101: =BZ101/X101 -> 0.02308424177 | CB101: =+IF(CA101>=$K$4,$F$25,0) -> 0 | CC101: 174.5637584 | CD101: =IF(CC101>0,IF(CC101>=100,$F$26,IF(CC101<100,$F$26/2)),0) -> 1 | CE101: =SUM(DS101) -> 1 | CF101: =IF(DU101>0,$F$28,0) -> 1 | CG101: =IF(DT101>0,$F$29,0) -> 1 | CH101: =IF(DW101>0,$F$30,0) -> 1 | CI101: =SUM(BU101,BX101,CD101,BY101,CB101,CE101,CF101,CG101,CH101) -> 8 | CJ101: =+CI101*$H$22 -> 2.666666667 | CK101: =SUM(AY101,BQ101,CI101) -> 39.65041096 | CL101: =SUM(AZ101,BR101,CJ101) -> 13.21680365 | CM101: =IF(D101<($Z$13*1704),1,IF(D101<(($Z$14+$Z$13)*1704),2,IF(D101<(($Z$15+$Z$13+$Z$14)*1704),3,4))) -> 1 | CN101: =VLOOKUP(A101,Taul1!$F$6:$G$1718,2,FALSE) -> 1 | CT101: https://www.google.com/maps/@60.30511033,25.10443338,3a,75y,90t/data=!3m3!1e1!3m1!2e0 | CW101: 0 | CX101: 0 | CY101: 0 | CZ101: =SUM(CW101:CY101) -> 0 | DA101: 0 | DB101: 0 | DC101: 0 | DD101: 5 | DE101: 0 | DF101: 93 | DG101: 97 | DH101: 0 | DI101: 0 | DJ101: 3 | DM101: 33 | DN101: 2 | DO101: 2227.903322 | DQ101: =+IF(AA101>$K$8,$F$27/2,0) -> 1 | DR101: =+IF(AA101/Y101>1.5,$F$27/2,0) -> 0 | DS101: =SUM(DQ101:DR101) -> 1 | DT101: 2 | DU101: 1 | DW101: 1 | DX101: 7 | DY101: 0.380521939 | DZ101: 0.1611461749 | EA101: 241279 | EC101: =IFERROR(VLOOKUP(A101,$EI$37:$EK$1748,2,FALSE),"--") -> LOPUT | ED101: =IFERROR(VLOOKUP(A101,$EI$37:$EK$1748,3,FALSE),"--") -> 235 | EE101: =IFERROR(ED101-D101,"--") -> 170 | EF101: =IFERROR(VLOOKUP(A101,$EI$37:$EL$1748,4,FALSE),"--") -> 2 | EG101: =IFERROR(EF101-K101,"--") -> 1 | EI101: 140_8 | EJ101: LOPUT | EK101: 36 | EL101: 1 | EN101: 116 | EO101: 1
A102: =CONCATENATE(S102,"_",T102) -> 1361_1 | B102: 1 | D102: =RANK(CL102,$CL$37:$CL$1740) -> 66 | E102: 66 | F102: =E102-D102 -> 0 | G102: =CL102 -> 13.17101979 | H102: =AZ102 -> 4.45 | I102: =BR102 -> 6.721019787 | J102: =CJ102 -> 2 | K102: =CM102 -> 1 | L102: =B102-K102 -> 0 | M102: =HYPERLINK(CT102,"Gmaps") -> Gmaps | N102: =IF(Y102>$K$6,"LOPUT","VÄHÄ") -> LOPUT | O102: =IF(S102<40,"Valta",IF(S102<100,"Kanta",IF(S102<1000,"Seutu",IF(S102>999,"Yhdys")))) -> Yhdys | P102: Kytäjäntie, Läntinen Yhdystie, Riihimäenkatu, Siltakatu | Q102: Hyvinkää | R102: Uusimaa | S102: 1361 | T102: 1 | U102: 3207 | V102: 1 | W102: 12163 | X102: 8956 | Y102: 2586.130862 | Z102: 101.8261501 | AA102: 2978.3228 | AB102: 13283 (6 %), 1963 (94 %) | AC102: 50 (25 %), 70 (75 %) | AD102: Ib (100 %) | AE102: AB (100 %) | AF102: Y2 (100 %) | AG102: 5 | AH102: 7 | AI102: 0.06208128629 | AJ102: 51.4496427 | AN102: 0 | AO102: 0.1830757694 | AR102: =+IF(Y102>=$K$6,$F$5,($F$5/($K$6))*Y102) -> 9 | AS102: 18 | AU102: 18 | AV102: =+IF(AS102>=$L$15,$J$15,IF(AS102<($L$15),AS102*($J$15/($L$15)),)) -> 1.35 | AW102: 8003 | AX102: =+IF(AW102>=$L$11,$J$11,IF(AW102<($L$11),AW102*($J$11/($L$11)),)) -> 3 | AY102: =SUM(AR102,AV102,AX102) -> 13.35 | AZ102: =+AY102*$H$5 -> 4.45 | BA102: =+IF(Z102=0,0,IF(Z102>$K$7,$F$9,($F$9/$K$7)*Z102)) -> 8 | BB102: =IF(CZ102>0,$F$10,0) -> 2 | BC102: =IF(DA102>0,$F$11,0) -> 1 | BD102: =IF(DB102>0,$F$12,0) -> 1 | BE102: =IF(DC102>0,$F$13,0) -> 0 | BF102: =IF(DE102>0,$F$14,IF(DD102>0,$F$14/2,0)) -> 2 | BG102: =+IF(DF102>=$L$23,$J$23,IF(DF102<($L$23),DF102*($J$23/($L$23)),)) -> 0.04833333333 | BH102: =+IF(DG102>=$L$24,$J$24,IF(DG102<($L$24),DG102*($J$24/($L$24)),)) -> 0.035 | BI102: =+IF(DH102>=$L$25,$J$25,IF(DH102<($L$25),DH102*($J$25/($L$25)),)) -> 0 | BJ102: =+IF(DI102>=$L$26,$J$26,IF(DI102<($L$26),DI102*($J$26/($L$26)),)) -> 0 | BK102: =IF(DJ102>0,$F$16,0) -> 2 | BL102: =+IF(DM102>=$L$29,$J$29,IF(DM102<($L$29),DM102*($J$29/($L$29)),)) -> 2 | BM102: =IF(EA102>100000,$F$18,IF(EA102>0,$F$18/2,0)) -> 0 | BN102: =IF(DX102>0,$F$19,0) -> 2 | BO102: 0.797260274 | BP102: =+IF(BO102>=$L$19,$J$19,IF(BO102<($L$19),BO102*($J$19/($L$19)),)) -> 0.0797260274 | BQ102: =SUM(BA102+BB102+BC102+BD102+BE102+BF102+BK102+BG102+BH102+BI102+BJ102+BL102+BM102+BN102+BP102) -> 20.16305936 | BR102: =+BQ102*$H$9 -> 6.721019787 | BS102: 1394.591569 | BT102: =BS102/X102 -> 0.1557158965 | BU102: =IF(BT102>0,IF(BT102>=$CY$28,$CW$28,IF(BT102<$CY$28,$CW$29,0)),0) -> 0.5 | BV102: 8787.922027 | BW102: =BV102/X102 -> 0.9812329195 | BX102: =IF(BW102,$F$23,0) -> 1 | BY102: =IF(DO102>0,$F$24,0) -> 1 | BZ102: 0 | CA102: =BZ102/X102 -> 0 | CB102: =+IF(CA102>=$K$4,$F$25,0) -> 0 | CC102: 19.51094238 | CD102: =IF(CC102>0,IF(CC102>=100,$F$26,IF(CC102<100,$F$26/2)),0) -> 0.5 | CE102: =SUM(DS102) -> 1 | CF102: =IF(DU102>0,$F$28,0) -> 0 | CG102: =IF(DT102>0,$F$29,0) -> 1 | CH102: =IF(DW102>0,$F$30,0) -> 1 | CI102: =SUM(BU102,BX102,CD102,BY102,CB102,CE102,CF102,CG102,CH102) -> 6 | CJ102: =+CI102*$H$22 -> 2 | CK102: =SUM(AY102,BQ102,CI102) -> 39.51305936 | CL102: =SUM(AZ102,BR102,CJ102) -> 13.17101979 | CM102: =IF(D102<($Z$13*1704),1,IF(D102<(($Z$14+$Z$13)*1704),2,IF(D102<(($Z$15+$Z$13+$Z$14)*1704),3,4))) -> 1 | CN102: =VLOOKUP(A102,Taul1!$F$6:$G$1718,2,FALSE) -> 2 | CT102: https://www.google.com/maps/@60.62063526,24.81622165,3a,75y,90t/data=!3m3!1e1!3m1!2e0 | CW102: 0 | CX102: 0 | CY102: 1 | CZ102: =SUM(CW102:CY102) -> 1 | DA102: 1 | DB102: 2 | DC102: 0 | DD102: 3 | DE102: 3 | DF102: 29 | DG102: 7 | DH102: 0 | DI102: 0 | DJ102: 1 | DM102: 18 | DN102: 0 | DO102: 8912.990114 | DQ102: =+IF(AA102>$K$8,$F$27/2,0) -> 1 | DR102: =+IF(AA102/Y102>1.5,$F$27/2,0) -> 0 | DS102: =SUM(DQ102:DR102) -> 1 | DT102: 2 | DU102: 0 | DW102: 1 | DX102: 3 | DY102: 0 | DZ102: 0.1830757694 | EA102: 0 | EC102: =IFERROR(VLOOKUP(A102,$EI$37:$EK$1748,2,FALSE),"--") -> LOPUT | ED102: =IFERROR(VLOOKUP(A102,$EI$37:$EK$1748,3,FALSE),"--") -> 76 | EE102: =IFERROR(ED102-D102,"--") -> 10 | EF102: =IFERROR(VLOOKUP(A102,$EI$37:$EL$1748,4,FALSE),"--") -> 1 | EG102: =IFERROR(EF102-K102,"--") -> 0 | EI102: 55_6 | EJ102: LOPUT | EK102: 68 | EL102: 1 | EN102: 110 | EO102: 17
A103: =CONCATENATE(S103,"_",T103) -> 170_11 | B103: 1 | D103: =RANK(CL103,$CL$37:$CL$1740) -> 67 | E103: 67 | F103: =E103-D103 -> 0 | G103: =CL103 -> 13.16666667 | H103: =AZ103 -> 5 | I103: =BR103 -> 6 | J103: =CJ103 -> 2.166666667 | K103: =CM103 -> 1 | L103: =B103-K103 -> 0 | M103: =HYPERLINK(CT103,"Gmaps") -> Gmaps | N103: =IF(Y103>$K$6,"LOPUT","VÄHÄ") -> LOPUT | O103: =IF(S103<40,"Valta",IF(S103<100,"Kanta",IF(S103<1000,"Seutu",IF(S103>999,"Yhdys")))) -> Seutu | P103: Loviisantie, Mannerheiminkatu | Q103: Porvoo | R103: Uusimaa | S103: 170 | T103: 11 | U103: 2524 | V103: 11 | W103: 9237 | X103: 6713 | Y103: 3013.842991 | Z103: 114.6348875 | AA103: 3499.228065 | AB103: 5739 (20 %), 2338 (80 %) | AC103: 60 (30 %), 80 (69 %) | AD103: Ib (80 %), Is (20 %) | AE103: AB (99 %) | AF103: Y2 (99 %) | AG103: 2 | AH103: 10 | AI103: 0.0885198556 | AJ103: 23.53850737 | AN103: 0 | AO103: 0.08192894616 | AR103: =+IF(Y103>=$K$6,$F$5,($F$5/($K$6))*Y103) -> 9 | AS103: 95 | AU103: 95 | AV103: =+IF(AS103>=$L$15,$J$15,IF(AS103<($L$15),AS103*($J$15/($L$15)),)) -> 3 | AW103: 1692 | AX103: =+IF(AW103>=$L$11,$J$11,IF(AW103<($L$11),AW103*($J$11/($L$11)),)) -> 3 | AY103: =SUM(AR103,AV103,AX103) -> 15 | AZ103: =+AY103*$H$5 -> 5 | BA103: =+IF(Z103=0,0,IF(Z103>$K$7,$F$9,($F$9/$K$7)*Z103)) -> 8 | BB103: =IF(CZ103>0,$F$10,0) -> 2 | BC103: =IF(DA103>0,$F$11,0) -> 0 | BD103: =IF(DB103>0,$F$12,0) -> 0 | BE103: =IF(DC103>0,$F$13,0) -> 0 | BF103: =IF(DE103>0,$F$14,IF(DD103>0,$F$14/2,0)) -> 1 | BG103: =+IF(DF103>=$L$23,$J$23,IF(DF103<($L$23),DF103*($J$23/($L$23)),)) -> 0 | BH103: =+IF(DG103>=$L$24,$J$24,IF(DG103<($L$24),DG103*($J$24/($L$24)),)) -> 0 | BI103: =+IF(DH103>=$L$25,$J$25,IF(DH103<($L$25),DH103*($J$25/($L$25)),)) -> 0 | BJ103: =+IF(DI103>=$L$26,$J$26,IF(DI103<($L$26),DI103*($J$26/($L$26)),)) -> 0 | BK103: =IF(DJ103>0,$F$16,0) -> 2 | BL103: =+IF(DM103>=$L$29,$J$29,IF(DM103<($L$29),DM103*($J$29/($L$29)),)) -> 2 | BM103: =IF(EA103>100000,$F$18,IF(EA103>0,$F$18/2,0)) -> 0 | BN103: =IF(DX103>0,$F$19,0) -> 2 | BO103: 26.58630137 | BP103: =+IF(BO103>=$L$19,$J$19,IF(BO103<($L$19),BO103*($J$19/($L$19)),)) -> 1 | BQ103: =SUM(BA103+BB103+BC103+BD103+BE103+BF103+BK103+BG103+BH103+BI103+BJ103+BL103+BM103+BN103+BP103) -> 18 | BR103: =+BQ103*$H$9 -> 6 | BS103: 4016.765822 | BT103: =BS103/X103 -> 0.5983562971 | BU103: =IF(BT103>0,IF(BT103>=$CY$28,$CW$28,IF(BT103<$CY$28,$CW$29,0)),0) -> 1 | BV103: 6670.08894 | BW103: =BV103/X103 -> 0.993607767 | BX103: =IF(BW103,$F$23,0) -> 1 | BY103: =IF(DO103>0,$F$24,0) -> 1 | BZ103: 0 | CA103: =BZ103/X103 -> 0 | CB103: =+IF(CA103>=$K$4,$F$25,0) -> 0 | CC103: 54.60151944 | CD103: =IF(CC103>0,IF(CC103>=100,$F$26,IF(CC103<100,$F$26/2)),0) -> 0.5 | CE103: =SUM(DS103) -> 1 | CF103: =IF(DU103>0,$F$28,0) -> 0 | CG103: =IF(DT103>0,$F$29,0) -> 1 | CH103: =IF(DW103>0,$F$30,0) -> 1 | CI103: =SUM(BU103,BX103,CD103,BY103,CB103,CE103,CF103,CG103,CH103) -> 6.5 | CJ103: =+CI103*$H$22 -> 2.166666667 | CK103: =SUM(AY103,BQ103,CI103) -> 39.5 | CL103: =SUM(AZ103,BR103,CJ103) -> 13.16666667 | CM103: =IF(D103<($Z$13*1704),1,IF(D103<(($Z$14+$Z$13)*1704),2,IF(D103<(($Z$15+$Z$13+$Z$14)*1704),3,4))) -> 1 | CN103: =VLOOKUP(A103,Taul1!$F$6:$G$1718,2,FALSE) -> 2 | CT103: https://www.google.com/maps/@60.40854407,25.69499023,3a,75y,90t/data=!3m3!1e1!3m1!2e0 | CW103: 0 | CX103: 1 | CY103: 0 | CZ103: =SUM(CW103:CY103) -> 1 | DA103: 0 | DB103: 0 | DC103: 0 | DD103: 26 | DE103: 0 | DF103: 0 | DG103: 0 | DH103: 0 | DI103: 0 | DJ103: 1 | DM103: 12 | DN103: 0 | DO103: 6670.08894 | DQ103: =+IF(AA103>$K$8,$F$27/2,0) -> 1 | DR103: =+IF(AA103/Y103>1.5,$F$27/2,0) -> 0 | DS103: =SUM(DQ103:DR103) -> 1 | DT103: 1 | DU103: 0 | DW103: 1 | DX103: 1 | DY103: 0 | DZ103: 0.08192894616 | EA103: 0 | EC103: =IFERROR(VLOOKUP(A103,$EI$37:$EK$1748,2,FALSE),"--") -> LOPUT | ED103: =IFERROR(VLOOKUP(A103,$EI$37:$EK$1748,3,FALSE),"--") -> 22 | EE103: =IFERROR(ED103-D103,"--") -> -45 | EF103: =IFERROR(VLOOKUP(A103,$EI$37:$EL$1748,4,FALSE),"--") -> 1 | EG103: =IFERROR(EF103-K103,"--") -> 0 | EI103: 130_8 | EJ103: LOPUT | EK103: 65 | EL103: 1 | EN103: 1081 | EO103: 2
A104: =CONCATENATE(S104,"_",T104) -> 2804_2 | B104: 1 | D104: =RANK(CL104,$CL$37:$CL$1740) -> 68 | E104: 68 | F104: =E104-D104 -> 0 | G104: =CL104 -> 13.14584475 | H104: =AZ104 -> 5 | I104: =BR104 -> 6.145844749 | J104: =CJ104 -> 2 | K104: =CM104 -> 1 | L104: =B104-K104 -> 0 | M104: =HYPERLINK(CT104,"Gmaps") -> Gmaps | N104: =IF(Y104>$K$6,"LOPUT","VÄHÄ") -> LOPUT | O104: =IF(S104<40,"Valta",IF(S104<100,"Kanta",IF(S104<1000,"Seutu",IF(S104>999,"Yhdys")))) -> Yhdys | P104: Forssantie, Jokioistentie, Keskuskatu, Yhtiönkatu | Q104: Forssa, Jokioinen | R104: Kanta-Häme | S104: 2804 | T104: 2 | U104: 0 | V104: 2 | W104: 7505 | X104: 7505 | Y104: 4729.67062 | Z104: 235.4454364 | AA104: 5097.952032 | AB104: 4081 (33 %), 5114 (47 %), 4906 (20 %) | AC104: 40 (8 %), 60 (57 %), 80 (35 %) | AD104: Is (100 %) | AE104: AB (100 %) | AF104: Y2 (100 %) | AG104: 4 | AH104: 16 | AI104: 0.1750972763 | AJ104: 70.02758161 | AN104: 0 | AO104: 1.000547526 | AR104: =+IF(Y104>=$K$6,$F$5,($F$5/($K$6))*Y104) -> 9 | AS104: 86 | AU104: 86 | AV104: =+IF(AS104>=$L$15,$J$15,IF(AS104<($L$15),AS104*($J$15/($L$15)),)) -> 3 | AW104: 2557 | AX104: =+IF(AW104>=$L$11,$J$11,IF(AW104<($L$11),AW104*($J$11/($L$11)),)) -> 3 | AY104: =SUM(AR104,AV104,AX104) -> 15 | AZ104: =+AY104*$H$5 -> 5 | BA104: =+IF(Z104=0,0,IF(Z104>$K$7,$F$9,($F$9/$K$7)*Z104)) -> 8 | BB104: =IF(CZ104>0,$F$10,0) -> 2 | BC104: =IF(DA104>0,$F$11,0) -> 1 | BD104: =IF(DB104>0,$F$12,0) -> 0 | BE104: =IF(DC104>0,$F$13,0) -> 0 | BF104: =IF(DE104>0,$F$14,IF(DD104>0,$F$14/2,0)) -> 1 | BG104: =+IF(DF104>=$L$23,$J$23,IF(DF104<($L$23),DF104*($J$23/($L$23)),)) -> 0 | BH104: =+IF(DG104>=$L$24,$J$24,IF(DG104<($L$24),DG104*($J$24/($L$24)),)) -> 0 | BI104: =+IF(DH104>=$L$25,$J$25,IF(DH104<($L$25),DH104*($J$25/($L$25)),)) -> 0 | BJ104: =+IF(DI104>=$L$26,$J$26,IF(DI104<($L$26),DI104*($J$26/($L$26)),)) -> 0 | BK104: =IF(DJ104>0,$F$16,0) -> 2 | BL104: =+IF(DM104>=$L$29,$J$29,IF(DM104<($L$29),DM104*($J$29/($L$29)),)) -> 2 | BM104: =IF(EA104>100000,$F$18,IF(EA104>0,$F$18/2,0)) -> 0 | BN104: =IF(DX104>0,$F$19,0) -> 2 | BO104: 4.375342466 | BP104: =+IF(BO104>=$L$19,$J$19,IF(BO104<($L$19),BO104*($J$19/($L$19)),)) -> 0.4375342466 | BQ104: =SUM(BA104+BB104+BC104+BD104+BE104+BF104+BK104+BG104+BH104+BI104+BJ104+BL104+BM104+BN104+BP104) -> 18.43753425 | BR104: =+BQ104*$H$9 -> 6.145844749 | BS104: 6007.009363 | BT104: =BS104/X104 -> 0.8004009811 | BU104: =IF(BT104>0,IF(BT104>=$CY$28,$CW$28,IF(BT104<$CY$28,$CW$29,0)),0) -> 1 | BV104: 7239.141927 | BW104: =BV104/X104 -> 0.964575873 | BX104: =IF(BW104,$F$23,0) -> 1 | BY104: =IF(DO104>0,$F$24,0) -> 1 | BZ104: 2238.6184 | CA104: =BZ104/X104 -> 0.2982835976 | CB104: =+IF(CA104>=$K$4,$F$25,0) -> 0 | CC104: 211.2778148 | CD104: =IF(CC104>0,IF(CC104>=100,$F$26,IF(CC104<100,$F$26/2)),0) -> 1 | CE104: =SUM(DS104) -> 1 | CF104: =IF(DU104>0,$F$28,0) -> 0 | CG104: =IF(DT104>0,$F$29,0) -> 0 | CH104: =IF(DW104>0,$F$30,0) -> 1 | CI104: =SUM(BU104,BX104,CD104,BY104,CB104,CE104,CF104,CG104,CH104) -> 6 | CJ104: =+CI104*$H$22 -> 2 | CK104: =SUM(AY104,BQ104,CI104) -> 39.43753425 | CL104: =SUM(AZ104,BR104,CJ104) -> 13.14584475 | CM104: =IF(D104<($Z$13*1704),1,IF(D104<(($Z$14+$Z$13)*1704),2,IF(D104<(($Z$15+$Z$13+$Z$14)*1704),3,4))) -> 1 | CN104: =VLOOKUP(A104,Taul1!$F$6:$G$1718,2,FALSE) -> 3 | CT104: https://www.google.com/maps/@60.80389562,23.48594442,3a,75y,90t/data=!3m3!1e1!3m1!2e0 | CW104: 0 | CX104: 0 | CY104: 1 | CZ104: =SUM(CW104:CY104) -> 1 | DA104: 2 | DB104: 0 | DC104: 0 | DD104: 26 | DE104: 0 | DF104: 0 | DG104: 0 | DH104: 0 | DI104: 0 | DJ104: 1 | DM104: 11 | DN104: 0 | DO104: 7509.109181 | DQ104: =+IF(AA104>$K$8,$F$27/2,0) -> 1 | DR104: =+IF(AA104/Y104>1.5,$F$27/2,0) -> 0 | DS104: =SUM(DQ104:DR104) -> 1 | DT104: 0 | DU104: 0 | DW104: 1 | DX104: 4 | DY104: 0 | DZ104: 1.000547526 | EA104: 0 | EC104: =IFERROR(VLOOKUP(A104,$EI$37:$EK$1748,2,FALSE),"--") -> LOPUT | ED104: =IFERROR(VLOOKUP(A104,$EI$37:$EK$1748,3,FALSE),"--") -> 116 | EE104: =IFERROR(ED104-D104,"--") -> 48 | EF104: =IFERROR(VLOOKUP(A104,$EI$37:$EL$1748,4,FALSE),"--") -> 2 | EG104: =IFERROR(EF104-K104,"--") -> 1 | EI104: 25_9 | EJ104: LOPUT | EK104: 92 | EL104: 2 | EN104: 1050 | EO104: 5
A105: =CONCATENATE(S105,"_",T105) -> 146_2 | B105: 1 | D105: =RANK(CL105,$CL$37:$CL$1740) -> 69 | E105: 69 | F105: =E105-D105 -> 0 | G105: =CL105 -> 13.1023516 | H105: =AZ105 -> 5 | I105: =BR105 -> 6.269018265 | J105: =CJ105 -> 1.833333333 | K105: =CM105 -> 1 | L105: =B105-K105 -> 0 | M105: =HYPERLINK(CT105,"Gmaps") -> Gmaps | N105: =IF(Y105>$K$6,"LOPUT","VÄHÄ") -> LOPUT | O105: =IF(S105<40,"Valta",IF(S105<100,"Kanta",IF(S105<1000,"Seutu",IF(S105>999,"Yhdys")))) -> Seutu | P105: Järvenpääntie, Linsvedintie | Q105: Pornainen, Sipoo | R105: Uusimaa | S105: 146 | T105: 2 | U105: 0 | V105: 2 | W105: 4662 | X105: 4662 | Y105: 2989 | Z105: 126 | AA105: 3194 | AB105: 2989 (100 %) | AC105: 60 (11 %), 80 (89 %) | AD105: Is (100 %) | AE105: AB (100 %) | AF105: Y2 (100 %) | AG105: 0 | AH105: 1 | AI105: 0 | AJ105: 17 | AN105: 0 | AO105: 0 | AR105: =+IF(Y105>=$K$6,$F$5,($F$5/($K$6))*Y105) -> 9 | AS105: 55 | AU105: 0 | AV105: =+IF(AS105>=$L$15,$J$15,IF(AS105<($L$15),AS105*($J$15/($L$15)),)) -> 3 | AW105: 1080 | AX105: =+IF(AW105>=$L$11,$J$11,IF(AW105<($L$11),AW105*($J$11/($L$11)),)) -> 3 | AY105: =SUM(AR105,AV105,AX105) -> 15 | AZ105: =+AY105*$H$5 -> 5 | BA105: =+IF(Z105=0,0,IF(Z105>$K$7,$F$9,($F$9/$K$7)*Z105)) -> 8 | BB105: =IF(CZ105>0,$F$10,0) -> 0 | BC105: =IF(DA105>0,$F$11,0) -> 1 | BD105: =IF(DB105>0,$F$12,0) -> 1 | BE105: =IF(DC105>0,$F$13,0) -> 0 | BF105: =IF(DE105>0,$F$14,IF(DD105>0,$F$14/2,0)) -> 2 | BG105: =+IF(DF105>=$L$23,$J$23,IF(DF105<($L$23),DF105*($J$23/($L$23)),)) -> 0.155 | BH105: =+IF(DG105>=$L$24,$J$24,IF(DG105<($L$24),DG105*($J$24/($L$24)),)) -> 0.5 | BI105: =+IF(DH105>=$L$25,$J$25,IF(DH105<($L$25),DH105*($J$25/($L$25)),)) -> 0 | BJ105: =+IF(DI105>=$L$26,$J$26,IF(DI105<($L$26),DI105*($J$26/($L$26)),)) -> 0 | BK105: =IF(DJ105>0,$F$16,0) -> 2 | BL105: =+IF(DM105>=$L$29,$J$29,IF(DM105<($L$29),DM105*($J$29/($L$29)),)) -> 2 | BM105: =IF(EA105>100000,$F$18,IF(EA105>0,$F$18/2,0)) -> 0 | BN105: =IF(DX105>0,$F$19,0) -> 2 | BO105: 1.520547945 | BP105: =+IF(BO105>=$L$19,$J$19,IF(BO105<($L$19),BO105*($J$19/($L$19)),)) -> 0.1520547945 | BQ105: =SUM(BA105+BB105+BC105+BD105+BE105+BF105+BK105+BG105+BH105+BI105+BJ105+BL105+BM105+BN105+BP105) -> 18.80705479 | BR105: =+BQ105*$H$9 -> 6.269018265 | BS105: 2984.885497 | BT105: =BS105/X105 -> 0.6402585793 | BU105: =IF(BT105>0,IF(BT105>=$CY$28,$CW$28,IF(BT105<$CY$28,$CW$29,0)),0) -> 1 | BV105: 4652.01802 | BW105: =BV105/X105 -> 0.9978588632 | BX105: =IF(BW105,$F$23,0) -> 1 | BY105: =IF(DO105>0,$F$24,0) -> 1 | BZ105: 0 | CA105: =BZ105/X105 -> 0 | CB105: =+IF(CA105>=$K$4,$F$25,0) -> 0 | CC105: 33.78078078 | CD105: =IF(CC105>0,IF(CC105>=100,$F$26,IF(CC105<100,$F$26/2)),0) -> 0.5 | CE105: =SUM(DS105) -> 1 | CF105: =IF(DU105>0,$F$28,0) -> 0 | CG105: =IF(DT105>0,$F$29,0) -> 0 | CH105: =IF(DW105>0,$F$30,0) -> 1 | CI105: =SUM(BU105,BX105,CD105,BY105,CB105,CE105,CF105,CG105,CH105) -> 5.5 | CJ105: =+CI105*$H$22 -> 1.833333333 | CK105: =SUM(AY105,BQ105,CI105) -> 39.30705479 | CL105: =SUM(AZ105,BR105,CJ105) -> 13.1023516 | CM105: =IF(D105<($Z$13*1704),1,IF(D105<(($Z$14+$Z$13)*1704),2,IF(D105<(($Z$15+$Z$13+$Z$14)*1704),3,4))) -> 1 | CN105: =VLOOKUP(A105,Taul1!$F$6:$G$1718,2,FALSE) -> 1 | CT105: https://www.google.com/maps/@60.47330958,25.21076647,3a,75y,90t/data=!3m3!1e1!3m1!2e0 | CW105: 0 | CX105: 0 | CY105: 0 | CZ105: =SUM(CW105:CY105) -> 0 | DA105: 4 | DB105: 5 | DC105: 0 | DD105: 23 | DE105: 2 | DF105: 93 | DG105: 183 | DH105: 0 | DI105: 0 | DJ105: 1 | DM105: 3 | DN105: 0 | DO105: 4652.01802 | DQ105: =+IF(AA105>$K$8,$F$27/2,0) -> 1 | DR105: =+IF(AA105/Y105>1.5,$F$27/2,0) -> 0 | DS105: =SUM(DQ105:DR105) -> 1 | DT105: 0 | DU105: 0 | DW105: 1 | DX105: 2 | DY105: 0 | DZ105: 0 | EA105: 0 | EC105: =IFERROR(VLOOKUP(A105,$EI$37:$EK$1748,2,FALSE),"--") -> LOPUT | ED105: =IFERROR(VLOOKUP(A105,$EI$37:$EK$1748,3,FALSE),"--") -> 281 | EE105: =IFERROR(ED105-D105,"--") -> 212 | EF105: =IFERROR(VLOOKUP(A105,$EI$37:$EL$1748,4,FALSE),"--") -> 2 | EG105: =IFERROR(EF105-K105,"--") -> 1 | EI105: 130_7 | EJ105: LOPUT | EK105: 78 | EL105: 1
A106: =CONCATENATE(S106,"_",T106) -> 54_6 | B106: 1 | D106: =RANK(CL106,$CL$37:$CL$1740) -> 70 | E106: 70 | F106: =E106-D106 -> 0 | G106: =CL106 -> 13.1 | H106: =AZ106 -> 4.6 | I106: =BR106 -> 6.5 | J106: =CJ106 -> 2 | K106: =CM106 -> 1 | L106: =B106-K106 -> 0 | M106: =HYPERLINK(CT106,"Gmaps") -> Gmaps | N106: =IF(Y106>$K$6,"LOPUT","VÄHÄ") -> LOPUT | O106: =IF(S106<40,"Valta",IF(S106<100,"Kanta",IF(S106<1000,"Seutu",IF(S106>999,"Yhdys")))) -> Kanta | P106: Lopen kantatie, Räyskälän kantatie | Q106: Loppi | R106: Kanta-Häme | S106: 54 | T106: 6 | U106: 0 | V106: 6 | W106: 7710 | X106: 7710 | Y106: 3957.015564 | Z106: 430.2607004 | AA106: 5638.690013 | AB106: 3466 (71 %), 5179 (29 %) | AC106: 80 (67 %), 100 (33 %) | AD106: Is (100 %) | AE106: AB (100 %) | AF106: Y1 (100 %) | AG106: 5 | AH106: 13 | AI106: 0 | AJ106: 337.2088197 | AM106: x | AN106: 0 | AO106: 0 | AR106: =+IF(Y106>=$K$6,$F$5,($F$5/($K$6))*Y106) -> 9 | AS106: 24 | AU106: 24 | AV106: =+IF(AS106>=$L$15,$J$15,IF(AS106<($L$15),AS106*($J$15/($L$15)),)) -> 1.8 | AW106: 1514 | AX106: =+IF(AW106>=$L$11,$J$11,IF(AW106<($L$11),AW106*($J$11/($L$11)),)) -> 3 | AY106: =SUM(AR106,AV106,AX106) -> 13.8 | AZ106: =+AY106*$H$5 -> 4.6 | BA106: =+IF(Z106=0,0,IF(Z106>$K$7,$F$9,($F$9/$K$7)*Z106)) -> 8 | BB106: =IF(CZ106>0,$F$10,0) -> 2 | BC106: =IF(DA106>0,$F$11,0) -> 1 | BD106: =IF(DB106>0,$F$12,0) -> 1 | BE106: =IF(DC106>0,$F$13,0) -> 0 | BF106: =IF(DE106>0,$F$14,IF(DD106>0,$F$14/2,0)) -> 1 | BG106: =+IF(DF106>=$L$23,$J$23,IF(DF106<($L$23),DF106*($J$23/($L$23)),)) -> 0.5 | BH106: =+IF(DG106>=$L$24,$J$24,IF(DG106<($L$24),DG106*($J$24/($L$24)),)) -> 0.5 | BI106: =+IF(DH106>=$L$25,$J$25,IF(DH106<($L$25),DH106*($J$25/($L$25)),)) -> 0 | BJ106: =+IF(DI106>=$L$26,$J$26,IF(DI106<($L$26),DI106*($J$26/($L$26)),)) -> 0.5 | BK106: =IF(DJ106>0,$F$16,0) -> 0 | BL106: =+IF(DM106>=$L$29,$J$29,IF(DM106<($L$29),DM106*($J$29/($L$29)),)) -> 2 | BM106: =IF(EA106>100000,$F$18,IF(EA106>0,$F$18/2,0)) -> 0 | BN106: =IF(DX106>0,$F$19,0) -> 2 | BO106: 42.36986301 | BP106: =+IF(BO106>=$L$19,$J$19,IF(BO106<($L$19),BO106*($J$19/($L$19)),)) -> 1 | BQ106: =SUM(BA106+BB106+BC106+BD106+BE106+BF106+BK106+BG106+BH106+BI106+BJ106+BL106+BM106+BN106+BP106) -> 19.5 | BR106: =+BQ106*$H$9 -> 6.5 | BS106: 4634.625319 | BT106: =BS106/X106 -> 0.6011187184 | BU106: =IF(BT106>0,IF(BT106>=$CY$28,$CW$28,IF(BT106<$CY$28,$CW$29,0)),0) -> 1 | BV106: 7700.249332 | BW106: =BV106/X106 -> 0.998735322 | BX106: =IF(BW106,$F$23,0) -> 1 | BY106: =IF(DO106>0,$F$24,0) -> 1 | BZ106: 0 | CA106: =BZ106/X106 -> 0 | CB106: =+IF(CA106>=$K$4,$F$25,0) -> 0 | CC106: 145.5836576 | CD106: =IF(CC106>0,IF(CC106>=100,$F$26,IF(CC106<100,$F$26/2)),0) -> 1 | CE106: =SUM(DS106) -> 1 | CF106: =IF(DU106>0,$F$28,0) -> 0 | CG106: =IF(DT106>0,$F$29,0) -> 0 | CH106: =IF(DW106>0,$F$30,0) -> 1 | CI106: =SUM(BU106,BX106,CD106,BY106,CB106,CE106,CF106,CG106,CH106) -> 6 | CJ106: =+CI106*$H$22 -> 2 | CK106: =SUM(AY106,BQ106,CI106) -> 39.3 | CL106: =SUM(AZ106,BR106,CJ106) -> 13.1 | CM106: =IF(D106<($Z$13*1704),1,IF(D106<(($Z$14+$Z$13)*1704),2,IF(D106<(($Z$15+$Z$13+$Z$14)*1704),3,4))) -> 1 | CN106: =VLOOKUP(A106,Taul1!$F$6:$G$1718,2,FALSE) -> 2 | CT106: https://www.google.com/maps/@60.74352706,24.35601780,3a,75y,90t/data=!3m3!1e1!3m1!2e0 | CW106: 0 | CX106: 0 | CY106: 1 | CZ106: =SUM(CW106:CY106) -> 1 | DA106: 1 | DB106: 3 | DC106: 0 | DD106: 11 | DE106: 0 | DF106: 330 | DG106: 635 | DH106: 0 | DI106: 14055 | DJ106: 0 | DM106: 7 | DN106: 0 | DO106: 7700.249332 | DQ106: =+IF(AA106>$K$8,$F$27/2,0) -> 1 | DR106: =+IF(AA106/Y106>1.5,$F$27/2,0) -> 0 | DS106: =SUM(DQ106:DR106) -> 1 | DT106: 0 | DU106: 0 | DW106: 1 | DX106: 1 | DY106: 0 | DZ106: 0 | EA106: 0 | EC106: =IFERROR(VLOOKUP(A106,$EI$37:$EK$1748,2,FALSE),"--") -> LOPUT | ED106: =IFERROR(VLOOKUP(A106,$EI$37:$EK$1748,3,FALSE),"--") -> 97 | EE106: =IFERROR(ED106-D106,"--") -> 27 | EF106: =IFERROR(VLOOKUP(A106,$EI$37:$EL$1748,4,FALSE),"--") -> 2 | EG106: =IFERROR(EF106-K106,"--") -> 1 | EI106: 292_1 | EJ106: LOPUT | EK106: 40 | EL106: 1 | EN106: 11051 | EO106: 1
A107: =CONCATENATE(S107,"_",T107) -> 132_1 | B107: 1 | D107: =RANK(CL107,$CL$37:$CL$1740) -> 71 | E107: 71 | F107: =E107-D107 -> 0 | G107: =CL107 -> 13.08728311 | H107: =AZ107 -> 5 | I107: =BR107 -> 5.753949772 | J107: =CJ107 -> 2.333333333 | K107: =CM107 -> 1 | L107: =B107-K107 -> 0 | M107: =HYPERLINK(CT107,"Gmaps") -> Gmaps | N107: =IF(Y107>$K$6,"LOPUT","VÄHÄ") -> LOPUT | O107: =IF(S107<40,"Valta",IF(S107<100,"Kanta",IF(S107<1000,"Seutu",IF(S107>999,"Yhdys")))) -> Seutu | P107: Klaukkalantie | Q107: Vantaa, Nurmijärvi | R107: Uusimaa | S107: 132 | T107: 1 | U107: 0 | V107: 1 | W107: 9660 | X107: 9660 | Y107: 12717.51087 | Z107: 530.0170807 | AA107: 12714.86863 | AB107: 13777 (19 %), 16172 (30 %), 11123 (10 %), 10012 (41 %) | AC107: 50 (51 %), 60 (25 %), 70 (23 %) | AD107: Is (100 %) | AE107: AB (100 %) | AF107: Y2 (100 %) | AG107: 15 | AH107: 48 | AI107: 0.1615508885 | AJ107: 128.4226708 | AN107: 0 | AO107: 0.5449088641 | AR107: =+IF(Y107>=$K$6,$F$5,($F$5/($K$6))*Y107) -> 9 | AS107: 935 | AU107: 344 | AV107: =+IF(AS107>=$L$15,$J$15,IF(AS107<($L$15),AS107*($J$15/($L$15)),)) -> 3 | AW107: 7918 | AX107: =+IF(AW107>=$L$11,$J$11,IF(AW107<($L$11),AW107*($J$11/($L$11)),)) -> 3 | AY107: =SUM(AR107,AV107,AX107) -> 15 | AZ107: =+AY107*$H$5 -> 5 | BA107: =+IF(Z107=0,0,IF(Z107>$K$7,$F$9,($F$9/$K$7)*Z107)) -> 8 | BB107: =IF(CZ107>0,$F$10,0) -> 2 | BC107: =IF(DA107>0,$F$11,0) -> 1 | BD107: =IF(DB107>0,$F$12,0) -> 0 | BE107: =IF(DC107>0,$F$13,0) -> 0 | BF107: =IF(DE107>0,$F$14,IF(DD107>0,$F$14/2,0)) -> 2 | BG107: =+IF(DF107>=$L$23,$J$23,IF(DF107<($L$23),DF107*($J$23/($L$23)),)) -> 0.045 | BH107: =+IF(DG107>=$L$24,$J$24,IF(DG107<($L$24),DG107*($J$24/($L$24)),)) -> 0.05 | BI107: =+IF(DH107>=$L$25,$J$25,IF(DH107<($L$25),DH107*($J$25/($L$25)),)) -> 0 | BJ107: =+IF(DI107>=$L$26,$J$26,IF(DI107<($L$26),DI107*($J$26/($L$26)),)) -> 0 | BK107: =IF(DJ107>0,$F$16,0) -> 0 | BL107: =+IF(DM107>=$L$29,$J$29,IF(DM107<($L$29),DM107*($J$29/($L$29)),)) -> 2 | BM107: =IF(EA107>100000,$F$18,IF(EA107>0,$F$18/2,0)) -> 0 | BN107: =IF(DX107>0,$F$19,0) -> 2 | BO107: 1.668493151 | BP107: =+IF(BO107>=$L$19,$J$19,IF(BO107<($L$19),BO107*($J$19/($L$19)),)) -> 0.1668493151 | BQ107: =SUM(BA107+BB107+BC107+BD107+BE107+BF107+BK107+BG107+BH107+BI107+BJ107+BL107+BM107+BN107+BP107) -> 17.26184932 | BR107: =+BQ107*$H$9 -> 5.753949772 | BS107: 6035.241019 | BT107: =BS107/X107 -> 0.624766151 | BU107: =IF(BT107>0,IF(BT107>=$CY$28,$CW$28,IF(BT107<$CY$28,$CW$29,0)),0) -> 1 | BV107: 5719.983215 | BW107: =BV107/X107 -> 0.5921307676 | BX107: =IF(BW107,$F$23,0) -> 1 | BY107: =IF(DO107>0,$F$24,0) -> 1 | BZ107: 4123.57253 | CA107: =BZ107/X107 -> 0.4268708623 | CB107: =+IF(CA107>=$K$4,$F$25,0) -> 0 | CC107: 893.6763975 | CD107: =IF(CC107>0,IF(CC107>=100,$F$26,IF(CC107<100,$F$26/2)),0) -> 1 | CE107: =SUM(DS107) -> 1 | CF107: =IF(DU107>0,$F$28,0) -> 1 | CG107: =IF(DT107>0,$F$29,0) -> 0 | CH107: =IF(DW107>0,$F$30,0) -> 1 | CI107: =SUM(BU107,BX107,CD107,BY107,CB107,CE107,CF107,CG107,CH107) -> 7 | CJ107: =+CI107*$H$22 -> 2.333333333 | CK107: =SUM(AY107,BQ107,CI107) -> 39.26184932 | CL107: =SUM(AZ107,BR107,CJ107) -> 13.08728311 | CM107: =IF(D107<($Z$13*1704),1,IF(D107<(($Z$14+$Z$13)*1704),2,IF(D107<(($Z$15+$Z$13+$Z$14)*1704),3,4))) -> 1 | CN107: =VLOOKUP(A107,Taul1!$F$6:$G$1718,2,FALSE) -> 4 | CT107: https://www.google.com/maps/@60.35452066,24.80906464,3a,75y,90t/data=!3m3!1e1!3m1!2e0 | CW107: 0 | CX107: 1 | CY107: 0 | CZ107: =SUM(CW107:CY107) -> 1 | DA107: 4 | DB107: 0 | DC107: 0 | DD107: 10 | DE107: 9 | DF107: 27 | DG107: 10 | DH107: 0 | DI107: 0 | DJ107: 0 | DM107: 39 | DN107: 0 | DO107: 9614.722248 | DQ107: =+IF(AA107>$K$8,$F$27/2,0) -> 1 | DR107: =+IF(AA107/Y107>1.5,$F$27/2,0) -> 0 | DS107: =SUM(DQ107:DR107) -> 1 | DT107: 0 | DU107: 1 | DW107: 1 | DX107: 4 | DY107: 0 | DZ107: 0.5449088641 | EA107: 0 | EC107: =IFERROR(VLOOKUP(A107,$EI$37:$EK$1748,2,FALSE),"--") -> LOPUT | ED107: =IFERROR(VLOOKUP(A107,$EI$37:$EK$1748,3,FALSE),"--") -> 11 | EE107: =IFERROR(ED107-D107,"--") -> -60 | EF107: =IFERROR(VLOOKUP(A107,$EI$37:$EL$1748,4,FALSE),"--") -> 1 | EG107: =IFERROR(EF107-K107,"--") -> 0 | EI107: 140_5 | EJ107: LOPUT | EK107: 28 | EL107: 1 | EN107: 11790 | EO107: 1
A108: =CONCATENATE(S108,"_",T108) -> 167_7 | B108: 1 | D108: =RANK(CL108,$CL$37:$CL$1740) -> 72 | E108: 72 | F108: =E108-D108 -> 0 | G108: =CL108 -> 13.03833333 | H108: =AZ108 -> 5 | I108: =BR108 -> 5.705 | J108: =CJ108 -> 2.333333333 | K108: =CM108 -> 1 | L108: =B108-K108 -> 0 | M108: =HYPERLINK(CT108,"Gmaps") -> Gmaps | N108: =IF(Y108>$K$6,"LOPUT","VÄHÄ") -> LOPUT | O108: =IF(S108<40,"Valta",IF(S108<100,"Kanta",IF(S108<1000,"Seutu",IF(S108>999,"Yhdys")))) -> Seutu | P108: Artjärventie, Pakaantie | Q108: Orimattila | R108: Päijät-Häme | S108: 167 | T108: 7 | U108: 0 | V108: 7 | W108: 3549 | X108: 3549 | Y108: 3882.007608 | Z108: 244.17357 | AA108: 4163.069597 | AB108: 7229 (11 %), 3827 (54 %), 2942 (35 %) | AC108: 50 (42 %), 60 (58 %) | AD108: Is (100 %) | AE108: AB (100 %) | AF108: Y2 (100 %) | AG108: 1 | AH108: 5 | AI108: 0 | AJ108: 93.70076078 | AN108: 0 | AO108: 0.8713882224 | AR108: =+IF(Y108>=$K$6,$F$5,($F$5/($K$6))*Y108) -> 9 | AS108: 142 | AU108: 142 | AV108: =+IF(AS108>=$L$15,$J$15,IF(AS108<($L$15),AS108*($J$15/($L$15)),)) -> 3 | AW108: 1506 | AX108: =+IF(AW108>=$L$11,$J$11,IF(AW108<($L$11),AW108*($J$11/($L$11)),)) -> 3 | AY108: =SUM(AR108,AV108,AX108) -> 15 | AZ108: =+AY108*$H$5 -> 5 | BA108: =+IF(Z108=0,0,IF(Z108>$K$7,$F$9,($F$9/$K$7)*Z108)) -> 8 | BB108: =IF(CZ108>0,$F$10,0) -> 2 | BC108: =IF(DA108>0,$F$11,0) -> 0 | BD108: =IF(DB108>0,$F$12,0) -> 1 | BE108: =IF(DC108>0,$F$13,0) -> 0 | BF108: =IF(DE108>0,$F$14,IF(DD108>0,$F$14/2,0)) -> 1 | BG108: =+IF(DF108>=$L$23,$J$23,IF(DF108<($L$23),DF108*($J$23/($L$23)),)) -> 0.005 | BH108: =+IF(DG108>=$L$24,$J$24,IF(DG108<($L$24),DG108*($J$24/($L$24)),)) -> 0.11 | BI108: =+IF(DH108>=$L$25,$J$25,IF(DH108<($L$25),DH108*($J$25/($L$25)),)) -> 0 | BJ108: =+IF(DI108>=$L$26,$J$26,IF(DI108<($L$26),DI108*($J$26/($L$26)),)) -> 0 | BK108: =IF(DJ108>0,$F$16,0) -> 0 | BL108: =+IF(DM108>=$L$29,$J$29,IF(DM108<($L$29),DM108*($J$29/($L$29)),)) -> 2 | BM108: =IF(EA108>100000,$F$18,IF(EA108>0,$F$18/2,0)) -> 0 | BN108: =IF(DX108>0,$F$19,0) -> 2 | BO108: 11.03013699 | BP108: =+IF(BO108>=$L$19,$J$19,IF(BO108<($L$19),BO108*($J$19/($L$19)),)) -> 1 | BQ108: =SUM(BA108+BB108+BC108+BD108+BE108+BF108+BK108+BG108+BH108+BI108+BJ108+BL108+BM108+BN108+BP108) -> 17.115 | BR108: =+BQ108*$H$9 -> 5.705 | BS108: 2808.244188 | BT108: =BS108/X108 -> 0.7912775959 | BU108: =IF(BT108>0,IF(BT108>=$CY$28,$CW$28,IF(BT108<$CY$28,$CW$29,0)),0) -> 1 | BV108: 3543.593846 | BW108: =BV108/X108 -> 0.9984767107 | BX108: =IF(BW108,$F$23,0) -> 1 | BY108: =IF(DO108>0,$F$24,0) -> 1 | BZ108: 2479.172366 | CA108: =BZ108/X108 -> 0.698555189 | CB108: =+IF(CA108>=$K$4,$F$25,0) -> 1 | CC108: 584.8830657 | CD108: =IF(CC108>0,IF(CC108>=100,$F$26,IF(CC108<100,$F$26/2)),0) -> 1 | CE108: =SUM(DS108) -> 1 | CF108: =IF(DU108>0,$F$28,0) -> 0 | CG108: =IF(DT108>0,$F$29,0) -> 0 | CH108: =IF(DW108>0,$F$30,0) -> 1 | CI108: =SUM(BU108,BX108,CD108,BY108,CB108,CE108,CF108,CG108,CH108) -> 7 | CJ108: =+CI108*$H$22 -> 2.333333333 | CK108: =SUM(AY108,BQ108,CI108) -> 39.115 | CL108: =SUM(AZ108,BR108,CJ108) -> 13.03833333 | CM108: =IF(D108<($Z$13*1704),1,IF(D108<(($Z$14+$Z$13)*1704),2,IF(D108<(($Z$15+$Z$13+$Z$14)*1704),3,4))) -> 1 | CN108: =VLOOKUP(A108,Taul1!$F$6:$G$1718,2,FALSE) -> 3 | CT108: https://www.google.com/maps/@60.80170627,25.72899438,3a,75y,90t/data=!3m3!1e1!3m1!2e0 | CW108: 0 | CX108: 1 | CY108: 1 | CZ108: =SUM(CW108:CY108) -> 2 | DA108: 0 | DB108: 5 | DC108: 0 | DD108: 5 | DE108: 0 | DF108: 3 | DG108: 22 | DH108: 0 | DI108: 0 | DJ108: 0 | DM108: 4 | DN108: 1 | DO108: 3543.593846 | DQ108: =+IF(AA108>$K$8,$F$27/2,0) -> 1 | DR108: =+IF(AA108/Y108>1.5,$F$27/2,0) -> 0 | DS108: =SUM(DQ108:DR108) -> 1 | DT108: 0 | DU108: 0 | DW108: 1 | DX108: 1 | DY108: 0 | DZ108: 0.8713882224 | EA108: 0 | EC108: =IFERROR(VLOOKUP(A108,$EI$37:$EK$1748,2,FALSE),"--") -> LOPUT | ED108: =IFERROR(VLOOKUP(A108,$EI$37:$EK$1748,3,FALSE),"--") -> 140 | EE108: =IFERROR(ED108-D108,"--") -> 68 | EF108: =IFERROR(VLOOKUP(A108,$EI$37:$EL$1748,4,FALSE),"--") -> 2 | EG108: =IFERROR(EF108-K108,"--") -> 1 | EI108: 12_215 | EJ108: LOPUT | EK108: 26 | EL108: 1 | EN108: 1542 | EO108: 1
A109: =CONCATENATE(S109,"_",T109) -> 12_212 | B109: 1 | D109: =RANK(CL109,$CL$37:$CL$1740) -> 73 | E109: 73 | F109: =E109-D109 -> 0 | G109: =CL109 -> 13.03555556 | H109: =AZ109 -> 5 | I109: =BR109 -> 5.868888889 | J109: =CJ109 -> 2.166666667 | K109: =CM109 -> 1 | L109: =B109-K109 -> 0 | M109: =HYPERLINK(CT109,"Gmaps") -> Gmaps | N109: =IF(Y109>$K$6,"LOPUT","VÄHÄ") -> LOPUT | O109: =IF(S109<40,"Valta",IF(S109<100,"Kanta",IF(S109<1000,"Seutu",IF(S109>999,"Yhdys")))) -> Valta | P109: Tampereen valtatie | Q109: Hämeenlinna | R109: Kanta-Häme | S109: 12 | T109: 212 | U109: 0 | V109: 212 | W109: 5461 | X109: 5461 | Y109: 3398.313679 | Z109: 411.7335653 | AA109: 4455.788134 | AB109: 3401 (18 %), 3626 (30 %), 3266 (52 %) | AC109: 80 (48 %), 100 (52 %) | AD109: Is (100 %) | AE109: AB (100 %) | AF109: Y1 (100 %) | AG109: 0 | AH109: 3 | AI109: 0.01831166453 | AJ109: 298.155466 | AL109: 2 | AM109: x | AN109: 0 | AO109: 0 | AR109: =+IF(Y109>=$K$6,$F$5,($F$5/($K$6))*Y109) -> 9 | AS109: 48 | AU109: 48 | AV109: =+IF(AS109>=$L$15,$J$15,IF(AS109<($L$15),AS109*($J$15/($L$15)),)) -> 3 | AW109: 528 | AX109: =+IF(AW109>=$L$11,$J$11,IF(AW109<($L$11),AW109*($J$11/($L$11)),)) -> 3 | AY109: =SUM(AR109,AV109,AX109) -> 15 | AZ109: =+AY109*$H$5 -> 5 | BA109: =+IF(Z109=0,0,IF(Z109>$K$7,$F$9,($F$9/$K$7)*Z109)) -> 8 | BB109: =IF(CZ109>0,$F$10,0) -> 2 | BC109: =IF(DA109>0,$F$11,0) -> 0 | BD109: =IF(DB109>0,$F$12,0) -> 1 | BE109: =IF(DC109>0,$F$13,0) -> 1 | BF109: =IF(DE109>0,$F$14,IF(DD109>0,$F$14/2,0)) -> 2 | BG109: =+IF(DF109>=$L$23,$J$23,IF(DF109<($L$23),DF109*($J$23/($L$23)),)) -> 0.4966666667 | BH109: =+IF(DG109>=$L$24,$J$24,IF(DG109<($L$24),DG109*($J$24/($L$24)),)) -> 0.11 | BI109: =+IF(DH109>=$L$25,$J$25,IF(DH109<($L$25),DH109*($J$25/($L$25)),)) -> 0 | BJ109: =+IF(DI109>=$L$26,$J$26,IF(DI109<($L$26),DI109*($J$26/($L$26)),)) -> 0 | BK109: =IF(DJ109>0,$F$16,0) -> 0 | BL109: =+IF(DM109>=$L$29,$J$29,IF(DM109<($L$29),DM109*($J$29/($L$29)),)) -> 0 | BM109: =IF(EA109>100000,$F$18,IF(EA109>0,$F$18/2,0)) -> 0 | BN109: =IF(DX109>0,$F$19,0) -> 2 | BO109: 15.44109589 | BP109: =+IF(BO109>=$L$19,$J$19,IF(BO109<($L$19),BO109*($J$19/($L$19)),)) -> 1 | BQ109: =SUM(BA109+BB109+BC109+BD109+BE109+BF109+BK109+BG109+BH109+BI109+BJ109+BL109+BM109+BN109+BP109) -> 17.60666667 | BR109: =+BQ109*$H$9 -> 5.868888889 | BS109: 3166.568183 | BT109: =BS109/X109 -> 0.5798513428 | BU109: =IF(BT109>0,IF(BT109>=$CY$28,$CW$28,IF(BT109<$CY$28,$CW$29,0)),0) -> 1 | BV109: 5465.298322 | BW109: =BV109/X109 -> 1.000787094 | BX109: =IF(BW109,$F$23,0) -> 1 | BY109: =IF(DO109>0,$F$24,0) -> 1 | BZ109: 0 | CA109: =BZ109/X109 -> 0 | CB109: =+IF(CA109>=$K$4,$F$25,0) -> 0 | CC109: 72.55832265 | CD109: =IF(CC109>0,IF(CC109>=100,$F$26,IF(CC109<100,$F$26/2)),0) -> 0.5 | CE109: =SUM(DS109) -> 1 | CF109: =IF(DU109>0,$F$28,0) -> 0 | CG109: =IF(DT109>0,$F$29,0) -> 1 | CH109: =IF(DW109>0,$F$30,0) -> 1 | CI109: =SUM(BU109,BX109,CD109,BY109,CB109,CE109,CF109,CG109,CH109) -> 6.5 | CJ109: =+CI109*$H$22 -> 2.166666667 | CK109: =SUM(AY109,BQ109,CI109) -> 39.10666667 | CL109: =SUM(AZ109,BR109,CJ109) -> 13.03555556 | CM109: =IF(D109<($Z$13*1704),1,IF(D109<(($Z$14+$Z$13)*1704),2,IF(D109<(($Z$15+$Z$13+$Z$14)*1704),3,4))) -> 1 | CN109: =VLOOKUP(A109,Taul1!$F$6:$G$1718,2,FALSE) -> 3 | CT109: https://www.google.com/maps/@61.17735860,24.56347961,3a,75y,90t/data=!3m3!1e1!3m1!2e0 | CW109: 1 | CX109: 0 | CY109: 1 | CZ109: =SUM(CW109:CY109) -> 2 | DA109: 0 | DB109: 2 | DC109: 1 | DD109: 18 | DE109: 1 | DF109: 298 | DG109: 22 | DH109: 0 | DI109: 0 | DJ109: 0 | DM109: 0 | DN109: 0 | DO109: 5465.298322 | DQ109: =+IF(AA109>$K$8,$F$27/2,0) -> 1 | DR109: =+IF(AA109/Y109>1.5,$F$27/2,0) -> 0 | DS109: =SUM(DQ109:DR109) -> 1 | DT109: 1 | DU109: 0 | DW109: 1 | DX109: 1 | DY109: 0 | DZ109: 0 | EA109: 0 | EC109: =IFERROR(VLOOKUP(A109,$EI$37:$EK$1748,2,FALSE),"--") -> LOPUT | ED109: =IFERROR(VLOOKUP(A109,$EI$37:$EK$1748,3,FALSE),"--") -> 83 | EE109: =IFERROR(ED109-D109,"--") -> 10 | EF109: =IFERROR(VLOOKUP(A109,$EI$37:$EL$1748,4,FALSE),"--") -> 1 | EG109: =IFERROR(EF109-K109,"--") -> 0 | EI109: 2_26 | EJ109: LOPUT | EK109: 79 | EL109: 1 | EN109: 13531 | EO109: 1
A110: =CONCATENATE(S110,"_",T110) -> 55_2 | B110: 1 | D110: =RANK(CL110,$CL$37:$CL$1740) -> 74 | E110: 74 | F110: =E110-D110 -> 0 | G110: =CL110 -> 13.03009132 | H110: =AZ110 -> 5 | I110: =BR110 -> 6.363424658 | J110: =CJ110 -> 1.666666667 | K110: =CM110 -> 1 | L110: =B110-K110 -> 0 | M110: =HYPERLINK(CT110,"Gmaps") -> Gmaps | N110: =IF(Y110>$K$6,"LOPUT","VÄHÄ") -> LOPUT | O110: =IF(S110<40,"Valta",IF(S110<100,"Kanta",IF(S110<1000,"Seutu",IF(S110>999,"Yhdys")))) -> Kanta | P110: Mäntsäläntie, Porvoontie | Q110: Askola, Porvoo | R110: Uusimaa | S110: 55 | T110: 2 | U110: 0 | V110: 2 | W110: 5995 | X110: 5995 | Y110: 5842 | Z110: 532 | AA110: 6239 | AB110: 5842 (100 %) | AC110: 60 (2 %), 80 (11 %), 100 (87 %) | AD110: Is (100 %) | AE110: AB (100 %) | AF110: Y1 (100 %) | AG110: 7 | AH110: 11 | AI110: 0 | AJ110: 292 | AN110: 0 | AO110: 0.06511560782 | AR110: =+IF(Y110>=$K$6,$F$5,($F$5/($K$6))*Y110) -> 9 | AS110: 65 | AU110: 65 | AV110: =+IF(AS110>=$L$15,$J$15,IF(AS110<($L$15),AS110*($J$15/($L$15)),)) -> 3 | AW110: 1964 | AX110: =+IF(AW110>=$L$11,$J$11,IF(AW110<($L$11),AW110*($J$11/($L$11)),)) -> 3 | AY110: =SUM(AR110,AV110,AX110) -> 15 | AZ110: =+AY110*$H$5 -> 5 | BA110: =+IF(Z110=0,0,IF(Z110>$K$7,$F$9,($F$9/$K$7)*Z110)) -> 8 | BB110: =IF(CZ110>0,$F$10,0) -> 2 | BC110: =IF(DA110>0,$F$11,0) -> 1 | BD110: =IF(DB110>0,$F$12,0) -> 1 | BE110: =IF(DC110>0,$F$13,0) -> 0 | BF110: =IF(DE110>0,$F$14,IF(DD110>0,$F$14/2,0)) -> 1 | BG110: =+IF(DF110>=$L$23,$J$23,IF(DF110<($L$23),DF110*($J$23/($L$23)),)) -> 0.455 | BH110: =+IF(DG110>=$L$24,$J$24,IF(DG110<($L$24),DG110*($J$24/($L$24)),)) -> 0.275 | BI110: =+IF(DH110>=$L$25,$J$25,IF(DH110<($L$25),DH110*($J$25/($L$25)),)) -> 0 | BJ110: =+IF(DI110>=$L$26,$J$26,IF(DI110<($L$26),DI110*($J$26/($L$26)),)) -> 0.5 | BK110: =IF(DJ110>0,$F$16,0) -> 0 | BL110: =+IF(DM110>=$L$29,$J$29,IF(DM110<($L$29),DM110*($J$29/($L$29)),)) -> 2 | BM110: =IF(EA110>100000,$F$18,IF(EA110>0,$F$18/2,0)) -> 0 | BN110: =IF(DX110>0,$F$19,0) -> 2 | BO110: 8.602739726 | BP110: =+IF(BO110>=$L$19,$J$19,IF(BO110<($L$19),BO110*($J$19/($L$19)),)) -> 0.8602739726 | BQ110: =SUM(BA110+BB110+BC110+BD110+BE110+BF110+BK110+BG110+BH110+BI110+BJ110+BL110+BM110+BN110+BP110) -> 19.09027397 | BR110: =+BQ110*$H$9 -> 6.363424658 | BS110: 2628.662753 | BT110: =BS110/X110 -> 0.4384758554 | BU110: =IF(BT110>0,IF(BT110>=$CY$28,$CW$28,IF(BT110<$CY$28,$CW$29,0)),0) -> 0.5 | BV110: 5988.496119 | BW110: =BV110/X110 -> 0.9989151158 | BX110: =IF(BW110,$F$23,0) -> 1 | BY110: =IF(DO110>0,$F$24,0) -> 1 | BZ110: 0 | CA110: =BZ110/X110 -> 0 | CB110: =+IF(CA110>=$K$4,$F$25,0) -> 0 | CC110: 33.68557131 | CD110: =IF(CC110>0,IF(CC110>=100,$F$26,IF(CC110<100,$F$26/2)),0) -> 0.5 | CE110: =SUM(DS110) -> 1 | CF110: =IF(DU110>0,$F$28,0) -> 0 | CG110: =IF(DT110>0,$F$29,0) -> 0 | CH110: =IF(DW110>0,$F$30,0) -> 1 | CI110: =SUM(BU110,BX110,CD110,BY110,CB110,CE110,CF110,CG110,CH110) -> 5 | CJ110: =+CI110*$H$22 -> 1.666666667 | CK110: =SUM(AY110,BQ110,CI110) -> 39.09027397 | CL110: =SUM(AZ110,BR110,CJ110) -> 13.03009132 | CM110: =IF(D110<($Z$13*1704),1,IF(D110<(($Z$14+$Z$13)*1704),2,IF(D110<(($Z$15+$Z$13+$Z$14)*1704),3,4))) -> 1 | CN110: =VLOOKUP(A110,Taul1!$F$6:$G$1718,2,FALSE) -> 1 | CT110: https://www.google.com/maps/@60.44585322,25.58556348,3a,75y,90t/data=!3m3!1e1!3m1!2e0 | CW110: 1 | CX110: 0 | CY110: 1 | CZ110: =SUM(CW110:CY110) -> 2 | DA110: 1 | DB110: 4 | DC110: 0 | DD110: 27 | DE110: 0 | DF110: 273 | DG110: 55 | DH110: 0 | DI110: 80 | DJ110: 0 | DM110: 14 | DN110: 0 | DO110: 5988.496119 | DQ110: =+IF(AA110>$K$8,$F$27/2,0) -> 1 | DR110: =+IF(AA110/Y110>1.5,$F$27/2,0) -> 0 | DS110: =SUM(DQ110:DR110) -> 1 | DT110: 0 | DU110: 0 | DW110: 1 | DX110: 2 | DY110: 0 | DZ110: 0.06511560782 | EA110: 0 | EC110: =IFERROR(VLOOKUP(A110,$EI$37:$EK$1748,2,FALSE),"--") -> LOPUT | ED110: =IFERROR(VLOOKUP(A110,$EI$37:$EK$1748,3,FALSE),"--") -> 94 | EE110: =IFERROR(ED110-D110,"--") -> 20 | EF110: =IFERROR(VLOOKUP(A110,$EI$37:$EL$1748,4,FALSE),"--") -> 2 | EG110: =IFERROR(EF110-K110,"--") -> 1 | EI110: 284_1 | EJ110: LOPUT | EK110: 43 | EL110: 1 | EN110: 1605 | EO110: 6
